Workbook

Sheet Sheet1
C1: klimatst - / kl_FRE / 001 / Temperatur utomhus | D1: A0133011 - Studenthuset / el_007 / 001 / Energi | E1: A0133011 - Studenthuset / kb_001 / 001 / Volym | F1: A0133011 - Studenthuset / kb_001 / 001 / Temp fram | G1: A0133011 - Studenthuset / kb_001 / 001 / Temp retur | I1: A0133011 - Studenthuset / kb_001 / 001 / Energi | J1: A0133011 - Studenthuset / kb_101 / 001 / Effekt | K1: Best estimate of cooling provided. | L1: A0133011 - Studenthuset / fj_001 / 001 / Volym | M1: A0133011 - Studenthuset / fj_001 / 001 / Temp fram | N1: A0133011 - Studenthuset / fj_001 / 001 / Temp retur | P1: A0133011 - Studenthuset / fj_001 / 001 / Energi | Q1: A0133011 - Studenthuset / fj_001 / 001 / Effekt | R1: Best estimate of heating provided | S1: A0133011 - Studenthuset / vv_001 / 001 / Volym | T1: Est. of DHW by HP provided assuming Tsupply = sin func; THW=55 | U1: COP based on bldg heating only. | V1: COP Based on bldg. heating & DHW heating | W1: EL 003 | X1: COP Based on Bldg. Htg. & DHW Htg. & (EL003 + EL007) | Y1: A0133011 - Studenthuset / kb_101 / 001 / Effekt | AA1: 27 | AB1: =AA1+1 -> 28 | AC1: =AB1+1 -> 29 | AD1: 30 | AE1: 31 | AF1: 32 | AG1: 33 | AH1: 34 | AI1: 35 | AJ1: 36 | AK1: 37 | AL1: 38 | AM1: 39 | AN1: =AM1+1 -> 40 | AO1: =AN1+1 -> 41 | AP1: =AO1+1 -> 42 | AQ1: =AP1+1 -> 43 | AR1: =AQ1+1 -> 44 | AS1: =AR1+1 -> 45 | AT1: =AS1+1 -> 46 | AU1: =AT1+1 -> 47 | AV1: =AU1+1 -> 48 | AW1: =AV1+1 -> 49 | AX1: =AW1+1 -> 50 | AY1: =AX1+1 -> 51 | AZ1: =AY1+1 -> 52 | BA1: =AZ1+1 -> 53 | BB1: =BA1+1 -> 54 | BC1: =BB1+1 -> 55 | BD1: =BC1+1 -> 56 | BE1: =BD1+1 -> 57 | BF1: =BE1+1 -> 58 | BG1: =BF1+1 -> 59 | BH1: =BG1+1 -> 60 | BI1: =BH1+1 -> 61 | BJ1: =BI1+1 -> 62 | BK1: =BJ1+1 -> 63 | BL1: =BK1+1 -> 64 | BM1: =BL1+1 -> 65 | BN1: =BM1+1 -> 66 | BO1: =BN1+1 -> 67 | BP1: =BO1+1 -> 68 | BQ1: =BP1+1 -> 69 | BR1: =BQ1+1 -> 70 | BS1: =BR1+1 -> 71 | BT1: =BS1+1 -> 72 | BU1: =BT1+1 -> 73 | BV1: =BU1+1 -> 74 | BW1: =BV1+1 -> 75 | BX1: =BW1+1 -> 76 | BY1: =BX1+1 -> 77 | BZ1: =BY1+1 -> 78 | CA1: =BZ1+1 -> 79 | CB1: =CA1+1 -> 80 | CC1: =CB1+1 -> 81 | CD1: =CC1+1 -> 82 | CE1: =CD1+1 -> 83 | CF1: =CE1+1 -> 84 | CG1: =CF1+1 -> 85 | CH1: =CG1+1 -> 86 | CI1: =CH1+1 -> 87 | CJ1: =CI1+1 -> 88 | CK1: =CJ1+1 -> 89 | CL1: =CK1+1 -> 90 | CM1: =CL1+1 -> 91 | CN1: =CM1+1 -> 92 | CO1: =CN1+1 -> 93
A2: Worksheet in Mätvärdem spreadsheet | C2: Frescati_klimatstation_temp | E2: A0133011_kb_001_volym | F2: A0133011_kb_001_tempFram | G2: A0133011_kb_001_tempRetur | I2: A0133011_kb_001_energi | J2: A0133011_kb_101_effekt | L2: A0133011_fj_001_volym | M2: A0133011_fj_001_tempFram | N2: A0133011_fj_001_tempRetur | P2: A0133011_fj_001_energi | Q2: A0133011_fj_001_effekt | S2: A0133011_vv_001_volym | W2: A0133011_el_003_energi | Y2: A0133011_kb_101_effekt | AF2: =SUM(AF10949:AF33220) -> 60819.62388 | AK2: =YEAR(A10949) -> 2017
C3: Ambient temperature (°C) | D3: Heat pump _ circulating pump electrical energy consumption | E3: Volume flow of ground loop for time step. | F3: Loop fluid to the boreholes | G3: Loop fluid from the boreholes | H3: Calculated heat provided by loop | I3: Cooling energy from meter (not smeared out) | J3: Cooling 101 Capacity | L3: Heating volume measurement (low precision) | M3: Temperature heating to bldg | N3: Temperature htg return | P3: Heating energy provided | Q3: Heating provided | W3: EL003 | Z3: Clg/ (Clg+Htg +DHW) | AA3: Cooling electricity based on EL003 allocation | AB3: Heating electricity based on EL003 allocation | AE3: LPS htg to DHW (kW) | AF3: LPS htg to bldg (kW) Also estimate of elec. used by LPS for std. operation | AG3: DHW provided by HP (kW) | AH3: DHW Load Including Legionella Protection | AI3: Est. source-side circ pump energy consumption (kWh/h) | AJ3: LPS htg (total) | AK3: Month for binning purposes | AL3: Useful heat dissipated by LPS to building. | AM3: Useful heat dissipated by internal pumps & fans | AN3: Day number | AO3: Incoming water supply temperature (°C) | AW3: Year for binning purposes | AX3: Month of year for binning purposes | AY3: Day of operation for binning purposes. | BA3: Mean loop temperature (°C) | BB3: Fractional error in bldg htg provided | BC3: Error in bldg htg provided (kWh/h) | BD3: Fractional error in bldg clg provided (starts BD5860, Sept 1) | BE3: Error in bldg clg provided (kWh/h) | BF3: Fractional Error in DHW provided by HP | BG3: Error in DHW provided by HP (kWh/h) | BH3: Error in total heating (Bldg + DHW) by heat pumps (kWh/h) | BI3: Fractional error in total heating provided by heat pumps | BK3: Heating fraction for allocating EL011 Power | BL3: Error in EL007 measurement (kWh) | BM3: Error in EL011 measurement (kWh) | BN3: Error in EL007 + EL011 for heating | BP3: Fractional error in LPS DHW Heating | BQ3: Absolute error in LPS Heating (kW) | BS3: Circulating pump power (for heat extraction from ground) (kW) | BT3: Circulating pump power (for heat rejection to ground) (kW) | BU3: Heat Extraction by GHE (kW) | BV3: Heat Rejection by GHE (kW) | BY3: First law estimate of net heat extraction. (kW) | BZ3: GHE Heat extraction (kW) | CA3: GHE Heat rejection (kW) | CD3: Best estimate of heating+cooling (kW) | CE3: Best estimate of heating+cooling +DHW (kW)
C4: °C | D4: kWh | E4: m³ | F4: °C | G4: °C | H4: kW | I4: MWh | J4: kW | K4: kW | L4: m³ | M4: °C | N4: °C | O4: kW | P4: MWh | Q4: kW | R4: kW | S4: m³ | T4: kWh/h | Y4: kW | AP4: Month | AQ4: Days in month | AR4: 1st row | AS4: last row | AT4: Average | AU4: Max | AV4: Min
A5: 2016-01-01T00:01:00 | B5: 0 | C5: 2.777778 | D5: 13.91 | E5: 28 | F5: 8.2 | G5: 8.7 | H5: =(G5-F5)*E5*seccdens(28,BA5,4)*seccspht(28,BA5,4)/3600/1000 -> 15.50262295 | I5: 0 | K5: =IF(Y5="",I5*1000,Y5) -> 0 | L5: 5 | M5: 37 | N5: 32 | O5: =(M5-N5)*L5*wrho((M5+N5)/2)*wcp((M5+N5)/2)/3600 -> 28.84248949 | P5: 0.04 | Q5: 22 | R5: =IF(Q5="",O5,Q5) -> 22 | S5: 0 | T5: =S5*1000*4.19*(55-AO5)/3600 -> 0 | U5: =R5/D5 -> 1.581595974 | V5: =(T5+R5)/D5 -> 1.581595974 | W5: 10.73 | X5: =(T5+R5)/(D5+W5) -> 0.8928571429 | AE5: =MIN((60-55)/(55-AO5)*T5,D5) -> 0 | AF5: =MIN(3,D5)-AE5 -> 3 | AG5: =T5 -> 0 | AH5: =T5*(60-8)/(55-8)+AF5 -> 3 | AI5: =0.001973*(E5/3600*1000)^3 -> 0.9283113855 | AJ5: =3+1000*S5*4.19/3600*5 -> 3 | AK5: =MONTH(A5)+(YEAR(A5)-2016)*12 -> 1 | AL5: =IF(R5>0,AF5,0) -> 3 | AM5: =IF(R5>0,W5-AI5,0) -> 9.801688615 | AN5: =daynum(MONTH(A5),DAY(A5)) -> 1 | AO5: =TapWaterTemperature(AN5, 10,5,60) -> 7.364624725 | AW5: =YEAR(A5) -> 2016 | AX5: =MONTH(A5) -> 1 | AY5: =ROUNDDOWN(A5,0)-42369 -> 1 | AZ5: =A5 -> 42370.00069 | BA5: =(F5+G5)/2 -> 8.45 | BB5: =FractionalError_Bldg_Htg_provided(ABS(M5-N5),P5) -> 0.05099019514 | BC5: =BB5*R5 -> 1.121784293 | BD5: =HeuristicError_Bldg_Clg(I5/1000) -> 0.055 | BE5: =K5*BD5 -> 0 | BF5: =FractionalErrorDHW(S5,AO5) -> 0.07546561188 | BG5: =BF5*T5 -> 0 | BH5: =SQRT(BG5^2+BC5^2) -> 1.121784293 | BI5: =IF((T5+R5)<>0,BH5/(T5+R5),0) -> 0.05099019514 | BK5: =IF((R5+T5+K5)>0,(R5+T5)/(R5+T5+K5),1) -> 1 | BL5: =Error_EL007(D5) -> 0.1391 | BM5: =Error_EL011() -> 0.19 | BN5: =SQRT(BL5^2+(BK5*BM5)^2) -> 0.23547571 | BP5: =SQRT((SQRT(2)/5)^2+0.05^2) -> 0.2872281323 | BQ5: =BP5*AE5 -> 0 | BS5: =IF(H5>0,AI5,0) -> 0.9283113855 | BT5: =AI5-BS5 -> 0 | BU5: =IF(H5>0,H5,0) -> 15.50262295 | BV5: =IF(H5<0, -H5,0) -> 0 | BY5: =(R5+T5)-(K5+(D5-AE5-AF5)+BS5+BT5) -> 10.16168861 | BZ5: =IF(BY5>0,BY5,0) -> 10.16168861 | CA5: =IF(BY5<0,-BY5,0) -> 0 | CD5: =K5+R5 -> 22 | CE5: =CD5+AH5 -> 25
A6: 2016-01-01T01:00:00 | B6: =B5+1 -> 1 | C6: 2.722222 | D6: 13.83 | E6: 29 | F6: 8 | G6: 8.5 | H6: =(G6-F6)*E6*seccdens(28,BA6,4)*seccspht(28,BA6,4)/3600/1000 -> 16.05256565 | I6: 0.002941176471 | K6: =IF(Y6="",I6*1000,Y6) -> 2.941176471 | L6: 5 | M6: 40 | N6: 32 | O6: =(M6-N6)*L6*wrho((M6+N6)/2)*wcp((M6+N6)/2)/3600 -> 46.12471245 | P6: 0.04 | Q6: 30 | R6: =IF(Q6="",O6,Q6) -> 30 | S6: 0 | T6: =S6*1000*4.19*(55-AO6)/3600 -> 0 | U6: =R6/D6 -> 2.169197397 | V6: =(T6+R6)/D6 -> 2.169197397 | W6: 11.27 | X6: =(T6+R6)/(D6+W6) -> 1.195219124 | AE6: 0 | AF6: 3 | AG6: =T6 -> 0 | AH6: =T6*(60-8)/(55-8)+AF6 -> 3 | AI6: =0.001973*(E6/3600*1000)^3 -> 1.03136782 | AJ6: =3+1000*S6*4.19/3600*5 -> 3 | AK6: 1 | AL6: 3 | AM6: =IF(R6>0,W6-AI6,0) -> 10.23863218 | AN6: =daynum(MONTH(A6),DAY(A6)) -> 1 | AO6: =TapWaterTemperature(AN6, 10,5,60) -> 7.364624725 | AW6: =YEAR(A6) -> 2016 | AX6: =MONTH(A6) -> 1 | AY6: =ROUNDDOWN(A6,0)-42369 -> 1 | BA6: 8.25 | BB6: 0.05038911093 | BC6: 1.511673328 | BD6: 0.055 | BE6: 0.1617647059 | BF6: 0.07546561188 | BG6: 0 | BH6: 1.511673328 | BI6: 0.05038911093 | BK6: 0.9107142857 | BL6: 0.1383 | BM6: 0.19 | BN6: 0.22151354 | BP6: 0.2872281323 | BQ6: 0 | BS6: 1.03136782 | BT6: 0 | BU6: 16.05256565 | BV6: 0 | BY6: =(R6+T6)-(K6+(D6-AE6-AF6)+BS6+BT6) -> 15.19745571 | BZ6: =IF(BY6>0,BY6,0) -> 15.19745571 | CA6: =IF(BY6<0,-BY6,0) -> 0 | CD6: =K6+R6 -> 32.94117647 | CE6: =CD6+AH6 -> 35.94117647
A7: 2016-01-01T02:01:00 | B7: =B6+1 -> 2 | C7: 2.777778 | D7: 12.63 | E7: 29 | F7: 7.6 | G7: 8.8 | H7: =(G7-F7)*E7*seccdens(28,BA7,4)*seccspht(28,BA7,4)/3600/1000 -> 38.52392539 | I7: 0.002941176471 | K7: =IF(Y7="",I7*1000,Y7) -> 2.941176471 | L7: 4 | M7: 41 | N7: 30 | O7: =(M7-N7)*L7*wrho((M7+N7)/2)*wcp((M7+N7)/2)/3600 -> 50.74571976 | P7: 0.04 | Q7: 64 | R7: 64 | S7: 0 | T7: 0 | U7: 5.067300079 | V7: 5.067300079 | W7: 11.33 | X7: 2.671118531 | AE7: 0 | AF7: 3 | AG7: 0 | AH7: 3 | AI7: 1.03136782 | AJ7: 3 | AK7: 1 | AL7: 3 | AM7: =IF(R7>0,W7-AI7,0) -> 10.29863218 | AN7: 1 | AO7: 7.364624725 | AW7: 2016 | AX7: 1 | AY7: 1 | BA7: 8.2 | BB7: 0.05020618644 | BC7: 3.213195932 | BD7: 0.055 | BE7: 0.1617647059 | BF7: 0.07546561188 | BG7: 0 | BH7: 3.213195932 | BI7: 0.05020618644 | BK7: 0.9560632689 | BL7: 0.1263 | BM7: 0.19 | BN7: 0.2212445406 | BP7: 0.2872281323 | BQ7: 0 | BS7: 1.03136782 | BT7: 0 | BU7: 38.52392539 | BV7: 0 | BY7: 50.39745571 | BZ7: 50.39745571 | CA7: 0 | CD7: 66.94117647 | CE7: 69.94117647
A8: 2016-01-01T03:00:00 | B8: 3 | C8: 2.777778 | D8: 12.03 | E8: 29 | F8: 7.8 | G8: 8.8 | H8: =(G8-F8)*E8*seccdens(28,BA8,4)*seccspht(28,BA8,4)/3600/1000 -> 32.10699187 | I8: 0.002941176471 | K8: 2.941176471 | L8: 5 | M8: 38 | N8: 31 | O8: =(M8-N8)*L8*wrho((M8+N8)/2)*wcp((M8+N8)/2)/3600 -> 40.37948529 | P8: 0.04 | Q8: 47 | R8: 47 | S8: 0 | T8: 0 | U8: 3.906899418 | V8: 3.906899418 | W8: 10.9 | X8: 2.049716529 | AE8: 0 | AF8: 3 | AG8: 0 | AH8: 3 | AI8: 1.03136782 | AJ8: 3 | AK8: 1 | AL8: 3 | AM8: 9.86863218 | AN8: 1 | AO8: 7.364624725 | AW8: 2016 | AX8: 1 | AY8: 1 | BA8: 8.3 | BB8: 0.05050762723 | BC8: 2.37385848 | BD8: 0.055 | BE8: 0.1617647059 | BF8: 0.07546561188 | BG8: 0 | BH8: 2.37385848 | BI8: 0.05050762723 | BK8: 0.9411071849 | BL8: 0.1203 | BM8: 0.19 | BN8: 0.2155115697 | BP8: 0.2872281323 | BQ8: 0 | BS8: 1.03136782 | BT8: 0 | BU8: 32.10699187 | BV8: 0 | BY8: 33.99745571 | BZ8: 33.99745571 | CA8: 0 | CD8: 49.94117647 | CE8: 52.94117647
A9: 2016-01-01T04:01:00 | B9: 4 | C9: 2.888889 | D9: 14.23 | E9: 29 | F9: 8.5 | G9: 8.6 | H9: =(G9-F9)*E9*seccdens(28,BA9,4)*seccspht(28,BA9,4)/3600/1000 -> 3.211630105 | I9: 0.002941176471 | K9: 2.941176471 | L9: 5 | M9: 37 | N9: 32 | O9: =(M9-N9)*L9*wrho((M9+N9)/2)*wcp((M9+N9)/2)/3600 -> 28.84248949 | P9: 0.04 | Q9: 24 | R9: 24 | S9: 0 | T9: 0 | U9: 1.686577653 | V9: 1.686577653 | W9: 10.28 | X9: 0.9791921665 | AE9: 0 | AF9: 3 | AG9: 0 | AH9: 3 | AI9: 1.03136782 | AJ9: 3 | AK9: 1 | AL9: 3 | AM9: 9.24863218 | AN9: 1 | AO9: 7.364624725 | AW9: 2016 | AX9: 1 | AY9: 1 | BA9: 8.55 | BB9: 0.05099019514 | BC9: 1.223764683 | BD9: 0.055 | BE9: 0.1617647059 | BF9: 0.07546561188 | BG9: 0 | BH9: 1.223764683 | BI9: 0.05099019514 | BK9: 0.8908296943 | BL9: 0.1423 | BM9: 0.19 | BN9: 0.221127654 | BP9: 0.2872281323 | BQ9: 0 | BS9: 1.03136782 | BT9: 0 | BU9: 3.211630105 | BV9: 0 | BY9: 8.79745571 | BZ9: 8.79745571 | CA9: 0 | CD9: 26.94117647 | CE9: 29.94117647
A10: 2016-01-01T05:01:00 | B10: 5 | C10: 2.888889 | D10: 13.38 | E10: 28 | F10: 8.2 | G10: 8.6 | H10: =(G10-F10)*E10*seccdens(28,BA10,4)*seccspht(28,BA10,4)/3600/1000 -> 12.4013793 | I10: 0.002941176471 | K10: 2.941176471 | L10: 5 | M10: 39 | N10: 31 | O10: =(M10-N10)*L10*wrho((M10+N10)/2)*wcp((M10+N10)/2)/3600 -> 46.14022875 | P10: 0.05 | Q10: 41 | R10: 41 | S10: 0 | T10: 0 | U10: 3.064275037 | V10: 3.064275037 | W10: 11.26 | X10: 1.663961039 | AE10: 0 | AF10: 3 | AG10: 0 | AH10: 3 | AI10: 0.9283113855 | AJ10: 3 | AK10: 1 | AL10: 3 | AM10: 10.33168861 | AN10: 1 | AO10: 7.364624725 | AW10: 2016 | AX10: 1 | AY10: 1 | BA10: 8.4 | BB10: 0.05038911093 | BC10: 2.065953548 | BD10: 0.055 | BE10: 0.1617647059 | BF10: 0.07546561188 | BG10: 0 | BH10: 2.065953548 | BI10: 0.05038911093 | BK10: 0.9330655957 | BL10: 0.1338 | BM10: 0.19 | BN10: 0.2221069827 | BP10: 0.2872281323 | BQ10: 0 | BS10: 0.9283113855 | BT10: 0 | BU10: 12.4013793 | BV10: 0 | BY10: 26.75051214 | BZ10: 26.75051214 | CA10: 0 | CD10: 43.94117647 | CE10: 46.94117647
A11: 2016-01-01T06:01:00 | B11: 6 | C11: 2.777778 | D11: 12.27 | E11: 29 | F11: 8.2 | G11: 8.7 | H11: =(G11-F11)*E11*seccdens(28,BA11,4)*seccspht(28,BA11,4)/3600/1000 -> 16.05628805 | I11: 0.002941176471 | K11: 2.941176471 | L11: 4 | M11: 36 | N11: 31 | O11: =(M11-N11)*L11*wrho((M11+N11)/2)*wcp((M11+N11)/2)/3600 -> 23.08174751 | P11: 0.03 | Q11: 28 | R11: 28 | S11: 0 | T11: 0 | U11: 2.28198859 | V11: 2.28198859 | W11: 11.44 | X11: 1.180936314 | AE11: 0 | AF11: 3 | AG11: 0 | AH11: 3 | AI11: 1.03136782 | AJ11: 3 | AK11: 1 | AL11: 3 | AM11: 10.40863218 | AN11: 1 | AO11: 7.364624725 | AW11: 2016 | AX11: 1 | AY11: 1 | BA11: 8.45 | BB11: 0.05099019514 | BC11: 1.427725464 | BD11: 0.055 | BE11: 0.1617647059 | BF11: 0.07546561188 | BG11: 0 | BH11: 1.427725464 | BI11: 0.05099019514 | BK11: 0.9049429658 | BL11: 0.1227 | BM11: 0.19 | BN11: 0.211230599 | BP11: 0.2872281323 | BQ11: 0 | BS11: 1.03136782 | BT11: 0 | BU11: 16.05628805 | BV11: 0 | BY11: 14.75745571 | BZ11: 14.75745571 | CA11: 0 | CD11: 30.94117647 | CE11: 33.94117647
A12: 2016-01-01T07:01:00 | B12: 7 | C12: 2.722222 | D12: 15.56 | E12: 29 | F12: 8 | G12: 8.6 | H12: =(G12-F12)*E12*seccdens(28,BA12,4)*seccspht(28,BA12,4)/3600/1000 -> 19.26419512 | I12: 0.002941176471 | K12: =IF(Y12="",I12*1000,Y12) -> 2.941176471 | L12: 6 | M12: 38 | N12: 31 | O12: =(M12-N12)*L12*wrho((M12+N12)/2)*wcp((M12+N12)/2)/3600 -> 48.45538235 | P12: 0.05 | Q12: 35 | R12: 35 | S12: 0 | T12: 0 | U12: 2.249357326 | V12: 2.249357326 | W12: 10.69 | X12: 1.333333333 | AE12: 0 | AF12: 3 | AG12: 0 | AH12: 3 | AI12: 1.03136782 | AJ12: 3 | AK12: 1 | AL12: 3 | AM12: 9.65863218 | AN12: 1 | AO12: 7.364624725 | AW12: 2016 | AX12: 1 | AY12: 1 | BA12: 8.3 | BB12: 0.05050762723 | BC12: 1.767766953 | BD12: 0.055 | BE12: 0.1617647059 | BF12: 0.07546561188 | BG12: 0 | BH12: 1.767766953 | BI12: 0.05050762723 | BK12: 0.9224806202 | BL12: 0.1556 | BM12: 0.19 | BN12: 0.2343744757 | BP12: 0.2872281323 | BQ12: 0 | BS12: 1.03136782 | BT12: 0 | BU12: 19.26419512 | BV12: 0 | BY12: 18.46745571 | BZ12: 18.46745571 | CA12: 0 | CD12: 37.94117647 | CE12: 40.94117647
A13: 2016-01-01T08:01:00 | B13: 8 | C13: 2.722222 | D13: 13.69 | E13: 29 | F13: 8 | G13: 8.6 | H13: =(G13-F13)*E13*seccdens(28,BA13,4)*seccspht(28,BA13,4)/3600/1000 -> 19.26419512 | I13: 0.002941176471 | K13: 2.941176471 | L13: 5 | M13: 38 | N13: 32 | O13: =(M13-N13)*L13*wrho((M13+N13)/2)*wcp((M13+N13)/2)/3600 -> 34.60517156 | P13: 0.05 | Q13: 31 | R13: 31 | S13: 0 | T13: 0 | U13: 2.264426589 | V13: 2.264426589 | W13: 10.37 | X13: 1.288445553 | AE13: 0 | AF13: 3 | AG13: 0 | AH13: 3 | AI13: 1.03136782 | AJ13: 3 | AK13: 1 | AL13: 3 | AM13: 9.33863218 | AN13: 1 | AO13: 7.364624725 | AW13: 2016 | AX13: 1 | AY13: 1 | BA13: 8.3 | BB13: 0.05068968775 | BC13: 1.57138032 | BD13: 0.055 | BE13: 0.1617647059 | BF13: 0.07546561188 | BG13: 0 | BH13: 1.57138032 | BI13: 0.05068968775 | BK13: 0.9133448873 | BL13: 0.1369 | BM13: 0.19 | BN13: 0.2210343631 | BP13: 0.2872281323 | BQ13: 0 | BS13: 1.03136782 | BT13: 0 | BU13: 19.26419512 | BV13: 0 | BY13: 16.33745571 | BZ13: 16.33745571 | CA13: 0 | CD13: 33.94117647 | CE13: 36.94117647
A14: 2016-01-01T09:01:00 | B14: 9 | C14: 2.777778 | D14: 15.12 | E14: 29 | F14: 7.4 | G14: 8.5 | H14: =(G14-F14)*E14*seccdens(28,BA14,4)*seccspht(28,BA14,4)/3600/1000 -> 35.30337445 | I14: 0.002941176471 | K14: 2.941176471 | L14: 5 | M14: 39 | N14: 32 | O14: =(M14-N14)*L14*wrho((M14+N14)/2)*wcp((M14+N14)/2)/3600 -> 40.36591345 | P14: 0.04 | Q14: 48 | R14: 48 | S14: 0 | T14: 0 | U14: 3.174603175 | V14: 3.174603175 | W14: 11.29 | X14: 1.817493374 | AE14: 0 | AF14: 3 | AG14: 0 | AH14: 3 | AI14: 1.03136782 | AJ14: 3 | AK14: 1 | AL14: 3 | AM14: 10.25863218 | AN14: 1 | AO14: 7.364624725 | AW14: 2016 | AX14: 1 | AY14: 1 | BA14: 7.95 | BB14: 0.05050762723 | BC14: 2.424366107 | BD14: 0.055 | BE14: 0.1617647059 | BF14: 0.07546561188 | BG14: 0 | BH14: 2.424366107 | BI14: 0.05050762723 | BK14: 0.9422632794 | BL14: 0.1512 | BM14: 0.19 | BN14: 0.2343356336 | BP14: 0.2872281323 | BQ14: 0 | BS14: 1.03136782 | BT14: 0 | BU14: 35.30337445 | BV14: 0 | BY14: 31.90745571 | BZ14: 31.90745571 | CA14: 0 | CD14: 50.94117647 | CE14: 53.94117647
A15: 2016-01-01T10:01:00 | B15: 10 | C15: 2.722222 | D15: 13.45 | E15: 28 | F15: 7.5 | G15: 8.6 | H15: =(G15-F15)*E15*seccdens(28,BA15,4)*seccspht(28,BA15,4)/3600/1000 -> 34.08996388 | I15: 0.002941176471 | K15: 2.941176471 | L15: 5 | M15: 39 | N15: 30 | O15: =(M15-N15)*L15*wrho((M15+N15)/2)*wcp((M15+N15)/2)/3600 -> 51.91648109 | P15: 0.04 | Q15: 56 | R15: 56 | S15: 0 | T15: 0 | U15: 4.163568773 | V15: 4.163568773 | W15: 10.32 | X15: 2.355910812 | AE15: 0 | AF15: 3 | AG15: 0 | AH15: 3 | AI15: 0.9283113855 | AJ15: 3 | AK15: 1 | AL15: 3 | AM15: 9.391688615 | AN15: 1 | AO15: 7.364624725 | AW15: 2016 | AX15: 1 | AY15: 1 | BA15: 8.05 | BB15: 0.05030769521 | BC15: 2.817230932 | BD15: 0.055 | BE15: 0.1617647059 | BF15: 0.07546561188 | BG15: 0 | BH15: 2.817230932 | BI15: 0.05030769521 | BK15: 0.9500998004 | BL15: 0.1345 | BM15: 0.19 | BN15: 0.2251162937 | BP15: 0.2872281323 | BQ15: 0 | BS15: 0.9283113855 | BT15: 0 | BU15: 34.08996388 | BV15: 0 | BY15: 41.68051214 | BZ15: 41.68051214 | CA15: 0 | CD15: 58.94117647 | CE15: 61.94117647
A16: 2016-01-01T11:01:00 | B16: 11 | C16: 2.388889 | D16: 14.82 | E16: 29 | F16: 7.6 | G16: 8.6 | H16: =(G16-F16)*E16*seccdens(28,BA16,4)*seccspht(28,BA16,4)/3600/1000 -> 32.09955214 | I16: 0.002941176471 | K16: 2.941176471 | L16: 5 | M16: 39 | N16: 31 | O16: =(M16-N16)*L16*wrho((M16+N16)/2)*wcp((M16+N16)/2)/3600 -> 46.14022875 | P16: 0.05 | Q16: 45 | R16: 45 | S16: 0 | T16: 0 | U16: 3.036437247 | V16: 3.036437247 | W16: 8.91 | X16: 1.896333755 | AE16: 0 | AF16: 3 | AG16: 0 | AH16: 3 | AI16: 1.03136782 | AJ16: 3 | AK16: 1 | AL16: 3 | AM16: 7.87863218 | AN16: 1 | AO16: 7.364624725 | AW16: 2016 | AX16: 1 | AY16: 1 | BA16: 8.1 | BB16: 0.05038911093 | BC16: 2.267509992 | BD16: 0.055 | BE16: 0.1617647059 | BF16: 0.07546561188 | BG16: 0 | BH16: 2.267509992 | BI16: 0.05038911093 | BK16: 0.9386503067 | BL16: 0.1482 | BM16: 0.19 | BN16: 0.2318828687 | BP16: 0.2872281323 | BQ16: 0 | BS16: 1.03136782 | BT16: 0 | BU16: 32.09955214 | BV16: 0 | BY16: 29.20745571 | BZ16: 29.20745571 | CA16: 0 | CD16: 47.94117647 | CE16: 50.94117647
A17: 2016-01-01T12:01:00 | B17: 12 | C17: 2.166667 | D17: 13.5 | E17: 29 | F17: 8.3 | G17: 8.7 | H17: =(G17-F17)*E17*seccdens(28,BA17,4)*seccspht(28,BA17,4)/3600/1000 -> 12.84577535 | I17: 0.002941176471 | K17: 2.941176471 | L17: 5 | M17: 34 | N17: 31 | O17: =(M17-N17)*L17*wrho((M17+N17)/2)*wcp((M17+N17)/2)/3600 -> 17.31713441 | P17: 0.04 | Q17: 17 | R17: 17 | S17: 0 | T17: 0 | U17: 1.259259259 | V17: 1.259259259 | W17: 8.68 | X17: 0.7664562669 | AE17: 0 | AF17: 3 | AG17: 0 | AH17: 3 | AI17: 1.03136782 | AJ17: 3 | AK17: 1 | AL17: 3 | AM17: 7.64863218 | AN17: 1 | AO17: 7.364624725 | AW17: 2016 | AX17: 1 | AY17: 1 | BA17: 8.5 | BB17: 0.05270462767 | BC17: 0.8959786704 | BD17: 0.055 | BE17: 0.1617647059 | BF17: 0.07546561188 | BG17: 0 | BH17: 0.8959786704 | BI17: 0.05270462767 | BK17: 0.8525073746 | BL17: 0.135 | BM17: 0.19 | BN17: 0.2108586127 | BP17: 0.2872281323 | BQ17: 0 | BS17: 1.03136782 | BT17: 0 | BU17: 12.84577535 | BV17: 0 | BY17: 2.52745571 | BZ17: 2.52745571 | CA17: 0 | CD17: 19.94117647 | CE17: 22.94117647
A18: 2016-01-01T13:01:00 | B18: 13 | C18: 1.611111 | D18: 14.27 | E18: 29 | F18: 7.6 | G18: 8.6 | H18: =(G18-F18)*E18*seccdens(28,BA18,4)*seccspht(28,BA18,4)/3600/1000 -> 32.09955214 | I18: 0.002941176471 | K18: 2.941176471 | L18: 5 | M18: 39 | N18: 32 | O18: =(M18-N18)*L18*wrho((M18+N18)/2)*wcp((M18+N18)/2)/3600 -> 40.36591345 | P18: 0.04 | Q18: 51 | R18: 51 | S18: 0 | T18: 0 | U18: 3.573931324 | V18: 3.573931324 | W18: 9.47 | X18: 2.148272957 | AE18: 0 | AF18: 3 | AG18: 0 | AH18: 3 | AI18: 1.03136782 | AJ18: 3 | AK18: 1 | AL18: 3 | AM18: 8.43863218 | AN18: 1 | AO18: 7.364624725 | AW18: 2016 | AX18: 1 | AY18: 1 | BA18: 8.1 | BB18: 0.05050762723 | BC18: 2.575888989 | BD18: 0.055 | BE18: 0.1617647059 | BF18: 0.07546561188 | BG18: 0 | BH18: 2.575888989 | BI18: 0.05050762723 | BK18: 0.945474373 | BL18: 0.1427 | BM18: 0.19 | BN18: 0.2294207197 | BP18: 0.2872281323 | BQ18: 0 | BS18: 1.03136782 | BT18: 0 | BU18: 32.09955214 | BV18: 0 | BY18: 35.75745571 | BZ18: 35.75745571 | CA18: 0 | CD18: 53.94117647 | CE18: 56.94117647
A19: 2016-01-01T14:01:00 | B19: 14 | C19: 1.111111 | D19: 14.32 | E19: 29 | F19: 8.1 | G19: 8.5 | H19: =(G19-F19)*E19*seccdens(28,BA19,4)*seccspht(28,BA19,4)/3600/1000 -> 12.84279675 | I19: 0.002941176471 | K19: 2.941176471 | L19: 5 | M19: 37 | N19: 32 | O19: =(M19-N19)*L19*wrho((M19+N19)/2)*wcp((M19+N19)/2)/3600 -> 28.84248949 | P19: 0.05 | Q19: 24 | R19: 24 | S19: 0 | T19: 0 | U19: 1.675977654 | V19: 1.675977654 | W19: 9.44 | X19: 1.01010101 | AE19: 0 | AF19: 3 | AG19: 0 | AH19: 3 | AI19: 1.03136782 | AJ19: 3 | AK19: 1 | AL19: 3 | AM19: 8.40863218 | AN19: 1 | AO19: 7.364624725 | AW19: 2016 | AX19: 1 | AY19: 1 | BA19: 8.3 | BB19: 0.05099019514 | BC19: 1.223764683 | BD19: 0.055 | BE19: 0.1617647059 | BF19: 0.07546561188 | BG19: 0 | BH19: 1.223764683 | BI19: 0.05099019514 | BK19: 0.8908296943 | BL19: 0.1432 | BM19: 0.19 | BN19: 0.2217078919 | BP19: 0.2872281323 | BQ19: 0 | BS19: 1.03136782 | BT19: 0 | BU19: 12.84279675 | BV19: 0 | BY19: 8.70745571 | BZ19: 8.70745571 | CA19: 0 | CD19: 26.94117647 | CE19: 29.94117647
A20: 2016-01-01T15:01:00 | B20: 15 | C20: 0.944445 | D20: 15.93 | E20: 28 | F20: 8.1 | G20: 8.7 | H20: =(G20-F20)*E20*seccdens(28,BA20,4)*seccspht(28,BA20,4)/3600/1000 -> 18.60206896 | I20: 0.002941176471 | K20: 2.941176471 | L20: 5 | M20: 40 | N20: 31 | O20: =(M20-N20)*L20*wrho((M20+N20)/2)*wcp((M20+N20)/2)/3600 -> 51.89903157 | P20: 0.05 | Q20: 40 | R20: 40 | S20: 0 | T20: 0 | U20: 2.510985562 | V20: 2.510985562 | W20: 9.63 | X20: 1.564945227 | AE20: 0 | AF20: 3 | AG20: 0 | AH20: 3 | AI20: 0.9283113855 | AJ20: 3 | AK20: 1 | AL20: 3 | AM20: 8.701688615 | AN20: 1 | AO20: 7.364624725 | AW20: 2016 | AX20: 1 | AY20: 1 | BA20: 8.4 | BB20: 0.05030769521 | BC20: 2.012307808 | BD20: 0.055 | BE20: 0.1617647059 | BF20: 0.07546561188 | BG20: 0 | BH20: 2.012307808 | BI20: 0.05030769521 | BK20: 0.9315068493 | BL20: 0.1593 | BM20: 0.19 | BN20: 0.2381189637 | BP20: 0.2872281323 | BQ20: 0 | BS20: 0.9283113855 | BT20: 0 | BU20: 18.60206896 | BV20: 0 | BY20: 23.20051214 | BZ20: 23.20051214 | CA20: 0 | CD20: 42.94117647 | CE20: 45.94117647
A21: 2016-01-01T16:01:00 | B21: 16 | C21: 0.388889 | D21: 15.55 | E21: 29 | F21: 6.5 | G21: 8.6 | H21: =(G21-F21)*E21*seccdens(28,BA21,4)*seccspht(28,BA21,4)/3600/1000 -> 67.36616785 | I21: 0.002941176471 | K21: 2.941176471 | L21: 5 | M21: 40 | N21: 31 | O21: =(M21-N21)*L21*wrho((M21+N21)/2)*wcp((M21+N21)/2)/3600 -> 51.89903157 | P21: 0.04 | Q21: 62 | R21: 62 | S21: 0 | T21: 0 | U21: 3.987138264 | V21: 3.987138264 | W21: 10.32 | X21: 2.396598376 | AE21: 0 | AF21: 3 | AG21: 0 | AH21: 3 | AI21: 1.03136782 | AJ21: 3 | AK21: 1 | AL21: 3 | AM21: 9.28863218 | AN21: 1 | AO21: 7.364624725 | AW21: 2016 | AX21: 1 | AY21: 1 | BA21: 7.55 | BB21: 0.05030769521 | BC21: 3.119077103 | BD21: 0.055 | BE21: 0.1617647059 | BF21: 0.07546561188 | BG21: 0 | BH21: 3.119077103 | BI21: 0.05030769521 | BK21: 0.9547101449 | BL21: 0.1555 | BM21: 0.19 | BN21: 0.2389233554 | BP21: 0.2872281323 | BQ21: 0 | BS21: 1.03136782 | BT21: 0 | BU21: 67.36616785 | BV21: 0 | BY21: 45.47745571 | BZ21: 45.47745571 | CA21: 0 | CD21: 64.94117647 | CE21: 67.94117647
A22: 2016-01-01T17:01:00 | B22: 17 | C22: -0.222222 | D22: 12.88 | E22: 29 | F22: 8.2 | G22: 8.7 | H22: =(G22-F22)*E22*seccdens(28,BA22,4)*seccspht(28,BA22,4)/3600/1000 -> 16.05628805 | I22: 0.002941176471 | K22: 2.941176471 | L22: 4 | M22: 38 | N22: 30 | O22: =(M22-N22)*L22*wrho((M22+N22)/2)*wcp((M22+N22)/2)/3600 -> 36.92459033 | P22: 0.04 | Q22: 55 | R22: 55 | S22: 0 | T22: 0 | U22: 4.270186335 | V22: 4.270186335 | W22: 11.32 | X22: 2.272727273 | AE22: 0 | AF22: 3 | AG22: 0 | AH22: 3 | AI22: 1.03136782 | AJ22: 3 | AK22: 1 | AL22: 3 | AM22: 10.28863218 | AN22: 1 | AO22: 7.364624725 | AW22: 2016 | AX22: 1 | AY22: 1 | BA22: 8.45 | BB22: 0.05038911093 | BC22: 2.771401101 | BD22: 0.055 | BE22: 0.1617647059 | BF22: 0.07546561188 | BG22: 0 | BH22: 2.771401101 | BI22: 0.05038911093 | BK22: 0.9492385787 | BL22: 0.1288 | BM22: 0.19 | BN22: 0.221624649 | BP22: 0.2872281323 | BQ22: 0 | BS22: 1.03136782 | BT22: 0 | BU22: 16.05628805 | BV22: 0 | BY22: 41.14745571 | BZ22: 41.14745571 | CA22: 0 | CD22: 57.94117647 | CE22: 60.94117647
A23: 2016-01-01T18:01:00 | B23: 18 | C23: -0.611111 | D23: 19.48 | E23: 29 | F23: 6.5 | G23: 8.6 | H23: =(G23-F23)*E23*seccdens(28,BA23,4)*seccspht(28,BA23,4)/3600/1000 -> 67.36616785 | I23: 0.002941176471 | K23: 2.941176471 | L23: 5 | M23: 42 | N23: 32 | O23: =(M23-N23)*L23*wrho((M23+N23)/2)*wcp((M23+N23)/2)/3600 -> 57.63646614 | P23: 0.06 | Q23: 60 | R23: 60 | S23: 0 | T23: 0 | U23: 3.080082136 | V23: 3.080082136 | W23: 11.41 | X23: 1.942376174 | AE23: 0 | AF23: 3 | AG23: 0 | AH23: 3 | AI23: 1.03136782 | AJ23: 3 | AK23: 1 | AL23: 3 | AM23: 10.37863218 | AN23: 1 | AO23: 7.364624725 | AW23: 2016 | AX23: 1 | AY23: 1 | BA23: 7.55 | BB23: 0.05024937811 | BC23: 3.014962686 | BD23: 0.055 | BE23: 0.1617647059 | BF23: 0.07546561188 | BG23: 0 | BH23: 3.014962686 | BI23: 0.05024937811 | BK23: 0.953271028 | BL23: 0.1948 | BM23: 0.19 | BN23: 0.2659925489 | BP23: 0.2872281323 | BQ23: 0 | BS23: 1.03136782 | BT23: 0 | BU23: 67.36616785 | BV23: 0 | BY23: 39.54745571 | BZ23: 39.54745571 | CA23: 0 | CD23: 62.94117647 | CE23: 65.94117647
A24: 2016-01-01T19:01:00 | B24: 19 | C24: -0.944445 | D24: 10.56 | E24: 29 | F24: 8.1 | G24: 8.6 | H24: =(G24-F24)*E24*seccdens(28,BA24,4)*seccspht(28,BA24,4)/3600/1000 -> 16.05442643 | I24: 0.002941176471 | K24: 2.941176471 | L24: 5 | M24: 37 | N24: 30 | O24: =(M24-N24)*L24*wrho((M24+N24)/2)*wcp((M24+N24)/2)/3600 -> 40.39305814 | P24: 0.04 | Q24: 35 | R24: 35 | S24: 0 | T24: 0 | U24: 3.314393939 | V24: 3.314393939 | W24: 10.96 | X24: 1.626394052 | AE24: 0 | AF24: 3 | AG24: 0 | AH24: 3 | AI24: 1.03136782 | AJ24: 3 | AK24: 1 | AL24: 3 | AM24: 9.92863218 | AN24: 1 | AO24: 7.364624725 | AW24: 2016 | AX24: 1 | AY24: 1 | BA24: 8.35 | BB24: 0.05050762723 | BC24: 1.767766953 | BD24: 0.055 | BE24: 0.1617647059 | BF24: 0.07546561188 | BG24: 0 | BH24: 1.767766953 | BI24: 0.05050762723 | BK24: 0.9224806202 | BL24: 0.1056 | BM24: 0.19 | BN24: 0.2046250103 | BP24: 0.2872281323 | BQ24: 0 | BS24: 1.03136782 | BT24: 0 | BU24: 16.05442643 | BV24: 0 | BY24: 23.46745571 | BZ24: 23.46745571 | CA24: 0 | CD24: 37.94117647 | CE24: 40.94117647
A25: 2016-01-01T20:01:00 | B25: 20 | C25: -1.055556 | D25: 14.9 | E25: 28 | F25: 8.1 | G25: 8.6 | H25: =(G25-F25)*E25*seccdens(28,BA25,4)*seccspht(28,BA25,4)/3600/1000 -> 15.50082552 | I25: 0.002941176471 | K25: 2.941176471 | L25: 4 | M25: 39 | N25: 32 | O25: =(M25-N25)*L25*wrho((M25+N25)/2)*wcp((M25+N25)/2)/3600 -> 32.29273076 | P25: 0.04 | Q25: 27 | R25: 27 | S25: 0 | T25: 0 | U25: 1.812080537 | V25: 1.812080537 | W25: 10.35 | X25: 1.069306931 | AE25: 0 | AF25: 3 | AG25: 0 | AH25: 3 | AI25: 0.9283113855 | AJ25: 3 | AK25: 1 | AL25: 3 | AM25: 9.421688615 | AN25: 1 | AO25: 7.364624725 | AW25: 2016 | AX25: 1 | AY25: 1 | BA25: 8.35 | BB25: 0.05050762723 | BC25: 1.363705935 | BD25: 0.055 | BE25: 0.1617647059 | BF25: 0.07546561188 | BG25: 0 | BH25: 1.363705935 | BI25: 0.05050762723 | BK25: 0.9017681729 | BL25: 0.149 | BM25: 0.19 | BN25: 0.2270616849 | BP25: 0.2872281323 | BQ25: 0 | BS25: 0.9283113855 | BT25: 0 | BU25: 15.50082552 | BV25: 0 | BY25: 11.23051214 | BZ25: 11.23051214 | CA25: 0 | CD25: 29.94117647 | CE25: 32.94117647
A26: 2016-01-01T21:01:00 | B26: 21 | C26: -1.444445 | D26: 14.54 | E26: 29 | F26: 8 | G26: 8.5 | H26: =(G26-F26)*E26*seccdens(28,BA26,4)*seccspht(28,BA26,4)/3600/1000 -> 16.05256565 | I26: 0.002941176471 | K26: 2.941176471 | L26: 5 | M26: 36 | N26: 32 | O26: =(M26-N26)*L26*wrho((M26+N26)/2)*wcp((M26+N26)/2)/3600 -> 23.07786895 | P26: 0.05 | Q26: 22 | R26: 22 | S26: 0 | T26: 0 | U26: 1.5130674 | V26: 1.5130674 | W26: 11.32 | X26: 0.8507347254 | AE26: 0 | AF26: 3 | AG26: 0 | AH26: 3 | AI26: 1.03136782 | AJ26: 3 | AK26: 1 | AL26: 3 | AM26: 10.28863218 | AN26: 1 | AO26: 7.364624725 | AW26: 2016 | AX26: 1 | AY26: 1 | BA26: 8.25 | BB26: 0.05153882032 | BC26: 1.133854047 | BD26: 0.055 | BE26: 0.1617647059 | BF26: 0.07546561188 | BG26: 0 | BH26: 1.133854047 | BI26: 0.05153882032 | BK26: 0.8820754717 | BL26: 0.1454 | BM26: 0.19 | BN26: 0.2218761426 | BP26: 0.2872281323 | BQ26: 0 | BS26: 1.03136782 | BT26: 0 | BU26: 16.05256565 | BV26: 0 | BY26: 6.48745571 | BZ26: 6.48745571 | CA26: 0 | CD26: 24.94117647 | CE26: 27.94117647
A27: 2016-01-01T22:00:00 | B27: 22 | C27: -1.777778 | D27: 15.01 | E27: 29 | F27: 7.5 | G27: 8.6 | H27: =(G27-F27)*E27*seccdens(28,BA27,4)*seccspht(28,BA27,4)/3600/1000 -> 35.30746259 | I27: 0.002941176471 | K27: 2.941176471 | L27: 5 | M27: 40 | N27: 32 | O27: =(M27-N27)*L27*wrho((M27+N27)/2)*wcp((M27+N27)/2)/3600 -> 46.12471245 | P27: 0.04 | Q27: 47 | R27: 47 | S27: 0 | T27: 0 | U27: 3.131245836 | V27: 3.131245836 | W27: 11.05 | X27: 1.803530315 | AE27: 0 | AF27: 3 | AG27: 0 | AH27: 3 | AI27: 1.03136782 | AJ27: 3 | AK27: 1 | AL27: 3 | AM27: 10.01863218 | AN27: 1 | AO27: 7.364624725 | AW27: 2016 | AX27: 1 | AY27: 1 | BA27: 8.05 | BB27: 0.05038911093 | BC27: 2.368288214 | BD27: 0.055 | BE27: 0.1617647059 | BF27: 0.07546561188 | BG27: 0 | BH27: 2.368288214 | BI27: 0.05038911093 | BK27: 0.9411071849 | BL27: 0.1501 | BM27: 0.19 | BN27: 0.2334591114 | BP27: 0.2872281323 | BQ27: 0 | BS27: 1.03136782 | BT27: 0 | BU27: 35.30746259 | BV27: 0 | BY27: 31.01745571 | BZ27: 31.01745571 | CA27: 0 | CD27: 49.94117647 | CE27: 52.94117647
A28: 2016-01-01T23:01:00 | B28: 23 | C28: -1.833333 | D28: 16.23 | E28: 29 | F28: 6.4 | G28: 8.6 | H28: =(G28-F28)*E28*seccdens(28,BA28,4)*seccspht(28,BA28,4)/3600/1000 -> 70.57000119 | I28: 0.002941176471 | K28: 2.941176471 | L28: 4 | M28: 43 | N28: 32 | O28: =(M28-N28)*L28*wrho((M28+N28)/2)*wcp((M28+N28)/2)/3600 -> 50.71152855 | P28: 0.05 | Q28: 64 | R28: 64 | S28: 0 | T28: 0 | U28: 3.943314849 | V28: 3.943314849 | W28: 10.72 | X28: 2.374768089 | AE28: 0 | AF28: 3 | AG28: 0 | AH28: 3 | AI28: 1.03136782 | AJ28: 3 | AK28: 1 | AL28: 3 | AM28: 9.68863218 | AN28: 1 | AO28: 7.364624725 | AW28: 2016 | AX28: 1 | AY28: 1 | BA28: 7.5 | BB28: 0.05020618644 | BC28: 3.213195932 | BD28: 0.055 | BE28: 0.1617647059 | BF28: 0.07546561188 | BG28: 0 | BH28: 3.213195932 | BI28: 0.05020618644 | BK28: 0.9560632689 | BL28: 0.1623 | BM28: 0.19 | BN28: 0.2435954572 | BP28: 0.2872281323 | BQ28: 0 | BS28: 1.03136782 | BT28: 0 | BU28: 70.57000119 | BV28: 0 | BY28: 46.79745571 | BZ28: 46.79745571 | CA28: 0 | CD28: 66.94117647 | CE28: 69.94117647
A29: 2016-01-02T00:01:00 | B29: 24 | C29: -1.611111 | D29: 14.09 | E29: 29 | F29: 6.9 | G29: 8.4 | H29: =(G29-F29)*E29*seccdens(28,BA29,4)*seccspht(28,BA29,4)/3600/1000 -> 48.12425602 | I29: 0.002941176471 | K29: 2.941176471 | L29: 5 | M29: 40 | N29: 31 | O29: =(M29-N29)*L29*wrho((M29+N29)/2)*wcp((M29+N29)/2)/3600 -> 51.89903157 | P29: 0.05 | Q29: 45 | R29: 45 | S29: 0 | T29: 0 | U29: 3.193754436 | V29: 3.193754436 | W29: 10.58 | X29: 1.824077827 | AE29: 0 | AF29: 3 | AG29: 0 | AH29: 3 | AI29: 1.03136782 | AJ29: 3 | AK29: 1 | AL29: 3 | AM29: 9.54863218 | AN29: 2 | AO29: 7.291874082 | AW29: 2016 | AX29: 1 | AY29: 2 | BA29: 7.65 | BB29: 0.05030769521 | BC29: 2.263846285 | BD29: 0.055 | BE29: 0.1617647059 | BF29: 0.07540107192 | BG29: 0 | BH29: 2.263846285 | BI29: 0.05030769521 | BK29: 0.9386503067 | BL29: 0.1409 | BM29: 0.19 | BN29: 0.2272866797 | BP29: 0.2872281323 | BQ29: 0 | BS29: 1.03136782 | BT29: 0 | BU29: 48.12425602 | BV29: 0 | BY29: 29.93745571 | BZ29: 29.93745571 | CA29: 0 | CD29: 47.94117647 | CE29: 50.94117647
A30: 2016-01-02T01:01:00 | B30: 25 | C30: -1.444445 | D30: 14.81 | E30: 28 | F30: 8.1 | G30: 8.6 | H30: =(G30-F30)*E30*seccdens(28,BA30,4)*seccspht(28,BA30,4)/3600/1000 -> 15.50082552 | I30: 0.002941176471 | K30: 2.941176471 | L30: 4 | M30: 42 | N30: 31 | O30: =(M30-N30)*L30*wrho((M30+N30)/2)*wcp((M30+N30)/2)/3600 -> 50.72864122 | P30: 0.04 | Q30: 49 | R30: 49 | S30: 0 | T30: 0 | U30: 3.308575287 | V30: 3.308575287 | W30: 11.22 | X30: 1.882443335 | AE30: 0 | AF30: 3 | AG30: 0 | AH30: 3 | AI30: 0.9283113855 | AJ30: 3 | AK30: 1 | AL30: 3 | AM30: 10.29168861 | AN30: 2 | AO30: 7.291874082 | AW30: 2016 | AX30: 1 | AY30: 2 | BA30: 8.35 | BB30: 0.05020618644 | BC30: 2.460103136 | BD30: 0.055 | BE30: 0.1617647059 | BF30: 0.07540107192 | BG30: 0 | BH30: 2.460103136 | BI30: 0.05020618644 | BK30: 0.9433748584 | BL30: 0.1481 | BM30: 0.19 | BN30: 0.2325102709 | BP30: 0.2872281323 | BQ30: 0 | BS30: 0.9283113855 | BT30: 0 | BU30: 15.50082552 | BV30: 0 | BY30: 33.32051214 | BZ30: 33.32051214 | CA30: 0 | CD30: 51.94117647 | CE30: 54.94117647
A31: 2016-01-02T02:01:00 | B31: 26 | C31: -1.666667 | D31: 14.96 | E31: 29 | F31: 8.2 | G31: 8.6 | H31: =(G31-F31)*E31*seccdens(28,BA31,4)*seccspht(28,BA31,4)/3600/1000 -> 12.84428571 | I31: 0.002941176471 | K31: 2.941176471 | L31: 5 | M31: 39 | N31: 32 | O31: =(M31-N31)*L31*wrho((M31+N31)/2)*wcp((M31+N31)/2)/3600 -> 40.36591345 | P31: 0.05 | Q31: 28 | R31: 28 | S31: 0 | T31: 0 | U31: 1.871657754 | V31: 1.871657754 | W31: 11.31 | X31: 1.065854587 | AE31: 0 | AF31: 3 | AG31: 0 | AH31: 3 | AI31: 1.03136782 | AJ31: 3 | AK31: 1 | AL31: 3 | AM31: 10.27863218 | AN31: 2 | AO31: 7.291874082 | AW31: 2016 | AX31: 1 | AY31: 2 | BA31: 8.4 | BB31: 0.05050762723 | BC31: 1.414213562 | BD31: 0.055 | BE31: 0.1617647059 | BF31: 0.07540107192 | BG31: 0 | BH31: 1.414213562 | BI31: 0.05050762723 | BK31: 0.9049429658 | BL31: 0.1496 | BM31: 0.19 | BN31: 0.2279105876 | BP31: 0.2872281323 | BQ31: 0 | BS31: 1.03136782 | BT31: 0 | BU31: 12.84428571 | BV31: 0 | BY31: 12.06745571 | BZ31: 12.06745571 | CA31: 0 | CD31: 30.94117647 | CE31: 33.94117647
A32: 2016-01-02T03:01:00 | B32: 27 | C32: -1.833333 | D32: 17.91 | E32: 29 | F32: 8.3 | G32: 8.2 | H32: =(G32-F32)*E32*seccdens(28,BA32,4)*seccspht(28,BA32,4)/3600/1000 -> -3.21051313 | I32: 0.002941176471 | K32: 2.941176471 | L32: 5 | M32: 42 | N32: 33 | O32: =(M32-N32)*L32*wrho((M32+N32)/2)*wcp((M32+N32)/2)/3600 -> 51.86406329 | P32: 0.05 | Q32: 39 | R32: 39 | S32: 0 | T32: 0 | U32: 2.177554439 | V32: 2.177554439 | W32: 10.88 | X32: 1.354637027 | AE32: 0 | AF32: 3 | AG32: 0 | AH32: 3 | AI32: 1.03136782 | AJ32: 3 | AK32: 1 | AL32: 3 | AM32: 9.84863218 | AN32: 2 | AO32: 7.291874082 | AW32: 2016 | AX32: 1 | AY32: 2 | BA32: 8.25 | BB32: 0.05030769521 | BC32: 1.962000113 | BD32: 0.055 | BE32: 0.1617647059 | BF32: 0.07540107192 | BG32: 0 | BH32: 1.962000113 | BI32: 0.05030769521 | BK32: 0.9298737728 | BL32: 0.1791 | BM32: 0.19 | BN32: 0.251577473 | BP32: 0.2872281323 | BQ32: 0 | BS32: 0 | BT32: 1.03136782 | BU32: 0 | BV32: 3.21051313 | BY32: 20.11745571 | BZ32: 20.11745571 | CA32: 0 | CD32: 41.94117647 | CE32: 44.94117647
A33: 2016-01-02T04:01:00 | B33: 28 | C33: -2.111111 | D33: 15.57 | E33: 29 | F33: 7.3 | G33: 8.4 | H33: =(G33-F33)*E33*seccdens(28,BA33,4)*seccspht(28,BA33,4)/3600/1000 -> 35.29928815 | I33: 0.002941176471 | K33: 2.941176471 | L33: 5 | M33: 40 | N33: 33 | O33: =(M33-N33)*L33*wrho((M33+N33)/2)*wcp((M33+N33)/2)/3600 -> 40.35232824 | P33: 0.06 | Q33: 39 | R33: 39 | S33: 0 | T33: 0 | U33: 2.504816956 | V33: 2.504816956 | W33: 10.39 | X33: 1.502311248 | AE33: 0 | AF33: 3 | AG33: 0 | AH33: 3 | AI33: 1.03136782 | AJ33: 3 | AK33: 1 | AL33: 3 | AM33: 9.35863218 | AN33: 2 | AO33: 7.291874082 | AW33: 2016 | AX33: 1 | AY33: 2 | BA33: 7.85 | BB33: 0.05050762723 | BC33: 1.969797462 | BD33: 0.055 | BE33: 0.1617647059 | BF33: 0.07540107192 | BG33: 0 | BH33: 1.969797462 | BI33: 0.05050762723 | BK33: 0.9298737728 | BL33: 0.1557 | BM33: 0.19 | BN33: 0.2354928978 | BP33: 0.2872281323 | BQ33: 0 | BS33: 1.03136782 | BT33: 0 | BU33: 35.29928815 | BV33: 0 | BY33: 22.45745571 | BZ33: 22.45745571 | CA33: 0 | CD33: 41.94117647 | CE33: 44.94117647
A34: 2016-01-02T05:00:00 | B34: 29 | C34: -2.166667 | D34: 15.2 | E34: 29 | F34: 6.9 | G34: 8.5 | H34: =(G34-F34)*E34*seccdens(28,BA34,4)*seccspht(28,BA34,4)/3600/1000 -> 51.3355086 | I34: 0.002941176471 | K34: 2.941176471 | L34: 5 | M34: 42 | N34: 32 | O34: =(M34-N34)*L34*wrho((M34+N34)/2)*wcp((M34+N34)/2)/3600 -> 57.63646614 | P34: 0.04 | Q34: 50 | R34: 50 | S34: 0 | T34: 0 | U34: 3.289473684 | V34: 3.289473684 | W34: 11.09 | X34: 1.901863827 | AE34: 0 | AF34: 3 | AG34: 0 | AH34: 3 | AI34: 1.03136782 | AJ34: 3 | AK34: 1 | AL34: 3 | AM34: 10.05863218 | AN34: 2 | AO34: 7.291874082 | AW34: 2016 | AX34: 1 | AY34: 2 | BA34: 7.7 | BB34: 0.05024937811 | BC34: 2.512468905 | BD34: 0.055 | BE34: 0.1617647059 | BF34: 0.07540107192 | BG34: 0 | BH34: 2.512468905 | BI34: 0.05024937811 | BK34: 0.9444444444 | BL34: 0.152 | BM34: 0.19 | BN34: 0.2351686813 | BP34: 0.2872281323 | BQ34: 0 | BS34: 1.03136782 | BT34: 0 | BU34: 51.3355086 | BV34: 0 | BY34: 33.82745571 | BZ34: 33.82745571 | CA34: 0 | CD34: 52.94117647 | CE34: 55.94117647
A35: 2016-01-02T06:00:00 | B35: 30 | C35: -2.166667 | D35: 15.51 | E35: 28 | F35: 6.4 | G35: 8.5 | H35: =(G35-F35)*E35*seccdens(28,BA35,4)*seccspht(28,BA35,4)/3600/1000 -> 65.03567797 | I35: 0.002941176471 | K35: 2.941176471 | L35: 5 | M35: 40 | N35: 31 | O35: =(M35-N35)*L35*wrho((M35+N35)/2)*wcp((M35+N35)/2)/3600 -> 51.89903157 | P35: 0.05 | Q35: 48 | R35: 48 | S35: 0 | T35: 0 | U35: 3.094777563 | V35: 3.094777563 | W35: 11.26 | X35: 1.793051924 | AE35: 0 | AF35: 3 | AG35: 0 | AH35: 3 | AI35: 0.9283113855 | AJ35: 3 | AK35: 1 | AL35: 3 | AM35: 10.33168861 | AN35: 2 | AO35: 7.291874082 | AW35: 2016 | AX35: 1 | AY35: 2 | BA35: 7.45 | BB35: 0.05030769521 | BC35: 2.41476937 | BD35: 0.055 | BE35: 0.1617647059 | BF35: 0.07540107192 | BG35: 0 | BH35: 2.41476937 | BI35: 0.05030769521 | BK35: 0.9422632794 | BL35: 0.1551 | BM35: 0.19 | BN35: 0.2368707647 | BP35: 0.2872281323 | BQ35: 0 | BS35: 0.9283113855 | BT35: 0 | BU35: 65.03567797 | BV35: 0 | BY35: 31.62051214 | BZ35: 31.62051214 | CA35: 0 | CD35: 50.94117647 | CE35: 53.94117647
A36: 2016-01-02T07:00:00 | B36: 31 | C36: -2.333334 | D36: 14.77 | E36: 29 | F36: 7 | G36: 8.6 | H36: =(G36-F36)*E36*seccdens(28,BA36,4)*seccspht(28,BA36,4)/3600/1000 -> 51.34144828 | I36: 0.002941176471 | K36: 2.941176471 | L36: 4 | M36: 43 | N36: 31 | O36: =(M36-N36)*L36*wrho((M36+N36)/2)*wcp((M36+N36)/2)/3600 -> 55.3310075 | P36: 0.05 | Q36: 74 | R36: 74 | S36: 0 | T36: 0 | U36: 5.010155721 | V36: 5.010155721 | W36: 10.68 | X36: 2.907662083 | AE36: 0 | AF36: 3 | AG36: 0 | AH36: 3 | AI36: 1.03136782 | AJ36: 3 | AK36: 1 | AL36: 3 | AM36: 9.64863218 | AN36: 2 | AO36: 7.291874082 | AW36: 2016 | AX36: 1 | AY36: 2 | BA36: 7.8 | BB36: 0.05017331074 | BC36: 3.712824995 | BD36: 0.055 | BE36: 0.1617647059 | BF36: 0.07540107192 | BG36: 0 | BH36: 3.712824995 | BI36: 0.05017331074 | BK36: 0.9617737003 | BL36: 0.1477 | BM36: 0.19 | BN36: 0.2349640447 | BP36: 0.2872281323 | BQ36: 0 | BS36: 1.03136782 | BT36: 0 | BU36: 51.34144828 | BV36: 0 | BY36: 58.25745571 | BZ36: 58.25745571 | CA36: 0 | CD36: 76.94117647 | CE36: 79.94117647
A37: 2016-01-02T08:01:00 | B37: 32 | C37: -2.944445 | D37: 17.6 | E37: 29 | F37: 6.4 | G37: 8.5 | H37: =(G37-F37)*E37*seccdens(28,BA37,4)*seccspht(28,BA37,4)/3600/1000 -> 67.35838075 | I37: 0.002941176471 | K37: 2.941176471 | L37: 6 | M37: 40 | N37: 33 | O37: =(M37-N37)*L37*wrho((M37+N37)/2)*wcp((M37+N37)/2)/3600 -> 48.42279389 | P37: 0.05 | Q37: 37 | R37: 37 | S37: 0 | T37: 0 | U37: 2.102272727 | V37: 2.102272727 | W37: 10.29 | X37: 1.326640373 | AE37: 0 | AF37: 3 | AG37: 0 | AH37: 3 | AI37: 1.03136782 | AJ37: 3 | AK37: 1 | AL37: 3 | AM37: 9.25863218 | AN37: 2 | AO37: 7.291874082 | AW37: 2016 | AX37: 1 | AY37: 2 | BA37: 7.45 | BB37: 0.05050762723 | BC37: 1.868782207 | BD37: 0.055 | BE37: 0.1617647059 | BF37: 0.07540107192 | BG37: 0 | BH37: 1.868782207 | BI37: 0.05050762723 | BK37: 0.9263622975 | BL37: 0.176 | BM37: 0.19 | BN37: 0.2489078354 | BP37: 0.2872281323 | BQ37: 0 | BS37: 1.03136782 | BT37: 0 | BU37: 67.35838075 | BV37: 0 | BY37: 18.42745571 | BZ37: 18.42745571 | CA37: 0 | CD37: 39.94117647 | CE37: 42.94117647
A38: 2016-01-02T09:00:00 | B38: 33 | C38: -3.5 | D38: 16.1 | E38: 29 | F38: 8.1 | G38: 8.5 | H38: =(G38-F38)*E38*seccdens(28,BA38,4)*seccspht(28,BA38,4)/3600/1000 -> 12.84279675 | I38: 0.002941176471 | K38: 2.941176471 | L38: 5 | M38: 42 | N38: 31 | O38: =(M38-N38)*L38*wrho((M38+N38)/2)*wcp((M38+N38)/2)/3600 -> 63.41080153 | P38: 0.06 | Q38: 53 | R38: 53 | S38: 0.01 | T38: 0.5552695767 | U38: 3.291925466 | V38: 3.326414259 | W38: 11.11 | X38: 1.968220124 | AE38: 0.05819444444 | AF38: 2.941805556 | AG38: 0.5552695767 | AH38: 3.556146364 | AI38: 1.03136782 | AJ38: 3.058194444 | AK38: 1 | AL38: 2.941805556 | AM38: 10.07863218 | AN38: 2 | AO38: 7.291874082 | AW38: 2016 | AX38: 1 | AY38: 2 | BA38: 8.3 | BB38: 0.05020618644 | BC38: 2.660927881 | BD38: 0.055 | BE38: 0.1617647059 | BF38: 0.07540107192 | BG38: 0.04186792128 | BH38: 2.661257243 | BI38: 0.04969179063 | BK38: 0.9479405046 | BL38: 0.161 | BM38: 0.19 | BN38: 0.2415784393 | BP38: 0.2872281323 | BQ38: 0.01671508159 | BS38: 1.03136782 | BT38: 0 | BU38: 12.84279675 | BV38: 0 | BY38: 36.48272529 | BZ38: 36.48272529 | CA38: 0 | CD38: 55.94117647 | CE38: 59.49732283
A39: 2016-01-02T10:00:00 | B39: 34 | C39: -3.833334 | D39: 17.26 | E39: 29 | F39: 7.4 | G39: 8.4 | H39: =(G39-F39)*E39*seccdens(28,BA39,4)*seccspht(28,BA39,4)/3600/1000 -> 32.09211915 | I39: 0.002941176471 | K39: 2.941176471 | L39: 5 | M39: 42 | N39: 32 | O39: =(M39-N39)*L39*wrho((M39+N39)/2)*wcp((M39+N39)/2)/3600 -> 57.63646614 | P39: 0.05 | Q39: 66 | R39: 66 | S39: 0 | T39: 0 | U39: 3.82387022 | V39: 3.82387022 | W39: 9.72 | X39: 2.446256486 | AE39: 0 | AF39: 3 | AG39: 0 | AH39: 3 | AI39: 1.03136782 | AJ39: 3 | AK39: 1 | AL39: 3 | AM39: 8.68863218 | AN39: 2 | AO39: 7.291874082 | AW39: 2016 | AX39: 1 | AY39: 2 | BA39: 7.9 | BB39: 0.05024937811 | BC39: 3.316458955 | BD39: 0.055 | BE39: 0.1617647059 | BF39: 0.07540107192 | BG39: 0 | BH39: 3.316458955 | BI39: 0.05024937811 | BK39: 0.957337884 | BL39: 0.1726 | BM39: 0.19 | BN39: 0.2507513893 | BP39: 0.2872281323 | BQ39: 0 | BS39: 1.03136782 | BT39: 0 | BU39: 32.09211915 | BV39: 0 | BY39: 47.76745571 | BZ39: 47.76745571 | CA39: 0 | CD39: 68.94117647 | CE39: 71.94117647
A40: 2016-01-02T11:00:00 | B40: 35 | C40: -4.333334 | D40: 16.05 | E40: 28 | F40: 6.9 | G40: 8.4 | H40: =(G40-F40)*E40*seccdens(28,BA40,4)*seccspht(28,BA40,4)/3600/1000 -> 46.46479892 | I40: 0.00303030303 | K40: 3.03030303 | L40: 5 | M40: 40 | N40: 33 | O40: =(M40-N40)*L40*wrho((M40+N40)/2)*wcp((M40+N40)/2)/3600 -> 40.35232824 | P40: 0.05 | Q40: 38 | R40: 38 | S40: 0 | T40: 0 | U40: 2.367601246 | V40: 2.367601246 | W40: 9.62 | X40: 1.48032723 | AE40: 0 | AF40: 3 | AG40: 0 | AH40: 3 | AI40: 0.9283113855 | AJ40: 3 | AK40: 1 | AL40: 3 | AM40: 8.691688615 | AN40: 2 | AO40: 7.291874082 | AW40: 2016 | AX40: 1 | AY40: 2 | BA40: 7.65 | BB40: 0.05050762723 | BC40: 1.919289835 | BD40: 0.055 | BE40: 0.1666666667 | BF40: 0.07540107192 | BG40: 0 | BH40: 1.919289835 | BI40: 0.05050762723 | BK40: 0.9261447563 | BL40: 0.1605 | BM40: 0.19 | BN40: 0.2381697133 | BP40: 0.2872281323 | BQ40: 0 | BS40: 0.9283113855 | BT40: 0 | BU40: 46.46479892 | BV40: 0 | BY40: 20.99138558 | BZ40: 20.99138558 | CA40: 0 | CD40: 41.03030303 | CE40: 44.03030303
A41: 2016-01-02T12:00:00 | B41: 36 | C41: -3.833334 | D41: 20.08 | E41: 29 | F41: 6.6 | G41: 8.1 | H41: =(G41-F41)*E41*seccdens(28,BA41,4)*seccspht(28,BA41,4)/3600/1000 -> 48.10756939 | I41: 0.00303030303 | K41: 3.03030303 | L41: 7 | M41: 40 | N41: 32 | O41: =(M41-N41)*L41*wrho((M41+N41)/2)*wcp((M41+N41)/2)/3600 -> 64.57459742 | P41: 0.07 | Q41: 45 | R41: 45 | S41: 0 | T41: 0 | U41: 2.241035857 | V41: 2.241035857 | W41: 9.41 | X41: 1.525940997 | AE41: 0 | AF41: 3 | AG41: 0 | AH41: 3 | AI41: 1.03136782 | AJ41: 3 | AK41: 1 | AL41: 3 | AM41: 8.37863218 | AN41: 2 | AO41: 7.291874082 | AW41: 2016 | AX41: 1 | AY41: 2 | BA41: 7.35 | BB41: 0.05038911093 | BC41: 2.267509992 | BD41: 0.055 | BE41: 0.1666666667 | BF41: 0.07540107192 | BG41: 0 | BH41: 2.267509992 | BI41: 0.05038911093 | BK41: 0.9369085174 | BL41: 0.2008 | BM41: 0.19 | BN41: 0.2683451737 | BP41: 0.2872281323 | BQ41: 0 | BS41: 1.03136782 | BT41: 0 | BU41: 48.10756939 | BV41: 0 | BY41: 23.85832915 | BZ41: 23.85832915 | CA41: 0 | CD41: 48.03030303 | CE41: 51.03030303
A42: 2016-01-02T13:00:00 | B42: 37 | C42: -3.888889 | D42: 17.61 | E42: 29 | F42: 6.3 | G42: 8.4 | H42: =(G42-F42)*E42*seccdens(28,BA42,4)*seccspht(28,BA42,4)/3600/1000 -> 67.35059714 | I42: 0.00303030303 | K42: 3.03030303 | L42: 5 | M42: 38 | N42: 30 | O42: =(M42-N42)*L42*wrho((M42+N42)/2)*wcp((M42+N42)/2)/3600 -> 46.15573791 | P42: 0.06 | Q42: 57 | R42: 57 | S42: 0.01 | T42: 0.5552695767 | U42: 3.236797274 | V42: 3.268328766 | W42: 9.88 | X42: 2.093680232 | AE42: 0.05819444444 | AF42: 2.941805556 | AG42: 0.5552695767 | AH42: 3.556146364 | AI42: 1.03136782 | AJ42: 3.058194444 | AK42: 1 | AL42: 2.941805556 | AM42: 8.84863218 | AN42: 2 | AO42: 7.291874082 | AW42: 2016 | AX42: 1 | AY42: 2 | BA42: 7.35 | BB42: 0.05038911093 | BC42: 2.872179323 | BD42: 0.055 | BE42: 0.1666666667 | BF42: 0.07540107192 | BG42: 0.04186792128 | BH42: 2.872484462 | BI42: 0.04990827918 | BK42: 0.9499830917 | BL42: 0.1761 | BM42: 0.19 | BN42: 0.2521711726 | BP42: 0.2872281323 | BQ42: 0.01671508159 | BS42: 1.03136782 | BT42: 0 | BU42: 67.35059714 | BV42: 0 | BY42: 38.88359873 | BZ42: 38.88359873 | CA42: 0 | CD42: 60.03030303 | CE42: 63.58644939
A43: 2016-01-02T14:01:00 | B43: 38 | C43: -3.722223 | D43: 17.06 | E43: 29 | F43: 6.5 | G43: 8.6 | H43: =(G43-F43)*E43*seccdens(28,BA43,4)*seccspht(28,BA43,4)/3600/1000 -> 67.36616785 | I43: 0.00303030303 | K43: 3.03030303 | L43: 5 | M43: 44 | N43: 32 | O43: =(M43-N43)*L43*wrho((M43+N43)/2)*wcp((M43+N43)/2)/3600 -> 69.1403921 | P43: 0.05 | Q43: 65 | R43: 65 | S43: 0.01 | T43: 0.5552695767 | U43: 3.810082063 | V43: 3.842630104 | W43: 10.1 | X43: 2.413669719 | AE43: 0.05819444444 | AF43: 2.941805556 | AG43: 0.5552695767 | AH43: 3.556146364 | AI43: 1.03136782 | AJ43: 3.058194444 | AK43: 1 | AL43: 2.941805556 | AM43: 9.06863218 | AN43: 2 | AO43: 7.291874082 | AW43: 2016 | AX43: 1 | AY43: 2 | BA43: 7.55 | BB43: 0.05017331074 | BC43: 3.261265198 | BD43: 0.055 | BE43: 0.1666666667 | BF43: 0.07540107192 | BG43: 0.04186792128 | BH43: 3.261533936 | BI43: 0.04975242963 | BK43: 0.9558171943 | BL43: 0.1706 | BM43: 0.19 | BN43: 0.2491682824 | BP43: 0.2872281323 | BQ43: 0.01671508159 | BS43: 1.03136782 | BT43: 0 | BU43: 67.36616785 | BV43: 0 | BY43: 47.43359873 | BZ43: 47.43359873 | CA43: 0 | CD43: 68.03030303 | CE43: 71.58644939
A44: 2016-01-02T15:01:00 | B44: 39 | C44: -4.333334 | D44: 19.65 | E44: 28 | F44: 8.1 | G44: 8 | H44: =(G44-F44)*E44*seccdens(28,BA44,4)*seccspht(28,BA44,4)/3600/1000 -> -3.099087625 | I44: 0.00303030303 | K44: 3.03030303 | L44: 6 | M44: 34 | N44: 33 | O44: =(M44-N44)*L44*wrho((M44+N44)/2)*wcp((M44+N44)/2)/3600 -> 6.924524253 | P44: 0.07 | Q44: 4 | R44: 4 | S44: 0.01 | T44: 0.5552695767 | U44: 0.203562341 | V44: 0.2318203347 | W44: 9.6 | X44: 0.155735712 | AE44: 0.05819444444 | AF44: 2.941805556 | AG44: 0.5552695767 | AH44: 3.556146364 | AI44: 0.9283113855 | AJ44: 3.058194444 | AK44: 1 | AL44: 2.941805556 | AM44: 8.671688615 | AN44: 2 | AO44: 7.291874082 | AW44: 2016 | AX44: 1 | AY44: 2 | BA44: 8.05 | BB44: 0.07071067812 | BC44: 0.2828427125 | BD44: 0.055 | BE44: 0.1666666667 | BF44: 0.07540107192 | BG44: 0.04186792128 | BH44: 0.2859246803 | BI44: 0.06276789453 | BK44: 0.6005175631 | BL44: 0.1965 | BM44: 0.19 | BN44: 0.2272238555 | BP44: 0.2872281323 | BQ44: 0.01671508159 | BS44: 0 | BT44: 0.9283113855 | BU44: 0 | BV44: 3.099087625 | BY44: -16.05334484 | BZ44: 0 | CA44: 16.05334484 | CD44: 7.03030303 | CE44: 10.58644939
A45: 2016-01-02T16:00:00 | B45: 40 | C45: -4.5 | D45: 22.36 | E45: 30 | F45: 6.6 | G45: 8.2 | H45: =(G45-F45)*E45*seccdens(28,BA45,4)*seccspht(28,BA45,4)/3600/1000 -> 53.08728159 | I45: 0.00303030303 | K45: 3.03030303 | L45: 6 | M45: 47 | N45: 31 | O45: =(M45-N45)*L45*wrho((M45+N45)/2)*wcp((M45+N45)/2)/3600 -> 110.5871116 | P45: 0.05 | Q45: 106 | R45: 106 | S45: 0 | T45: 0 | U45: 4.740608229 | V45: 4.740608229 | W45: 10.79 | X45: 3.197586727 | AE45: 0 | AF45: 3 | AG45: 0 | AH45: 3 | AI45: 1.141782407 | AJ45: 3 | AK45: 1 | AL45: 3 | AM45: 9.648217593 | AN45: 2 | AO45: 7.291874082 | AW45: 2016 | AX45: 1 | AY45: 2 | BA45: 7.4 | BB45: 0.05009756107 | BC45: 5.310341473 | BD45: 0.055 | BE45: 0.1666666667 | BF45: 0.07540107192 | BG45: 0 | BH45: 5.310341473 | BI45: 0.05009756107 | BK45: 0.9722067815 | BL45: 0.2236 | BM45: 0.19 | BN45: 0.2900313354 | BP45: 0.2872281323 | BQ45: 0 | BS45: 1.141782407 | BT45: 0 | BU45: 53.08728159 | BV45: 0 | BY45: 82.46791456 | BZ45: 82.46791456 | CA45: 0 | CD45: 109.030303 | CE45: 112.030303
A46: 2016-01-02T17:01:00 | B46: 41 | C46: -4.5 | D46: 14.67 | E46: 28 | F46: 6.7 | G46: 8.2 | H46: =(G46-F46)*E46*seccdens(28,BA46,4)*seccspht(28,BA46,4)/3600/1000 -> 46.45405569 | I46: 0.00303030303 | K46: 3.03030303 | L46: 4 | M46: 41 | N46: 32 | O46: =(M46-N46)*L46*wrho((M46+N46)/2)*wcp((M46+N46)/2)/3600 -> 41.50525191 | P46: 0.06 | Q46: 65 | R46: 65 | S46: 0.01 | T46: 0.5552695767 | U46: 4.430811179 | V46: 4.468661866 | W46: 12 | X46: 2.458015357 | AE46: 0.05819444444 | AF46: 2.941805556 | AG46: 0.5552695767 | AH46: 3.556146364 | AI46: 0.9283113855 | AJ46: 3.058194444 | AK46: 1 | AL46: 2.941805556 | AM46: 11.07168861 | AN46: 2 | AO46: 7.291874082 | AW46: 2016 | AX46: 1 | AY46: 2 | BA46: 7.45 | BB46: 0.05030769521 | BC46: 3.270000189 | BD46: 0.055 | BE46: 0.1666666667 | BF46: 0.07540107192 | BG46: 0.04186792128 | BH46: 3.270268209 | BI46: 0.04988566487 | BK46: 0.9558171943 | BL46: 0.1467 | BM46: 0.19 | BN46: 0.2334552697 | BP46: 0.2872281323 | BQ46: 0.01671508159 | BS46: 0.9283113855 | BT46: 0 | BU46: 46.45405569 | BV46: 0 | BY46: 49.92665516 | BZ46: 49.92665516 | CA46: 0 | CD46: 68.03030303 | CE46: 71.58644939
A47: 2016-01-02T18:01:00 | B47: 42 | C47: -4.388889 | D47: 18.04 | E47: 29 | F47: 7.2 | G47: 8.2 | H47: =(G47-F47)*E47*seccdens(28,BA47,4)*seccspht(28,BA47,4)/3600/1000 -> 32.08469287 | I47: 0.00303030303 | K47: 3.03030303 | L47: 6 | M47: 39 | N47: 34 | O47: =(M47-N47)*L47*wrho((M47+N47)/2)*wcp((M47+N47)/2)/3600 -> 34.58770992 | P47: 0.06 | Q47: 37 | R47: 37 | S47: 0.01 | T47: 0.5552695767 | U47: 2.050997783 | V47: 2.081777693 | W47: 12.02 | X47: 1.249343632 | AE47: 0.05819444444 | AF47: 2.941805556 | AG47: 0.5552695767 | AH47: 3.556146364 | AI47: 1.03136782 | AJ47: 3.058194444 | AK47: 1 | AL47: 2.941805556 | AM47: 10.98863218 | AN47: 2 | AO47: 7.291874082 | AW47: 2016 | AX47: 1 | AY47: 2 | BA47: 7.7 | BB47: 0.05099019514 | BC47: 1.88663722 | BD47: 0.055 | BE47: 0.1666666667 | BF47: 0.07540107192 | BG47: 0.04186792128 | BH47: 1.887101726 | BI47: 0.05024865344 | BK47: 0.9253354619 | BL47: 0.1804 | BM47: 0.19 | BN47: 0.2519020254 | BP47: 0.2872281323 | BQ47: 0.01671508159 | BS47: 1.03136782 | BT47: 0 | BU47: 32.08469287 | BV47: 0 | BY47: 18.45359873 | BZ47: 18.45359873 | CA47: 0 | CD47: 40.03030303 | CE47: 43.58644939
A48: 2016-01-02T19:01:00 | B48: 43 | C48: -3.666667 | D48: 19.99 | E48: 29 | F48: 8.1 | G48: 8 | H48: =(G48-F48)*E48*seccdens(28,BA48,4)*seccspht(28,BA48,4)/3600/1000 -> -3.209769326 | I48: 0.00303030303 | K48: 3.03030303 | L48: 6 | M48: 44 | N48: 35 | O48: =(M48-N48)*L48*wrho((M48+N48)/2)*wcp((M48+N48)/2)/3600 -> 62.19466596 | P48: 0.06 | Q48: 36 | R48: 36 | S48: 0 | T48: 0 | U48: 1.80090045 | V48: 1.80090045 | W48: 11.45 | X48: 1.145038168 | AE48: 0 | AF48: 3 | AG48: 0 | AH48: 3 | AI48: 1.03136782 | AJ48: 3 | AK48: 1 | AL48: 3 | AM48: 10.41863218 | AN48: 2 | AO48: 7.291874082 | AW48: 2016 | AX48: 1 | AY48: 2 | BA48: 8.05 | BB48: 0.05030769521 | BC48: 1.811077028 | BD48: 0.055 | BE48: 0.1666666667 | BF48: 0.07540107192 | BG48: 0 | BH48: 1.811077028 | BI48: 0.05030769521 | BK48: 0.9223602484 | BL48: 0.1999 | BM48: 0.19 | BN48: 0.2658421115 | BP48: 0.2872281323 | BQ48: 0 | BS48: 0 | BT48: 1.03136782 | BU48: 0 | BV48: 3.209769326 | BY48: 14.94832915 | BZ48: 14.94832915 | CA48: 0 | CD48: 39.03030303 | CE48: 42.03030303
A49: 2016-01-02T20:01:00 | B49: 44 | C49: -3.833334 | D49: 16.18 | E49: 29 | F49: 7.7 | G49: 8.1 | H49: =(G49-F49)*E49*seccdens(28,BA49,4)*seccspht(28,BA49,4)/3600/1000 -> 12.83684766 | I49: 0.00303030303 | K49: 3.03030303 | L49: 5 | M49: 37 | N49: 32 | O49: =(M49-N49)*L49*wrho((M49+N49)/2)*wcp((M49+N49)/2)/3600 -> 28.84248949 | P49: 0.06 | Q49: 24 | R49: 24 | S49: 0 | T49: 0 | U49: 1.483312732 | V49: 1.483312732 | W49: 11.64 | X49: 0.8626887132 | AE49: 0 | AF49: 3 | AG49: 0 | AH49: 3 | AI49: 1.03136782 | AJ49: 3 | AK49: 1 | AL49: 3 | AM49: 10.60863218 | AN49: 2 | AO49: 7.291874082 | AW49: 2016 | AX49: 1 | AY49: 2 | BA49: 7.9 | BB49: 0.05099019514 | BC49: 1.223764683 | BD49: 0.055 | BE49: 0.1666666667 | BF49: 0.07540107192 | BG49: 0 | BH49: 1.223764683 | BI49: 0.05099019514 | BK49: 0.8878923767 | BL49: 0.1618 | BM49: 0.19 | BN49: 0.2337493929 | BP49: 0.2872281323 | BQ49: 0 | BS49: 1.03136782 | BT49: 0 | BU49: 12.83684766 | BV49: 0 | BY49: 6.75832915 | BZ49: 6.75832915 | CA49: 0 | CD49: 27.03030303 | CE49: 30.03030303
A50: 2016-01-02T21:01:00 | B50: 45 | C50: -3.444445 | D50: 16.14 | E50: 28 | F50: 6.9 | G50: 8.5 | H50: =(G50-F50)*E50*seccdens(28,BA50,4)*seccspht(28,BA50,4)/3600/1000 -> 49.56531865 | I50: 0.00303030303 | K50: 3.03030303 | L50: 5 | M50: 43 | N50: 32 | O50: =(M50-N50)*L50*wrho((M50+N50)/2)*wcp((M50+N50)/2)/3600 -> 63.38941069 | P50: 0.04 | Q50: 77 | R50: 77 | S50: 0 | T50: 0 | U50: 4.770755886 | V50: 4.770755886 | W50: 12.24 | X50: 2.713178295 | AE50: 0 | AF50: 3 | AG50: 0 | AH50: 3 | AI50: 0.9283113855 | AJ50: 3 | AK50: 1 | AL50: 3 | AM50: 11.31168861 | AN50: 2 | AO50: 7.291874082 | AW50: 2016 | AX50: 1 | AY50: 2 | BA50: 7.7 | BB50: 0.05020618644 | BC50: 3.865876356 | BD50: 0.055 | BE50: 0.1666666667 | BF50: 0.07540107192 | BG50: 0 | BH50: 3.865876356 | BI50: 0.05020618644 | BK50: 0.9621355547 | BL50: 0.1614 | BM50: 0.19 | BN50: 0.2438604195 | BP50: 0.2872281323 | BQ50: 0 | BS50: 0.9283113855 | BT50: 0 | BU50: 49.56531865 | BV50: 0 | BY50: 59.90138558 | BZ50: 59.90138558 | CA50: 0 | CD50: 80.03030303 | CE50: 83.03030303
A51: 2016-01-02T22:01:00 | B51: 46 | C51: -3.277778 | D51: 16.36 | E51: 29 | F51: 7.1 | G51: 8.5 | H51: =(G51-F51)*E51*seccdens(28,BA51,4)*seccspht(28,BA51,4)/3600/1000 -> 44.92376725 | I51: 0.00303030303 | K51: 3.03030303 | L51: 5 | M51: 43 | N51: 31 | O51: =(M51-N51)*L51*wrho((M51+N51)/2)*wcp((M51+N51)/2)/3600 -> 69.16375937 | P51: 0.06 | Q51: 66 | R51: 66 | S51: 0 | T51: 0 | U51: 4.034229829 | V51: 4.034229829 | W51: 12.18 | X51: 2.312543798 | AE51: 0 | AF51: 3 | AG51: 0 | AH51: 3 | AI51: 1.03136782 | AJ51: 3 | AK51: 1 | AL51: 3 | AM51: 11.14863218 | AN51: 2 | AO51: 7.291874082 | AW51: 2016 | AX51: 1 | AY51: 2 | BA51: 7.8 | BB51: 0.05017331074 | BC51: 3.311438509 | BD51: 0.055 | BE51: 0.1666666667 | BF51: 0.07540107192 | BG51: 0 | BH51: 3.311438509 | BI51: 0.05017331074 | BK51: 0.9561018437 | BL51: 0.1636 | BM51: 0.19 | BN51: 0.2444689746 | BP51: 0.2872281323 | BQ51: 0 | BS51: 1.03136782 | BT51: 0 | BU51: 44.92376725 | BV51: 0 | BY51: 48.57832915 | BZ51: 48.57832915 | CA51: 0 | CD51: 69.03030303 | CE51: 72.03030303
A52: 2016-01-02T23:01:00 | B52: 47 | C52: -3.555556 | D52: 15.43 | E52: 29 | F52: 6.8 | G52: 8.4 | H52: =(G52-F52)*E52*seccdens(28,BA52,4)*seccspht(28,BA52,4)/3600/1000 -> 51.32957158 | I52: 0.00303030303 | K52: 3.03030303 | L52: 5 | M52: 40 | N52: 31 | O52: =(M52-N52)*L52*wrho((M52+N52)/2)*wcp((M52+N52)/2)/3600 -> 51.89903157 | P52: 0.04 | Q52: 63 | R52: 63 | S52: 0 | T52: 0 | U52: 4.082955282 | V52: 4.082955282 | W52: 11.06 | X52: 2.378255946 | AE52: 0 | AF52: 3 | AG52: 0 | AH52: 3 | AI52: 1.03136782 | AJ52: 3 | AK52: 1 | AL52: 3 | AM52: 10.02863218 | AN52: 2 | AO52: 7.291874082 | AW52: 2016 | AX52: 1 | AY52: 2 | BA52: 7.6 | BB52: 0.05030769521 | BC52: 3.169384798 | BD52: 0.055 | BE52: 0.1666666667 | BF52: 0.07540107192 | BG52: 0 | BH52: 3.169384798 | BI52: 0.05030769521 | BK52: 0.9541073887 | BL52: 0.1543 | BM52: 0.19 | BN52: 0.2380568731 | BP52: 0.2872281323 | BQ52: 0 | BS52: 1.03136782 | BT52: 0 | BU52: 51.32957158 | BV52: 0 | BY52: 46.50832915 | BZ52: 46.50832915 | CA52: 0 | CD52: 66.03030303 | CE52: 69.03030303
A53: 2016-01-03T00:01:00 | B53: 48 | C53: -3.666667 | D53: 14.33 | E53: 29 | F53: 7.3 | G53: 8.4 | H53: =(G53-F53)*E53*seccdens(28,BA53,4)*seccspht(28,BA53,4)/3600/1000 -> 35.29928815 | I53: 0.00303030303 | K53: 3.03030303 | L53: 4 | M53: 41 | N53: 32 | O53: =(M53-N53)*L53*wrho((M53+N53)/2)*wcp((M53+N53)/2)/3600 -> 41.50525191 | P53: 0.05 | Q53: 53 | R53: 53 | S53: 0 | T53: 0 | U53: 3.698534543 | V53: 3.698534543 | W53: 10.54 | X53: 2.131081624 | AE53: 0 | AF53: 3 | AG53: 0 | AH53: 3 | AI53: 1.03136782 | AJ53: 3 | AK53: 1 | AL53: 3 | AM53: 9.50863218 | AN53: 3 | AO53: 7.219925914 | AW53: 2016 | AX53: 1 | AY53: 3 | BA53: 7.85 | BB53: 0.05030769521 | BC53: 2.666307846 | BD53: 0.055 | BE53: 0.1666666667 | BF53: 0.07533747958 | BG53: 0 | BH53: 2.666307846 | BI53: 0.05030769521 | BK53: 0.9459167117 | BL53: 0.1433 | BM53: 0.19 | BN53: 0.2298601078 | BP53: 0.2872281323 | BQ53: 0 | BS53: 1.03136782 | BT53: 0 | BU53: 35.29928815 | BV53: 0 | BY53: 37.60832915 | BZ53: 37.60832915 | CA53: 0 | CD53: 56.03030303 | CE53: 59.03030303
A54: 2016-01-03T01:01:00 | B54: 49 | C54: -3.555556 | D54: 16.96 | E54: 29 | F54: 7.2 | G54: 8.3 | H54: =(G54-F54)*E54*seccdens(28,BA54,4)*seccspht(28,BA54,4)/3600/1000 -> 35.2952037 | I54: 0.00303030303 | K54: 3.03030303 | L54: 6 | M54: 41 | N54: 33 | O54: =(M54-N54)*L54*wrho((M54+N54)/2)*wcp((M54+N54)/2)/3600 -> 55.3310075 | P54: 0.05 | Q54: 41 | R54: 41 | S54: 0 | T54: 0 | U54: 2.41745283 | V54: 2.41745283 | W54: 11.06 | X54: 1.463240542 | AE54: 0 | AF54: 3 | AG54: 0 | AH54: 3 | AI54: 1.03136782 | AJ54: 3 | AK54: 1 | AL54: 3 | AM54: 10.02863218 | AN54: 3 | AO54: 7.219925914 | AW54: 2016 | AX54: 1 | AY54: 3 | BA54: 7.75 | BB54: 0.05038911093 | BC54: 2.065953548 | BD54: 0.055 | BE54: 0.1666666667 | BF54: 0.07533747958 | BG54: 0 | BH54: 2.065953548 | BI54: 0.05038911093 | BK54: 0.9311768754 | BL54: 0.1696 | BM54: 0.19 | BN54: 0.2450839091 | BP54: 0.2872281323 | BQ54: 0 | BS54: 1.03136782 | BT54: 0 | BU54: 35.2952037 | BV54: 0 | BY54: 22.97832915 | BZ54: 22.97832915 | CA54: 0 | CD54: 44.03030303 | CE54: 47.03030303
A55: 2016-01-03T02:01:00 | B55: 50 | C55: -3.333334 | D55: 16.02 | E55: 29 | F55: 7.3 | G55: 8.3 | H55: =(G55-F55)*E55*seccdens(28,BA55,4)*seccspht(28,BA55,4)/3600/1000 -> 32.08840518 | I55: 0.00303030303 | K55: 3.03030303 | L55: 5 | M55: 40 | N55: 32 | O55: =(M55-N55)*L55*wrho((M55+N55)/2)*wcp((M55+N55)/2)/3600 -> 46.12471245 | P55: 0.05 | Q55: 46 | R55: 46 | S55: 0 | T55: 0 | U55: 2.871410737 | V55: 2.871410737 | W55: 10.98 | X55: 1.703703704 | AE55: 0 | AF55: 3 | AG55: 0 | AH55: 3 | AI55: 1.03136782 | AJ55: 3 | AK55: 1 | AL55: 3 | AM55: 9.94863218 | AN55: 3 | AO55: 7.219925914 | AW55: 2016 | AX55: 1 | AY55: 3 | BA55: 7.8 | BB55: 0.05038911093 | BC55: 2.317899103 | BD55: 0.055 | BE55: 0.1666666667 | BF55: 0.07533747958 | BG55: 0 | BH55: 2.317899103 | BI55: 0.05038911093 | BK55: 0.9381953028 | BL55: 0.1602 | BM55: 0.19 | BN55: 0.2396656763 | BP55: 0.2872281323 | BQ55: 0 | BS55: 1.03136782 | BT55: 0 | BU55: 32.08840518 | BV55: 0 | BY55: 28.91832915 | BZ55: 28.91832915 | CA55: 0 | CD55: 49.03030303 | CE55: 52.03030303
A56: 2016-01-03T03:01:00 | B56: 51 | C56: -3.444445 | D56: 16.55 | E56: 28 | F56: 6.9 | G56: 8.4 | H56: =(G56-F56)*E56*seccdens(28,BA56,4)*seccspht(28,BA56,4)/3600/1000 -> 46.46479892 | I56: 0.00303030303 | K56: 3.03030303 | L56: 5 | M56: 41 | N56: 32 | O56: =(M56-N56)*L56*wrho((M56+N56)/2)*wcp((M56+N56)/2)/3600 -> 51.88156488 | P56: 0.05 | Q56: 51 | R56: 51 | S56: 0 | T56: 0 | U56: 3.081570997 | V56: 3.081570997 | W56: 10.49 | X56: 1.886094675 | AE56: 0 | AF56: 3 | AG56: 0 | AH56: 3 | AI56: 0.9283113855 | AJ56: 3 | AK56: 1 | AL56: 3 | AM56: 9.561688615 | AN56: 3 | AO56: 7.219925914 | AW56: 2016 | AX56: 1 | AY56: 3 | BA56: 7.65 | BB56: 0.05030769521 | BC56: 2.565692456 | BD56: 0.055 | BE56: 0.1666666667 | BF56: 0.07533747958 | BG56: 0 | BH56: 2.565692456 | BI56: 0.05030769521 | BK56: 0.9439147504 | BL56: 0.1655 | BM56: 0.19 | BN56: 0.2440378035 | BP56: 0.2872281323 | BQ56: 0 | BS56: 0.9283113855 | BT56: 0 | BU56: 46.46479892 | BV56: 0 | BY56: 33.49138558 | BZ56: 33.49138558 | CA56: 0 | CD56: 54.03030303 | CE56: 57.03030303
A57: 2016-01-03T04:01:00 | B57: 52 | C57: -3.333334 | D57: 17.41 | E57: 29 | F57: 7.8 | G57: 8.2 | H57: =(G57-F57)*E57*seccdens(28,BA57,4)*seccspht(28,BA57,4)/3600/1000 -> 12.83833392 | I57: 0.00303030303 | K57: 3.03030303 | L57: 5 | M57: 41 | N57: 32 | O57: =(M57-N57)*L57*wrho((M57+N57)/2)*wcp((M57+N57)/2)/3600 -> 51.88156488 | P57: 0.06 | Q57: 44 | R57: 44 | S57: 0 | T57: 0 | U57: 2.527283171 | V57: 2.527283171 | W57: 10.22 | X57: 1.592471951 | AE57: 0 | AF57: 3 | AG57: 0 | AH57: 3 | AI57: 1.03136782 | AJ57: 3 | AK57: 1 | AL57: 3 | AM57: 9.18863218 | AN57: 3 | AO57: 7.219925914 | AW57: 2016 | AX57: 1 | AY57: 3 | BA57: 8 | BB57: 0.05030769521 | BC57: 2.213538589 | BD57: 0.055 | BE57: 0.1666666667 | BF57: 0.07533747958 | BG57: 0 | BH57: 2.213538589 | BI57: 0.05030769521 | BK57: 0.9355670103 | BL57: 0.1741 | BM57: 0.19 | BN57: 0.2488144314 | BP57: 0.2872281323 | BQ57: 0 | BS57: 1.03136782 | BT57: 0 | BU57: 12.83833392 | BV57: 0 | BY57: 25.52832915 | BZ57: 25.52832915 | CA57: 0 | CD57: 47.03030303 | CE57: 50.03030303
A58: 2016-01-03T05:00:00 | B58: 53 | C58: -3.722223 | D58: 16.34 | E58: 29 | F58: 6.9 | G58: 8.4 | H58: =(G58-F58)*E58*seccdens(28,BA58,4)*seccspht(28,BA58,4)/3600/1000 -> 48.12425602 | I58: 0.00303030303 | K58: 3.03030303 | L58: 5 | M58: 42 | N58: 31 | O58: =(M58-N58)*L58*wrho((M58+N58)/2)*wcp((M58+N58)/2)/3600 -> 63.41080153 | P58: 0.05 | Q58: 64 | R58: 64 | S58: 0 | T58: 0 | U58: 3.916768666 | V58: 3.916768666 | W58: 10.84 | X58: 2.354672553 | AE58: 0 | AF58: 3 | AG58: 0 | AH58: 3 | AI58: 1.03136782 | AJ58: 3 | AK58: 1 | AL58: 3 | AM58: 9.80863218 | AN58: 3 | AO58: 7.219925914 | AW58: 2016 | AX58: 1 | AY58: 3 | BA58: 7.65 | BB58: 0.05020618644 | BC58: 3.213195932 | BD58: 0.055 | BE58: 0.1666666667 | BF58: 0.07533747958 | BG58: 0 | BH58: 3.213195932 | BI58: 0.05020618644 | BK58: 0.9547920434 | BL58: 0.1634 | BM58: 0.19 | BN58: 0.2441502104 | BP58: 0.2872281323 | BQ58: 0 | BS58: 1.03136782 | BT58: 0 | BU58: 48.12425602 | BV58: 0 | BY58: 46.59832915 | BZ58: 46.59832915 | CA58: 0 | CD58: 67.03030303 | CE58: 70.03030303
A59: 2016-01-03T06:01:00 | B59: 54 | C59: -4.166667 | D59: 17.16 | E59: 29 | F59: 7.7 | G59: 8.4 | H59: =(G59-F59)*E59*seccdens(28,BA59,4)*seccspht(28,BA59,4)/3600/1000 -> 22.46838528 | I59: 0.00303030303 | K59: 3.03030303 | L59: 5 | M59: 45 | N59: 31 | O59: =(M59-N59)*L59*wrho((M59+N59)/2)*wcp((M59+N59)/2)/3600 -> 80.66379078 | P59: 0.05 | Q59: 73 | R59: 73 | S59: 0 | T59: 0 | U59: 4.254079254 | V59: 4.254079254 | W59: 11.1 | X59: 2.583156405 | AE59: 0 | AF59: 3 | AG59: 0 | AH59: 3 | AI59: 1.03136782 | AJ59: 3 | AK59: 1 | AL59: 3 | AM59: 10.06863218 | AN59: 3 | AO59: 7.219925914 | AW59: 2016 | AX59: 1 | AY59: 3 | BA59: 8.05 | BB59: 0.05012738874 | BC59: 3.659299378 | BD59: 0.055 | BE59: 0.1666666667 | BF59: 0.07533747958 | BG59: 0 | BH59: 3.659299378 | BI59: 0.05012738874 | BK59: 0.9601434835 | BL59: 0.1716 | BM59: 0.19 | BN59: 0.2504521229 | BP59: 0.2872281323 | BQ59: 0 | BS59: 1.03136782 | BT59: 0 | BU59: 22.46838528 | BV59: 0 | BY59: 54.77832915 | BZ59: 54.77832915 | CA59: 0 | CD59: 76.03030303 | CE59: 79.03030303
A60: 2016-01-03T07:01:00 | B60: 55 | C60: -4.388889 | D60: 13.05 | E60: 29 | F60: 6.8 | G60: 8.4 | H60: =(G60-F60)*E60*seccdens(28,BA60,4)*seccspht(28,BA60,4)/3600/1000 -> 51.32957158 | I60: 0.00303030303 | K60: 3.03030303 | L60: 4 | M60: 43 | N60: 32 | O60: =(M60-N60)*L60*wrho((M60+N60)/2)*wcp((M60+N60)/2)/3600 -> 50.71152855 | P60: 0.05 | Q60: 74 | R60: 74 | S60: 0 | T60: 0 | U60: 5.670498084 | V60: 5.670498084 | W60: 10.53 | X60: 3.138252757 | AE60: 0 | AF60: 3 | AG60: 0 | AH60: 3 | AI60: 1.03136782 | AJ60: 3 | AK60: 1 | AL60: 3 | AM60: 9.49863218 | AN60: 3 | AO60: 7.219925914 | AW60: 2016 | AX60: 1 | AY60: 3 | BA60: 7.6 | BB60: 0.05020618644 | BC60: 3.715257797 | BD60: 0.055 | BE60: 0.1666666667 | BF60: 0.07533747958 | BG60: 0 | BH60: 3.715257797 | BI60: 0.05020618644 | BK60: 0.9606608969 | BL60: 0.1305 | BM60: 0.19 | BN60: 0.2243787732 | BP60: 0.2872281323 | BQ60: 0 | BS60: 1.03136782 | BT60: 0 | BU60: 51.32957158 | BV60: 0 | BY60: 59.88832915 | BZ60: 59.88832915 | CA60: 0 | CD60: 77.03030303 | CE60: 80.03030303
A61: 2016-01-03T08:01:00 | B61: 56 | C61: -4.555556 | D61: 18.06 | E61: 28 | F61: 7.7 | G61: 8.2 | H61: =(G61-F61)*E61*seccdens(28,BA61,4)*seccspht(28,BA61,4)/3600/1000 -> 15.49364396 | I61: 0.00303030303 | K61: 3.03030303 | L61: 6 | M61: 42 | N61: 34 | O61: =(M61-N61)*L61*wrho((M61+N61)/2)*wcp((M61+N61)/2)/3600 -> 55.31231368 | P61: 0.05 | Q61: 37 | R61: 37 | S61: 0 | T61: 0 | U61: 2.048726467 | V61: 2.048726467 | W61: 10.2 | X61: 1.309271054 | AE61: 0 | AF61: 3 | AG61: 0 | AH61: 3 | AI61: 0.9283113855 | AJ61: 3 | AK61: 1 | AL61: 3 | AM61: 9.271688615 | AN61: 3 | AO61: 7.219925914 | AW61: 2016 | AX61: 1 | AY61: 3 | BA61: 7.95 | BB61: 0.05038911093 | BC61: 1.864397104 | BD61: 0.055 | BE61: 0.1666666667 | BF61: 0.07533747958 | BG61: 0 | BH61: 1.864397104 | BI61: 0.05038911093 | BK61: 0.9242997729 | BL61: 0.1806 | BM61: 0.19 | BN61: 0.2519080696 | BP61: 0.2872281323 | BQ61: 0 | BS61: 0.9283113855 | BT61: 0 | BU61: 15.49364396 | BV61: 0 | BY61: 17.98138558 | BZ61: 17.98138558 | CA61: 0 | CD61: 40.03030303 | CE61: 43.03030303
A62: 2016-01-03T09:01:00 | B62: 57 | C62: -4.555556 | D62: 17.33 | E62: 29 | F62: 5.9 | G62: 8.3 | H62: =(G62-F62)*E62*seccdens(28,BA62,4)*seccspht(28,BA62,4)/3600/1000 -> 76.94988947 | I62: 0.00303030303 | K62: 3.03030303 | L62: 5 | M62: 40 | N62: 32 | O62: =(M62-N62)*L62*wrho((M62+N62)/2)*wcp((M62+N62)/2)/3600 -> 46.12471245 | P62: 0.06 | Q62: 54 | R62: 54 | S62: 0.01 | T62: 0.5561069734 | U62: 3.115983843 | V62: 3.148073109 | W62: 10.98 | X62: 1.927096679 | AE62: 0.05819444444 | AF62: 2.941805556 | AG62: 0.5561069734 | AH62: 3.557072845 | AI62: 1.03136782 | AJ62: 3.058194444 | AK62: 1 | AL62: 2.941805556 | AM62: 9.94863218 | AN62: 3 | AO62: 7.219925914 | AW62: 2016 | AX62: 1 | AY62: 3 | BA62: 7.1 | BB62: 0.05038911093 | BC62: 2.72101199 | BD62: 0.055 | BE62: 0.1666666667 | BF62: 0.07533747958 | BG62: 0.04189569775 | BH62: 2.721334507 | BI62: 0.04988139107 | BK62: 0.9473781569 | BL62: 0.1733 | BM62: 0.19 | BN62: 0.2498670765 | BP62: 0.2872281323 | BQ62: 0.01671508159 | BS62: 1.03136782 | BT62: 0 | BU62: 76.94988947 | BV62: 0 | BY62: 36.16443612 | BZ62: 36.16443612 | CA62: 0 | CD62: 57.03030303 | CE62: 60.58737588
A63: 2016-01-03T10:01:00 | B63: 58 | C63: -4.722223 | D63: 17.9 | E63: 29 | F63: 7.4 | G63: 8.4 | H63: =(G63-F63)*E63*seccdens(28,BA63,4)*seccspht(28,BA63,4)/3600/1000 -> 32.09211915 | I63: 0.00303030303 | K63: 3.03030303 | L63: 6 | M63: 37 | N63: 29 | O63: =(M63-N63)*L63*wrho((M63+N63)/2)*wcp((M63+N63)/2)/3600 -> 55.40550802 | P63: 0.05 | Q63: 74 | R63: 74 | S63: 0.01 | T63: 0.5561069734 | U63: 4.134078212 | V63: 4.165145641 | W63: 10.62 | X63: 2.614169249 | AE63: 0.05819444444 | AF63: 2.941805556 | AG63: 0.5561069734 | AH63: 3.557072845 | AI63: 1.03136782 | AJ63: 3.058194444 | AK63: 1 | AL63: 2.941805556 | AM63: 9.58863218 | AN63: 3 | AO63: 7.219925914 | AW63: 2016 | AX63: 1 | AY63: 3 | BA63: 7.9 | BB63: 0.05038911093 | BC63: 3.728794209 | BD63: 0.055 | BE63: 0.1666666667 | BF63: 0.07533747958 | BG63: 0.04189569775 | BH63: 3.729029565 | BI63: 0.05001642007 | BK63: 0.9609428632 | BL63: 0.179 | BM63: 0.19 | BN63: 0.2556875903 | BP63: 0.2872281323 | BQ63: 0.01671508159 | BS63: 1.03136782 | BT63: 0 | BU63: 32.09211915 | BV63: 0 | BY63: 55.59443612 | BZ63: 55.59443612 | CA63: 0 | CD63: 77.03030303 | CE63: 80.58737588
A64: 2016-01-03T11:01:00 | B64: 59 | C64: -4.888889 | D64: 20.6 | E64: 29 | F64: 6.4 | G64: 8.4 | H64: =(G64-F64)*E64*seccdens(28,BA64,4)*seccspht(28,BA64,4)/3600/1000 -> 64.14713192 | I64: 0.00303030303 | K64: 3.03030303 | L64: 6 | M64: 43 | N64: 32 | O64: =(M64-N64)*L64*wrho((M64+N64)/2)*wcp((M64+N64)/2)/3600 -> 76.06729283 | P64: 0.07 | Q64: 87 | R64: 87 | S64: 0.01 | T64: 0.5561069734 | U64: 4.223300971 | V64: 4.250296455 | W64: 10.7 | X64: 2.797319712 | AE64: 0.05819444444 | AF64: 2.941805556 | AG64: 0.5561069734 | AH64: 3.557072845 | AI64: 1.03136782 | AJ64: 3.058194444 | AK64: 1 | AL64: 2.941805556 | AM64: 9.66863218 | AN64: 3 | AO64: 7.219925914 | AW64: 2016 | AX64: 1 | AY64: 3 | BA64: 7.4 | BB64: 0.05020618644 | BC64: 4.36793822 | BD64: 0.055 | BE64: 0.1666666667 | BF64: 0.07533747958 | BG64: 0.04189569775 | BH64: 4.36813914 | BI64: 0.04988959984 | BK64: 0.9665479289 | BL64: 0.206 | BM64: 0.19 | BN64: 0.2759731107 | BP64: 0.2872281323 | BQ64: 0.01671508159 | BS64: 1.03136782 | BT64: 0 | BU64: 64.14713192 | BV64: 0 | BY64: 65.89443612 | BZ64: 65.89443612 | CA64: 0 | CD64: 90.03030303 | CE64: 93.58737588
A65: 2016-01-03T12:01:00 | B65: 60 | C65: -4.555556 | D65: 22.3 | E65: 29 | F65: 7.5 | G65: 8 | H65: =(G65-F65)*E65*seccdens(28,BA65,4)*seccspht(28,BA65,4)/3600/1000 -> 16.04327441 | I65: 0.00303030303 | K65: 3.03030303 | L65: 5 | M65: 45 | N65: 32 | O65: =(M65-N65)*L65*wrho((M65+N65)/2)*wcp((M65+N65)/2)/3600 -> 74.88940309 | P65: 0.07 | Q65: 75 | R65: 75 | S65: 0.01 | T65: 0.5561069734 | U65: 3.3632287 | V65: 3.388166232 | W65: 10.44 | X65: 2.307761361 | AE65: 0.05819444444 | AF65: 2.941805556 | AG65: 0.5561069734 | AH65: 3.557072845 | AI65: 1.03136782 | AJ65: 3.058194444 | AK65: 1 | AL65: 2.941805556 | AM65: 9.40863218 | AN65: 3 | AO65: 7.219925914 | AW65: 2016 | AX65: 1 | AY65: 3 | BA65: 7.75 | BB65: 0.05014771081 | BC65: 3.761078311 | BD65: 0.055 | BE65: 0.1666666667 | BF65: 0.07533747958 | BG65: 0.04189569775 | BH65: 3.761311647 | BI65: 0.04978170261 | BK65: 0.9614398593 | BL65: 0.223 | BM65: 0.19 | BN65: 0.2882683374 | BP65: 0.2872281323 | BQ65: 0.01671508159 | BS65: 1.03136782 | BT65: 0 | BU65: 16.04327441 | BV65: 0 | BY65: 52.19443612 | BZ65: 52.19443612 | CA65: 0 | CD65: 78.03030303 | CE65: 81.58737588
A66: 2016-01-03T13:01:00 | B66: 61 | C66: -4.388889 | D66: 18.49 | E66: 28 | F66: 5.8 | G66: 8.5 | H66: =(G66-F66)*E66*seccdens(28,BA66,4)*seccspht(28,BA66,4)/3600/1000 -> 83.58832592 | I66: 0.00303030303 | K66: 3.03030303 | L66: 6 | M66: 42 | N66: 30 | O66: =(M66-N66)*L66*wrho((M66+N66)/2)*wcp((M66+N66)/2)/3600 -> 83.0244824 | P66: 0.06 | Q66: 101 | R66: 101 | S66: 0.01 | T66: 0.5561069734 | U66: 5.462412115 | V66: 5.492488208 | W66: 11.28 | X66: 3.411357305 | AE66: 0.05819444444 | AF66: 2.941805556 | AG66: 0.5561069734 | AH66: 3.557072845 | AI66: 0.9283113855 | AJ66: 3.058194444 | AK66: 1 | AL66: 2.941805556 | AM66: 10.35168861 | AN66: 3 | AO66: 7.219925914 | AW66: 2016 | AX66: 1 | AY66: 3 | BA66: 7.15 | BB66: 0.05017331074 | BC66: 5.067504385 | BD66: 0.055 | BE66: 0.1666666667 | BF66: 0.07533747958 | BG66: 0.04189569775 | BH66: 5.067677569 | BI66: 0.04990027405 | BK66: 0.9710258433 | BL66: 0.1849 | BM66: 0.19 | BN66: 0.261201803 | BP66: 0.2872281323 | BQ66: 0.01671508159 | BS66: 0.9283113855 | BT66: 0 | BU66: 83.58832592 | BV66: 0 | BY66: 82.10749256 | BZ66: 82.10749256 | CA66: 0 | CD66: 104.030303 | CE66: 107.5873759
A67: 2016-01-03T14:01:00 | B67: 62 | C67: -4.666667 | D67: 18.37 | E67: 29 | F67: 8 | G67: 8.5 | H67: =(G67-F67)*E67*seccdens(28,BA67,4)*seccspht(28,BA67,4)/3600/1000 -> 16.05256565 | I67: 0.00303030303 | K67: 3.03030303 | L67: 6 | M67: 42 | N67: 31 | O67: =(M67-N67)*L67*wrho((M67+N67)/2)*wcp((M67+N67)/2)/3600 -> 76.09296183 | P67: 0.07 | Q67: 71 | R67: 71 | S67: 0.01 | T67: 0.5561069734 | U67: 3.864997278 | V67: 3.895269841 | W67: 11.35 | X67: 2.407675201 | AE67: 0.05819444444 | AF67: 2.941805556 | AG67: 0.5561069734 | AH67: 3.557072845 | AI67: 1.03136782 | AJ67: 3.058194444 | AK67: 1 | AL67: 2.941805556 | AM67: 10.31863218 | AN67: 3 | AO67: 7.219925914 | AW67: 2016 | AX67: 1 | AY67: 3 | BA67: 8.25 | BB67: 0.05020618644 | BC67: 3.564639237 | BD67: 0.055 | BE67: 0.1666666667 | BF67: 0.07533747958 | BG67: 0.04189569775 | BH67: 3.564885432 | BI67: 0.04981944355 | BK67: 0.9593719147 | BL67: 0.1837 | BM67: 0.19 | BN67: 0.2587893552 | BP67: 0.2872281323 | BQ67: 0.01671508159 | BS67: 1.03136782 | BT67: 0 | BU67: 16.05256565 | BV67: 0 | BY67: 52.12443612 | BZ67: 52.12443612 | CA67: 0 | CD67: 74.03030303 | CE67: 77.58737588
A68: 2016-01-03T15:00:00 | B68: 63 | C68: -4.666667 | D68: 21.63 | E68: 29 | F68: 8 | G68: 7.9 | H68: =(G68-F68)*E68*seccdens(28,BA68,4)*seccspht(28,BA68,4)/3600/1000 -> -3.209397677 | I68: 0.00303030303 | K68: 3.03030303 | L68: 6 | M68: 34 | N68: 33 | O68: =(M68-N68)*L68*wrho((M68+N68)/2)*wcp((M68+N68)/2)/3600 -> 6.924524253 | P68: 0.07 | Q68: 3 | R68: 3 | S68: 0.03 | T68: 1.66832092 | U68: 0.1386962552 | V68: 0.2158262099 | W68: 11.05 | X68: 0.1428494774 | AE68: 0.1745833333 | AF68: 2.825416667 | AG68: 1.66832092 | AH68: 4.671218536 | AI68: 1.03136782 | AJ68: 3.174583333 | AK68: 1 | AL68: 2.825416667 | AM68: 10.01863218 | AN68: 3 | AO68: 7.219925914 | AW68: 2016 | AX68: 1 | AY68: 3 | BA68: 7.95 | BB68: 0.07071067812 | BC68: 0.2121320344 | BD68: 0.055 | BE68: 0.1666666667 | BF68: 0.07533747958 | BG68: 0.1256870933 | BH68: 0.2465709744 | BI68: 0.05281791432 | BK68: 0.6063838097 | BL68: 0.2163 | BM68: 0.19 | BN68: 0.245070822 | BP68: 0.2872281323 | BQ68: 0.05014524477 | BS68: 0 | BT68: 1.03136782 | BU68: 0 | BV68: 3.209397677 | BY68: -18.02334993 | BZ68: 0 | CA68: 18.02334993 | CD68: 6.03030303 | CE68: 10.70152157
A69: 2016-01-03T16:01:00 | B69: 64 | C69: -5 | D69: 21.89 | E69: 29 | F69: 7.2 | G69: 8.2 | H69: =(G69-F69)*E69*seccdens(28,BA69,4)*seccspht(28,BA69,4)/3600/1000 -> 32.08469287 | I69: 0.00303030303 | K69: 3.03030303 | L69: 6 | M69: 46 | N69: 31 | O69: =(M69-N69)*L69*wrho((M69+N69)/2)*wcp((M69+N69)/2)/3600 -> 103.6930197 | P69: 0.07 | Q69: 85 | R69: 85 | S69: 0.02 | T69: 1.112213947 | U69: 3.883051622 | V69: 3.933860847 | W69: 12.41 | X69: 2.510560173 | AE69: =MIN((60-55)/(55-AO69)*T69,D69) -> 0.1163888889 | AF69: =MIN(3,D69)-AE69 -> 2.883611111 | AG69: 1.112213947 | AH69: 4.114145691 | AI69: 1.03136782 | AJ69: 3.116388889 | AK69: =MONTH(A69)+(YEAR(A69)-2016)*12 -> 1 | AL69: =IF(R69>0,AF69,0) -> 2.883611111 | AM69: 11.37863218 | AN69: 3 | AO69: 7.219925914 | AW69: 2016 | AX69: 1 | AY69: 3 | BA69: =(F69+G69)/2 -> 7.7 | BB69: =FractionalError_Bldg_Htg_provided(ABS(M69-N69),P69) -> 0.05011098793 | BC69: =BB69*R69 -> 4.259433974 | BD69: =HeuristicError_Bldg_Clg(I69/1000) -> 0.055 | BE69: =K69*BD69 -> 0.1666666667 | BF69: =FractionalErrorDHW(S69,AO69) -> 0.07533747958 | BG69: =BF69*T69 -> 0.08379139551 | BH69: =SQRT(BG69^2+BC69^2) -> 4.260258064 | BI69: =IF((T69+R69)<>0,BH69/(T69+R69),0) -> 0.04947333101 | BK69: =IF((R69+T69+K69)>0,(R69+T69)/(R69+T69+K69),1) -> 0.9660060863 | BL69: =Error_EL007(D69) -> 0.2189 | BM69: =Error_EL011() -> 0.19 | BN69: =SQRT(BL69^2+(BK69*BM69)^2) -> 0.2856651293 | BP69: =SQRT((SQRT(2)/5)^2+0.05^2) -> 0.2872281323 | BQ69: =BP69*AE69 -> 0.03343016318 | BS69: =IF(H69>0,AI69,0) -> 1.03136782 | BT69: =AI69-BS69 -> 0 | BU69: =IF(H69>0,H69,0) -> 32.08469287 | BV69: =IF(H69<0, -H69,0) -> 0 | BY69: 63.1605431 | BZ69: 63.1605431 | CA69: 0 | CD69: 88.03030303 | CE69: 92.14444872
A70: 2016-01-03T17:01:00 | B70: 65 | C70: -5.166667 | D70: 21.46 | E70: 29 | F70: 6.4 | G70: 7.9 | H70: =(G70-F70)*E70*seccdens(28,BA70,4)*seccspht(28,BA70,4)/3600/1000 -> 48.09645738 | I70: 0.00303030303 | K70: 3.03030303 | L70: 6 | M70: 41 | N70: 31 | O70: =(M70-N70)*L70*wrho((M70+N70)/2)*wcp((M70+N70)/2)/3600 -> 69.18706867 | P70: 0.06 | Q70: 87 | R70: =IF(Q70="",O70,Q70) -> 87 | S70: 0.04 | T70: =S70*1000*4.19*(55-AO70)/3600 -> 2.224427894 | U70: =R70/D70 -> 4.054054054 | V70: =(T70+R70)/D70 -> 4.157708662 | W70: 13.18 | X70: =(T70+R70)/(D70+W70) -> 2.57576293 | AE70: 0.2327777778 | AF70: 2.767222222 | AG70: =T70 -> 2.224427894 | AH70: =T70*(60-8)/(55-8)+AF70 -> 5.228291381 | AI70: =0.001973*(E70/3600*1000)^3 -> 1.03136782 | AJ70: =3+1000*S70*4.19/3600*5 -> 3.232777778 | AK70: 1 | AL70: 2.767222222 | AM70: 12.14863218 | AN70: =daynum(MONTH(A70),DAY(A70)) -> 3 | AO70: =TapWaterTemperature(AN70, 10,5,60) -> 7.219925914 | AW70: =YEAR(A70) -> 2016 | AX70: =MONTH(A70) -> 1 | AY70: =ROUNDDOWN(A70,0)-42369 -> 3 | BA70: 7.15 | BB70: 0.05024937811 | BC70: 4.371695895 | BD70: 0.055 | BE70: 0.1666666667 | BF70: 0.07533747958 | BG70: 0.167582791 | BH70: 4.374906741 | BI70: 0.04903261186 | BK70: 0.9671528712 | BL70: 0.2146 | BM70: 0.19 | BN70: 0.282525303 | BP70: 0.2872281323 | BQ70: 0.06686032636 | BS70: 1.03136782 | BT70: 0 | BU70: 48.09645738 | BV70: 0 | BY70: =(R70+T70)-(K70+(D70-AE70-AF70)+BS70+BT70) -> 66.70275704 | BZ70: =IF(BY70>0,BY70,0) -> 66.70275704 | CA70: =IF(BY70<0,-BY70,0) -> 0 | CD70: =K70+R70 -> 90.03030303 | CE70: =CD70+AH70 -> 95.25859441
A71: 2016-01-03T18:01:00 | B71: =B70+1 -> 66 | C71: -5.333334 | D71: 16.74 | E71: 28 | F71: 6.3 | G71: 8.3 | H71: =(G71-F71)*E71*seccdens(28,BA71,4)*seccspht(28,BA71,4)/3600/1000 -> 61.92800611 | I71: 0.00303030303 | K71: =IF(Y71="",I71*1000,Y71) -> 3.03030303 | L71: 6 | M71: 38 | N71: 31 | O71: =(M71-N71)*L71*wrho((M71+N71)/2)*wcp((M71+N71)/2)/3600 -> 48.45538235 | P71: 0.06 | Q71: 56 | R71: 56 | S71: 0.02 | T71: 1.112213947 | U71: 3.345280765 | V71: 3.411721263 | W71: 13.35 | X71: 1.898046326 | AE71: 0.1163888889 | AF71: 2.883611111 | AG71: 1.112213947 | AH71: 4.114145691 | AI71: 0.9283113855 | AJ71: 3.116388889 | AK71: 1 | AL71: 2.883611111 | AM71: =IF(R71>0,W71-AI71,0) -> 12.42168861 | AN71: 3 | AO71: 7.219925914 | AW71: 2016 | AX71: 1 | AY71: 3 | BA71: 7.3 | BB71: 0.05050762723 | BC71: 2.828427125 | BD71: 0.055 | BE71: 0.1666666667 | BF71: 0.07533747958 | BG71: 0.08379139551 | BH71: 2.829668001 | BI71: 0.04954575923 | BK71: 0.949614629 | BL71: 0.1674 | BM71: 0.19 | BN71: 0.2461231049 | BP71: 0.2872281323 | BQ71: 0.03343016318 | BS71: 0.9283113855 | BT71: 0 | BU71: 61.92800611 | BV71: 0 | BY71: 39.41359953 | BZ71: 39.41359953 | CA71: 0 | CD71: 59.03030303 | CE71: 63.14444872
A72: 2016-01-03T19:01:00 | B72: 67 | C72: -5.444445 | D72: 23.5 | E72: 29 | F72: 8 | G72: 7.9 | H72: =(G72-F72)*E72*seccdens(28,BA72,4)*seccspht(28,BA72,4)/3600/1000 -> -3.209397677 | I72: 0.00303030303 | K72: 3.03030303 | L72: 5 | M72: 48 | N72: 32 | O72: =(M72-N72)*L72*wrho((M72+N72)/2)*wcp((M72+N72)/2)/3600 -> 92.1245283 | P72: 0.07 | Q72: 57 | R72: 57 | S72: 0 | T72: 0 | U72: 2.425531915 | V72: 2.425531915 | W72: 11.06 | X72: 1.649305556 | AE72: 0 | AF72: 3 | AG72: 0 | AH72: 3 | AI72: 1.03136782 | AJ72: 3 | AK72: 1 | AL72: 3 | AM72: 10.02863218 | AN72: 3 | AO72: 7.219925914 | AW72: 2016 | AX72: 1 | AY72: 3 | BA72: 7.95 | BB72: 0.05009756107 | BC72: 2.855560981 | BD72: 0.055 | BE72: 0.1666666667 | BF72: 0.07533747958 | BG72: 0 | BH72: 2.855560981 | BI72: 0.05009756107 | BK72: 0.9495204442 | BL72: 0.235 | BM72: 0.19 | BN72: 0.2962640133 | BP72: 0.2872281323 | BQ72: 0 | BS72: 0 | BT72: 1.03136782 | BU72: 0 | BV72: 3.209397677 | BY72: 32.43832915 | BZ72: 32.43832915 | CA72: 0 | CD72: 60.03030303 | CE72: 63.03030303
A73: 2016-01-03T20:01:00 | B73: 68 | C73: -5.444445 | D73: 13.37 | E73: 29 | F73: 6.7 | G73: 8.3 | H73: =(G73-F73)*E73*seccdens(28,BA73,4)*seccspht(28,BA73,4)/3600/1000 -> 51.32363723 | I73: 0.001639344262 | K73: 1.639344262 | L73: 4 | M73: 42 | N73: 33 | O73: =(M73-N73)*L73*wrho((M73+N73)/2)*wcp((M73+N73)/2)/3600 -> 41.49125063 | P73: 0.05 | Q73: 49 | R73: 49 | S73: 0 | T73: 0 | U73: 3.664921466 | V73: 3.664921466 | W73: 10.33 | X73: 2.067510549 | AE73: 0 | AF73: 3 | AG73: 0 | AH73: 3 | AI73: 1.03136782 | AJ73: 3 | AK73: 1 | AL73: 3 | AM73: 9.29863218 | AN73: 3 | AO73: 7.219925914 | AW73: 2016 | AX73: 1 | AY73: 3 | BA73: 7.5 | BB73: 0.05030769521 | BC73: 2.465077065 | BD73: 0.055 | BE73: 0.09016393443 | BF73: 0.07533747958 | BG73: 0 | BH73: 2.465077065 | BI73: 0.05030769521 | BK73: 0.9676270638 | BL73: 0.1337 | BM73: 0.19 | BN73: 0.2273239914 | BP73: 0.2872281323 | BQ73: 0 | BS73: 1.03136782 | BT73: 0 | BU73: 51.32363723 | BV73: 0 | BY73: 35.95928792 | BZ73: 35.95928792 | CA73: 0 | CD73: 50.63934426 | CE73: 53.63934426
A74: 2016-01-03T21:00:00 | B74: 69 | C74: -5.5 | D74: 17.57 | E74: 29 | F74: 8.1 | G74: 8 | H74: =(G74-F74)*E74*seccdens(28,BA74,4)*seccspht(28,BA74,4)/3600/1000 -> -3.209769326 | I74: 0.001639344262 | K74: 1.639344262 | L74: 6 | M74: 34 | N74: 33 | O74: =(M74-N74)*L74*wrho((M74+N74)/2)*wcp((M74+N74)/2)/3600 -> 6.924524253 | P74: 0.06 | Q74: 3 | R74: 3 | S74: 0 | T74: 0 | U74: 0.1707455891 | V74: 0.1707455891 | W74: 10.96 | X74: 0.1051524711 | AE74: 0 | AF74: 3 | AG74: 0 | AH74: 3 | AI74: 1.03136782 | AJ74: 3 | AK74: 1 | AL74: 3 | AM74: 9.92863218 | AN74: 3 | AO74: 7.219925914 | AW74: 2016 | AX74: 1 | AY74: 3 | BA74: 8.05 | BB74: 0.07071067812 | BC74: 0.2121320344 | BD74: 0.055 | BE74: 0.09016393443 | BF74: 0.07533747958 | BG74: 0 | BH74: 0.2121320344 | BI74: 0.07071067812 | BK74: 0.6466431095 | BL74: 0.1757 | BM74: 0.19 | BN74: 0.214395914 | BP74: 0.2872281323 | BQ74: 0 | BS74: 0 | BT74: 1.03136782 | BU74: 0 | BV74: 3.209769326 | BY74: -14.24071208 | BZ74: 0 | CA74: 14.24071208 | CD74: 4.639344262 | CE74: 7.639344262
A75: 2016-01-03T22:01:00 | B75: 70 | C75: -5.5 | D75: 17.56 | E75: 29 | F75: 6.7 | G75: 8.2 | H75: =(G75-F75)*E75*seccdens(28,BA75,4)*seccspht(28,BA75,4)/3600/1000 -> 48.11312911 | I75: 0.001639344262 | K75: 1.639344262 | L75: 5 | M75: 41 | N75: 32 | O75: =(M75-N75)*L75*wrho((M75+N75)/2)*wcp((M75+N75)/2)/3600 -> 51.88156488 | P75: 0.05 | Q75: 46 | R75: 46 | S75: 0 | T75: 0 | U75: 2.619589977 | V75: 2.619589977 | W75: 10.93 | X75: 1.614601615 | AE75: 0 | AF75: 3 | AG75: 0 | AH75: 3 | AI75: 1.03136782 | AJ75: 3 | AK75: 1 | AL75: 3 | AM75: 9.89863218 | AN75: 3 | AO75: 7.219925914 | AW75: 2016 | AX75: 1 | AY75: 3 | BA75: 7.45 | BB75: 0.05030769521 | BC75: 2.31415398 | BD75: 0.055 | BE75: 0.09016393443 | BF75: 0.07533747958 | BG75: 0 | BH75: 2.31415398 | BI75: 0.05030769521 | BK75: 0.9655884377 | BL75: 0.1756 | BM75: 0.19 | BN75: 0.2539558883 | BP75: 0.2872281323 | BQ75: 0 | BS75: 1.03136782 | BT75: 0 | BU75: 48.11312911 | BV75: 0 | BY75: 28.76928792 | BZ75: 28.76928792 | CA75: 0 | CD75: 47.63934426 | CE75: 50.63934426
A76: 2016-01-03T23:01:00 | B76: 71 | C76: -5.611112 | D76: 16.6 | E76: 28 | F76: 7.1 | G76: 8.2 | H76: =(G76-F76)*E76*seccdens(28,BA76,4)*seccspht(28,BA76,4)/3600/1000 -> 34.07418587 | I76: 0.001639344262 | K76: 1.639344262 | L76: 5 | M76: 38 | N76: 33 | O76: =(M76-N76)*L76*wrho((M76+N76)/2)*wcp((M76+N76)/2)/3600 -> 28.83279532 | P76: 0.05 | Q76: 28 | R76: 28 | S76: 0 | T76: 0 | U76: 1.686746988 | V76: 1.686746988 | W76: 10.48 | X76: 1.033973412 | AE76: 0 | AF76: 3 | AG76: 0 | AH76: 3 | AI76: 0.9283113855 | AJ76: 3 | AK76: 1 | AL76: 3 | AM76: 9.551688615 | AN76: 3 | AO76: 7.219925914 | AW76: 2016 | AX76: 1 | AY76: 3 | BA76: 7.65 | BB76: 0.05099019514 | BC76: 1.427725464 | BD76: 0.055 | BE76: 0.09016393443 | BF76: 0.07533747958 | BG76: 0 | BH76: 1.427725464 | BI76: 0.05099019514 | BK76: 0.9446902655 | BL76: 0.166 | BM76: 0.19 | BN76: 0.2444853228 | BP76: 0.2872281323 | BQ76: 0 | BS76: 0.9283113855 | BT76: 0 | BU76: 34.07418587 | BV76: 0 | BY76: 11.83234435 | BZ76: 11.83234435 | CA76: 0 | CD76: 29.63934426 | CE76: 32.63934426
A77: 2016-01-04T00:01:00 | B77: 72 | C77: -5.777778 | D77: 17.59 | E77: 29 | F77: 7.1 | G77: 8.2 | H77: =(G77-F77)*E77*seccdens(28,BA77,4)*seccspht(28,BA77,4)/3600/1000 -> 35.29112108 | I77: 0.001639344262 | K77: 1.639344262 | L77: 5 | M77: 40 | N77: 31 | O77: =(M77-N77)*L77*wrho((M77+N77)/2)*wcp((M77+N77)/2)/3600 -> 51.89903157 | P77: 0.06 | Q77: 43 | R77: 43 | S77: 0 | T77: 0 | U77: 2.444570779 | V77: 2.444570779 | W77: 10.37 | X77: 1.537911302 | AE77: 0 | AF77: 3 | AG77: 0 | AH77: 3 | AI77: 1.03136782 | AJ77: 3 | AK77: 1 | AL77: 3 | AM77: 9.33863218 | AN77: 4 | AO77: 7.148801541 | AW77: 2016 | AX77: 1 | AY77: 4 | BA77: 7.65 | BB77: 0.05030769521 | BC77: 2.163230894 | BD77: 0.055 | BE77: 0.09016393443 | BF77: 0.07527484465 | BG77: 0 | BH77: 2.163230894 | BI77: 0.05030769521 | BK77: 0.9632757988 | BL77: 0.1759 | BM77: 0.19 | BN77: 0.2538464291 | BP77: 0.2872281323 | BQ77: 0 | BS77: 1.03136782 | BT77: 0 | BU77: 35.29112108 | BV77: 0 | BY77: 25.73928792 | BZ77: 25.73928792 | CA77: 0 | CD77: 44.63934426 | CE77: 47.63934426
A78: 2016-01-04T01:01:00 | B78: 73 | C78: -5.777778 | D78: 18.77 | E78: 29 | F78: 6.7 | G78: 8.2 | H78: =(G78-F78)*E78*seccdens(28,BA78,4)*seccspht(28,BA78,4)/3600/1000 -> 48.11312911 | I78: 0.001639344262 | K78: 1.639344262 | L78: 5 | M78: 42 | N78: 32 | O78: =(M78-N78)*L78*wrho((M78+N78)/2)*wcp((M78+N78)/2)/3600 -> 57.63646614 | P78: 0.05 | Q78: 53 | R78: 53 | S78: 0 | T78: 0 | U78: 2.823654768 | V78: 2.823654768 | W78: 10.91 | X78: 1.785714286 | AE78: 0 | AF78: 3 | AG78: 0 | AH78: 3 | AI78: 1.03136782 | AJ78: 3 | AK78: 1 | AL78: 3 | AM78: 9.87863218 | AN78: 4 | AO78: 7.148801541 | AW78: 2016 | AX78: 1 | AY78: 4 | BA78: 7.45 | BB78: 0.05024937811 | BC78: 2.66321704 | BD78: 0.055 | BE78: 0.09016393443 | BF78: 0.07527484465 | BG78: 0 | BH78: 2.66321704 | BI78: 0.05024937811 | BK78: 0.9699969997 | BL78: 0.1877 | BM78: 0.19 | BN78: 0.2630543097 | BP78: 0.2872281323 | BQ78: 0 | BS78: 1.03136782 | BT78: 0 | BU78: 48.11312911 | BV78: 0 | BY78: 34.55928792 | BZ78: 34.55928792 | CA78: 0 | CD78: 54.63934426 | CE78: 57.63934426
A79: 2016-01-04T02:00:00 | B79: 74 | C79: -6.111112 | D79: 16.93 | E79: 29 | F79: 6.8 | G79: 8.3 | H79: =(G79-F79)*E79*seccdens(28,BA79,4)*seccspht(28,BA79,4)/3600/1000 -> 48.11869132 | I79: 0.001639344262 | K79: 1.639344262 | L79: 5 | M79: 42 | N79: 32 | O79: =(M79-N79)*L79*wrho((M79+N79)/2)*wcp((M79+N79)/2)/3600 -> 57.63646614 | P79: 0.05 | Q79: 51 | R79: 51 | S79: 0 | T79: 0 | U79: 3.012404017 | V79: 3.012404017 | W79: 10.65 | X79: 1.849166062 | AE79: 0 | AF79: 3 | AG79: 0 | AH79: 3 | AI79: 1.03136782 | AJ79: 3 | AK79: 1 | AL79: 3 | AM79: 9.61863218 | AN79: 4 | AO79: 7.148801541 | AW79: 2016 | AX79: 1 | AY79: 4 | BA79: 7.55 | BB79: 0.05024937811 | BC79: 2.562718283 | BD79: 0.055 | BE79: 0.09016393443 | BF79: 0.07527484465 | BG79: 0 | BH79: 2.562718283 | BI79: 0.05024937811 | BK79: 0.9688570539 | BL79: 0.1693 | BM79: 0.19 | BN79: 0.250097945 | BP79: 0.2872281323 | BQ79: 0 | BS79: 1.03136782 | BT79: 0 | BU79: 48.11869132 | BV79: 0 | BY79: 34.39928792 | BZ79: 34.39928792 | CA79: 0 | CD79: 52.63934426 | CE79: 55.63934426
A80: 2016-01-04T03:01:00 | B80: 75 | C80: -6.333334 | D80: 17.46 | E80: 29 | F80: 7.6 | G80: 8.1 | H80: =(G80-F80)*E80*seccdens(28,BA80,4)*seccspht(28,BA80,4)/3600/1000 -> 16.04513098 | I80: 0.001639344262 | K80: 1.639344262 | L80: 6 | M80: 38 | N80: 33 | O80: =(M80-N80)*L80*wrho((M80+N80)/2)*wcp((M80+N80)/2)/3600 -> 34.59935438 | P80: 0.06 | Q80: 23 | R80: 23 | S80: 0 | T80: 0 | U80: 1.317296678 | V80: 1.317296678 | W80: 10.52 | X80: 0.8220157255 | AE80: 0 | AF80: 3 | AG80: 0 | AH80: 3 | AI80: 1.03136782 | AJ80: 3 | AK80: 1 | AL80: 3 | AM80: 9.48863218 | AN80: 4 | AO80: 7.148801541 | AW80: 2016 | AX80: 1 | AY80: 4 | BA80: 7.85 | BB80: 0.05099019514 | BC80: 1.172774488 | BD80: 0.055 | BE80: 0.09016393443 | BF80: 0.07527484465 | BG80: 0 | BH80: 1.172774488 | BI80: 0.05099019514 | BK80: 0.9334664005 | BL80: 0.1746 | BM80: 0.19 | BN80: 0.2488799685 | BP80: 0.2872281323 | BQ80: 0 | BS80: 1.03136782 | BT80: 0 | BU80: 16.04513098 | BV80: 0 | BY80: 5.869287918 | BZ80: 5.869287918 | CA80: 0 | CD80: 24.63934426 | CE80: 27.63934426
A81: 2016-01-04T04:01:00 | B81: 76 | C81: -6.555556 | D81: 21 | E81: 28 | F81: 7.1 | G81: 8.2 | H81: =(G81-F81)*E81*seccdens(28,BA81,4)*seccspht(28,BA81,4)/3600/1000 -> 34.07418587 | I81: 0.001639344262 | K81: 1.639344262 | L81: 5 | M81: 45 | N81: 32 | O81: =(M81-N81)*L81*wrho((M81+N81)/2)*wcp((M81+N81)/2)/3600 -> 74.88940309 | P81: 0.06 | Q81: 72 | R81: 72 | S81: 0 | T81: 0 | U81: 3.428571429 | V81: 3.428571429 | W81: 10.02 | X81: 2.321083172 | AE81: 0 | AF81: 3 | AG81: 0 | AH81: 3 | AI81: 0.9283113855 | AJ81: 3 | AK81: 1 | AL81: 3 | AM81: 9.091688615 | AN81: 4 | AO81: 7.148801541 | AW81: 2016 | AX81: 1 | AY81: 4 | BA81: 7.65 | BB81: 0.05014771081 | BC81: 3.610635178 | BD81: 0.055 | BE81: 0.09016393443 | BF81: 0.07527484465 | BG81: 0 | BH81: 3.610635178 | BI81: 0.05014771081 | BK81: 0.9777382012 | BL81: 0.21 | BM81: 0.19 | BN81: 0.2803757993 | BP81: 0.2872281323 | BQ81: 0 | BS81: 0.9283113855 | BT81: 0 | BU81: 34.07418587 | BV81: 0 | BY81: 51.43234435 | BZ81: 51.43234435 | CA81: 0 | CD81: 73.63934426 | CE81: 76.63934426
A82: 2016-01-04T05:00:00 | B82: 77 | C82: -6.944445 | D82: 16.85 | E82: 29 | F82: 6.2 | G82: 8.3 | H82: =(G82-F82)*E82*seccdens(28,BA82,4)*seccspht(28,BA82,4)/3600/1000 -> 67.342817 | I82: 0.001639344262 | K82: 1.639344262 | L82: 5 | M82: 45 | N82: 31 | O82: =(M82-N82)*L82*wrho((M82+N82)/2)*wcp((M82+N82)/2)/3600 -> 80.66379078 | P82: 0.05 | Q82: 77 | R82: 77 | S82: 0 | T82: 0 | U82: 4.569732938 | V82: 4.569732938 | W82: 10.69 | X82: 2.795933188 | AE82: 0 | AF82: 3 | AG82: 0 | AH82: 3 | AI82: 1.03136782 | AJ82: 3 | AK82: 1 | AL82: 3 | AM82: 9.65863218 | AN82: 4 | AO82: 7.148801541 | AW82: 2016 | AX82: 1 | AY82: 4 | BA82: 7.25 | BB82: 0.05012738874 | BC82: 3.859808933 | BD82: 0.055 | BE82: 0.09016393443 | BF82: 0.07527484465 | BG82: 0 | BH82: 3.859808933 | BI82: 0.05012738874 | BK82: 0.9791536377 | BL82: 0.1685 | BM82: 0.19 | BN82: 0.2510036467 | BP82: 0.2872281323 | BQ82: 0 | BS82: 1.03136782 | BT82: 0 | BU82: 67.342817 | BV82: 0 | BY82: 60.47928792 | BZ82: 60.47928792 | CA82: 0 | CD82: 78.63934426 | CE82: 81.63934426
A83: 2016-01-04T06:00:00 | B83: 78 | C83: -7.111112 | D83: 16.68 | E83: 29 | F83: 7.1 | G83: 8.1 | H83: =(G83-F83)*E83*seccdens(28,BA83,4)*seccspht(28,BA83,4)/3600/1000 -> 32.08098224 | I83: 0.001639344262 | K83: 1.639344262 | L83: 5 | M83: 44 | N83: 32 | O83: =(M83-N83)*L83*wrho((M83+N83)/2)*wcp((M83+N83)/2)/3600 -> 69.1403921 | P83: 0.06 | Q83: 63 | R83: 63 | S83: 0 | T83: 0 | U83: 3.776978417 | V83: 3.776978417 | W83: 11.05 | X83: 2.271907681 | AE83: 0 | AF83: 3 | AG83: 0 | AH83: 3 | AI83: 1.03136782 | AJ83: 3 | AK83: 1 | AL83: 3 | AM83: 10.01863218 | AN83: 4 | AO83: 7.148801541 | AW83: 2016 | AX83: 1 | AY83: 4 | BA83: 7.6 | BB83: 0.05017331074 | BC83: 3.160918577 | BD83: 0.055 | BE83: 0.09016393443 | BF83: 0.07527484465 | BG83: 0 | BH83: 3.160918577 | BI83: 0.05017331074 | BK83: 0.9746386001 | BL83: 0.1668 | BM83: 0.19 | BN83: 0.2492275395 | BP83: 0.2872281323 | BQ83: 0 | BS83: 1.03136782 | BT83: 0 | BU83: 32.08098224 | BV83: 0 | BY83: 46.64928792 | BZ83: 46.64928792 | CA83: 0 | CD83: 64.63934426 | CE83: 67.63934426
A84: 2016-01-04T07:01:00 | B84: 79 | C84: -7.277778 | D84: 18.91 | E84: 29 | F84: 7 | G84: 8.1 | H84: =(G84-F84)*E84*seccdens(28,BA84,4)*seccspht(28,BA84,4)/3600/1000 -> 35.2870403 | I84: 0.001639344262 | K84: 1.639344262 | L84: 6 | M84: 43 | N84: 33 | O84: =(M84-N84)*L84*wrho((M84+N84)/2)*wcp((M84+N84)/2)/3600 -> 69.1403921 | P84: 0.07 | Q84: 65 | R84: 65 | S84: 0.03 | T84: 1.670804346 | U84: 3.437334744 | V84: 3.525690341 | W84: 11.71 | X84: 2.177361344 | AE84: 0.1745833333 | AF84: 2.825416667 | AG84: 1.670804346 | AH84: 4.673966156 | AI84: 1.03136782 | AJ84: 3.174583333 | AK84: 1 | AL84: 2.825416667 | AM84: 10.67863218 | AN84: 4 | AO84: 7.148801541 | AW84: 2016 | AX84: 1 | AY84: 4 | BA84: 7.55 | BB84: 0.05024937811 | BC84: 3.266209577 | BD84: 0.055 | BE84: 0.09016393443 | BF84: 0.07527484465 | BG84: 0.1257695376 | BH84: 3.268630138 | BI84: 0.04902640923 | BK84: 0.9760014537 | BL84: 0.1891 | BM84: 0.19 | BN84: 0.2648526119 | BP84: 0.2872281323 | BQ84: 0.05014524477 | BS84: 1.03136782 | BT84: 0 | BU84: 35.2870403 | BV84: 0 | BY84: 48.09009226 | BZ84: 48.09009226 | CA84: 0 | CD84: 66.63934426 | CE84: 71.31331042
A85: 2016-01-04T08:01:00 | B85: 80 | C85: -8.055556 | D85: 25.23 | E85: 29 | F85: 4.7 | G85: 8.1 | H85: =(G85-F85)*E85*seccdens(28,BA85,4)*seccspht(28,BA85,4)/3600/1000 -> 108.9243828 | I85: 0.001639344262 | K85: 1.639344262 | L85: 8 | M85: 41 | N85: 31 | O85: =(M85-N85)*L85*wrho((M85+N85)/2)*wcp((M85+N85)/2)/3600 -> 92.24942489 | P85: 0.07 | Q85: 100 | R85: 100 | S85: 0.03 | T85: 1.670804346 | U85: 3.963535474 | V85: 4.029758397 | W85: 14.88 | X85: 2.53479941 | AE85: 0.1745833333 | AF85: 2.825416667 | AG85: 1.670804346 | AH85: 4.673966156 | AI85: 1.03136782 | AJ85: 3.174583333 | AK85: 1 | AL85: 2.825416667 | AM85: 13.84863218 | AN85: 4 | AO85: 7.148801541 | AW85: 2016 | AX85: 1 | AY85: 4 | BA85: 6.4 | BB85: 0.05024937811 | BC85: 5.024937811 | BD85: 0.055 | BE85: 0.09016393443 | BF85: 0.07527484465 | BG85: 0.1257695376 | BH85: 5.026511512 | BI85: 0.04943908474 | BK85: 0.9841318178 | BL85: 0.2523 | BM85: 0.19 | BN85: 0.31403614 | BP85: 0.2872281323 | BQ85: 0.05014524477 | BS85: 1.03136782 | BT85: 0 | BU85: 108.9243828 | BV85: 0 | BY85: 76.77009226 | BZ85: 76.77009226 | CA85: 0 | CD85: 101.6393443 | CE85: 106.3133104
A86: 2016-01-04T09:01:00 | B86: 81 | C86: -8.611112 | D86: 25.26 | E86: 28 | F86: 6 | G86: 8.1 | H86: =(G86-F86)*E86*seccdens(28,BA86,4)*seccspht(28,BA86,4)/3600/1000 -> 65.0056372 | I86: 0.001639344262 | K86: 1.639344262 | L86: 7 | M86: 41 | N86: 30 | O86: =(M86-N86)*L86*wrho((M86+N86)/2)*wcp((M86+N86)/2)/3600 -> 88.80500958 | P86: 0.1 | Q86: 116 | R86: 116 | S86: 0.04 | T86: 2.227739128 | U86: 4.592240697 | V86: 4.680433061 | W86: 15.54 | X86: 2.897738704 | AE86: 0.2327777778 | AF86: 2.767222222 | AG86: 2.227739128 | AH86: 5.231954875 | AI86: 0.9283113855 | AJ86: 3.232777778 | AK86: 1 | AL86: 2.767222222 | AM86: 14.61168861 | AN86: 4 | AO86: 7.148801541 | AW86: 2016 | AX86: 1 | AY86: 4 | BA86: 7.05 | BB86: 0.05020618644 | BC86: 5.823917627 | BD86: 0.055 | BE86: 0.09016393443 | BF86: 0.07527484465 | BG86: 0.1676927168 | BH86: 5.826331382 | BI86: 0.04928057853 | BK86: 0.9863236494 | BL86: 0.2526 | BM86: 0.19 | BN86: 0.3145251655 | BP86: 0.2872281323 | BQ86: 0.06686032636 | BS86: 0.9283113855 | BT86: 0 | BU86: 65.0056372 | BV86: 0 | BY86: 93.40008348 | BZ86: 93.40008348 | CA86: 0 | CD86: 117.6393443 | CE86: 122.8712991
A87: 2016-01-04T10:01:00 | B87: 82 | C87: -8.38889 | D87: 31.33 | E87: 29 | F87: 5.4 | G87: 7.8 | H87: =(G87-F87)*E87*seccdens(28,BA87,4)*seccspht(28,BA87,4)/3600/1000 -> 76.90552009 | I87: 0.001639344262 | K87: 1.639344262 | L87: 8 | M87: 44 | N87: 32 | O87: =(M87-N87)*L87*wrho((M87+N87)/2)*wcp((M87+N87)/2)/3600 -> 110.6246274 | P87: 0.09 | Q87: 100 | R87: 100 | S87: 0.07 | T87: 3.898543474 | U87: 3.191828918 | V87: 3.316263756 | W87: 14.09 | X87: 2.287506461 | AE87: 0.4073611111 | AF87: 2.592638889 | AG87: 3.898543474 | AH87: 6.905921031 | AI87: 1.03136782 | AJ87: 3.407361111 | AK87: 1 | AL87: 2.592638889 | AM87: 13.05863218 | AN87: 4 | AO87: 7.148801541 | AW87: 2016 | AX87: 1 | AY87: 4 | BA87: 6.6 | BB87: 0.05017331074 | BC87: 5.017331074 | BD87: 0.055 | BE87: 0.09016393443 | BF87: 0.07527484465 | BG87: 0.2934622544 | BH87: 5.025906008 | BI87: 0.04837320948 | BK87: 0.9844667702 | BL87: 0.3133 | BM87: 0.19 | BN87: 0.3648891627 | BP87: 0.2872281323 | BQ87: 0.1170055711 | BS87: 1.03136782 | BT87: 0 | BU87: 76.90552009 | BV87: 0 | BY87: 72.89783139 | BZ87: 72.89783139 | CA87: 0 | CD87: 101.6393443 | CE87: 108.5452653
A88: 2016-01-04T11:01:00 | B88: 83 | C88: -7.944445 | D88: 28.04 | E88: 31 | F88: 5 | G88: 7.5 | H88: =(G88-F88)*E88*seccdens(28,BA88,4)*seccspht(28,BA88,4)/3600/1000 -> 85.60021915 | I88: 0.001639344262 | K88: 1.639344262 | L88: 8 | M88: 46 | N88: 33 | O88: =(M88-N88)*L88*wrho((M88+N88)/2)*wcp((M88+N88)/2)/3600 -> 119.7823196 | P88: 0.09 | Q88: 109 | R88: 109 | S88: 0.1 | T88: 5.569347821 | U88: 3.887303852 | V88: 4.085925386 | W88: 13.61 | X88: 2.750764654 | AE88: 0.5819444444 | AF88: 2.418055556 | AG88: 5.569347821 | AH88: 8.579887187 | AI88: 1.259808878 | AJ88: 3.581944444 | AK88: 1 | AL88: 2.418055556 | AM88: 12.35019112 | AN88: 4 | AO88: 7.148801541 | AW88: 2016 | AX88: 1 | AY88: 4 | BA88: 6.25 | BB88: 0.05014771081 | BC88: 5.466100478 | BD88: 0.055 | BE88: 0.09016393443 | BF88: 0.07527484465 | BG88: 0.419231792 | BH88: 5.48215375 | BI88: 0.04785009127 | BK88: 0.9858931012 | BL88: 0.2804 | BM88: 0.19 | BN88: 0.3372133241 | BP88: 0.2872281323 | BQ88: 0.1671508159 | BS88: 1.259808878 | BT88: 0 | BU88: 85.60021915 | BV88: 0 | BY88: 86.63019468 | BZ88: 86.63019468 | CA88: 0 | CD88: 110.6393443 | CE88: 119.2192314
A89: 2016-01-04T12:01:00 | B89: 84 | C89: -7.111112 | D89: 26.58 | E89: 29 | F89: 5.5 | G89: 7.6 | H89: =(G89-F89)*E89*seccdens(28,BA89,4)*seccspht(28,BA89,4)/3600/1000 -> 67.28845245 | I89: 0.001639344262 | K89: 1.639344262 | L89: 7 | M89: 45 | N89: 32 | O89: =(M89-N89)*L89*wrho((M89+N89)/2)*wcp((M89+N89)/2)/3600 -> 104.8451643 | P89: 0.08 | Q89: 117 | R89: 117 | S89: 0.1 | T89: 5.569347821 | U89: 4.401805869 | V89: 4.61133739 | W89: 15.66 | X89: 2.901736454 | AE89: 0.5819444444 | AF89: 2.418055556 | AG89: 5.569347821 | AH89: 8.579887187 | AI89: 1.03136782 | AJ89: 3.581944444 | AK89: 1 | AL89: 2.418055556 | AM89: 14.62863218 | AN89: 4 | AO89: 7.148801541 | AW89: 2016 | AX89: 1 | AY89: 4 | BA89: 6.55 | BB89: 0.05014771081 | BC89: 5.867282165 | BD89: 0.055 | BE89: 0.09016393443 | BF89: 0.07527484465 | BG89: 0.419231792 | BH89: 5.88224067 | BI89: 0.04799112318 | BK89: 0.9868016945 | BL89: 0.2658 | BM89: 0.19 | BN89: 0.3252737475 | BP89: 0.2872281323 | BQ89: 0.1671508159 | BS89: 1.03136782 | BT89: 0 | BU89: 67.28845245 | BV89: 0 | BY89: 96.31863574 | BZ89: 96.31863574 | CA89: 0 | CD89: 118.6393443 | CE89: 127.2192314
A90: 2016-01-04T13:01:00 | B90: 85 | C90: -7.000001 | D90: 23.49 | E90: 29 | F90: 5.3 | G90: 7.8 | H90: =(G90-F90)*E90*seccdens(28,BA90,4)*seccspht(28,BA90,4)/3600/1000 -> 80.10530053 | I90: 0.001639344262 | K90: 1.639344262 | L90: 7 | M90: 44 | N90: 31 | O90: =(M90-N90)*L90*wrho((M90+N90)/2)*wcp((M90+N90)/2)/3600 -> 104.8806613 | P90: 0.09 | Q90: 124 | R90: 124 | S90: 0.11 | T90: 6.126282603 | U90: 5.27884206 | V90: 5.539645918 | W90: 15.08 | X90: 3.373769318 | AE90: 0.6401388889 | AF90: 2.359861111 | AG90: 6.126282603 | AH90: 9.137875906 | AI90: 1.03136782 | AJ90: 3.640138889 | AK90: 1 | AL90: 2.359861111 | AM90: 14.04863218 | AN90: 4 | AO90: 7.148801541 | AW90: 2016 | AX90: 1 | AY90: 4 | BA90: 6.55 | BB90: 0.05014771081 | BC90: 6.21831614 | BD90: 0.055 | BE90: 0.09016393443 | BF90: 0.07527484465 | BG90: 0.4611549712 | BH90: 6.235392492 | BI90: 0.04791800985 | BK90: 0.987558635 | BL90: 0.2349 | BM90: 0.19 | BN90: 0.3006415329 | BP90: 0.2872281323 | BQ90: 0.1838658975 | BS90: 1.03136782 | BT90: 0 | BU90: 80.10530053 | BV90: 0 | BY90: 106.9655705 | BZ90: 106.9655705 | CA90: 0 | CD90: 125.6393443 | CE90: 134.7772202
A91: 2016-01-04T14:00:00 | B91: 86 | C91: -6.722223 | D91: 25.21 | E91: 29 | F91: 6.3 | G91: 7.8 | H91: =(G91-F91)*E91*seccdens(28,BA91,4)*seccspht(28,BA91,4)/3600/1000 -> 48.09090507 | I91: 0.001639344262 | K91: 1.639344262 | L91: 7 | M91: 44 | N91: 31 | O91: =(M91-N91)*L91*wrho((M91+N91)/2)*wcp((M91+N91)/2)/3600 -> 104.8806613 | P91: 0.08 | Q91: 98 | R91: 98 | S91: 0.11 | T91: 6.126282603 | U91: 3.887346291 | V91: 4.130356311 | W91: 14.89 | X91: 2.596665402 | AE91: 0.6401388889 | AF91: 2.359861111 | AG91: 6.126282603 | AH91: 9.137875906 | AI91: 1.03136782 | AJ91: 3.640138889 | AK91: 1 | AL91: 2.359861111 | AM91: 13.85863218 | AN91: 4 | AO91: 7.148801541 | AW91: 2016 | AX91: 1 | AY91: 4 | BA91: 7.05 | BB91: 0.05014771081 | BC91: 4.914475659 | BD91: 0.055 | BE91: 0.09016393443 | BF91: 0.07527484465 | BG91: 0.4611549712 | BH91: 4.936064719 | BI91: 0.04740459945 | BK91: 0.984500217 | BL91: 0.2521 | BM91: 0.19 | BN91: 0.3139171841 | BP91: 0.2872281323 | BQ91: 0.1838658975 | BS91: 1.03136782 | BT91: 0 | BU91: 48.09090507 | BV91: 0 | BY91: 79.24557052 | BZ91: 79.24557052 | CA91: 0 | CD91: 99.63934426 | CE91: 108.7772202
A92: 2016-01-04T15:01:00 | B92: 87 | C92: -6.222223 | D92: 24.08 | E92: 28 | F92: 6.7 | G92: 7.7 | H92: =(G92-F92)*E92*seccdens(28,BA92,4)*seccspht(28,BA92,4)/3600/1000 -> 30.96042677 | I92: 0.001639344262 | K92: 1.639344262 | L92: 7 | M92: 38 | N92: 32 | O92: =(M92-N92)*L92*wrho((M92+N92)/2)*wcp((M92+N92)/2)/3600 -> 48.44724018 | P92: 0.08 | Q92: 49 | R92: 49 | S92: 0.11 | T92: 6.126282603 | U92: 2.034883721 | V92: 2.28929745 | W92: 15.53 | X92: 1.391726397 | AE92: 0.6401388889 | AF92: 2.359861111 | AG92: 6.126282603 | AH92: 9.137875906 | AI92: 0.9283113855 | AJ92: 3.640138889 | AK92: 1 | AL92: 2.359861111 | AM92: 14.60168861 | AN92: 4 | AO92: 7.148801541 | AW92: 2016 | AX92: 1 | AY92: 4 | BA92: 7.2 | BB92: 0.05068968775 | BC92: 2.4837947 | BD92: 0.055 | BE92: 0.09016393443 | BF92: 0.07527484465 | BG92: 0.4611549712 | BH92: 2.526242272 | BI92: 0.04582645796 | BK92: 0.9711208287 | BL92: 0.2408 | BM92: 0.19 | BN92: 0.3033639258 | BP92: 0.2872281323 | BQ92: 0.1838658975 | BS92: 0.9283113855 | BT92: 0 | BU92: 30.96042677 | BV92: 0 | BY92: 31.47862695 | BZ92: 31.47862695 | CA92: 0 | CD92: 50.63934426 | CE92: 59.77722017
A93: 2016-01-04T16:01:00 | B93: 88 | C93: -5.5 | D93: 25.08 | E93: 29 | F93: 7.1 | G93: 7.6 | H93: =(G93-F93)*E93*seccdens(28,BA93,4)*seccspht(28,BA93,4)/3600/1000 -> 16.03585646 | I93: 0.001639344262 | K93: 1.639344262 | L93: 7 | M93: 40 | N93: 32 | O93: =(M93-N93)*L93*wrho((M93+N93)/2)*wcp((M93+N93)/2)/3600 -> 64.57459742 | P93: 0.08 | Q93: 50 | R93: 50 | S93: 0.1 | T93: 5.569347821 | U93: 1.993620415 | V93: 2.215683725 | W93: 15.56 | X93: 1.367356 | AE93: 0.5819444444 | AF93: 2.418055556 | AG93: 5.569347821 | AH93: 8.579887187 | AI93: 1.03136782 | AJ93: 3.581944444 | AK93: 1 | AL93: 2.418055556 | AM93: 14.52863218 | AN93: 4 | AO93: 7.148801541 | AW93: 2016 | AX93: 1 | AY93: 4 | BA93: 7.35 | BB93: 0.05038911093 | BC93: 2.519455546 | BD93: 0.055 | BE93: 0.09016393443 | BF93: 0.07527484465 | BG93: 0.419231792 | BH93: 2.554097012 | BI93: 0.04596233557 | BK93: 0.9713444898 | BL93: 0.2508 | BM93: 0.19 | BN93: 0.3113861835 | BP93: 0.2872281323 | BQ93: 0.1671508159 | BS93: 1.03136782 | BT93: 0 | BU93: 16.03585646 | BV93: 0 | BY93: 30.81863574 | BZ93: 30.81863574 | CA93: 0 | CD93: 51.63934426 | CE93: 60.21923145
A94: 2016-01-04T17:01:00 | B94: 89 | C94: -4.055556 | D94: 27.27 | E94: 29 | F94: 7.2 | G94: 7.6 | H94: =(G94-F94)*E94*seccdens(28,BA94,4)*seccspht(28,BA94,4)/3600/1000 -> 12.82942638 | I94: 0.001639344262 | K94: 1.639344262 | L94: 7 | M94: 42 | N94: 32 | O94: =(M94-N94)*L94*wrho((M94+N94)/2)*wcp((M94+N94)/2)/3600 -> 80.6910526 | P94: 0.09 | Q94: 65 | R94: 65 | S94: 0.08 | T94: 4.455478257 | U94: 2.383571691 | V94: 2.546955565 | W94: 16.21 | X94: 1.597412103 | AE94: 0.4655555556 | AF94: 2.534444444 | AG94: 4.455478257 | AH94: 7.46390975 | AI94: 1.03136782 | AJ94: 3.465555556 | AK94: 1 | AL94: 2.534444444 | AM94: 15.17863218 | AN94: 4 | AO94: 7.148801541 | AW94: 2016 | AX94: 1 | AY94: 4 | BA94: 7.4 | BB94: 0.05024937811 | BC94: 3.266209577 | BD94: 0.055 | BE94: 0.09016393443 | BF94: 0.07527484465 | BG94: 0.3353854336 | BH94: 3.28338368 | BI94: 0.0472732139 | BK94: 0.9769414396 | BL94: 0.2727 | BM94: 0.19 | BN94: 0.3298782445 | BP94: 0.2872281323 | BQ94: 0.1337206527 | BS94: 1.03136782 | BT94: 0 | BU94: 12.82942638 | BV94: 0 | BY94: 42.51476617 | BZ94: 42.51476617 | CA94: 0 | CD94: 66.63934426 | CE94: 74.10325401
A95: 2016-01-04T18:00:00 | B95: 90 | C95: -4 | D95: 21.47 | E95: 29 | F95: 6.3 | G95: 7.7 | H95: =(G95-F95)*E95*seccdens(28,BA95,4)*seccspht(28,BA95,4)/3600/1000 -> 44.88225452 | I95: 0.001639344262 | K95: 1.639344262 | L95: 7 | M95: 38 | N95: 32 | O95: =(M95-N95)*L95*wrho((M95+N95)/2)*wcp((M95+N95)/2)/3600 -> 48.44724018 | P95: 0.07 | Q95: 55 | R95: 55 | S95: 0.05 | T95: 2.78467391 | U95: 2.56171402 | V95: 2.691414714 | W95: 16.19 | X95: 1.534377958 | AE95: 0.2909722222 | AF95: 2.709027778 | AG95: 2.78467391 | AH95: 5.789943593 | AI95: 1.03136782 | AJ95: 3.290972222 | AK95: 1 | AL95: 2.709027778 | AM95: 15.15863218 | AN95: 4 | AO95: 7.148801541 | AW95: 2016 | AX95: 1 | AY95: 4 | BA95: 7 | BB95: 0.05068968775 | BC95: 2.787932826 | BD95: 0.055 | BE95: 0.09016393443 | BF95: 0.07527484465 | BG95: 0.209615896 | BH95: 2.795801901 | BI95: 0.04838310423 | BK95: 0.9724127665 | BL95: 0.2147 | BM95: 0.19 | BN95: 0.2832521242 | BP95: 0.2872281323 | BQ95: 0.08357540795 | BS95: 1.03136782 | BT95: 0 | BU95: 44.88225452 | BV95: 0 | BY95: 36.64396183 | BZ95: 36.64396183 | CA95: 0 | CD95: 56.63934426 | CE95: 62.42928786
A96: 2016-01-04T19:01:00 | B96: 91 | C96: -4.222223 | D96: 20.43 | E96: 28 | F96: 6.9 | G96: 7.9 | H96: =(G96-F96)*E96*seccdens(28,BA96,4)*seccspht(28,BA96,4)/3600/1000 -> 30.96758093 | I96: 0.001639344262 | K96: 1.639344262 | L96: 6 | M96: 36 | N96: 33 | O96: =(M96-N96)*L96*wrho((M96+N96)/2)*wcp((M96+N96)/2)/3600 -> 20.76659243 | P96: 0.06 | Q96: 23 | R96: 23 | S96: 0.03 | T96: 1.670804346 | U96: 1.125795399 | V96: 1.207577305 | W96: 13.82 | X96: 0.7203154554 | AE96: 0.1745833333 | AF96: 2.825416667 | AG96: 1.670804346 | AH96: 4.673966156 | AI96: 0.9283113855 | AJ96: 3.174583333 | AK96: 1 | AL96: 2.825416667 | AM96: 12.89168861 | AN96: 4 | AO96: 7.148801541 | AW96: 2016 | AX96: 1 | AY96: 4 | BA96: 7.4 | BB96: 0.05270462767 | BC96: 1.212206436 | BD96: 0.055 | BE96: 0.09016393443 | BF96: 0.07527484465 | BG96: 0.1257695376 | BH96: 1.218713429 | BI96: 0.04939901478 | BK96: 0.937691562 | BL96: 0.2043 | BM96: 0.19 | BN96: 0.2710718969 | BP96: 0.2872281323 | BQ96: 0.05014524477 | BS96: 0.9283113855 | BT96: 0 | BU96: 30.96758093 | BV96: 0 | BY96: 4.673148698 | BZ96: 4.673148698 | CA96: 0 | CD96: 24.63934426 | CE96: 29.31331042
A97: 2016-01-04T20:01:00 | B97: 92 | C97: -4.333334 | D97: 21.88 | E97: 29 | F97: 6.1 | G97: 8.2 | H97: =(G97-F97)*E97*seccdens(28,BA97,4)*seccspht(28,BA97,4)/3600/1000 -> 67.33504033 | I97: 0.001639344262 | K97: 1.639344262 | L97: 6 | M97: 43 | N97: 30 | O97: =(M97-N97)*L97*wrho((M97+N97)/2)*wcp((M97+N97)/2)/3600 -> 89.9280458 | P97: 0.07 | Q97: 108 | R97: 108 | S97: 0.02 | T97: 1.113869564 | U97: 4.936014625 | V97: 4.986922741 | W97: 12.19 | X97: 3.202637792 | AE97: 0.1163888889 | AF97: 2.883611111 | AG97: 1.113869564 | AH97: 4.115977437 | AI97: 1.03136782 | AJ97: 3.116388889 | AK97: 1 | AL97: 2.883611111 | AM97: 11.15863218 | AN97: 4 | AO97: 7.148801541 | AW97: 2016 | AX97: 1 | AY97: 4 | BA97: 7.15 | BB97: 0.05014771081 | BC97: 5.415952767 | BD97: 0.055 | BE97: 0.09016393443 | BF97: 0.07527484465 | BG97: 0.0838463584 | BH97: 5.416601757 | BI97: 0.04964173462 | BK97: 0.985198224 | BL97: 0.2188 | BM97: 0.19 | BN97: 0.2879455869 | BP97: 0.2872281323 | BQ97: 0.03343016318 | BS97: 1.03136782 | BT97: 0 | BU97: 67.33504033 | BV97: 0 | BY97: 87.56315748 | BZ97: 87.56315748 | CA97: 0 | CD97: 109.6393443 | CE97: 113.7553217
A98: 2016-01-04T21:00:00 | B98: 93 | C98: -5.333334 | D98: 19.77 | E98: 29 | F98: 7 | G98: 8 | H98: =(G98-F98)*E98*seccdens(28,BA98,4)*seccspht(28,BA98,4)/3600/1000 -> 32.07727327 | I98: 0.001639344262 | K98: 1.639344262 | L98: 6 | M98: 43 | N98: 32 | O98: =(M98-N98)*L98*wrho((M98+N98)/2)*wcp((M98+N98)/2)/3600 -> 76.06729283 | P98: 0.07 | Q98: 80 | R98: 80 | S98: 0.02 | T98: 1.113869564 | U98: 4.046535154 | V98: 4.102876559 | W98: 13.15 | X98: 2.463969306 | AE98: 0.1163888889 | AF98: 2.883611111 | AG98: 1.113869564 | AH98: 4.115977437 | AI98: 1.03136782 | AJ98: 3.116388889 | AK98: 1 | AL98: 2.883611111 | AM98: 12.11863218 | AN98: 4 | AO98: 7.148801541 | AW98: 2016 | AX98: 1 | AY98: 4 | BA98: 7.5 | BB98: 0.05020618644 | BC98: 4.016494915 | BD98: 0.055 | BE98: 0.09016393443 | BF98: 0.07527484465 | BG98: 0.0838463584 | BH98: 4.017369988 | BI98: 0.04952753468 | BK98: 0.9801899626 | BL98: 0.1977 | BM98: 0.19 | BN98: 0.271604809 | BP98: 0.2872281323 | BQ98: 0.03343016318 | BS98: 1.03136782 | BT98: 0 | BU98: 32.07727327 | BV98: 0 | BY98: 61.67315748 | BZ98: 61.67315748 | CA98: 0 | CD98: 81.63934426 | CE98: 85.7553217
A99: 2016-01-04T22:01:00 | B99: 94 | C99: -6.222223 | D99: 18.39 | E99: 29 | F99: 7.1 | G99: 8.1 | H99: =(G99-F99)*E99*seccdens(28,BA99,4)*seccspht(28,BA99,4)/3600/1000 -> 32.08098224 | I99: 0.001639344262 | K99: 1.639344262 | L99: 6 | M99: 39 | N99: 34 | O99: =(M99-N99)*L99*wrho((M99+N99)/2)*wcp((M99+N99)/2)/3600 -> 34.58770992 | P99: 0.05 | Q99: 39 | R99: 39 | S99: 0 | T99: 0 | U99: 2.120717781 | V99: 2.120717781 | W99: 11.8 | X99: 1.291818483 | AE99: 0 | AF99: 3 | AG99: 0 | AH99: 3 | AI99: 1.03136782 | AJ99: 3 | AK99: 1 | AL99: 3 | AM99: 10.76863218 | AN99: 4 | AO99: 7.148801541 | AW99: 2016 | AX99: 1 | AY99: 4 | BA99: 7.6 | BB99: 0.05099019514 | BC99: 1.98861761 | BD99: 0.055 | BE99: 0.09016393443 | BF99: 0.07527484465 | BG99: 0 | BH99: 1.98861761 | BI99: 0.05099019514 | BK99: 0.9596611537 | BL99: 0.1839 | BM99: 0.19 | BN99: 0.2589700524 | BP99: 0.2872281323 | BQ99: 0 | BS99: 1.03136782 | BT99: 0 | BU99: 32.08098224 | BV99: 0 | BY99: 20.93928792 | BZ99: 20.93928792 | CA99: 0 | CD99: 40.63934426 | CE99: 43.63934426
A100: 2016-01-04T23:01:00 | B100: 95 | C100: -6.944445 | D100: 19.67 | E100: 29 | F100: 7 | G100: 8 | H100: =(G100-F100)*E100*seccdens(28,BA100,4)*seccspht(28,BA100,4)/3600/1000 -> 32.07727327 | I100: 0.001639344262 | K100: 1.639344262 | L100: 5 | M100: 42 | N100: 34 | O100: =(M100-N100)*L100*wrho((M100+N100)/2)*wcp((M100+N100)/2)/3600 -> 46.09359473 | P100: 0.06 | Q100: 48 | R100: 48 | S100: 0 | T100: 0 | U100: 2.440264362 | V100: 2.440264362 | W100: 10.98 | X100: 1.566068515 | AE100: 0 | AF100: 3 | AG100: 0 | AH100: 3 | AI100: 1.03136782 | AJ100: 3 | AK100: 1 | AL100: 3 | AM100: 9.94863218 | AN100: 4 | AO100: 7.148801541 | AW100: 2016 | AX100: 1 | AY100: 4 | BA100: 7.5 | BB100: 0.05038911093 | BC100: 2.418677324 | BD100: 0.055 | BE100: 0.09016393443 | BF100: 0.07527484465 | BG100: 0 | BH100: 2.418677324 | BI100: 0.05038911093 | BK100: 0.9669749009 | BL100: 0.1967 | BM100: 0.19 | BN100: 0.2691576686 | BP100: 0.2872281323 | BQ100: 0 | BS100: 1.03136782 | BT100: 0 | BU100: 32.07727327 | BV100: 0 | BY100: 28.65928792 | BZ100: 28.65928792 | CA100: 0 | CD100: 49.63934426 | CE100: 52.63934426
A101: 2016-01-05T00:01:00 | B101: 96 | C101: -6.555556 | D101: 18.13 | E101: 29 | F101: 6.5 | G101: 8 | H101: =(G101-F101)*E101*seccdens(28,BA101,4)*seccspht(28,BA101,4)/3600/1000 -> 48.10201215 | I101: 0.001639344262 | K101: 1.639344262 | L101: 6 | M101: 42 | N101: 33 | O101: =(M101-N101)*L101*wrho((M101+N101)/2)*wcp((M101+N101)/2)/3600 -> 62.23687595 | P101: 0.06 | Q101: 67 | R101: 67 | S101: 0 | T101: 0 | U101: 3.695532267 | V101: 3.695532267 | W101: 10.28 | X101: 2.358324534 | AE101: 0 | AF101: 3 | AG101: 0 | AH101: 3 | AI101: 1.03136782 | AJ101: 3 | AK101: 1 | AL101: 3 | AM101: 9.24863218 | AN101: 5 | AO101: 7.078522038 | AW101: 2016 | AX101: 1 | AY101: 5 | BA101: 7.25 | BB101: 0.05030769521 | BC101: 3.370615579 | BD101: 0.055 | BE101: 0.09016393443 | BF101: 0.07521317658 | BG101: 0 | BH101: 3.370615579 | BI101: 0.05030769521 | BK101: 0.9761165512 | BL101: 0.1813 | BM101: 0.19 | BN101: 0.2593566986 | BP101: 0.2872281323 | BQ101: 0 | BS101: 1.03136782 | BT101: 0 | BU101: 48.10201215 | BV101: 0 | BY101: 49.19928792 | BZ101: 49.19928792 | CA101: 0 | CD101: 68.63934426 | CE101: 71.63934426
A102: 2016-01-05T01:01:00 | B102: 97 | C102: -6.055556 | D102: 18.38 | E102: 28 | F102: 7 | G102: 8 | H102: =(G102-F102)*E102*seccdens(28,BA102,4)*seccspht(28,BA102,4)/3600/1000 -> 30.9711604 | I102: 0.001639344262 | K102: 1.639344262 | L102: 6 | M102: 40 | N102: 33 | O102: =(M102-N102)*L102*wrho((M102+N102)/2)*wcp((M102+N102)/2)/3600 -> 48.42279389 | P102: 0.06 | Q102: 48 | R102: 48 | S102: 0 | T102: 0 | U102: 2.611534276 | V102: 2.611534276 | W102: 11.17 | X102: 1.624365482 | AE102: 0 | AF102: 3 | AG102: 0 | AH102: 3 | AI102: 0.9283113855 | AJ102: 3 | AK102: 1 | AL102: 3 | AM102: 10.24168861 | AN102: 5 | AO102: 7.078522038 | AW102: 2016 | AX102: 1 | AY102: 5 | BA102: 7.5 | BB102: 0.05050762723 | BC102: 2.424366107 | BD102: 0.055 | BE102: 0.09016393443 | BF102: 0.07521317658 | BG102: 0 | BH102: 2.424366107 | BI102: 0.05050762723 | BK102: 0.9669749009 | BL102: 0.1838 | BM102: 0.19 | BN102: 0.2598795886 | BP102: 0.2872281323 | BQ102: 0 | BS102: 0.9283113855 | BT102: 0 | BU102: 30.9711604 | BV102: 0 | BY102: 30.05234435 | BZ102: 30.05234435 | CA102: 0 | CD102: 49.63934426 | CE102: 52.63934426
A103: 2016-01-05T02:01:00 | B103: 98 | C103: -6.833334 | D103: 17.4 | E103: 29 | F103: 6.5 | G103: 8 | H103: =(G103-F103)*E103*seccdens(28,BA103,4)*seccspht(28,BA103,4)/3600/1000 -> 48.10201215 | I103: 0.001639344262 | K103: 1.639344262 | L103: 5 | M103: 40 | N103: 33 | O103: =(M103-N103)*L103*wrho((M103+N103)/2)*wcp((M103+N103)/2)/3600 -> 40.35232824 | P103: 0.05 | Q103: 49 | R103: 49 | S103: 0 | T103: 0 | U103: 2.816091954 | V103: 2.816091954 | W103: 10.94 | X103: 1.72900494 | AE103: 0 | AF103: 3 | AG103: 0 | AH103: 3 | AI103: 1.03136782 | AJ103: 3 | AK103: 1 | AL103: 3 | AM103: 9.90863218 | AN103: 5 | AO103: 7.078522038 | AW103: 2016 | AX103: 1 | AY103: 5 | BA103: 7.25 | BB103: 0.05050762723 | BC103: 2.474873734 | BD103: 0.055 | BE103: 0.09016393443 | BF103: 0.07521317658 | BG103: 0 | BH103: 2.474873734 | BI103: 0.05050762723 | BK103: 0.9676270638 | BL103: 0.174 | BM103: 0.19 | BN103: 0.253133378 | BP103: 0.2872281323 | BQ103: 0 | BS103: 1.03136782 | BT103: 0 | BU103: 48.10201215 | BV103: 0 | BY103: 31.92928792 | BZ103: 31.92928792 | CA103: 0 | CD103: 50.63934426 | CE103: 53.63934426
A104: 2016-01-05T03:00:00 | B104: 99 | C104: -7.277778 | D104: 17.9 | E104: 29 | F104: 6.6 | G104: 8.1 | H104: =(G104-F104)*E104*seccdens(28,BA104,4)*seccspht(28,BA104,4)/3600/1000 -> 48.10756939 | I104: 0.001639344262 | K104: 1.639344262 | L104: 6 | M104: 42 | N104: 32 | O104: =(M104-N104)*L104*wrho((M104+N104)/2)*wcp((M104+N104)/2)/3600 -> 69.16375937 | P104: 0.06 | Q104: 77 | R104: 77 | S104: 0 | T104: 0 | U104: 4.301675978 | V104: 4.301675978 | W104: 10.77 | X104: 2.685734217 | AE104: 0 | AF104: 3 | AG104: 0 | AH104: 3 | AI104: 1.03136782 | AJ104: 3 | AK104: 1 | AL104: 3 | AM104: 9.73863218 | AN104: 5 | AO104: 7.078522038 | AW104: 2016 | AX104: 1 | AY104: 5 | BA104: 7.35 | BB104: 0.05024937811 | BC104: 3.869202114 | BD104: 0.055 | BE104: 0.09016393443 | BF104: 0.07521317658 | BG104: 0 | BH104: 3.869202114 | BI104: 0.05024937811 | BK104: 0.9791536377 | BL104: 0.179 | BM104: 0.19 | BN104: 0.2581696741 | BP104: 0.2872281323 | BQ104: 0 | BS104: 1.03136782 | BT104: 0 | BU104: 48.10756939 | BV104: 0 | BY104: 59.42928792 | BZ104: 59.42928792 | CA104: 0 | CD104: 78.63934426 | CE104: 81.63934426
A105: 2016-01-05T04:01:00 | B105: 100 | C105: -6.944445 | D105: 19.42 | E105: 29 | F105: 6.5 | G105: 8.1 | H105: =(G105-F105)*E105*seccdens(28,BA105,4)*seccspht(28,BA105,4)/3600/1000 -> 51.31177649 | I105: 0.001639344262 | K105: 1.639344262 | L105: 6 | M105: 44 | N105: 32 | O105: =(M105-N105)*L105*wrho((M105+N105)/2)*wcp((M105+N105)/2)/3600 -> 82.96847052 | P105: 0.06 | Q105: 76 | R105: 76 | S105: 0 | T105: 0 | U105: 3.913491246 | V105: 3.913491246 | W105: 10.07 | X105: 2.577144795 | AE105: 0 | AF105: 3 | AG105: 0 | AH105: 3 | AI105: 1.03136782 | AJ105: 3 | AK105: 1 | AL105: 3 | AM105: 9.03863218 | AN105: 5 | AO105: 7.078522038 | AW105: 2016 | AX105: 1 | AY105: 5 | BA105: 7.3 | BB105: 0.05017331074 | BC105: 3.813171617 | BD105: 0.055 | BE105: 0.09016393443 | BF105: 0.07521317658 | BG105: 0 | BH105: 3.813171617 | BI105: 0.05017331074 | BK105: 0.9788851351 | BL105: 0.1942 | BM105: 0.19 | BN105: 0.2688963397 | BP105: 0.2872281323 | BQ105: 0 | BS105: 1.03136782 | BT105: 0 | BU105: 51.31177649 | BV105: 0 | BY105: 56.90928792 | BZ105: 56.90928792 | CA105: 0 | CD105: 77.63934426 | CE105: 80.63934426
A106: 2016-01-05T05:00:00 | B106: 101 | C106: -6.666667 | D106: 18.37 | E106: 29 | F106: 7 | G106: 8.1 | H106: =(G106-F106)*E106*seccdens(28,BA106,4)*seccspht(28,BA106,4)/3600/1000 -> 35.2870403 | I106: 0.001639344262 | K106: 1.639344262 | L106: 5 | M106: 44 | N106: 33 | O106: =(M106-N106)*L106*wrho((M106+N106)/2)*wcp((M106+N106)/2)/3600 -> 63.36795646 | P106: 0.06 | Q106: 72 | R106: 72 | S106: 0 | T106: 0 | U106: 3.91943386 | V106: 3.91943386 | W106: 10.9 | X106: 2.459856508 | AE106: 0 | AF106: 3 | AG106: 0 | AH106: 3 | AI106: 1.03136782 | AJ106: 3 | AK106: 1 | AL106: 3 | AM106: 9.86863218 | AN106: 5 | AO106: 7.078522038 | AW106: 2016 | AX106: 1 | AY106: 5 | BA106: 7.55 | BB106: 0.05020618644 | BC106: 3.614845424 | BD106: 0.055 | BE106: 0.09016393443 | BF106: 0.07521317658 | BG106: 0 | BH106: 3.614845424 | BI106: 0.05020618644 | BK106: 0.9777382012 | BL106: 0.1837 | BM106: 0.19 | BN106: 0.2612590263 | BP106: 0.2872281323 | BQ106: 0 | BS106: 1.03136782 | BT106: 0 | BU106: 35.2870403 | BV106: 0 | BY106: 53.95928792 | BZ106: 53.95928792 | CA106: 0 | CD106: 73.63934426 | CE106: 76.63934426
A107: 2016-01-05T06:00:00 | B107: 102 | C107: -6.722223 | D107: 18.55 | E107: 28 | F107: 7.9 | G107: 7.9 | H107: =(G107-F107)*E107*seccdens(28,BA107,4)*seccspht(28,BA107,4)/3600/1000 -> 0 | I107: 0.001639344262 | K107: 1.639344262 | L107: 6 | M107: 42 | N107: 34 | O107: =(M107-N107)*L107*wrho((M107+N107)/2)*wcp((M107+N107)/2)/3600 -> 55.31231368 | P107: 0.06 | Q107: 42 | R107: 42 | S107: 0 | T107: 0 | U107: 2.264150943 | V107: 2.264150943 | W107: 11.01 | X107: 1.420838972 | AE107: 0 | AF107: 3 | AG107: 0 | AH107: 3 | AI107: 0.9283113855 | AJ107: 3 | AK107: 1 | AL107: 3 | AM107: 10.08168861 | AN107: 5 | AO107: 7.078522038 | AW107: 2016 | AX107: 1 | AY107: 5 | BA107: 7.9 | BB107: 0.05038911093 | BC107: 2.116342659 | BD107: 0.055 | BE107: 0.09016393443 | BF107: 0.07521317658 | BG107: 0 | BH107: 2.116342659 | BI107: 0.05038911093 | BK107: 0.96243426 | BL107: 0.1855 | BM107: 0.19 | BN107: 0.2604783049 | BP107: 0.2872281323 | BQ107: 0 | BS107: 0 | BT107: 0.9283113855 | BU107: 0 | BV107: 0 | BY107: 23.88234435 | BZ107: 23.88234435 | CA107: 0 | CD107: 43.63934426 | CE107: 46.63934426
A108: 2016-01-05T07:01:00 | B108: 103 | C108: -6.222223 | D108: 23.7 | E108: 29 | F108: 6 | G108: 8 | H108: =(G108-F108)*E108*seccdens(28,BA108,4)*seccspht(28,BA108,4)/3600/1000 -> 64.11750646 | I108: 0.001639344262 | K108: 1.639344262 | L108: 6 | M108: 46 | N108: 32 | O108: =(M108-N108)*L108*wrho((M108+N108)/2)*wcp((M108+N108)/2)/3600 -> 96.76372264 | P108: 0.06 | Q108: 107 | R108: 107 | S108: 0.01 | T108: 0.5577527574 | U108: 4.514767932 | V108: 4.538301804 | W108: 12.02 | X108: 3.011135296 | AE108: 0.05819444444 | AF108: 2.941805556 | AG108: 0.5577527574 | AH108: 3.558893713 | AI108: 1.03136782 | AJ108: 3.058194444 | AK108: 1 | AL108: 2.941805556 | AM108: 10.98863218 | AN108: 5 | AO108: 7.078522038 | AW108: 2016 | AX108: 1 | AY108: 5 | BA108: 7 | BB108: 0.05012738874 | BC108: 5.363630595 | BD108: 0.055 | BE108: 0.09016393443 | BF108: 0.07521317658 | BG108: 0.04195035663 | BH108: 5.363794645 | BI108: 0.04986897279 | BK108: 0.9849872908 | BL108: 0.237 | BM108: 0.19 | BN108: 0.3019821496 | BP108: 0.2872281323 | BQ108: 0.01671508159 | BS108: 1.03136782 | BT108: 0 | BU108: 64.11750646 | BV108: 0 | BY108: 84.18704068 | BZ108: 84.18704068 | CA108: 0 | CD108: 108.6393443 | CE108: 112.198238
A109: 2016-01-05T08:01:00 | B109: 104 | C109: -6.111112 | D109: 18.39 | E109: 29 | F109: 5.6 | G109: 7.9 | H109: =(G109-F109)*E109*seccdens(28,BA109,4)*seccspht(28,BA109,4)/3600/1000 -> 73.71386978 | I109: 0.001639344262 | K109: 1.639344262 | L109: 7 | M109: 39 | N109: 32 | O109: =(M109-N109)*L109*wrho((M109+N109)/2)*wcp((M109+N109)/2)/3600 -> 56.51227883 | P109: 0.08 | Q109: 73 | R109: 73 | S109: 0.02 | T109: 1.115505515 | U109: 3.969548668 | V109: 4.030206934 | W109: 14.72 | X109: 2.238462867 | AE109: 0.1163888889 | AF109: 2.883611111 | AG109: 1.115505515 | AH109: 4.117787425 | AI109: 1.03136782 | AJ109: 3.116388889 | AK109: 1 | AL109: 2.883611111 | AM109: 13.68863218 | AN109: 5 | AO109: 7.078522038 | AW109: 2016 | AX109: 1 | AY109: 5 | BA109: 6.75 | BB109: 0.05050762723 | BC109: 3.687056788 | BD109: 0.055 | BE109: 0.09016393443 | BF109: 0.07521317658 | BG109: 0.08390071326 | BH109: 3.688011264 | BI109: 0.0497603199 | BK109: 0.9783598771 | BL109: 0.1839 | BM109: 0.19 | BN109: 0.2614836488 | BP109: 0.2872281323 | BQ109: 0.03343016318 | BS109: 1.03136782 | BT109: 0 | BU109: 73.71386978 | BV109: 0 | BY109: 56.05479343 | BZ109: 56.05479343 | CA109: 0 | CD109: 74.63934426 | CE109: 78.75713169
A110: 2016-01-05T09:00:00 | B110: 105 | C110: -6.222223 | D110: 28.52 | E110: 29 | F110: 6.7 | G110: 7.6 | H110: =(G110-F110)*E110*seccdens(28,BA110,4)*seccspht(28,BA110,4)/3600/1000 -> 28.85787443 | I110: 0.001639344262 | K110: 1.639344262 | L110: 8 | M110: 43 | N110: 31 | O110: =(M110-N110)*L110*wrho((M110+N110)/2)*wcp((M110+N110)/2)/3600 -> 110.662015 | P110: 0.09 | Q110: 105 | R110: 105 | S110: 0.03 | T110: 1.673258272 | U110: 3.681626928 | V110: 3.740296573 | W110: 16.17 | X110: 2.386960355 | AE110: 0.1745833333 | AF110: 2.825416667 | AG110: 1.673258272 | AH110: 4.676681138 | AI110: 1.03136782 | AJ110: 3.174583333 | AK110: 1 | AL110: 2.825416667 | AM110: 15.13863218 | AN110: 5 | AO110: 7.078522038 | AW110: 2016 | AX110: 1 | AY110: 5 | BA110: 7.15 | BB110: 0.05017331074 | BC110: 5.268197628 | BD110: 0.055 | BE110: 0.09016393443 | BF110: 0.07521317658 | BG110: 0.1258510699 | BH110: 5.269700631 | BI110: 0.04940039066 | BK110: 0.9848646951 | BL110: 0.2852 | BM110: 0.19 | BN110: 0.3411078139 | BP110: 0.2872281323 | BQ110: 0.05014524477 | BS110: 1.03136782 | BT110: 0 | BU110: 28.85787443 | BV110: 0 | BY110: 78.48254619 | BZ110: 78.48254619 | CA110: 0 | CD110: 106.6393443 | CE110: 111.3160254
A111: 2016-01-05T10:01:00 | B111: 106 | C111: -6.722223 | D111: 24.39 | E111: 29 | F111: 6.2 | G111: 7.7 | H111: =(G111-F111)*E111*seccdens(28,BA111,4)*seccspht(28,BA111,4)/3600/1000 -> 48.08535523 | I111: 0.001639344262 | K111: 1.639344262 | L111: 7 | M111: 42 | N111: 32 | O111: =(M111-N111)*L111*wrho((M111+N111)/2)*wcp((M111+N111)/2)/3600 -> 80.6910526 | P111: 0.08 | Q111: 87 | R111: 87 | S111: 0.05 | T111: 2.788763787 | U111: 3.56703567 | V111: 3.681376129 | W111: 14.72 | X111: 2.295800659 | AE111: 0.2909722222 | AF111: 2.709027778 | AG111: 2.788763787 | AH111: 5.794468563 | AI111: 1.03136782 | AJ111: 3.290972222 | AK111: 1 | AL111: 2.709027778 | AM111: 13.68863218 | AN111: 5 | AO111: 7.078522038 | AW111: 2016 | AX111: 1 | AY111: 5 | BA111: 6.95 | BB111: 0.05024937811 | BC111: 4.371695895 | BD111: 0.055 | BE111: 0.09016393443 | BF111: 0.07521317658 | BG111: 0.2097517832 | BH111: 4.376724895 | BI111: 0.04874468375 | BK111: 0.9820695813 | BL111: 0.2439 | BM111: 0.19 | BN111: 0.3070899541 | BP111: 0.2872281323 | BQ111: 0.08357540795 | BS111: 1.03136782 | BT111: 0 | BU111: 48.08535523 | BV111: 0 | BY111: 65.7280517 | BZ111: 65.7280517 | CA111: 0 | CD111: 88.63934426 | CE111: 94.43381283
A112: 2016-01-05T11:01:00 | B112: 107 | C112: -7.722223 | D112: 23.7 | E112: 28 | F112: 7.2 | G112: 7.6 | H112: =(G112-F112)*E112*seccdens(28,BA112,4)*seccspht(28,BA112,4)/3600/1000 -> 12.38703237 | I112: 0.001639344262 | K112: 1.639344262 | L112: 7 | M112: 41 | N112: 32 | O112: =(M112-N112)*L112*wrho((M112+N112)/2)*wcp((M112+N112)/2)/3600 -> 72.63419084 | P112: 0.09 | Q112: 67 | R112: 67 | S112: 0.08 | T112: 4.462022059 | U112: 2.827004219 | V112: 3.015275192 | W112: 14.37 | X112: 1.877121672 | AE112: 0.4655555556 | AF112: 2.534444444 | AG112: 4.462022059 | AH112: 7.471149701 | AI112: 0.9283113855 | AJ112: 3.465555556 | AK112: 1 | AL112: 2.534444444 | AM112: 13.44168861 | AN112: 5 | AO112: 7.078522038 | AW112: 2016 | AX112: 1 | AY112: 5 | BA112: 7.4 | BB112: 0.05030769521 | BC112: 3.370615579 | BD112: 0.055 | BE112: 0.09016393443 | BF112: 0.07521317658 | BG112: 0.3356028531 | BH112: 3.387281898 | BI112: 0.04739974885 | BK112: 0.9775743691 | BL112: 0.237 | BM112: 0.19 | BN112: 0.3011113157 | BP112: 0.2872281323 | BQ112: 0.1337206527 | BS112: 0.9283113855 | BT112: 0 | BU112: 12.38703237 | BV112: 0 | BY112: 48.19436641 | BZ112: 48.19436641 | CA112: 0 | CD112: 68.63934426 | CE112: 76.11049396
A113: 2016-01-05T12:00:00 | B113: 108 | C113: -7.944445 | D113: 25.81 | E113: 29 | F113: 7.1 | G113: 7.5 | H113: =(G113-F113)*E113*seccdens(28,BA113,4)*seccspht(28,BA113,4)/3600/1000 -> 12.82794412 | I113: 0.001639344262 | K113: 1.639344262 | L113: 7 | M113: 43 | N113: 31 | O113: =(M113-N113)*L113*wrho((M113+N113)/2)*wcp((M113+N113)/2)/3600 -> 96.82926312 | P113: 0.08 | Q113: 93 | R113: 93 | S113: 0.1 | T113: 5.577527574 | U113: 3.603254552 | V113: 3.819354032 | W113: 13.4 | X113: 2.514091496 | AE113: 0.5819444444 | AF113: 2.418055556 | AG113: 5.577527574 | AH113: 8.588937127 | AI113: 1.03136782 | AJ113: 3.581944444 | AK113: 1 | AL113: 2.418055556 | AM113: 12.36863218 | AN113: 5 | AO113: 7.078522038 | AW113: 2016 | AX113: 1 | AY113: 5 | BA113: 7.3 | BB113: 0.05017331074 | BC113: 4.666117899 | BD113: 0.055 | BE113: 0.09016393443 | BF113: 0.07521317658 | BG113: 0.4195035663 | BH113: 4.684937512 | BI113: 0.04752541099 | BK113: 0.9836420332 | BL113: 0.2581 | BM113: 0.19 | BN113: 0.3186600454 | BP113: 0.2872281323 | BQ113: 0.1671508159 | BS113: 1.03136782 | BT113: 0 | BU113: 12.82794412 | BV113: 0 | BY113: 73.09681549 | BZ113: 73.09681549 | CA113: 0 | CD113: 94.63934426 | CE113: 103.2282814
A114: 2016-01-05T13:01:00 | B114: 109 | C114: -8.055556 | D114: 21.66 | E114: 29 | F114: 6.3 | G114: 7.7 | H114: =(G114-F114)*E114*seccdens(28,BA114,4)*seccspht(28,BA114,4)/3600/1000 -> 44.88225452 | I114: 0.001639344262 | K114: 1.639344262 | L114: 7 | M114: 37 | N114: 31 | O114: =(M114-N114)*L114*wrho((M114+N114)/2)*wcp((M114+N114)/2)/3600 -> 48.4635248 | P114: 0.07 | Q114: 52 | R114: 52 | S114: 0.1 | T114: 5.577527574 | U114: 2.400738689 | V114: 2.65824227 | W114: 15 | X114: 1.570581767 | AE114: 0.5819444444 | AF114: 2.418055556 | AG114: 5.577527574 | AH114: 8.588937127 | AI114: 1.03136782 | AJ114: 3.581944444 | AK114: 1 | AL114: 2.418055556 | AM114: 13.96863218 | AN114: 5 | AO114: 7.078522038 | AW114: 2016 | AX114: 1 | AY114: 5 | BA114: 7 | BB114: 0.05068968775 | BC114: 2.635863763 | BD114: 0.055 | BE114: 0.09016393443 | BF114: 0.07521317658 | BG114: 0.4195035663 | BH114: 2.669037471 | BI114: 0.04635554153 | BK114: 0.9723162637 | BL114: 0.2166 | BM114: 0.19 | BN114: 0.2846830885 | BP114: 0.2872281323 | BQ114: 0.1671508159 | BS114: 1.03136782 | BT114: 0 | BU114: 44.88225452 | BV114: 0 | BY114: 36.24681549 | BZ114: 36.24681549 | CA114: 0 | CD114: 53.63934426 | CE114: 62.22828139
A115: 2016-01-05T14:01:00 | B115: 110 | C115: -7.944445 | D115: 26.59 | E115: 29 | F115: 7.1 | G115: 7.6 | H115: =(G115-F115)*E115*seccdens(28,BA115,4)*seccspht(28,BA115,4)/3600/1000 -> 16.03585646 | I115: 0.001639344262 | K115: 1.639344262 | L115: 6 | M115: 37 | N115: 33 | O115: =(M115-N115)*L115*wrho((M115+N115)/2)*wcp((M115+N115)/2)/3600 -> 27.68413725 | P115: 0.08 | Q115: 25 | R115: 25 | S115: 0.11 | T115: 6.135280331 | U115: 0.9402030839 | V115: 1.170939463 | W115: 14.68 | X115: 0.754428891 | AE115: 0.6401388889 | AF115: 2.359861111 | AG115: 6.135280331 | AH115: 9.147830839 | AI115: 1.03136782 | AJ115: 3.640138889 | AK115: 1 | AL115: 2.359861111 | AM115: 13.64863218 | AN115: 5 | AO115: 7.078522038 | AW115: 2016 | AX115: 1 | AY115: 5 | BA115: 7.35 | BB115: 0.05153882032 | BC115: 1.288470508 | BD115: 0.055 | BE115: 0.09016393443 | BF115: 0.07521317658 | BG115: 0.461453923 | BH115: 1.368610965 | BI115: 0.04395691801 | BK115: 0.9499812955 | BL115: 0.2659 | BM115: 0.19 | BN115: 0.3213748233 | BP115: 0.2872281323 | BQ115: 0.1838658975 | BS115: 1.03136782 | BT115: 0 | BU115: 16.03585646 | BV115: 0 | BY115: 4.874568249 | BZ115: 4.874568249 | CA115: 0 | CD115: 26.63934426 | CE115: 35.7871751
A116: 2016-01-05T15:01:00 | B116: 111 | C116: -8.166667 | D116: 30.44 | E116: 30 | F116: 6.2 | G116: 7.3 | H116: =(G116-F116)*E116*seccdens(28,BA116,4)*seccspht(28,BA116,4)/3600/1000 -> 36.47013048 | I116: 0.001639344262 | K116: 1.639344262 | L116: 8 | M116: 44 | N116: 34 | O116: =(M116-N116)*L116*wrho((M116+N116)/2)*wcp((M116+N116)/2)/3600 -> 92.15592632 | P116: 0.09 | Q116: 66 | R116: 66 | S116: 0.12 | T116: 6.693033089 | U116: 2.168199737 | V116: 2.388075988 | W116: 14.64 | X116: 1.612534008 | AE116: 0.6983333333 | AF116: 2.301666667 | AG116: 6.693033089 | AH116: 9.706724552 | AI116: 1.141782407 | AJ116: 3.698333333 | AK116: 1 | AL116: 2.301666667 | AM116: 13.49821759 | AN116: 5 | AO116: 7.078522038 | AW116: 2016 | AX116: 1 | AY116: 5 | BA116: 6.75 | BB116: 0.05024937811 | BC116: 3.316458955 | BD116: 0.055 | BE116: 0.09016393443 | BF116: 0.07521317658 | BG116: 0.5034042796 | BH116: 3.354447178 | BI116: 0.04614537371 | BK116: 0.9779457577 | BL116: 0.3044 | BM116: 0.19 | BN116: 0.3566295029 | BP116: 0.2872281323 | BQ116: 0.2005809791 | BS116: 1.141782407 | BT116: 0 | BU116: 36.47013048 | BV116: 0 | BY116: 42.47190642 | BZ116: 42.47190642 | CA116: 0 | CD116: 67.63934426 | CE116: 77.34606881
A117: 2016-01-05T16:00:00 | B117: 112 | C117: -8.777778 | D117: 27.31 | E117: 31 | F117: 5.6 | G117: 7.4 | H117: =(G117-F117)*E117*seccdens(28,BA117,4)*seccspht(28,BA117,4)/3600/1000 -> 61.64990677 | I117: 0.001639344262 | K117: 1.639344262 | L117: 7 | M117: 45 | N117: 32 | O117: =(M117-N117)*L117*wrho((M117+N117)/2)*wcp((M117+N117)/2)/3600 -> 104.8451643 | P117: 0.09 | Q117: 115 | R117: 115 | S117: 0.13 | T117: 7.250785846 | U117: 4.210911754 | V117: 4.476411053 | W117: 15.04 | X117: 2.886677352 | AE117: 0.7565277778 | AF117: 2.243472222 | AG117: 7.250785846 | AH117: 10.26561826 | AI117: 1.259808878 | AJ117: 3.756527778 | AK117: 1 | AL117: 2.243472222 | AM117: 13.78019112 | AN117: 5 | AO117: 7.078522038 | AW117: 2016 | AX117: 1 | AY117: 5 | BA117: 6.5 | BB117: 0.05014771081 | BC117: 5.766986743 | BD117: 0.055 | BE117: 0.09016393443 | BF117: 0.07521317658 | BG117: 0.5453546362 | BH117: 5.792715061 | BI117: 0.04738386768 | BK117: 0.9867677574 | BL117: 0.2731 | BM117: 0.19 | BN117: 0.3312620759 | BP117: 0.2872281323 | BQ117: 0.2172960607 | BS117: 1.259808878 | BT117: 0 | BU117: 61.64990677 | BV117: 0 | BY117: 95.04163271 | BZ117: 95.04163271 | CA117: 0 | CD117: 116.6393443 | CE117: 126.9049625
A118: 2016-01-05T17:01:00 | B118: 113 | C118: -9.333334 | D118: 24.66 | E118: 30 | F118: 6.5 | G118: 7.5 | H118: =(G118-F118)*E118*seccdens(28,BA118,4)*seccspht(28,BA118,4)/3600/1000 -> 33.16422748 | I118: 0.001639344262 | K118: 1.639344262 | L118: 7 | M118: 42 | N118: 32 | O118: =(M118-N118)*L118*wrho((M118+N118)/2)*wcp((M118+N118)/2)/3600 -> 80.6910526 | P118: 0.08 | Q118: 76 | R118: 76 | S118: 0.11 | T118: 6.135280331 | U118: 3.081914031 | V118: 3.330708854 | W118: 16.22 | X118: 2.009180047 | AE118: 0.6401388889 | AF118: 2.359861111 | AG118: 6.135280331 | AH118: 9.147830839 | AI118: 1.141782407 | AJ118: 3.640138889 | AK118: 1 | AL118: 2.359861111 | AM118: 15.07821759 | AN118: 5 | AO118: 7.078522038 | AW118: 2016 | AX118: 1 | AY118: 5 | BA118: 7 | BB118: 0.05024937811 | BC118: 3.818952736 | BD118: 0.055 | BE118: 0.09016393443 | BF118: 0.07521317658 | BG118: 0.461453923 | BH118: 3.846731044 | BI118: 0.04683408918 | BK118: 0.9804314938 | BL118: 0.2466 | BM118: 0.19 | BN118: 0.3090510273 | BP118: 0.2872281323 | BQ118: 0.1838658975 | BS118: 1.141782407 | BT118: 0 | BU118: 33.16422748 | BV118: 0 | BY118: 57.69415366 | BZ118: 57.69415366 | CA118: 0 | CD118: 77.63934426 | CE118: 86.7871751
A119: 2016-01-05T18:01:00 | B119: 114 | C119: -9.666667 | D119: 27.24 | E119: 30 | F119: 5.5 | G119: 7.6 | H119: =(G119-F119)*E119*seccdens(28,BA119,4)*seccspht(28,BA119,4)/3600/1000 -> 69.60874391 | I119: 0.001639344262 | K119: 1.639344262 | L119: 7 | M119: 40 | N119: 32 | O119: =(M119-N119)*L119*wrho((M119+N119)/2)*wcp((M119+N119)/2)/3600 -> 64.57459742 | P119: 0.08 | Q119: 61 | R119: 61 | S119: 0.07 | T119: 3.904269302 | U119: 2.239353891 | V119: 2.382682427 | W119: 16.23 | X119: 1.493081879 | AE119: 0.4073611111 | AF119: 2.592638889 | AG119: 3.904269302 | AH119: 6.912255989 | AI119: 1.141782407 | AJ119: 3.407361111 | AK119: 1 | AL119: 2.592638889 | AM119: 15.08821759 | AN119: 5 | AO119: 7.078522038 | AW119: 2016 | AX119: 1 | AY119: 5 | BA119: 6.55 | BB119: 0.05038911093 | BC119: 3.073735767 | BD119: 0.055 | BE119: 0.09016393443 | BF119: 0.07521317658 | BG119: 0.2936524964 | BH119: 3.087731101 | BI119: 0.04757362087 | BK119: 0.9753643637 | BL119: 0.2724 | BM119: 0.19 | BN119: 0.3294616467 | BP119: 0.2872281323 | BQ119: 0.1170055711 | BS119: 1.141782407 | BT119: 0 | BU119: 69.60874391 | BV119: 0 | BY119: 37.88314263 | BZ119: 37.88314263 | CA119: 0 | CD119: 62.63934426 | CE119: 69.55160025
A120: 2016-01-05T19:01:00 | B120: 115 | C120: -10.111112 | D120: 25.5 | E120: 29 | F120: 5.9 | G120: 7.8 | H120: =(G120-F120)*E120*seccdens(28,BA120,4)*seccspht(28,BA120,4)/3600/1000 -> 60.90108993 | I120: 0.001639344262 | K120: 1.639344262 | L120: 6 | M120: 43 | N120: 34 | O120: =(M120-N120)*L120*wrho((M120+N120)/2)*wcp((M120+N120)/2)/3600 -> 62.21581179 | P120: 0.08 | Q120: 57 | R120: 57 | S120: 0.04 | T120: 2.23101103 | U120: 2.235294118 | V120: 2.322784746 | W120: 13.71 | X120: 1.51060982 | AE120: 0.2327777778 | AF120: 2.767222222 | AG120: 2.23101103 | AH120: 5.235574851 | AI120: 1.03136782 | AJ120: 3.232777778 | AK120: 1 | AL120: 2.767222222 | AM120: 12.67863218 | AN120: 5 | AO120: 7.078522038 | AW120: 2016 | AX120: 1 | AY120: 5 | BA120: 6.85 | BB120: 0.05030769521 | BC120: 2.867538627 | BD120: 0.055 | BE120: 0.09016393443 | BF120: 0.07521317658 | BG120: 0.1678014265 | BH120: 2.872444098 | BI120: 0.04849561147 | BK120: 0.9730682653 | BL120: 0.255 | BM120: 0.19 | BN120: 0.3149709713 | BP120: 0.2872281323 | BQ120: 0.06686032636 | BS120: 1.03136782 | BT120: 0 | BU120: 60.90108993 | BV120: 0 | BY120: 34.06029895 | BZ120: 34.06029895 | CA120: 0 | CD120: 58.63934426 | CE120: 63.87491911
A121: 2016-01-05T20:00:00 | B121: 116 | C121: -9.944445 | D121: 26.24 | E121: 29 | F121: 7.5 | G121: 7.4 | H121: =(G121-F121)*E121*seccdens(28,BA121,4)*seccspht(28,BA121,4)/3600/1000 -> -3.207541941 | I121: 0.001639344262 | K121: 1.639344262 | L121: 7 | M121: 47 | N121: 34 | O121: =(M121-N121)*L121*wrho((M121+N121)/2)*wcp((M121+N121)/2)/3600 -> 104.7737262 | P121: 0.09 | Q121: 57 | R121: 57 | S121: 0.02 | T121: 1.115505515 | U121: 2.172256098 | V121: 2.214767741 | W121: 12.06 | X121: 1.517376123 | AE121: 0.1163888889 | AF121: 2.883611111 | AG121: 1.115505515 | AH121: 4.117787425 | AI121: 1.03136782 | AJ121: 3.116388889 | AK121: 1 | AL121: 2.883611111 | AM121: 11.02863218 | AN121: 5 | AO121: 7.078522038 | AW121: 2016 | AX121: 1 | AY121: 5 | BA121: 7.45 | BB121: 0.05014771081 | BC121: 2.858419516 | BD121: 0.055 | BE121: 0.09016393443 | BF121: 0.07521317658 | BG121: 0.08390071326 | BH121: 2.859650584 | BI121: 0.04920632726 | BK121: 0.9725655027 | BL121: 0.2624 | BM121: 0.19 | BN121: 0.32093638 | BP121: 0.2872281323 | BQ121: 0.03343016318 | BS121: 0 | BT121: 1.03136782 | BU121: 0 | BV121: 3.207541941 | BY121: 32.20479343 | BZ121: 32.20479343 | CA121: 0 | CD121: 58.63934426 | CE121: 62.75713169
A122: 2016-01-05T21:01:00 | B122: 117 | C122: -10.000001 | D122: 24.37 | E122: 28 | F122: 5.9 | G122: 7.6 | H122: =(G122-F122)*E122*seccdens(28,BA122,4)*seccspht(28,BA122,4)/3600/1000 -> 52.60540032 | I122: 0.001639344262 | K122: 1.639344262 | L122: 6 | M122: 47 | N122: 33 | O122: =(M122-N122)*L122*wrho((M122+N122)/2)*wcp((M122+N122)/2)/3600 -> 96.73075472 | P122: 0.07 | Q122: 86 | R122: 86 | S122: 0.02 | T122: 1.115505515 | U122: 3.528929011 | V122: 3.574702729 | W122: 13.11 | X122: 2.324319784 | AE122: 0.1163888889 | AF122: 2.883611111 | AG122: 1.115505515 | AH122: 4.117787425 | AI122: 0.9283113855 | AJ122: 3.116388889 | AK122: 1 | AL122: 2.883611111 | AM122: 12.18168861 | AN122: 5 | AO122: 7.078522038 | AW122: 2016 | AX122: 1 | AY122: 5 | BA122: 6.75 | BB122: 0.05012738874 | BC122: 4.310955432 | BD122: 0.055 | BE122: 0.09016393443 | BF122: 0.07521317658 | BG122: 0.08390071326 | BH122: 4.311771801 | BI122: 0.04949488355 | BK122: 0.9815295247 | BL122: 0.2437 | BM122: 0.19 | BN122: 0.3068687627 | BP122: 0.2872281323 | BQ122: 0.03343016318 | BS122: 0.9283113855 | BT122: 0 | BU122: 52.60540032 | BV122: 0 | BY122: 63.17784987 | BZ122: 63.17784987 | CA122: 0 | CD122: 87.63934426 | CE122: 91.75713169
A123: 2016-01-05T22:00:00 | B123: 118 | C123: -9.833334 | D123: 16.87 | E123: 30 | F123: 6.8 | G123: 7.7 | H123: =(G123-F123)*E123*seccdens(28,BA123,4)*seccspht(28,BA123,4)/3600/1000 -> 29.85642133 | I123: 0.001639344262 | K123: 1.639344262 | L123: 6 | M123: 37 | N123: 34 | O123: =(M123-N123)*L123*wrho((M123+N123)/2)*wcp((M123+N123)/2)/3600 -> 20.75961263 | P123: 0.07 | Q123: 19 | R123: 19 | S123: 0.01 | T123: 0.5577527574 | U123: 1.126259632 | V123: 1.159321444 | W123: 11.77 | X123: 0.6828824287 | AE123: 0.05819444444 | AF123: 2.941805556 | AG123: 0.5577527574 | AH123: 3.558893713 | AI123: 1.141782407 | AJ123: 3.058194444 | AK123: 1 | AL123: 2.941805556 | AM123: 10.62821759 | AN123: 5 | AO123: 7.078522038 | AW123: 2016 | AX123: 1 | AY123: 5 | BA123: 7.25 | BB123: 0.05270462767 | BC123: 1.001387926 | BD123: 0.055 | BE123: 0.09016393443 | BF123: 0.07521317658 | BG123: 0.04195035663 | BH123: 1.002266237 | BI123: 0.05124649287 | BK123: 0.9226618503 | BL123: 0.1687 | BM123: 0.19 | BN123: 0.2432936426 | BP123: 0.2872281323 | BQ123: 0.01671508159 | BS123: 1.141782407 | BT123: 0 | BU123: 29.85642133 | BV123: 0 | BY123: 2.906626088 | BZ123: 2.906626088 | CA123: 0 | CD123: 20.63934426 | CE123: 24.19823797
A124: 2016-01-05T23:00:00 | B124: 119 | C124: -9.833334 | D124: 22.73 | E124: 28 | F124: 6.9 | G124: 7.8 | H124: =(G124-F124)*E124*seccdens(28,BA124,4)*seccspht(28,BA124,4)/3600/1000 -> 27.86921261 | I124: 0.001639344262 | K124: 1.639344262 | L124: 6 | M124: 45 | N124: 33 | O124: =(M124-N124)*L124*wrho((M124+N124)/2)*wcp((M124+N124)/2)/3600 -> 82.94033369 | P124: 0.06 | Q124: 69 | R124: 69 | S124: 0 | T124: 0 | U124: 3.035635724 | V124: 3.035635724 | W124: 11.03 | X124: 2.043838863 | AE124: 0 | AF124: 3 | AG124: 0 | AH124: 3 | AI124: 0.9283113855 | AJ124: 3 | AK124: 1 | AL124: 3 | AM124: 10.10168861 | AN124: 5 | AO124: 7.078522038 | AW124: 2016 | AX124: 1 | AY124: 5 | BA124: 7.35 | BB124: 0.05017331074 | BC124: 3.461958441 | BD124: 0.055 | BE124: 0.09016393443 | BF124: 0.07521317658 | BG124: 0 | BH124: 3.461958441 | BI124: 0.05017331074 | BK124: 0.9767927593 | BL124: 0.2273 | BM124: 0.19 | BN124: 0.2934436399 | BP124: 0.2872281323 | BQ124: 0 | BS124: 0.9283113855 | BT124: 0 | BU124: 27.86921261 | BV124: 0 | BY124: 46.70234435 | BZ124: 46.70234435 | CA124: 0 | CD124: 70.63934426 | CE124: 73.63934426
A125: 2016-01-06 | B125: 120 | C125: -9.666667 | D125: 16.23 | E125: 29 | F125: 6.3 | G125: 7.9 | H125: =(G125-F125)*E125*seccdens(28,BA125,4)*seccspht(28,BA125,4)/3600/1000 -> 51.29992631 | I125: 0.001639344262 | K125: 1.639344262 | L125: 6 | M125: 41 | N125: 34 | O125: =(M125-N125)*L125*wrho((M125+N125)/2)*wcp((M125+N125)/2)/3600 -> 48.40645907 | P125: 0.06 | Q125: 46 | R125: 46 | S125: 0 | T125: 0 | U125: 2.834257548 | V125: 2.834257548 | W125: 10.52 | X125: 1.719626168 | AE125: 0 | AF125: 3 | AG125: 0 | AH125: 3 | AI125: 1.03136782 | AJ125: 3 | AK125: 1 | AL125: 3 | AM125: 9.48863218 | AN125: 6 | AO125: 7.009108231 | AW125: 2016 | AX125: 1 | AY125: 6 | BA125: 7.1 | BB125: 0.05050762723 | BC125: 2.323350852 | BD125: 0.055 | BE125: 0.09016393443 | BF125: 0.07515248454 | BG125: 0 | BH125: 2.323350852 | BI125: 0.05050762723 | BK125: 0.9655884377 | BL125: 0.1623 | BM125: 0.19 | BN125: 0.2449480011 | BP125: 0.2872281323 | BQ125: 0 | BS125: 1.03136782 | BT125: 0 | BU125: 51.29992631 | BV125: 0 | BY125: 30.09928792 | BZ125: 30.09928792 | CA125: 0 | CD125: 47.63934426 | CE125: 50.63934426
A126: 2016-01-06T01:00:00 | B126: 121 | C126: -9.833334 | D126: 19.83 | E126: 29 | F126: 6.4 | G126: 7.9 | H126: =(G126-F126)*E126*seccdens(28,BA126,4)*seccspht(28,BA126,4)/3600/1000 -> 48.09645738 | I126: 0.001639344262 | K126: 1.639344262 | L126: 6 | M126: 40 | N126: 33 | O126: =(M126-N126)*L126*wrho((M126+N126)/2)*wcp((M126+N126)/2)/3600 -> 48.42279389 | P126: 0.06 | Q126: 49 | R126: 49 | S126: 0 | T126: 0 | U126: 2.47100353 | V126: 2.47100353 | W126: 11.11 | X126: 1.583710407 | AE126: 0 | AF126: 3 | AG126: 0 | AH126: 3 | AI126: 1.03136782 | AJ126: 3 | AK126: 1 | AL126: 3 | AM126: 10.07863218 | AN126: 6 | AO126: 7.009108231 | AW126: 2016 | AX126: 1 | AY126: 6 | BA126: 7.15 | BB126: 0.05050762723 | BC126: 2.474873734 | BD126: 0.055 | BE126: 0.09016393443 | BF126: 0.07515248454 | BG126: 0 | BH126: 2.474873734 | BI126: 0.05050762723 | BK126: 0.9676270638 | BL126: 0.1983 | BM126: 0.19 | BN126: 0.2704133818 | BP126: 0.2872281323 | BQ126: 0 | BS126: 1.03136782 | BT126: 0 | BU126: 48.09645738 | BV126: 0 | BY126: 29.49928792 | BZ126: 29.49928792 | CA126: 0 | CD126: 50.63934426 | CE126: 53.63934426
A127: 2016-01-06T02:00:00 | B127: 122 | C127: -10.222223 | D127: 19.09 | E127: 29 | F127: 6.9 | G127: 7.9 | H127: =(G127-F127)*E127*seccdens(28,BA127,4)*seccspht(28,BA127,4)/3600/1000 -> 32.07356596 | I127: 0.001639344262 | K127: 1.639344262 | L127: 5 | M127: 39 | N127: 32 | O127: =(M127-N127)*L127*wrho((M127+N127)/2)*wcp((M127+N127)/2)/3600 -> 40.36591345 | P127: 0.06 | Q127: 43 | R127: 43 | S127: 0 | T127: 0 | U127: 2.252488214 | V127: 2.252488214 | W127: 10.88 | X127: 1.434768101 | AE127: 0 | AF127: 3 | AG127: 0 | AH127: 3 | AI127: 1.03136782 | AJ127: 3 | AK127: 1 | AL127: 3 | AM127: 9.84863218 | AN127: 6 | AO127: 7.009108231 | AW127: 2016 | AX127: 1 | AY127: 6 | BA127: 7.4 | BB127: 0.05050762723 | BC127: 2.171827971 | BD127: 0.055 | BE127: 0.09016393443 | BF127: 0.07515248454 | BG127: 0 | BH127: 2.171827971 | BI127: 0.05050762723 | BK127: 0.9632757988 | BL127: 0.1909 | BM127: 0.19 | BN127: 0.2644617355 | BP127: 0.2872281323 | BQ127: 0 | BS127: 1.03136782 | BT127: 0 | BU127: 32.07356596 | BV127: 0 | BY127: 24.23928792 | BZ127: 24.23928792 | CA127: 0 | CD127: 44.63934426 | CE127: 47.63934426
A128: 2016-01-06T03:00:00 | B128: 123 | C128: -10.88889 | D128: 19.99 | E128: 29 | F128: 6 | G128: 8 | H128: =(G128-F128)*E128*seccdens(28,BA128,4)*seccspht(28,BA128,4)/3600/1000 -> 64.11750646 | I128: 0.001639344262 | K128: 1.639344262 | L128: 6 | M128: 45 | N128: 34 | O128: =(M128-N128)*L128*wrho((M128+N128)/2)*wcp((M128+N128)/2)/3600 -> 76.01570284 | P128: 0.06 | Q128: 67 | R128: 67 | S128: 0 | T128: 0 | U128: 3.351675838 | V128: 3.351675838 | W128: 10.92 | X128: 2.167583306 | AE128: 0 | AF128: 3 | AG128: 0 | AH128: 3 | AI128: 1.03136782 | AJ128: 3 | AK128: 1 | AL128: 3 | AM128: 9.88863218 | AN128: 6 | AO128: 7.009108231 | AW128: 2016 | AX128: 1 | AY128: 6 | BA128: 7 | BB128: 0.05020618644 | BC128: 3.363814492 | BD128: 0.055 | BE128: 0.09016393443 | BF128: 0.07515248454 | BG128: 0 | BH128: 3.363814492 | BI128: 0.05020618644 | BK128: 0.9761165512 | BL128: 0.1999 | BM128: 0.19 | BN128: 0.2726833642 | BP128: 0.2872281323 | BQ128: 0 | BS128: 1.03136782 | BT128: 0 | BU128: 64.11750646 | BV128: 0 | BY128: 47.33928792 | BZ128: 47.33928792 | CA128: 0 | CD128: 68.63934426 | CE128: 71.63934426
A129: 2016-01-06T04:00:00 | B129: 124 | C129: -11.444445 | D129: 22.16 | E129: 28 | F129: 7.7 | G129: 7.6 | H129: =(G129-F129)*E129*seccdens(28,BA129,4)*seccspht(28,BA129,4)/3600/1000 -> -3.097653261 | I129: 0.001639344262 | K129: 1.639344262 | L129: 6 | M129: 44 | N129: 34 | O129: =(M129-N129)*L129*wrho((M129+N129)/2)*wcp((M129+N129)/2)/3600 -> 69.11694474 | P129: 0.07 | Q129: 38 | R129: 38 | S129: 0 | T129: 0 | U129: 1.714801444 | V129: 1.714801444 | W129: 9.93 | X129: 1.184169523 | AE129: 0 | AF129: 3 | AG129: 0 | AH129: 3 | AI129: 0.9283113855 | AJ129: 3 | AK129: 1 | AL129: 3 | AM129: 9.001688615 | AN129: 6 | AO129: 7.009108231 | AW129: 2016 | AX129: 1 | AY129: 6 | BA129: 7.65 | BB129: 0.05024937811 | BC129: 1.909476368 | BD129: 0.055 | BE129: 0.09016393443 | BF129: 0.07515248454 | BG129: 0 | BH129: 1.909476368 | BI129: 0.05024937811 | BK129: 0.958643507 | BL129: 0.2216 | BM129: 0.19 | BN129: 0.2868490286 | BP129: 0.2872281323 | BQ129: 0 | BS129: 0 | BT129: 0.9283113855 | BU129: 0 | BV129: 3.097653261 | BY129: 16.27234435 | BZ129: 16.27234435 | CA129: 0 | CD129: 39.63934426 | CE129: 42.63934426
A130: 2016-01-06T05:00:00 | B130: 125 | C130: -11.944445 | D130: 18.93 | E130: 29 | F130: 5.9 | G130: 7.9 | H130: =(G130-F130)*E130*seccdens(28,BA130,4)*seccspht(28,BA130,4)/3600/1000 -> 64.11010831 | I130: 0.001639344262 | K130: 1.639344262 | L130: 6 | M130: 44 | N130: 33 | O130: =(M130-N130)*L130*wrho((M130+N130)/2)*wcp((M130+N130)/2)/3600 -> 76.04154775 | P130: 0.06 | Q130: 69 | R130: 69 | S130: 0 | T130: 0 | U130: 3.645007924 | V130: 3.645007924 | W130: 11.06 | X130: 2.300766922 | AE130: 0 | AF130: 3 | AG130: 0 | AH130: 3 | AI130: 1.03136782 | AJ130: 3 | AK130: 1 | AL130: 3 | AM130: 10.02863218 | AN130: 6 | AO130: 7.009108231 | AW130: 2016 | AX130: 1 | AY130: 6 | BA130: 6.9 | BB130: 0.05020618644 | BC130: 3.464226864 | BD130: 0.055 | BE130: 0.09016393443 | BF130: 0.07515248454 | BG130: 0 | BH130: 3.464226864 | BI130: 0.05020618644 | BK130: 0.9767927593 | BL130: 0.1893 | BM130: 0.19 | BN130: 0.2651006786 | BP130: 0.2872281323 | BQ130: 0 | BS130: 1.03136782 | BT130: 0 | BU130: 64.11010831 | BV130: 0 | BY130: 50.39928792 | BZ130: 50.39928792 | CA130: 0 | CD130: 70.63934426 | CE130: 73.63934426
A131: 2016-01-06T06:00:00 | B131: 126 | C131: -11.833334 | D131: 19.18 | E131: 29 | F131: 6.4 | G131: 8 | H131: =(G131-F131)*E131*seccdens(28,BA131,4)*seccspht(28,BA131,4)/3600/1000 -> 51.30585008 | I131: 0.001639344262 | K131: 1.639344262 | L131: 6 | M131: 43 | N131: 33 | O131: =(M131-N131)*L131*wrho((M131+N131)/2)*wcp((M131+N131)/2)/3600 -> 69.1403921 | P131: 0.07 | Q131: 65 | R131: 65 | S131: 0 | T131: 0 | U131: 3.38894682 | V131: 3.38894682 | W131: 11.14 | X131: 2.143799472 | AE131: 0 | AF131: 3 | AG131: 0 | AH131: 3 | AI131: 1.03136782 | AJ131: 3 | AK131: 1 | AL131: 3 | AM131: 10.10863218 | AN131: 6 | AO131: 7.009108231 | AW131: 2016 | AX131: 1 | AY131: 6 | BA131: 7.2 | BB131: 0.05024937811 | BC131: 3.266209577 | BD131: 0.055 | BE131: 0.09016393443 | BF131: 0.07515248454 | BG131: 0 | BH131: 3.266209577 | BI131: 0.05024937811 | BK131: 0.975399754 | BL131: 0.1918 | BM131: 0.19 | BN131: 0.2667076095 | BP131: 0.2872281323 | BQ131: 0 | BS131: 1.03136782 | BT131: 0 | BU131: 51.30585008 | BV131: 0 | BY131: 46.14928792 | BZ131: 46.14928792 | CA131: 0 | CD131: 66.63934426 | CE131: 69.63934426
A132: 2016-01-06T07:00:00 | B132: 127 | C132: -11.944445 | D132: 24.92 | E132: 29 | F132: 5.3 | G132: 7.9 | H132: =(G132-F132)*E132*seccdens(28,BA132,4)*seccspht(28,BA132,4)/3600/1000 -> 83.31431343 | I132: 0.001639344262 | K132: 1.639344262 | L132: 6 | M132: 47 | N132: 32 | O132: =(M132-N132)*L132*wrho((M132+N132)/2)*wcp((M132+N132)/2)/3600 -> 103.6577766 | P132: 0.06 | Q132: 103 | R132: 103 | S132: 0.01 | T132: 0.558560657 | U132: 4.133226324 | V132: 4.155640476 | W132: 11.05 | X132: 2.879025873 | AE132: 0.05819444444 | AF132: 2.941805556 | AG132: 0.558560657 | AH132: 3.559787559 | AI132: 1.03136782 | AJ132: 3.058194444 | AK132: 1 | AL132: 2.941805556 | AM132: 10.01863218 | AN132: 6 | AO132: 7.009108231 | AW132: 2016 | AX132: 1 | AY132: 6 | BA132: 6.6 | BB132: 0.05011098793 | BC132: 5.161431757 | BD132: 0.055 | BE132: 0.09016393443 | BF132: 0.07515248454 | BG132: 0.04197722114 | BH132: 5.161602451 | BI132: 0.04984235411 | BK132: 0.9844165693 | BL132: 0.2492 | BM132: 0.19 | BN132: 0.3115835088 | BP132: 0.2872281323 | BQ132: 0.01671508159 | BS132: 1.03136782 | BT132: 0 | BU132: 83.31431343 | BV132: 0 | BY132: 78.96784857 | BZ132: 78.96784857 | CA132: 0 | CD132: 104.6393443 | CE132: 108.1991318
A133: 2016-01-06T08:01:00 | B133: 128 | C133: -11.944445 | D133: 26.28 | E133: 31 | F133: 4.8 | G133: 7.4 | H133: =(G133-F133)*E133*seccdens(28,BA133,4)*seccspht(28,BA133,4)/3600/1000 -> 89.00885882 | I133: 0.001639344262 | K133: 1.639344262 | L133: 7 | M133: 46 | N133: 32 | O133: =(M133-N133)*L133*wrho((M133+N133)/2)*wcp((M133+N133)/2)/3600 -> 112.8910097 | P133: 0.09 | Q133: 131 | R133: 131 | S133: 0 | T133: 0 | U133: 4.9847793 | V133: 4.9847793 | W133: 12.62 | X133: 3.367609254 | AE133: =MIN((60-55)/(55-AO133)*T133,D133) -> 0 | AF133: =MIN(3,D133)-AE133 -> 3 | AG133: 0 | AH133: 3 | AI133: 1.259808878 | AJ133: 3 | AK133: =MONTH(A133)+(YEAR(A133)-2016)*12 -> 1 | AL133: =IF(R133>0,AF133,0) -> 3 | AM133: 11.36019112 | AN133: 6 | AO133: 7.009108231 | AW133: 2016 | AX133: 1 | AY133: 6 | BA133: =(F133+G133)/2 -> 6.1 | BB133: =FractionalError_Bldg_Htg_provided(ABS(M133-N133),P133) -> 0.05012738874 | BC133: =BB133*R133 -> 6.566687925 | BD133: =HeuristicError_Bldg_Clg(I133/1000) -> 0.055 | BE133: =K133*BD133 -> 0.09016393443 | BF133: =FractionalErrorDHW(S133,AO133) -> 0.07515248454 | BG133: =BF133*T133 -> 0 | BH133: =SQRT(BG133^2+BC133^2) -> 6.566687925 | BI133: =IF((T133+R133)<>0,BH133/(T133+R133),0) -> 0.05012738874 | BK133: =IF((R133+T133+K133)>0,(R133+T133)/(R133+T133+K133),1) -> 0.9876405883 | BL133: =Error_EL007(D133) -> 0.2628 | BM133: =Error_EL011() -> 0.19 | BN133: =SQRT(BL133^2+(BK133*BM133)^2) -> 0.3229195023 | BP133: =SQRT((SQRT(2)/5)^2+0.05^2) -> 0.2872281323 | BQ133: =BP133*AE133 -> 0 | BS133: =IF(H133>0,AI133,0) -> 1.259808878 | BT133: =AI133-BS133 -> 0 | BU133: =IF(H133>0,H133,0) -> 89.00885882 | BV133: =IF(H133<0, -H133,0) -> 0 | BY133: 104.8208469 | BZ133: 104.8208469 | CA133: 0 | CD133: 132.6393443 | CE133: 135.6393443
A134: 2016-01-06T09:00:00 | B134: 129 | C134: -11.944445 | D134: 23.31 | E134: 29 | F134: 4.7 | G134: 7.5 | H134: =(G134-F134)*E134*seccdens(28,BA134,4)*seccspht(28,BA134,4)/3600/1000 -> 89.67145579 | I134: 0.001204819277 | K134: 1.204819277 | L134: 8 | M134: 41 | N134: 32 | O134: =(M134-N134)*L134*wrho((M134+N134)/2)*wcp((M134+N134)/2)/3600 -> 83.01050382 | P134: 0.1 | Q134: 78 | R134: =IF(Q134="",O134,Q134) -> 78 | S134: 0 | T134: =S134*1000*4.19*(55-AO134)/3600 -> 0 | U134: =R134/D134 -> 3.346203346 | V134: =(T134+R134)/D134 -> 3.346203346 | W134: 13.67 | X134: =(T134+R134)/(D134+W134) -> 2.109248242 | AE134: 0 | AF134: 3 | AG134: =T134 -> 0 | AH134: =T134*(60-8)/(55-8)+AF134 -> 3 | AI134: =0.001973*(E134/3600*1000)^3 -> 1.03136782 | AJ134: =3+1000*S134*4.19/3600*5 -> 3 | AK134: 1 | AL134: 3 | AM134: 12.63863218 | AN134: =daynum(MONTH(A134),DAY(A134)) -> 6 | AO134: =TapWaterTemperature(AN134, 10,5,60) -> 7.009108231 | AW134: =YEAR(A134) -> 2016 | AX134: =MONTH(A134) -> 1 | AY134: =ROUNDDOWN(A134,0)-42369 -> 6 | BA134: 6.1 | BB134: 0.05030769521 | BC134: 3.924000227 | BD134: 0.055 | BE134: 0.06626506024 | BF134: 0.07515248454 | BG134: 0 | BH134: 3.924000227 | BI134: 0.05030769521 | BK134: 0.984788561 | BL134: 0.2331 | BM134: 0.19 | BN134: 0.2989075061 | BP134: 0.2872281323 | BQ134: 0 | BS134: 1.03136782 | BT134: 0 | BU134: 89.67145579 | BV134: 0 | BY134: =(R134+T134)-(K134+(D134-AE134-AF134)+BS134+BT134) -> 55.4538129 | BZ134: =IF(BY134>0,BY134,0) -> 55.4538129 | CA134: =IF(BY134<0,-BY134,0) -> 0 | CD134: =K134+R134 -> 79.20481928 | CE134: =CD134+AH134 -> 82.20481928
A135: 2016-01-06T10:01:00 | B135: =B134+1 -> 130 | C135: -11.611112 | D135: 28.33 | E135: 30 | F135: 5.3 | G135: 7.4 | H135: =(G135-F135)*E135*seccdens(28,BA135,4)*seccspht(28,BA135,4)/3600/1000 -> 69.59270733 | I135: 0.001204819277 | K135: =IF(Y135="",I135*1000,Y135) -> 1.204819277 | L135: 8 | M135: 38 | N135: 34 | O135: =(M135-N135)*L135*wrho((M135+N135)/2)*wcp((M135+N135)/2)/3600 -> 36.89976996 | P135: 0.09 | Q135: 38 | R135: 38 | S135: 0 | T135: 0 | U135: 1.341334275 | V135: 1.341334275 | W135: 12.02 | X135: 0.9417596035 | AE135: 0 | AF135: 3 | AG135: 0 | AH135: 3 | AI135: 1.141782407 | AJ135: 3 | AK135: 1 | AL135: 3 | AM135: =IF(R135>0,W135-AI135,0) -> 10.87821759 | AN135: 6 | AO135: 7.009108231 | AW135: 2016 | AX135: 1 | AY135: 6 | BA135: 6.35 | BB135: 0.05153882032 | BC135: 1.958475172 | BD135: 0.055 | BE135: 0.06626506024 | BF135: 0.07515248454 | BG135: 0 | BH135: 1.958475172 | BI135: 0.05153882032 | BK135: 0.9692685925 | BL135: 0.2833 | BM135: 0.19 | BN135: 0.3378966942 | BP135: 0.2872281323 | BQ135: 0 | BS135: 1.141782407 | BT135: 0 | BU135: 69.59270733 | BV135: 0 | BY135: 10.32339832 | BZ135: 10.32339832 | CA135: 0 | CD135: 39.20481928 | CE135: 42.20481928
A136: 2016-01-06T11:01:00 | B136: 131 | C136: -10.944445 | D136: 28.11 | E136: 29 | F136: 5.8 | G136: 7.3 | H136: =(G136-F136)*E136*seccdens(28,BA136,4)*seccspht(28,BA136,4)/3600/1000 -> 48.06318032 | I136: 0.001204819277 | K136: 1.204819277 | L136: 8 | M136: 38 | N136: 34 | O136: =(M136-N136)*L136*wrho((M136+N136)/2)*wcp((M136+N136)/2)/3600 -> 36.89976996 | P136: 0.1 | Q136: 29 | R136: 29 | S136: 0 | T136: 0 | U136: 1.03166133 | V136: 1.03166133 | W136: 11.79 | X136: 0.7268170426 | AE136: 0 | AF136: 3 | AG136: 0 | AH136: 3 | AI136: 1.03136782 | AJ136: 3 | AK136: 1 | AL136: 3 | AM136: 10.75863218 | AN136: 6 | AO136: 7.009108231 | AW136: 2016 | AX136: 1 | AY136: 6 | BA136: 6.55 | BB136: 0.05153882032 | BC136: 1.494625789 | BD136: 0.055 | BE136: 0.06626506024 | BF136: 0.07515248454 | BG136: 0 | BH136: 1.494625789 | BI136: 0.05153882032 | BK136: 0.9601116873 | BL136: 0.2811 | BM136: 0.19 | BN136: 0.3351040312 | BP136: 0.2872281323 | BQ136: 0 | BS136: 1.03136782 | BT136: 0 | BU136: 48.06318032 | BV136: 0 | BY136: 1.653812903 | BZ136: 1.653812903 | CA136: 0 | CD136: 30.20481928 | CE136: 33.20481928
A137: 2016-01-06T12:01:00 | B137: 132 | C137: -10.277779 | D137: 28.84 | E137: 30 | F137: 6.5 | G137: 7 | H137: =(G137-F137)*E137*seccdens(28,BA137,4)*seccspht(28,BA137,4)/3600/1000 -> 16.57733203 | I137: 0.001204819277 | K137: 1.204819277 | L137: 7 | M137: 44 | N137: 33 | O137: =(M137-N137)*L137*wrho((M137+N137)/2)*wcp((M137+N137)/2)/3600 -> 88.71513904 | P137: 0.09 | Q137: 61 | R137: 61 | S137: 0 | T137: 0 | U137: 2.115117892 | V137: 2.115117892 | W137: 11.26 | X137: 1.521197007 | AE137: 0 | AF137: 3 | AG137: 0 | AH137: 3 | AI137: 1.141782407 | AJ137: 3 | AK137: 1 | AL137: 3 | AM137: 10.11821759 | AN137: 6 | AO137: 7.009108231 | AW137: 2016 | AX137: 1 | AY137: 6 | BA137: 6.75 | BB137: 0.05020618644 | BC137: 3.062577373 | BD137: 0.055 | BE137: 0.06626506024 | BF137: 0.07515248454 | BG137: 0 | BH137: 3.062577373 | BI137: 0.05020618644 | BK137: 0.9806314158 | BL137: 0.2884 | BM137: 0.19 | BN137: 0.343350682 | BP137: 0.2872281323 | BQ137: 0 | BS137: 1.141782407 | BT137: 0 | BU137: 16.57733203 | BV137: 0 | BY137: 32.81339832 | BZ137: 32.81339832 | CA137: 0 | CD137: 62.20481928 | CE137: 65.20481928
A138: 2016-01-06T13:01:00 | B138: 133 | C138: -9.944445 | D138: 24.29 | E138: 29 | F138: 6 | G138: 7.4 | H138: =(G138-F138)*E138*seccdens(28,BA138,4)*seccspht(28,BA138,4)/3600/1000 -> 44.86672525 | I138: 0.001204819277 | K138: 1.204819277 | L138: 7 | M138: 44 | N138: 30 | O138: =(M138-N138)*L138*wrho((M138+N138)/2)*wcp((M138+N138)/2)/3600 -> 112.9674736 | P138: 0.08 | Q138: 121 | R138: 121 | S138: 0 | T138: 0 | U138: 4.981473858 | V138: 4.981473858 | W138: 12.35 | X138: 3.302401747 | AE138: 0 | AF138: 3 | AG138: 0 | AH138: 3 | AI138: 1.03136782 | AJ138: 3 | AK138: 1 | AL138: 3 | AM138: 11.31863218 | AN138: 6 | AO138: 7.009108231 | AW138: 2016 | AX138: 1 | AY138: 6 | BA138: 6.7 | BB138: 0.05012738874 | BC138: 6.065414038 | BD138: 0.055 | BE138: 0.06626506024 | BF138: 0.07515248454 | BG138: 0 | BH138: 6.065414038 | BI138: 0.05012738874 | BK138: 0.9901409839 | BL138: 0.2429 | BM138: 0.19 | BN138: 0.3072329702 | BP138: 0.2872281323 | BQ138: 0 | BS138: 1.03136782 | BT138: 0 | BU138: 44.86672525 | BV138: 0 | BY138: 97.4738129 | BZ138: 97.4738129 | CA138: 0 | CD138: 122.2048193 | CE138: 125.2048193
A139: 2016-01-06T14:01:00 | B139: 134 | C139: -9.833334 | D139: 22.93 | E139: 29 | F139: 5.7 | G139: 7.6 | H139: =(G139-F139)*E139*seccdens(28,BA139,4)*seccspht(28,BA139,4)/3600/1000 -> 60.88704583 | I139: 0.001204819277 | K139: 1.204819277 | L139: 6 | M139: 47 | N139: 30 | O139: =(M139-N139)*L139*wrho((M139+N139)/2)*wcp((M139+N139)/2)/3600 -> 117.5187556 | P139: 0.07 | Q139: 150 | R139: 150 | S139: 0 | T139: 0 | U139: 6.541648495 | V139: 6.541648495 | W139: 12.01 | X139: 4.293073841 | AE139: 0 | AF139: 3 | AG139: 0 | AH139: 3 | AI139: 1.03136782 | AJ139: 3 | AK139: 1 | AL139: 3 | AM139: 10.97863218 | AN139: 6 | AO139: 7.009108231 | AW139: 2016 | AX139: 1 | AY139: 6 | BA139: 6.65 | BB139: 0.05008643049 | BC139: 7.512964573 | BD139: 0.055 | BE139: 0.06626506024 | BF139: 0.07515248454 | BG139: 0 | BH139: 7.512964573 | BI139: 0.05008643049 | BK139: 0.9920318725 | BL139: 0.2293 | BM139: 0.19 | BN139: 0.2968256782 | BP139: 0.2872281323 | BQ139: 0 | BS139: 1.03136782 | BT139: 0 | BU139: 60.88704583 | BV139: 0 | BY139: 127.8338129 | BZ139: 127.8338129 | CA139: 0 | CD139: 151.2048193 | CE139: 154.2048193
A140: 2016-01-06T15:01:00 | B140: 135 | C140: -10.500001 | D140: 25.02 | E140: 29 | F140: 4.8 | G140: 7.5 | H140: =(G140-F140)*E140*seccdens(28,BA140,4)*seccspht(28,BA140,4)/3600/1000 -> 86.47387955 | I140: 0.001204819277 | K140: 1.204819277 | L140: 7 | M140: 45 | N140: 32 | O140: =(M140-N140)*L140*wrho((M140+N140)/2)*wcp((M140+N140)/2)/3600 -> 104.8451643 | P140: 0.08 | Q140: 109 | R140: 109 | S140: 0 | T140: 0 | U140: 4.356514788 | V140: 4.356514788 | W140: 11.9 | X140: 2.952329361 | AE140: 0 | AF140: 3 | AG140: 0 | AH140: 3 | AI140: 1.03136782 | AJ140: 3 | AK140: 1 | AL140: 3 | AM140: 10.86863218 | AN140: 6 | AO140: 7.009108231 | AW140: 2016 | AX140: 1 | AY140: 6 | BA140: 6.15 | BB140: 0.05014771081 | BC140: 5.466100478 | BD140: 0.055 | BE140: 0.06626506024 | BF140: 0.07515248454 | BG140: 0 | BH140: 5.466100478 | BI140: 0.05014771081 | BK140: 0.9890674538 | BL140: 0.2502 | BM140: 0.19 | BN140: 0.3129137658 | BP140: 0.2872281323 | BQ140: 0 | BS140: 1.03136782 | BT140: 0 | BU140: 86.47387955 | BV140: 0 | BY140: 84.7438129 | BZ140: 84.7438129 | CA140: 0 | CD140: 110.2048193 | CE140: 113.2048193
A141: 2016-01-06T16:01:00 | B141: 136 | C141: -11.166668 | D141: 24.44 | E141: 29 | F141: 4.5 | G141: 7.5 | H141: =(G141-F141)*E141*seccdens(28,BA141,4)*seccspht(28,BA141,4)/3600/1000 -> 96.06550611 | I141: 0.001204819277 | K141: 1.204819277 | L141: 7 | M141: 44 | N141: 31 | O141: =(M141-N141)*L141*wrho((M141+N141)/2)*wcp((M141+N141)/2)/3600 -> 104.8806613 | P141: 0.09 | Q141: 109 | R141: 109 | S141: 0 | T141: 0 | U141: 4.4599018 | V141: 4.4599018 | W141: 12.78 | X141: 2.928533047 | AE141: 0 | AF141: 3 | AG141: 0 | AH141: 3 | AI141: 1.03136782 | AJ141: 3 | AK141: 1 | AL141: 3 | AM141: 11.74863218 | AN141: 6 | AO141: 7.009108231 | AW141: 2016 | AX141: 1 | AY141: 6 | BA141: 6 | BB141: 0.05014771081 | BC141: 5.466100478 | BD141: 0.055 | BE141: 0.06626506024 | BF141: 0.07515248454 | BG141: 0 | BH141: 5.466100478 | BI141: 0.05014771081 | BK141: 0.9890674538 | BL141: 0.2444 | BM141: 0.19 | BN141: 0.3082958723 | BP141: 0.2872281323 | BQ141: 0 | BS141: 1.03136782 | BT141: 0 | BU141: 96.06550611 | BV141: 0 | BY141: 85.3238129 | BZ141: 85.3238129 | CA141: 0 | CD141: 110.2048193 | CE141: 113.2048193
A142: 2016-01-06T17:01:00 | B142: 137 | C142: -11.611112 | D142: 23.45 | E142: 28 | F142: 5.5 | G142: 7.5 | H142: =(G142-F142)*E142*seccdens(28,BA142,4)*seccspht(28,BA142,4)/3600/1000 -> 61.87087418 | I142: 0.001204819277 | K142: 1.204819277 | L142: 7 | M142: 43 | N142: 33 | O142: =(M142-N142)*L142*wrho((M142+N142)/2)*wcp((M142+N142)/2)/3600 -> 80.66379078 | P142: 0.09 | Q142: 83 | R142: 83 | S142: 0 | T142: 0 | U142: 3.539445629 | V142: 3.539445629 | W142: 13.99 | X142: 2.216880342 | AE142: 0 | AF142: 3 | AG142: 0 | AH142: 3 | AI142: 0.9283113855 | AJ142: 3 | AK142: 1 | AL142: 3 | AM142: 13.06168861 | AN142: 6 | AO142: 7.009108231 | AW142: 2016 | AX142: 1 | AY142: 6 | BA142: 6.5 | BB142: 0.05024937811 | BC142: 4.170698383 | BD142: 0.055 | BE142: 0.06626506024 | BF142: 0.07515248454 | BG142: 0 | BH142: 4.170698383 | BI142: 0.05024937811 | BK142: 0.9856918014 | BL142: 0.2345 | BM142: 0.19 | BN142: 0.3001076284 | BP142: 0.2872281323 | BQ142: 0 | BS142: 0.9283113855 | BT142: 0 | BU142: 61.87087418 | BV142: 0 | BY142: 60.41686934 | BZ142: 60.41686934 | CA142: 0 | CD142: 84.20481928 | CE142: 87.20481928
A143: 2016-01-06T18:00:00 | B143: 138 | C143: -12.277779 | D143: 26.47 | E143: 29 | F143: 5.7 | G143: 7.2 | H143: =(G143-F143)*E143*seccdens(28,BA143,4)*seccspht(28,BA143,4)/3600/1000 -> 48.05764267 | I143: 0.001204819277 | K143: 1.204819277 | L143: 7 | M143: 42 | N143: 32 | O143: =(M143-N143)*L143*wrho((M143+N143)/2)*wcp((M143+N143)/2)/3600 -> 80.6910526 | P143: 0.09 | Q143: 77 | R143: 77 | S143: 0 | T143: 0 | U143: 2.908953532 | V143: 2.908953532 | W143: 14.02 | X143: 1.901704124 | AE143: 0 | AF143: 3 | AG143: 0 | AH143: 3 | AI143: 1.03136782 | AJ143: 3 | AK143: 1 | AL143: 3 | AM143: 12.98863218 | AN143: 6 | AO143: 7.009108231 | AW143: 2016 | AX143: 1 | AY143: 6 | BA143: 6.45 | BB143: 0.05024937811 | BC143: 3.869202114 | BD143: 0.055 | BE143: 0.06626506024 | BF143: 0.07515248454 | BG143: 0 | BH143: 3.869202114 | BI143: 0.05024937811 | BK143: 0.9845940533 | BL143: 0.2647 | BM143: 0.19 | BN143: 0.3241332268 | BP143: 0.2872281323 | BQ143: 0 | BS143: 1.03136782 | BT143: 0 | BU143: 48.05764267 | BV143: 0 | BY143: 51.2938129 | BZ143: 51.2938129 | CA143: 0 | CD143: 78.20481928 | CE143: 81.20481928
A144: 2016-01-06T19:01:00 | B144: 139 | C144: -12.777779 | D144: 24.18 | E144: 29 | F144: 6.2 | G144: 7.4 | H144: =(G144-F144)*E144*seccdens(28,BA144,4)*seccspht(28,BA144,4)/3600/1000 -> 38.46162805 | I144: 0.001204819277 | K144: 1.204819277 | L144: 8 | M144: 38 | N144: 34 | O144: =(M144-N144)*L144*wrho((M144+N144)/2)*wcp((M144+N144)/2)/3600 -> 36.89976996 | P144: 0.08 | Q144: 30 | R144: 30 | S144: 0 | T144: 0 | U144: 1.240694789 | V144: 1.240694789 | W144: 13.23 | X144: 0.8019246191 | AE144: 0 | AF144: 3 | AG144: 0 | AH144: 3 | AI144: 1.03136782 | AJ144: 3 | AK144: 1 | AL144: 3 | AM144: 12.19863218 | AN144: 6 | AO144: 7.009108231 | AW144: 2016 | AX144: 1 | AY144: 6 | BA144: 6.8 | BB144: 0.05153882032 | BC144: 1.54616461 | BD144: 0.055 | BE144: 0.06626506024 | BF144: 0.07515248454 | BG144: 0 | BH144: 1.54616461 | BI144: 0.05153882032 | BK144: 0.9613899614 | BL144: 0.2418 | BM144: 0.19 | BN144: 0.3030402791 | BP144: 0.2872281323 | BQ144: 0 | BS144: 1.03136782 | BT144: 0 | BU144: 38.46162805 | BV144: 0 | BY144: 6.583812903 | BZ144: 6.583812903 | CA144: 0 | CD144: 31.20481928 | CE144: 34.20481928
A145: 2016-01-06T20:00:00 | B145: 140 | C145: -13.000001 | D145: 32.72 | E145: 31 | F145: 6.5 | G145: 7 | H145: =(G145-F145)*E145*seccdens(28,BA145,4)*seccspht(28,BA145,4)/3600/1000 -> 17.12990977 | I145: 0.001204819277 | K145: 1.204819277 | L145: 7 | M145: 48 | N145: 30 | O145: =(M145-N145)*L145*wrho((M145+N145)/2)*wcp((M145+N145)/2)/3600 -> 145.145584 | P145: 0.1 | Q145: 157 | R145: 157 | S145: 0 | T145: 0 | U145: 4.798288509 | V145: 4.798288509 | W145: 11.49 | X145: 3.551232753 | AE145: 0 | AF145: 3 | AG145: 0 | AH145: 3 | AI145: 1.259808878 | AJ145: 3 | AK145: 1 | AL145: 3 | AM145: 10.23019112 | AN145: 6 | AO145: 7.009108231 | AW145: 2016 | AX145: 1 | AY145: 6 | BA145: 6.75 | BB145: 0.05007710105 | BC145: 7.862104865 | BD145: 0.055 | BE145: 0.06626506024 | BF145: 0.07515248454 | BG145: 0 | BH145: 7.862104865 | BI145: 0.05007710105 | BK145: 0.9923844338 | BL145: 0.3272 | BM145: 0.19 | BN145: 0.3776401592 | BP145: 0.2872281323 | BQ145: 0 | BS145: 1.259808878 | BT145: 0 | BU145: 17.12990977 | BV145: 0 | BY145: 124.8153718 | BZ145: 124.8153718 | CA145: 0 | CD145: 158.2048193 | CE145: 161.2048193
A146: 2016-01-06T21:01:00 | B146: 141 | C146: -13.111112 | D146: 25.71 | E146: 29 | F146: 5.4 | G146: 7.2 | H146: =(G146-F146)*E146*seccdens(28,BA146,4)*seccspht(28,BA146,4)/3600/1000 -> 57.65920887 | I146: 0.001204819277 | K146: 1.204819277 | L146: 8 | M146: 42 | N146: 35 | O146: =(M146-N146)*L146*wrho((M146+N146)/2)*wcp((M146+N146)/2)/3600 -> 64.52010112 | P146: 0.09 | Q146: 69 | R146: 69 | S146: 0 | T146: 0 | U146: 2.68378063 | V146: 2.68378063 | W146: 12.79 | X146: 1.792207792 | AE146: 0 | AF146: 3 | AG146: 0 | AH146: 3 | AI146: 1.03136782 | AJ146: 3 | AK146: 1 | AL146: 3 | AM146: 11.75863218 | AN146: 6 | AO146: 7.009108231 | AW146: 2016 | AX146: 1 | AY146: 6 | BA146: 6.3 | BB146: 0.05050762723 | BC146: 3.485026279 | BD146: 0.055 | BE146: 0.06626506024 | BF146: 0.07515248454 | BG146: 0 | BH146: 3.485026279 | BI146: 0.05050762723 | BK146: 0.9828385104 | BL146: 0.2571 | BM146: 0.19 | BN146: 0.3177608889 | BP146: 0.2872281323 | BQ146: 0 | BS146: 1.03136782 | BT146: 0 | BU146: 57.65920887 | BV146: 0 | BY146: 44.0538129 | BZ146: 44.0538129 | CA146: 0 | CD146: 70.20481928 | CE146: 73.20481928
A147: 2016-01-06T22:01:00 | B147: 142 | C147: -13.777779 | D147: 19.81 | E147: 28 | F147: 6.5 | G147: 7.5 | H147: =(G147-F147)*E147*seccdens(28,BA147,4)*seccspht(28,BA147,4)/3600/1000 -> 30.95327898 | I147: 0.001204819277 | K147: 1.204819277 | L147: 6 | M147: 40 | N147: 32 | O147: =(M147-N147)*L147*wrho((M147+N147)/2)*wcp((M147+N147)/2)/3600 -> 55.34965494 | P147: 0.07 | Q147: 57 | R147: 57 | S147: 0 | T147: 0 | U147: 2.877334679 | V147: 2.877334679 | W147: 11.55 | X147: 1.817602041 | AE147: 0 | AF147: 3 | AG147: 0 | AH147: 3 | AI147: 0.9283113855 | AJ147: 3 | AK147: 1 | AL147: 3 | AM147: 10.62168861 | AN147: 6 | AO147: 7.009108231 | AW147: 2016 | AX147: 1 | AY147: 6 | BA147: 7 | BB147: 0.05038911093 | BC147: 2.872179323 | BD147: 0.055 | BE147: 0.06626506024 | BF147: 0.07515248454 | BG147: 0 | BH147: 2.872179323 | BI147: 0.05038911093 | BK147: 0.9793003519 | BL147: 0.1981 | BM147: 0.19 | BN147: 0.2717803587 | BP147: 0.2872281323 | BQ147: 0 | BS147: 0.9283113855 | BT147: 0 | BU147: 30.95327898 | BV147: 0 | BY147: 38.05686934 | BZ147: 38.05686934 | CA147: 0 | CD147: 58.20481928 | CE147: 61.20481928
A148: 2016-01-06T23:01:00 | B148: 143 | C148: -13.777779 | D148: 18.97 | E148: 29 | F148: 5.8 | G148: 7.8 | H148: =(G148-F148)*E148*seccdens(28,BA148,4)*seccspht(28,BA148,4)/3600/1000 -> 64.10271342 | I148: 0.001204819277 | K148: 1.204819277 | L148: 5 | M148: 41 | N148: 32 | O148: =(M148-N148)*L148*wrho((M148+N148)/2)*wcp((M148+N148)/2)/3600 -> 51.88156488 | P148: 0.06 | Q148: 67 | R148: 67 | S148: 0 | T148: 0 | U148: 3.531892462 | V148: 3.531892462 | W148: 11.19 | X148: 2.221485411 | AE148: 0 | AF148: 3 | AG148: 0 | AH148: 3 | AI148: 1.03136782 | AJ148: 3 | AK148: 1 | AL148: 3 | AM148: 10.15863218 | AN148: 6 | AO148: 7.009108231 | AW148: 2016 | AX148: 1 | AY148: 6 | BA148: 6.8 | BB148: 0.05030769521 | BC148: 3.370615579 | BD148: 0.055 | BE148: 0.06626506024 | BF148: 0.07515248454 | BG148: 0 | BH148: 3.370615579 | BI148: 0.05030769521 | BK148: 0.9823352765 | BL148: 0.1897 | BM148: 0.19 | BN148: 0.2661239593 | BP148: 0.2872281323 | BQ148: 0 | BS148: 1.03136782 | BT148: 0 | BU148: 64.10271342 | BV148: 0 | BY148: 48.7938129 | BZ148: 48.7938129 | CA148: 0 | CD148: 68.20481928 | CE148: 71.20481928
A149: 2016-01-07T00:01:00 | B149: 144 | C149: -14.166668 | D149: 20.62 | E149: 29 | F149: 6.1 | G149: 7.7 | H149: =(G149-F149)*E149*seccdens(28,BA149,4)*seccspht(28,BA149,4)/3600/1000 -> 51.28808665 | I149: 0.001204819277 | K149: 1.204819277 | L149: 6 | M149: 42 | N149: 33 | O149: =(M149-N149)*L149*wrho((M149+N149)/2)*wcp((M149+N149)/2)/3600 -> 62.23687595 | P149: 0.07 | Q149: 69 | R149: 69 | S149: 0 | T149: 0 | U149: 3.346265761 | V149: 3.346265761 | W149: 10.29 | X149: 2.232287286 | AE149: 0 | AF149: 3 | AG149: 0 | AH149: 3 | AI149: 1.03136782 | AJ149: 3 | AK149: 1 | AL149: 3 | AM149: 9.25863218 | AN149: 7 | AO149: 6.940580687 | AW149: 2016 | AX149: 1 | AY149: 7 | BA149: 6.9 | BB149: 0.05030769521 | BC149: 3.47123097 | BD149: 0.055 | BE149: 0.06626506024 | BF149: 0.07509277737 | BG149: 0 | BH149: 3.47123097 | BI149: 0.05030769521 | BK149: 0.9828385104 | BL149: 0.2062 | BM149: 0.19 | BN149: 0.2781906046 | BP149: 0.2872281323 | BQ149: 0 | BS149: 1.03136782 | BT149: 0 | BU149: 51.28808665 | BV149: 0 | BY149: 49.1438129 | BZ149: 49.1438129 | CA149: 0 | CD149: 70.20481928 | CE149: 73.20481928
A150: 2016-01-07T01:01:00 | B150: 145 | C150: -13.777779 | D150: 17.7 | E150: 29 | F150: 6.8 | G150: 7.8 | H150: =(G150-F150)*E150*seccdens(28,BA150,4)*seccspht(28,BA150,4)/3600/1000 -> 32.0698603 | I150: 0.001204819277 | K150: 1.204819277 | L150: 5 | M150: 37 | N150: 33 | O150: =(M150-N150)*L150*wrho((M150+N150)/2)*wcp((M150+N150)/2)/3600 -> 23.07011437 | P150: 0.06 | Q150: 34 | R150: 34 | S150: 0 | T150: 0 | U150: 1.920903955 | V150: 1.920903955 | W150: 11.03 | X150: 1.183431953 | AE150: 0 | AF150: 3 | AG150: 0 | AH150: 3 | AI150: 1.03136782 | AJ150: 3 | AK150: 1 | AL150: 3 | AM150: 9.99863218 | AN150: 7 | AO150: 6.940580687 | AW150: 2016 | AX150: 1 | AY150: 7 | BA150: 7.3 | BB150: 0.05153882032 | BC150: 1.752319891 | BD150: 0.055 | BE150: 0.06626506024 | BF150: 0.07509277737 | BG150: 0 | BH150: 1.752319891 | BI150: 0.05153882032 | BK150: 0.9657768652 | BL150: 0.177 | BM150: 0.19 | BN150: 0.2549517029 | BP150: 0.2872281323 | BQ150: 0 | BS150: 1.03136782 | BT150: 0 | BU150: 32.0698603 | BV150: 0 | BY150: 17.0638129 | BZ150: 17.0638129 | CA150: 0 | CD150: 35.20481928 | CE150: 38.20481928
A151: 2016-01-07T02:01:00 | B151: 146 | C151: -14.38889 | D151: 22.98 | E151: 29 | F151: 5 | G151: 7.9 | H151: =(G151-F151)*E151*seccdens(28,BA151,4)*seccspht(28,BA151,4)/3600/1000 -> 92.9114425 | I151: 0.001204819277 | K151: 1.204819277 | L151: 6 | M151: 43 | N151: 31 | O151: =(M151-N151)*L151*wrho((M151+N151)/2)*wcp((M151+N151)/2)/3600 -> 82.99651125 | P151: 0.06 | Q151: 87 | R151: 87 | S151: 0 | T151: 0 | U151: 3.785900783 | V151: 3.785900783 | W151: 10.91 | X151: 2.567128947 | AE151: 0 | AF151: 3 | AG151: 0 | AH151: 3 | AI151: 1.03136782 | AJ151: 3 | AK151: 1 | AL151: 3 | AM151: 9.87863218 | AN151: 7 | AO151: 6.940580687 | AW151: 2016 | AX151: 1 | AY151: 7 | BA151: 6.45 | BB151: 0.05017331074 | BC151: 4.365078035 | BD151: 0.055 | BE151: 0.06626506024 | BF151: 0.07509277737 | BG151: 0 | BH151: 4.365078035 | BI151: 0.05017331074 | BK151: 0.9863406638 | BL151: 0.2298 | BM151: 0.19 | BN151: 0.2965275221 | BP151: 0.2872281323 | BQ151: 0 | BS151: 1.03136782 | BT151: 0 | BU151: 92.9114425 | BV151: 0 | BY151: 64.7838129 | BZ151: 64.7838129 | CA151: 0 | CD151: 88.20481928 | CE151: 91.20481928
A152: 2016-01-07T03:01:00 | B152: 147 | C152: -14.166668 | D152: 22.01 | E152: 28 | F152: 6.1 | G152: 7.7 | H152: =(G152-F152)*E152*seccdens(28,BA152,4)*seccspht(28,BA152,4)/3600/1000 -> 49.51953193 | I152: 0.001204819277 | K152: 1.204819277 | L152: 7 | M152: 42 | N152: 32 | O152: =(M152-N152)*L152*wrho((M152+N152)/2)*wcp((M152+N152)/2)/3600 -> 80.6910526 | P152: 0.08 | Q152: 74 | R152: 74 | S152: 0 | T152: 0 | U152: 3.362108133 | V152: 3.362108133 | W152: 10.91 | X152: 2.247873633 | AE152: 0 | AF152: 3 | AG152: 0 | AH152: 3 | AI152: 0.9283113855 | AJ152: 3 | AK152: 1 | AL152: 3 | AM152: 9.981688615 | AN152: 7 | AO152: 6.940580687 | AW152: 2016 | AX152: 1 | AY152: 7 | BA152: 6.9 | BB152: 0.05024937811 | BC152: 3.71845398 | BD152: 0.055 | BE152: 0.06626506024 | BF152: 0.07509277737 | BG152: 0 | BH152: 3.71845398 | BI152: 0.05024937811 | BK152: 0.9839794938 | BL152: 0.2201 | BM152: 0.19 | BN152: 0.2887846858 | BP152: 0.2872281323 | BQ152: 0 | BS152: 0.9283113855 | BT152: 0 | BU152: 49.51953193 | BV152: 0 | BY152: 52.85686934 | BZ152: 52.85686934 | CA152: 0 | CD152: 75.20481928 | CE152: 78.20481928
A153: 2016-01-07T04:01:00 | B153: 148 | C153: -13.111112 | D153: 20.11 | E153: 29 | F153: 6.2 | G153: 7.7 | H153: =(G153-F153)*E153*seccdens(28,BA153,4)*seccspht(28,BA153,4)/3600/1000 -> 48.08535523 | I153: 0.001204819277 | K153: 1.204819277 | L153: 5 | M153: 42 | N153: 33 | O153: =(M153-N153)*L153*wrho((M153+N153)/2)*wcp((M153+N153)/2)/3600 -> 51.86406329 | P153: 0.06 | Q153: 67 | R153: 67 | S153: 0 | T153: 0 | U153: 3.331675783 | V153: 3.331675783 | W153: 9.93 | X153: 2.230359521 | AE153: 0 | AF153: 3 | AG153: 0 | AH153: 3 | AI153: 1.03136782 | AJ153: 3 | AK153: 1 | AL153: 3 | AM153: 8.89863218 | AN153: 7 | AO153: 6.940580687 | AW153: 2016 | AX153: 1 | AY153: 7 | BA153: 6.95 | BB153: 0.05030769521 | BC153: 3.370615579 | BD153: 0.055 | BE153: 0.06626506024 | BF153: 0.07509277737 | BG153: 0 | BH153: 3.370615579 | BI153: 0.05030769521 | BK153: 0.9823352765 | BL153: 0.2011 | BM153: 0.19 | BN153: 0.274366692 | BP153: 0.2872281323 | BQ153: 0 | BS153: 1.03136782 | BT153: 0 | BU153: 48.08535523 | BV153: 0 | BY153: 47.6538129 | BZ153: 47.6538129 | CA153: 0 | CD153: 68.20481928 | CE153: 71.20481928
A154: 2016-01-07T05:01:00 | B154: 149 | C154: -13.000001 | D154: 20.42 | E154: 29 | F154: 7.1 | G154: 7.7 | H154: =(G154-F154)*E154*seccdens(28,BA154,4)*seccspht(28,BA154,4)/3600/1000 -> 19.24413958 | I154: 0.001204819277 | K154: 1.204819277 | L154: 6 | M154: 45 | N154: 32 | O154: =(M154-N154)*L154*wrho((M154+N154)/2)*wcp((M154+N154)/2)/3600 -> 89.8672837 | P154: 0.07 | Q154: 68 | R154: 68 | S154: 0 | T154: 0 | U154: 3.33006856 | V154: 3.33006856 | W154: 11 | X154: 2.164226607 | AE154: 0 | AF154: 3 | AG154: 0 | AH154: 3 | AI154: 1.03136782 | AJ154: 3 | AK154: 1 | AL154: 3 | AM154: 9.96863218 | AN154: 7 | AO154: 6.940580687 | AW154: 2016 | AX154: 1 | AY154: 7 | BA154: 7.4 | BB154: 0.05014771081 | BC154: 3.410044335 | BD154: 0.055 | BE154: 0.06626506024 | BF154: 0.07509277737 | BG154: 0 | BH154: 3.410044335 | BI154: 0.05014771081 | BK154: 0.9825905292 | BL154: 0.2042 | BM154: 0.19 | BN154: 0.2766796302 | BP154: 0.2872281323 | BQ154: 0 | BS154: 1.03136782 | BT154: 0 | BU154: 19.24413958 | BV154: 0 | BY154: 48.3438129 | BZ154: 48.3438129 | CA154: 0 | CD154: 69.20481928 | CE154: 72.20481928
A155: 2016-01-07T06:01:00 | B155: 150 | C155: -12.88889 | D155: 22.05 | E155: 29 | F155: 6 | G155: 7.6 | H155: =(G155-F155)*E155*seccdens(28,BA155,4)*seccspht(28,BA155,4)/3600/1000 -> 51.28217074 | I155: 0.001204819277 | K155: 1.204819277 | L155: 6 | M155: 42 | N155: 33 | O155: =(M155-N155)*L155*wrho((M155+N155)/2)*wcp((M155+N155)/2)/3600 -> 62.23687595 | P155: 0.07 | Q155: 69 | R155: 69 | S155: 0 | T155: 0 | U155: 3.129251701 | V155: 3.129251701 | W155: 11.25 | X155: 2.072072072 | AE155: 0 | AF155: 3 | AG155: 0 | AH155: 3 | AI155: 1.03136782 | AJ155: 3 | AK155: 1 | AL155: 3 | AM155: 10.21863218 | AN155: 7 | AO155: 6.940580687 | AW155: 2016 | AX155: 1 | AY155: 7 | BA155: 6.8 | BB155: 0.05030769521 | BC155: 3.47123097 | BD155: 0.055 | BE155: 0.06626506024 | BF155: 0.07509277737 | BG155: 0 | BH155: 3.47123097 | BI155: 0.05030769521 | BK155: 0.9828385104 | BL155: 0.2205 | BM155: 0.19 | BN155: 0.2889495155 | BP155: 0.2872281323 | BQ155: 0 | BS155: 1.03136782 | BT155: 0 | BU155: 51.28217074 | BV155: 0 | BY155: 47.7138129 | BZ155: 47.7138129 | CA155: 0 | CD155: 70.20481928 | CE155: 73.20481928
A156: 2016-01-07T07:00:00 | B156: 151 | C156: -13.000001 | D156: 22.56 | E156: 29 | F156: 4.6 | G156: 7.7 | H156: =(G156-F156)*E156*seccdens(28,BA156,4)*seccspht(28,BA156,4)/3600/1000 -> 99.28482467 | I156: 0.001204819277 | K156: 1.204819277 | L156: 7 | M156: 44 | N156: 31 | O156: =(M156-N156)*L156*wrho((M156+N156)/2)*wcp((M156+N156)/2)/3600 -> 104.8806613 | P156: 0.07 | Q156: 113 | R156: 113 | S156: 0 | T156: 0 | U156: 5.008865248 | V156: 5.008865248 | W156: 11.25 | X156: 3.342206448 | AE156: 0 | AF156: 3 | AG156: 0 | AH156: 3 | AI156: 1.03136782 | AJ156: 3 | AK156: 1 | AL156: 3 | AM156: 10.21863218 | AN156: 7 | AO156: 6.940580687 | AW156: 2016 | AX156: 1 | AY156: 7 | BA156: 6.15 | BB156: 0.05014771081 | BC156: 5.666691321 | BD156: 0.055 | BE156: 0.06626506024 | BF156: 0.07509277737 | BG156: 0 | BH156: 5.666691321 | BI156: 0.05014771081 | BK156: 0.989450364 | BL156: 0.2256 | BM156: 0.19 | BN156: 0.2936625513 | BP156: 0.2872281323 | BQ156: 0 | BS156: 1.03136782 | BT156: 0 | BU156: 99.28482467 | BV156: 0 | BY156: 91.2038129 | BZ156: 91.2038129 | CA156: 0 | CD156: 114.2048193 | CE156: 117.2048193
A157: 2016-01-07T08:01:00 | B157: 152 | C157: -13.166668 | D157: 27.03 | E157: 30 | F157: 4.9 | G157: 7.5 | H157: =(G157-F157)*E157*seccdens(28,BA157,4)*seccspht(28,BA157,4)/3600/1000 -> 86.14751978 | I157: 0.001204819277 | K157: 1.204819277 | L157: 9 | M157: 46 | N157: 34 | O157: =(M157-N157)*L157*wrho((M157+N157)/2)*wcp((M157+N157)/2)/3600 -> 124.3681132 | P157: 0.09 | Q157: 219 | R157: 219 | S157: 0.05 | T157: 2.796791207 | U157: 8.102108768 | V157: 8.205578661 | W157: 14.2 | X157: 5.379500151 | AE157: 0.2909722222 | AF157: 2.709027778 | AG157: 2.796791207 | AH157: 5.803349964 | AI157: 1.141782407 | AJ157: 3.290972222 | AK157: 1 | AL157: 2.709027778 | AM157: 13.05821759 | AN157: 7 | AO157: 6.940580687 | AW157: 2016 | AX157: 1 | AY157: 7 | BA157: 6.2 | BB157: 0.05017331074 | BC157: 10.98795505 | BD157: 0.055 | BE157: 0.06626506024 | BF157: 0.07509277737 | BG157: 0.2100188195 | BH157: 10.98996197 | BI157: 0.04954968876 | BK157: 0.994597262 | BL157: 0.2703 | BM157: 0.19 | BN157: 0.3298076198 | BP157: 0.2872281323 | BQ157: 0.08357540795 | BS157: 1.141782407 | BT157: 0 | BU157: 86.14751978 | BV157: 0 | BY157: 195.4201895 | BZ157: 195.4201895 | CA157: 0 | CD157: 220.2048193 | CE157: 226.0081692
A158: 2016-01-07T09:01:00 | B158: 153 | C158: -13.666668 | D158: 34.54 | E158: 30 | F158: 4.3 | G158: 7.1 | H158: =(G158-F158)*E158*seccdens(28,BA158,4)*seccspht(28,BA158,4)/3600/1000 -> 92.72091249 | I158: 0.001204819277 | K158: 1.204819277 | L158: 10 | M158: 44 | N158: 30 | O158: =(M158-N158)*L158*wrho((M158+N158)/2)*wcp((M158+N158)/2)/3600 -> 161.3821052 | P158: 0.12 | Q158: 184 | R158: 184 | S158: 0.15 | T158: 8.390373622 | U158: 5.32715692 | V158: 5.570074511 | W158: 16.57 | X158: 3.764241315 | AE158: 0.8729166667 | AF158: 2.127083333 | AG158: 8.390373622 | AH158: 11.41004989 | AI158: 1.141782407 | AJ158: 3.872916667 | AK158: 1 | AL158: 2.127083333 | AM158: 15.42821759 | AN158: 7 | AO158: 6.940580687 | AW158: 2016 | AX158: 1 | AY158: 7 | BA158: 5.7 | BB158: 0.05012738874 | BC158: 9.223439528 | BD158: 0.055 | BE158: 0.06626506024 | BF158: 0.07509277737 | BG158: 0.6300564584 | BH158: 9.244934174 | BI158: 0.04805299766 | BK158: 0.9937766054 | BL158: 0.3454 | BM158: 0.19 | BN158: 0.3936409901 | BP158: 0.2872281323 | BQ158: 0.2507262238 | BS158: 1.141782407 | BT158: 0 | BU158: 92.72091249 | BV158: 0 | BY158: 158.5037719 | BZ158: 158.5037719 | CA158: 0 | CD158: 185.2048193 | CE158: 196.6148692
A159: 2016-01-07T10:01:00 | B159: 154 | C159: -12.88889 | D159: 36.37 | E159: 33 | F159: 4.3 | G159: 7.1 | H159: =(G159-F159)*E159*seccdens(28,BA159,4)*seccspht(28,BA159,4)/3600/1000 -> 101.9930037 | I159: 0.001204819277 | K159: 1.204819277 | L159: 9 | M159: 44 | N159: 30 | O159: =(M159-N159)*L159*wrho((M159+N159)/2)*wcp((M159+N159)/2)/3600 -> 145.2438947 | P159: 0.12 | Q159: 160 | R159: 160 | S159: 0.05 | T159: 2.796791207 | U159: 4.399230135 | V159: 4.476128436 | W159: 15.02 | X159: 3.167869064 | AE159: 0.2909722222 | AF159: 2.709027778 | AG159: 2.796791207 | AH159: 5.803349964 | AI159: 1.519712384 | AJ159: 3.290972222 | AK159: 1 | AL159: 2.709027778 | AM159: 13.50028762 | AN159: 7 | AO159: 6.940580687 | AW159: 2016 | AX159: 1 | AY159: 7 | BA159: 5.7 | BB159: 0.05012738874 | BC159: 8.020382199 | BD159: 0.055 | BE159: 0.06626506024 | BF159: 0.07509277737 | BG159: 0.2100188195 | BH159: 8.023131466 | BI159: 0.04928310568 | BK159: 0.9926536131 | BL159: 0.3637 | BM159: 0.19 | BN159: 0.4096940678 | BP159: 0.2872281323 | BQ159: 0.08357540795 | BS159: 1.519712384 | BT159: 0 | BU159: 101.9930037 | BV159: 0 | BY159: 126.7022595 | BZ159: 126.7022595 | CA159: 0 | CD159: 161.2048193 | CE159: 167.0081692
A160: 2016-01-07T11:00:00 | B160: 155 | C160: -11.944445 | D160: 35.78 | E160: 32 | F160: 4.3 | G160: 6.9 | H160: =(G160-F160)*E160*seccdens(28,BA160,4)*seccspht(28,BA160,4)/3600/1000 -> 91.82730346 | I160: 0.001204819277 | K160: 1.204819277 | L160: 10 | M160: 43 | N160: 29 | O160: =(M160-N160)*L160*wrho((M160+N160)/2)*wcp((M160+N160)/2)/3600 -> 161.4364936 | P160: 0.13 | Q160: 152 | R160: 152 | S160: 0.12 | T160: 6.712298897 | U160: 4.248183343 | V160: 4.435782529 | W160: 15.37 | X160: 3.102879744 | AE160: 0.6983333333 | AF160: 2.301666667 | AG160: 6.712298897 | AH160: 9.728039915 | AI160: 1.38570096 | AJ160: 3.698333333 | AK160: 1 | AL160: 2.301666667 | AM160: 13.98429904 | AN160: 7 | AO160: 6.940580687 | AW160: 2016 | AX160: 1 | AY160: 7 | BA160: 5.6 | BB160: 0.05012738874 | BC160: 7.619363089 | BD160: 0.055 | BE160: 0.06626506024 | BF160: 0.07509277737 | BG160: 0.5040451667 | BH160: 7.636016986 | BI160: 0.04811232046 | BK160: 0.9924659768 | BL160: 0.3578 | BM160: 0.19 | BN160: 0.4044489246 | BP160: 0.2872281323 | BQ160: 0.2005809791 | BS160: 1.38570096 | BT160: 0 | BU160: 91.82730346 | BV160: 0 | BY160: 123.3417787 | BZ160: 123.3417787 | CA160: 0 | CD160: 153.2048193 | CE160: 162.9328592
A161: 2016-01-07T12:01:00 | B161: 156 | C161: -11.166668 | D161: 36.26 | E161: 32 | F161: 3.2 | G161: 7.1 | H161: =(G161-F161)*E161*seccdens(28,BA161,4)*seccspht(28,BA161,4)/3600/1000 -> 137.6698074 | I161: 0.001204819277 | K161: 1.204819277 | L161: 8 | M161: 42 | N161: 30 | O161: =(M161-N161)*L161*wrho((M161+N161)/2)*wcp((M161+N161)/2)/3600 -> 110.6993099 | P161: 0.11 | Q161: 134 | R161: 134 | S161: 0.13 | T161: 7.271657139 | U161: 3.695532267 | V161: 3.896074383 | W161: 14.82 | X161: 2.765694149 | AE161: 0.7565277778 | AF161: 2.243472222 | AG161: 7.271657139 | AH161: 10.28870991 | AI161: 1.38570096 | AJ161: 3.756527778 | AK161: 1 | AL161: 2.243472222 | AM161: 13.43429904 | AN161: 7 | AO161: 6.940580687 | AW161: 2016 | AX161: 1 | AY161: 7 | BA161: 5.15 | BB161: 0.05017331074 | BC161: 6.72322364 | BD161: 0.055 | BE161: 0.06626506024 | BF161: 0.07509277737 | BG161: 0.5460489306 | BH161: 6.74536178 | BI161: 0.04774745279 | BK161: 0.9915437319 | BL161: 0.3626 | BM161: 0.19 | BN161: 0.4086206051 | BP161: 0.2872281323 | BQ161: 0.2172960607 | BS161: 1.38570096 | BT161: 0 | BU161: 137.6698074 | BV161: 0 | BY161: 105.4211369 | BZ161: 105.4211369 | CA161: 0 | CD161: 135.2048193 | CE161: 145.4935292
A162: 2016-01-07T13:01:00 | B162: 157 | C162: -10.944445 | D162: 34.26 | E162: 31 | F162: 4.1 | G162: 7 | H162: =(G162-F162)*E162*seccdens(28,BA162,4)*seccspht(28,BA162,4)/3600/1000 -> 99.21635081 | I162: 0.001204819277 | K162: 1.204819277 | L162: 8 | M162: 44 | N162: 31 | O162: =(M162-N162)*L162*wrho((M162+N162)/2)*wcp((M162+N162)/2)/3600 -> 119.8636129 | P162: 0.11 | Q162: 98 | R162: 98 | S162: 0.14 | T162: 7.83101538 | U162: 2.860478692 | V162: 3.08905474 | W162: 16.06 | X162: 2.103160083 | AE162: 0.8147222222 | AF162: 2.185277778 | AG162: 7.83101538 | AH162: 10.8493799 | AI162: 1.259808878 | AJ162: 3.814722222 | AK162: 1 | AL162: 2.185277778 | AM162: 14.80019112 | AN162: 7 | AO162: 6.940580687 | AW162: 2016 | AX162: 1 | AY162: 7 | BA162: 5.55 | BB162: 0.05014771081 | BC162: 4.914475659 | BD162: 0.055 | BE162: 0.06626506024 | BF162: 0.07509277737 | BG162: 0.5880526945 | BH162: 4.949533006 | BI162: 0.04676826532 | BK162: 0.9887437765 | BL162: 0.3426 | BM162: 0.19 | BN162: 0.3907257793 | BP162: 0.2872281323 | BQ162: 0.2340111423 | BS162: 1.259808878 | BT162: 0 | BU162: 99.21635081 | BV162: 0 | BY162: 72.10638723 | BZ162: 72.10638723 | CA162: 0 | CD162: 99.20481928 | CE162: 110.0541992
A163: 2016-01-07T14:01:00 | B163: 158 | C163: -10.500001 | D163: 34.31 | E163: 29 | F163: 4.4 | G163: 6.7 | H163: =(G163-F163)*E163*seccdens(28,BA163,4)*seccspht(28,BA163,4)/3600/1000 -> 73.61213125 | I163: 0.001204819277 | K163: 1.204819277 | L163: 8 | M163: 46 | N163: 31 | O163: =(M163-N163)*L163*wrho((M163+N163)/2)*wcp((M163+N163)/2)/3600 -> 138.2573595 | P163: 0.11 | Q163: 133 | R163: 133 | S163: 0.15 | T163: 8.390373622 | U163: 3.876420869 | V163: 4.120966879 | W163: 15.56 | X163: 2.835178938 | AE163: 0.8729166667 | AF163: 2.127083333 | AG163: 8.390373622 | AH163: 11.41004989 | AI163: 1.03136782 | AJ163: 3.872916667 | AK163: 1 | AL163: 2.127083333 | AM163: 14.52863218 | AN163: 7 | AO163: 6.940580687 | AW163: 2016 | AX163: 1 | AY163: 7 | BA163: 5.55 | BB163: 0.05011098793 | BC163: 6.664761394 | BD163: 0.055 | BE163: 0.06626506024 | BF163: 0.07509277737 | BG163: 0.6300564584 | BH163: 6.694476498 | BI163: 0.04734747018 | BK163: 0.9915507721 | BL163: 0.3431 | BM163: 0.19 | BN163: 0.3914206853 | BP163: 0.2872281323 | BQ163: 0.2507262238 | BS163: 1.03136782 | BT163: 0 | BU163: 73.61213125 | BV163: 0 | BY163: 107.8441865 | BZ163: 107.8441865 | CA163: 0 | CD163: 134.2048193 | CE163: 145.6148692
A164: 2016-01-07T15:01:00 | B164: 159 | C164: -10.277779 | D164: 33.54 | E164: 31 | F164: 5.1 | G164: 6.6 | H164: =(G164-F164)*E164*seccdens(28,BA164,4)*seccspht(28,BA164,4)/3600/1000 -> 51.3364995 | I164: 0.001204819277 | K164: 1.204819277 | L164: 8 | M164: 46 | N164: 31 | O164: =(M164-N164)*L164*wrho((M164+N164)/2)*wcp((M164+N164)/2)/3600 -> 138.2573595 | P164: 0.11 | Q164: 128 | R164: 128 | S164: 0.14 | T164: 7.83101538 | U164: 3.8163387 | V164: 4.049821568 | W164: 15.56 | X164: 2.766415792 | AE164: 0.8147222222 | AF164: 2.185277778 | AG164: 7.83101538 | AH164: 10.8493799 | AI164: 1.259808878 | AJ164: 3.814722222 | AK164: 1 | AL164: 2.185277778 | AM164: 14.30019112 | AN164: 7 | AO164: 6.940580687 | AW164: 2016 | AX164: 1 | AY164: 7 | BA164: 5.85 | BB164: 0.05011098793 | BC164: 6.414206455 | BD164: 0.055 | BE164: 0.06626506024 | BF164: 0.07509277737 | BG164: 0.5880526945 | BH164: 6.441106304 | BI164: 0.04741999672 | BK164: 0.9912079984 | BL164: 0.3354 | BM164: 0.19 | BN164: 0.3846572084 | BP164: 0.2872281323 | BQ164: 0.2340111423 | BS164: 1.259808878 | BT164: 0 | BU164: 51.3364995 | BV164: 0 | BY164: 102.8263872 | BZ164: 102.8263872 | CA164: 0 | CD164: 129.2048193 | CE164: 140.0541992
A165: 2016-01-07T16:01:00 | B165: 160 | C165: -10.500001 | D165: 32.83 | E165: 31 | F165: 5.7 | G165: 6.7 | H165: =(G165-F165)*E165*seccdens(28,BA165,4)*seccspht(28,BA165,4)/3600/1000 -> 34.23811684 | I165: 0.001204819277 | K165: 1.204819277 | L165: 7 | M165: 43 | N165: 31 | O165: =(M165-N165)*L165*wrho((M165+N165)/2)*wcp((M165+N165)/2)/3600 -> 96.82926312 | P165: 0.11 | Q165: 96 | R165: 96 | S165: 0.15 | T165: 8.390373622 | U165: 2.924154737 | V165: 3.179725057 | W165: 16.7 | X165: 2.107619092 | AE165: 0.8729166667 | AF165: 2.127083333 | AG165: 8.390373622 | AH165: 11.41004989 | AI165: 1.259808878 | AJ165: 3.872916667 | AK165: 1 | AL165: 2.127083333 | AM165: 15.44019112 | AN165: 7 | AO165: 6.940580687 | AW165: 2016 | AX165: 1 | AY165: 7 | BA165: 6.2 | BB165: 0.05017331074 | BC165: 4.816637832 | BD165: 0.055 | BE165: 0.06626506024 | BF165: 0.07509277737 | BG165: 0.6300564584 | BH165: 4.85767137 | BI165: 0.04653370997 | BK165: 0.9885902071 | BL165: 0.3283 | BM165: 0.19 | BN165: 0.3782351155 | BP165: 0.2872281323 | BQ165: 0.2507262238 | BS165: 1.259808878 | BT165: 0 | BU165: 34.23811684 | BV165: 0 | BY165: 72.09574547 | BZ165: 72.09574547 | CA165: 0 | CD165: 97.20481928 | CE165: 108.6148692
A166: 2016-01-07T17:01:00 | B166: 161 | C166: -10.111112 | D166: 34.65 | E166: 32 | F166: 6.2 | G166: 6.6 | H166: =(G166-F166)*E166*seccdens(28,BA166,4)*seccspht(28,BA166,4)/3600/1000 -> 14.14028499 | I166: 0.001204819277 | K166: 1.204819277 | L166: 9 | M166: 46 | N166: 30 | O166: =(M166-N166)*L166*wrho((M166+N166)/2)*wcp((M166+N166)/2)/3600 -> 165.936941 | P166: 0.12 | Q166: 125 | R166: 125 | S166: 0.12 | T166: 6.712298897 | U166: 3.607503608 | V166: 3.801220747 | W166: 17.21 | X166: 2.539766658 | AE166: 0.6983333333 | AF166: 2.301666667 | AG166: 6.712298897 | AH166: 9.728039915 | AI166: 1.38570096 | AJ166: 3.698333333 | AK166: 1 | AL166: 2.301666667 | AM166: 15.82429904 | AN166: 7 | AO166: 6.940580687 | AW166: 2016 | AX166: 1 | AY166: 7 | BA166: 6.4 | BB166: 0.05009756107 | BC166: 6.262195134 | BD166: 0.055 | BE166: 0.06626506024 | BF166: 0.07509277737 | BG166: 0.5040451667 | BH166: 6.282447725 | BI166: 0.04769826188 | BK166: 0.9909355597 | BL166: 0.3465 | BM166: 0.19 | BN166: 0.3943485305 | BP166: 0.2872281323 | BQ166: 0.2005809791 | BS166: 1.38570096 | BT166: 0 | BU166: 14.14028499 | BV166: 0 | BY166: 97.47177866 | BZ166: 97.47177866 | CA166: 0 | CD166: 126.2048193 | CE166: 135.9328592
A167: 2016-01-07T18:01:00 | B167: 162 | C167: -9.944445 | D167: 32.71 | E167: 31 | F167: 7.1 | G167: 6.7 | H167: =(G167-F167)*E167*seccdens(28,BA167,4)*seccspht(28,BA167,4)/3600/1000 -> -13.70629902 | I167: 0.001204819277 | K167: 1.204819277 | L167: 8 | M167: 36 | N167: 31 | O167: =(M167-N167)*L167*wrho((M167+N167)/2)*wcp((M167+N167)/2)/3600 -> 46.16349502 | P167: 0.11 | Q167: 46 | R167: 46 | S167: 0.07 | T167: 3.91550769 | U167: 1.406297768 | V167: 1.526001458 | W167: 16.82 | X167: 1.007783317 | AE167: 0.4073611111 | AF167: 2.592638889 | AG167: 3.91550769 | AH167: 6.92468995 | AI167: 1.259808878 | AJ167: 3.407361111 | AK167: 1 | AL167: 2.592638889 | AM167: 15.56019112 | AN167: 7 | AO167: 6.940580687 | AW167: 2016 | AX167: 1 | AY167: 7 | BA167: 6.9 | BB167: 0.05099019514 | BC167: 2.345548976 | BD167: 0.055 | BE167: 0.06626506024 | BF167: 0.07509277737 | BG167: 0.2940263473 | BH167: 2.363905982 | BI167: 0.04735814763 | BK167: 0.9764316985 | BL167: 0.3271 | BM167: 0.19 | BN167: 0.3760489741 | BP167: 0.2872281323 | BQ167: 0.1170055711 | BS167: 0 | BT167: 1.259808878 | BU167: 0 | BV167: 13.70629902 | BY167: 17.74087954 | BZ167: 17.74087954 | CA167: 0 | CD167: 47.20481928 | CE167: 54.12950923
A168: 2016-01-07T19:01:00 | B168: 163 | C168: -9.666667 | D168: 27.09 | E168: 30 | F168: 6.6 | G168: 7 | H168: =(G168-F168)*E168*seccdens(28,BA168,4)*seccspht(28,BA168,4)/3600/1000 -> 13.26263036 | I168: 0.001204819277 | K168: 1.204819277 | L168: 7 | M168: 40 | N168: 32 | O168: =(M168-N168)*L168*wrho((M168+N168)/2)*wcp((M168+N168)/2)/3600 -> 64.57459742 | P168: 0.09 | Q168: 50 | R168: 50 | S168: 0.03 | T168: 1.678074724 | U168: 1.84569952 | V168: 1.907643954 | W168: 14.23 | X168: 1.250679446 | AE168: 0.1745833333 | AF168: 2.825416667 | AG168: 1.678074724 | AH168: 4.682009979 | AI168: 1.141782407 | AJ168: 3.174583333 | AK168: 1 | AL168: 2.825416667 | AM168: 13.08821759 | AN168: 7 | AO168: 6.940580687 | AW168: 2016 | AX168: 1 | AY168: 7 | BA168: 6.8 | BB168: 0.05038911093 | BC168: 2.519455546 | BD168: 0.055 | BE168: 0.06626506024 | BF168: 0.07509277737 | BG168: 0.1260112917 | BH168: 2.522604824 | BI168: 0.04881383134 | BK168: 0.9772172212 | BL168: 0.2709 | BM168: 0.19 | BN168: 0.3284214233 | BP168: 0.2872281323 | BQ168: 0.05014524477 | BS168: 1.141782407 | BT168: 0 | BU168: 13.26263036 | BV168: 0 | BY168: 25.24147304 | BZ168: 25.24147304 | CA168: 0 | CD168: 51.20481928 | CE168: 55.88682926
A169: 2016-01-07T20:01:00 | B169: 164 | C169: -9.055556 | D169: 25.58 | E169: 31 | F169: 5.4 | G169: 7.3 | H169: =(G169-F169)*E169*seccdens(28,BA169,4)*seccspht(28,BA169,4)/3600/1000 -> 65.06365812 | I169: 0.001204819277 | K169: 1.204819277 | L169: 7 | M169: 43 | N169: 31 | O169: =(M169-N169)*L169*wrho((M169+N169)/2)*wcp((M169+N169)/2)/3600 -> 96.82926312 | P169: 0.07 | Q169: 91 | R169: 91 | S169: 0.02 | T169: 1.118716483 | U169: 3.557466771 | V169: 3.601200801 | W169: 12.09 | X169: 2.445413233 | AE169: 0.1163888889 | AF169: 2.883611111 | AG169: 1.118716483 | AH169: 4.121339986 | AI169: 1.259808878 | AJ169: 3.116388889 | AK169: 1 | AL169: 2.883611111 | AM169: 10.83019112 | AN169: 7 | AO169: 6.940580687 | AW169: 2016 | AX169: 1 | AY169: 7 | BA169: 6.35 | BB169: 0.05017331074 | BC169: 4.565771278 | BD169: 0.055 | BE169: 0.06626506024 | BF169: 0.07509277737 | BG169: 0.08400752779 | BH169: 4.566544057 | BI169: 0.04957238042 | BK169: 0.9870898668 | BL169: 0.2558 | BM169: 0.19 | BN169: 0.3171869247 | BP169: 0.2872281323 | BQ169: 0.03343016318 | BS169: 1.259808878 | BT169: 0 | BU169: 65.06365812 | BV169: 0 | BY169: 67.07408833 | BZ169: 67.07408833 | CA169: 0 | CD169: 92.20481928 | CE169: 96.32615926
A170: 2016-01-07T21:01:00 | B170: 165 | C170: -7.333334 | D170: 26.4 | E170: 31 | F170: 5.3 | G170: 7.3 | H170: =(G170-F170)*E170*seccdens(28,BA170,4)*seccspht(28,BA170,4)/3600/1000 -> 68.48411782 | I170: 0.001204819277 | K170: 1.204819277 | L170: 7 | M170: 45 | N170: 30 | O170: =(M170-N170)*L170*wrho((M170+N170)/2)*wcp((M170+N170)/2)/3600 -> 121.0161477 | P170: 0.08 | Q170: 130 | R170: 130 | S170: 0 | T170: 0 | U170: 4.924242424 | V170: 4.924242424 | W170: 13.1 | X170: 3.291139241 | AE170: 0 | AF170: 3 | AG170: 0 | AH170: 3 | AI170: 1.259808878 | AJ170: 3 | AK170: 1 | AL170: 3 | AM170: 11.84019112 | AN170: 7 | AO170: 6.940580687 | AW170: 2016 | AX170: 1 | AY170: 7 | BA170: 6.3 | BB170: 0.05011098793 | BC170: 6.514428431 | BD170: 0.055 | BE170: 0.06626506024 | BF170: 0.07509277737 | BG170: 0 | BH170: 6.514428431 | BI170: 0.05011098793 | BK170: 0.9908172635 | BL170: 0.264 | BM170: 0.19 | BN170: 0.3242468974 | BP170: 0.2872281323 | BQ170: 0 | BS170: 1.259808878 | BT170: 0 | BU170: 68.48411782 | BV170: 0 | BY170: 104.1353718 | BZ170: 104.1353718 | CA170: 0 | CD170: 131.2048193 | CE170: 134.2048193
A171: 2016-01-07T22:01:00 | B171: 166 | C171: -7.111112 | D171: 21.62 | E171: 28 | F171: 6.9 | G171: 7.4 | H171: =(G171-F171)*E171*seccdens(28,BA171,4)*seccspht(28,BA171,4)/3600/1000 -> 15.47931962 | I171: 0.001204819277 | K171: 1.204819277 | L171: 7 | M171: 44 | N171: 33 | O171: =(M171-N171)*L171*wrho((M171+N171)/2)*wcp((M171+N171)/2)/3600 -> 88.71513904 | P171: 0.08 | Q171: 53 | R171: 53 | S171: 0.01 | T171: 0.5593582414 | U171: 2.451433858 | V171: 2.477306117 | W171: 11.79 | X171: 1.603093632 | AE171: 0.05819444444 | AF171: 2.941805556 | AG171: 0.5593582414 | AH171: 3.560669993 | AI171: 0.9283113855 | AJ171: 3.058194444 | AK171: 1 | AL171: 2.941805556 | AM171: 10.86168861 | AN171: 7 | AO171: 6.940580687 | AW171: 2016 | AX171: 1 | AY171: 7 | BA171: 7.15 | BB171: 0.05020618644 | BC171: 2.660927881 | BD171: 0.055 | BE171: 0.06626506024 | BF171: 0.07509277737 | BG171: 0.04200376389 | BH171: 2.661259383 | BI171: 0.04968803718 | BK171: 0.9779998654 | BL171: 0.2162 | BM171: 0.19 | BN171: 0.2850815724 | BP171: 0.2872281323 | BQ171: 0.01671508159 | BS171: 0.9283113855 | BT171: 0 | BU171: 15.47931962 | BV171: 0 | BY171: 32.80622758 | BZ171: 32.80622758 | CA171: 0 | CD171: 54.20481928 | CE171: 57.76548927
A172: 2016-01-07T23:01:00 | B172: 167 | C172: -6.722223 | D172: 17.7 | E172: 29 | F172: 6.6 | G172: 7.6 | H172: =(G172-F172)*E172*seccdens(28,BA172,4)*seccspht(28,BA172,4)/3600/1000 -> 32.06245395 | I172: 0.001204819277 | K172: 1.204819277 | L172: 5 | M172: 45 | N172: 33 | O172: =(M172-N172)*L172*wrho((M172+N172)/2)*wcp((M172+N172)/2)/3600 -> 69.11694474 | P172: 0.06 | Q172: 62 | R172: 62 | S172: 0 | T172: 0 | U172: 3.502824859 | V172: 3.502824859 | W172: 11.15 | X172: 2.149046794 | AE172: 0 | AF172: 3 | AG172: 0 | AH172: 3 | AI172: 1.03136782 | AJ172: 3 | AK172: 1 | AL172: 3 | AM172: 10.11863218 | AN172: 7 | AO172: 6.940580687 | AW172: 2016 | AX172: 1 | AY172: 7 | BA172: 7.1 | BB172: 0.05017331074 | BC172: 3.110745266 | BD172: 0.055 | BE172: 0.06626506024 | BF172: 0.07509277737 | BG172: 0 | BH172: 3.110745266 | BI172: 0.05017331074 | BK172: 0.9809378574 | BL172: 0.177 | BM172: 0.19 | BN172: 0.2570327426 | BP172: 0.2872281323 | BQ172: 0 | BS172: 1.03136782 | BT172: 0 | BU172: 32.06245395 | BV172: 0 | BY172: 45.0638129 | BZ172: 45.0638129 | CA172: 0 | CD172: 63.20481928 | CE172: 66.20481928
A173: 2016-01-08 | B173: 168 | C173: -6.388889 | D173: 19.58 | E173: 29 | F173: 5.7 | G173: 7.7 | H173: =(G173-F173)*E173*seccdens(28,BA173,4)*seccspht(28,BA173,4)/3600/1000 -> 64.09532179 | I173: 0.001204819277 | K173: 1.204819277 | L173: 6 | M173: 43 | N173: 32 | O173: =(M173-N173)*L173*wrho((M173+N173)/2)*wcp((M173+N173)/2)/3600 -> 76.06729283 | P173: 0.05 | Q173: 67 | R173: 67 | S173: 0 | T173: 0 | U173: 3.42185904 | V173: 3.42185904 | W173: 10.34 | X173: 2.239304813 | AE173: 0 | AF173: 3 | AG173: 0 | AH173: 3 | AI173: 1.03136782 | AJ173: 3 | AK173: 1 | AL173: 3 | AM173: 9.30863218 | AN173: 8 | AO173: 6.872959715 | AW173: 2016 | AX173: 1 | AY173: 8 | BA173: 6.7 | BB173: 0.05020618644 | BC173: 3.363814492 | BD173: 0.055 | BE173: 0.06626506024 | BF173: 0.07503406364 | BG173: 0 | BH173: 3.363814492 | BI173: 0.05020618644 | BK173: 0.9823352765 | BL173: 0.1958 | BM173: 0.19 | BN173: 0.2705060289 | BP173: 0.2872281323 | BQ173: 0 | BS173: 1.03136782 | BT173: 0 | BU173: 64.09532179 | BV173: 0 | BY173: 48.1838129 | BZ173: 48.1838129 | CA173: 0 | CD173: 68.20481928 | CE173: 71.20481928
A174: 2016-01-08T01:01:00 | B174: 169 | C174: -6.666667 | D174: 17.31 | E174: 29 | F174: 6.3 | G174: 7.8 | H174: =(G174-F174)*E174*seccdens(28,BA174,4)*seccspht(28,BA174,4)/3600/1000 -> 48.09090507 | I174: 0.001204819277 | K174: 1.204819277 | L174: 6 | M174: 43 | N174: 32 | O174: =(M174-N174)*L174*wrho((M174+N174)/2)*wcp((M174+N174)/2)/3600 -> 76.06729283 | P174: 0.06 | Q174: 53 | R174: 53 | S174: 0 | T174: 0 | U174: 3.06181398 | V174: 3.06181398 | W174: 11.1 | X174: 1.865540303 | AE174: 0 | AF174: 3 | AG174: 0 | AH174: 3 | AI174: 1.03136782 | AJ174: 3 | AK174: 1 | AL174: 3 | AM174: 10.06863218 | AN174: 8 | AO174: 6.872959715 | AW174: 2016 | AX174: 1 | AY174: 8 | BA174: 7.05 | BB174: 0.05020618644 | BC174: 2.660927881 | BD174: 0.055 | BE174: 0.06626506024 | BF174: 0.07503406364 | BG174: 0 | BH174: 2.660927881 | BI174: 0.05020618644 | BK174: 0.9777728384 | BL174: 0.1731 | BM174: 0.19 | BN174: 0.2539225158 | BP174: 0.2872281323 | BQ174: 0 | BS174: 1.03136782 | BT174: 0 | BU174: 48.09090507 | BV174: 0 | BY174: 36.4538129 | BZ174: 36.4538129 | CA174: 0 | CD174: 54.20481928 | CE174: 57.20481928
A175: 2016-01-08T02:01:00 | B175: 170 | C175: -7.333334 | D175: 22.64 | E175: 29 | F175: 6.6 | G175: 7.6 | H175: =(G175-F175)*E175*seccdens(28,BA175,4)*seccspht(28,BA175,4)/3600/1000 -> 32.06245395 | I175: 0.001204819277 | K175: 1.204819277 | L175: 6 | M175: 46 | N175: 33 | O175: =(M175-N175)*L175*wrho((M175+N175)/2)*wcp((M175+N175)/2)/3600 -> 89.83673973 | P175: 0.07 | Q175: 75 | R175: 75 | S175: 0 | T175: 0 | U175: 3.312720848 | V175: 3.312720848 | W175: 10.93 | X175: 2.234137623 | AE175: 0 | AF175: 3 | AG175: 0 | AH175: 3 | AI175: 1.03136782 | AJ175: 3 | AK175: 1 | AL175: 3 | AM175: 9.89863218 | AN175: 8 | AO175: 6.872959715 | AW175: 2016 | AX175: 1 | AY175: 8 | BA175: 7.1 | BB175: 0.05014771081 | BC175: 3.761078311 | BD175: 0.055 | BE175: 0.06626506024 | BF175: 0.07503406364 | BG175: 0 | BH175: 3.761078311 | BI175: 0.05014771081 | BK175: 0.9841897233 | BL175: 0.2264 | BM175: 0.19 | BN175: 0.2936400548 | BP175: 0.2872281323 | BQ175: 0 | BS175: 1.03136782 | BT175: 0 | BU175: 32.06245395 | BV175: 0 | BY175: 53.1238129 | BZ175: 53.1238129 | CA175: 0 | CD175: 76.20481928 | CE175: 79.20481928
A176: 2016-01-08T03:00:00 | B176: 171 | C176: -6.722223 | D176: 19.99 | E176: 29 | F176: 6.6 | G176: 7.5 | H176: =(G176-F176)*E176*seccdens(28,BA176,4)*seccspht(28,BA176,4)/3600/1000 -> 28.85454304 | I176: 0.001204819277 | K176: 1.204819277 | L176: 5 | M176: 44 | N176: 33 | O176: =(M176-N176)*L176*wrho((M176+N176)/2)*wcp((M176+N176)/2)/3600 -> 63.36795646 | P176: 0.06 | Q176: 54 | R176: 54 | S176: 0 | T176: 0 | U176: 2.701350675 | V176: 2.701350675 | W176: 11.01 | X176: 1.741935484 | AE176: 0 | AF176: 3 | AG176: 0 | AH176: 3 | AI176: 1.03136782 | AJ176: 3 | AK176: 1 | AL176: 3 | AM176: 9.97863218 | AN176: 8 | AO176: 6.872959715 | AW176: 2016 | AX176: 1 | AY176: 8 | BA176: 7.05 | BB176: 0.05020618644 | BC176: 2.711134068 | BD176: 0.055 | BE176: 0.06626506024 | BF176: 0.07503406364 | BG176: 0 | BH176: 2.711134068 | BI176: 0.05020618644 | BK176: 0.9781754692 | BL176: 0.1999 | BM176: 0.19 | BN176: 0.2729495808 | BP176: 0.2872281323 | BQ176: 0 | BS176: 1.03136782 | BT176: 0 | BU176: 28.85454304 | BV176: 0 | BY176: 34.7738129 | BZ176: 34.7738129 | CA176: 0 | CD176: 55.20481928 | CE176: 58.20481928
A177: 2016-01-08T04:01:00 | B177: 172 | C177: -6.388889 | D177: 19.05 | E177: 28 | F177: 5.6 | G177: 7.7 | H177: =(G177-F177)*E177*seccdens(28,BA177,4)*seccspht(28,BA177,4)/3600/1000 -> 64.97564964 | I177: 0.001204819277 | K177: 1.204819277 | L177: 7 | M177: 44 | N177: 33 | O177: =(M177-N177)*L177*wrho((M177+N177)/2)*wcp((M177+N177)/2)/3600 -> 88.71513904 | P177: 0.07 | Q177: 73 | R177: 73 | S177: 0 | T177: 0 | U177: 3.832020997 | V177: 3.832020997 | W177: 10.16 | X177: 2.499144129 | AE177: 0 | AF177: 3 | AG177: 0 | AH177: 3 | AI177: 0.9283113855 | AJ177: 3 | AK177: 1 | AL177: 3 | AM177: 9.231688615 | AN177: 8 | AO177: 6.872959715 | AW177: 2016 | AX177: 1 | AY177: 8 | BA177: 6.65 | BB177: 0.05020618644 | BC177: 3.66505161 | BD177: 0.055 | BE177: 0.06626506024 | BF177: 0.07503406364 | BG177: 0 | BH177: 3.66505161 | BI177: 0.05020618644 | BK177: 0.983763598 | BL177: 0.1905 | BM177: 0.19 | BN177: 0.2668848038 | BP177: 0.2872281323 | BQ177: 0 | BS177: 0.9283113855 | BT177: 0 | BU177: 64.97564964 | BV177: 0 | BY177: 54.81686934 | BZ177: 54.81686934 | CA177: 0 | CD177: 74.20481928 | CE177: 77.20481928
A178: 2016-01-08T05:01:00 | B178: 173 | C178: -6.222223 | D178: 16.27 | E178: 29 | F178: 6.2 | G178: 7.8 | H178: =(G178-F178)*E178*seccdens(28,BA178,4)*seccspht(28,BA178,4)/3600/1000 -> 51.29400517 | I178: 0.001204819277 | K178: 1.204819277 | L178: 5 | M178: 43 | N178: 33 | O178: =(M178-N178)*L178*wrho((M178+N178)/2)*wcp((M178+N178)/2)/3600 -> 57.61699342 | P178: 0.05 | Q178: 65 | R178: 65 | S178: 0 | T178: 0 | U178: 3.995082975 | V178: 3.995082975 | W178: 10.98 | X178: 2.385321101 | AE178: 0 | AF178: 3 | AG178: 0 | AH178: 3 | AI178: 1.03136782 | AJ178: 3 | AK178: 1 | AL178: 3 | AM178: 9.94863218 | AN178: 8 | AO178: 6.872959715 | AW178: 2016 | AX178: 1 | AY178: 8 | BA178: 7 | BB178: 0.05024937811 | BC178: 3.266209577 | BD178: 0.055 | BE178: 0.06626506024 | BF178: 0.07503406364 | BG178: 0 | BH178: 3.266209577 | BI178: 0.05024937811 | BK178: 0.9818016379 | BL178: 0.1627 | BM178: 0.19 | BN178: 0.2475264104 | BP178: 0.2872281323 | BQ178: 0 | BS178: 1.03136782 | BT178: 0 | BU178: 51.29400517 | BV178: 0 | BY178: 49.4938129 | BZ178: 49.4938129 | CA178: 0 | CD178: 66.20481928 | CE178: 69.20481928
A179: 2016-01-08T06:01:00 | B179: 174 | C179: -6.388889 | D179: 20.12 | E179: 29 | F179: 6.2 | G179: 7.7 | H179: =(G179-F179)*E179*seccdens(28,BA179,4)*seccspht(28,BA179,4)/3600/1000 -> 48.08535523 | I179: 0.001204819277 | K179: 1.204819277 | L179: 6 | M179: 44 | N179: 34 | O179: =(M179-N179)*L179*wrho((M179+N179)/2)*wcp((M179+N179)/2)/3600 -> 69.11694474 | P179: 0.06 | Q179: 62 | R179: 62 | S179: 0 | T179: 0 | U179: 3.081510934 | V179: 3.081510934 | W179: 11.32 | X179: 1.972010178 | AE179: 0 | AF179: 3 | AG179: 0 | AH179: 3 | AI179: 1.03136782 | AJ179: 3 | AK179: 1 | AL179: 3 | AM179: 10.28863218 | AN179: 8 | AO179: 6.872959715 | AW179: 2016 | AX179: 1 | AY179: 8 | BA179: 6.95 | BB179: 0.05024937811 | BC179: 3.115461443 | BD179: 0.055 | BE179: 0.06626506024 | BF179: 0.07503406364 | BG179: 0 | BH179: 3.115461443 | BI179: 0.05024937811 | BK179: 0.9809378574 | BL179: 0.2012 | BM179: 0.19 | BN179: 0.2742594954 | BP179: 0.2872281323 | BQ179: 0 | BS179: 1.03136782 | BT179: 0 | BU179: 48.08535523 | BV179: 0 | BY179: 42.6438129 | BZ179: 42.6438129 | CA179: 0 | CD179: 63.20481928 | CE179: 66.20481928
A180: 2016-01-08T07:01:00 | B180: 175 | C180: -6.388889 | D180: 23.98 | E180: 29 | F180: 6.5 | G180: 7.5 | H180: =(G180-F180)*E180*seccdens(28,BA180,4)*seccspht(28,BA180,4)/3600/1000 -> 32.05875323 | I180: 0.001204819277 | K180: 1.204819277 | L180: 6 | M180: 45 | N180: 33 | O180: =(M180-N180)*L180*wrho((M180+N180)/2)*wcp((M180+N180)/2)/3600 -> 82.94033369 | P180: 0.08 | Q180: 75 | R180: 75 | S180: 0.01 | T180: 0.5601452744 | U180: 3.127606339 | V180: 3.150965191 | W180: 12.14 | X180: 2.091919858 | AE180: 0.05819444444 | AF180: 2.941805556 | AG180: 0.5601452744 | AH180: 3.561540753 | AI180: 1.03136782 | AJ180: 3.058194444 | AK180: 1 | AL180: 2.941805556 | AM180: 11.10863218 | AN180: 8 | AO180: 6.872959715 | AW180: 2016 | AX180: 1 | AY180: 8 | BA180: 7 | BB180: 0.05017331074 | BC180: 3.762998306 | BD180: 0.055 | BE180: 0.06626506024 | BF180: 0.07503406364 | BG180: 0.04202997617 | BH180: 3.763233021 | BI180: 0.04980447043 | BK180: 0.9843050891 | BL180: 0.2398 | BM180: 0.19 | BN180: 0.3041048503 | BP180: 0.2872281323 | BQ180: 0.01671508159 | BS180: 1.03136782 | BT180: 0 | BU180: 32.05875323 | BV180: 0 | BY180: 52.34395818 | BZ180: 52.34395818 | CA180: 0 | CD180: 76.20481928 | CE180: 79.76636003
A181: 2016-01-08T08:01:00 | B181: 176 | C181: -6.388889 | D181: 22.83 | E181: 29 | F181: 4.8 | G181: 7.5 | H181: =(G181-F181)*E181*seccdens(28,BA181,4)*seccspht(28,BA181,4)/3600/1000 -> 86.47387955 | I181: 0.001204819277 | K181: 1.204819277 | L181: 8 | M181: 41 | N181: 32 | O181: =(M181-N181)*L181*wrho((M181+N181)/2)*wcp((M181+N181)/2)/3600 -> 83.01050382 | P181: 0.08 | Q181: 99 | R181: 99 | S181: 0.03 | T181: 1.680435823 | U181: 4.336399474 | V181: 4.410005949 | W181: 15.81 | X181: 2.605601341 | AE181: 0.1745833333 | AF181: 2.825416667 | AG181: 1.680435823 | AH181: 4.684622258 | AI181: 1.03136782 | AJ181: 3.174583333 | AK181: 1 | AL181: 2.825416667 | AM181: 14.77863218 | AN181: 8 | AO181: 6.872959715 | AW181: 2016 | AX181: 1 | AY181: 8 | BA181: 6.15 | BB181: 0.05030769521 | BC181: 4.980461826 | BD181: 0.055 | BE181: 0.06626506024 | BF181: 0.07503406364 | BG181: 0.1260899285 | BH181: 4.982057674 | BI181: 0.04948387076 | BK181: 0.9881747435 | BL181: 0.2283 | BM181: 0.19 | BN181: 0.295587812 | BP181: 0.2872281323 | BQ181: 0.05014524477 | BS181: 1.03136782 | BT181: 0 | BU181: 86.47387955 | BV181: 0 | BY181: 78.61424873 | BZ181: 78.61424873 | CA181: 0 | CD181: 100.2048193 | CE181: 104.8894415
A182: 2016-01-08T09:01:00 | B182: 177 | C182: -6.388889 | D182: 25.56 | E182: 28 | F182: 5.1 | G182: 7.5 | H182: =(G182-F182)*E182*seccdens(28,BA182,4)*seccspht(28,BA182,4)/3600/1000 -> 74.22794706 | I182: 0.001204819277 | K182: 1.204819277 | L182: 8 | M182: 39 | N182: 30 | O182: =(M182-N182)*L182*wrho((M182+N182)/2)*wcp((M182+N182)/2)/3600 -> 83.06636974 | P182: 0.09 | Q182: 91 | R182: 91 | S182: 0.06 | T182: 3.360871647 | U182: 3.560250391 | V182: 3.691739892 | W182: 17.83 | X182: 2.174714719 | AE182: 0.3491666667 | AF182: 2.650833333 | AG182: 3.360871647 | AH182: 6.369244517 | AI182: 0.9283113855 | AJ182: 3.349166667 | AK182: 1 | AL182: 2.650833333 | AM182: 16.90168861 | AN182: 8 | AO182: 6.872959715 | AW182: 2016 | AX182: 1 | AY182: 8 | BA182: 6.3 | BB182: 0.05030769521 | BC182: 4.578000264 | BD182: 0.055 | BE182: 0.06626506024 | BF182: 0.07503406364 | BG182: 0.252179857 | BH182: 4.584940687 | BI182: 0.04858942702 | BK182: 0.9873927634 | BL182: 0.2556 | BM182: 0.19 | BN182: 0.3170597031 | BP182: 0.2872281323 | BQ182: 0.1002904895 | BS182: 0.9283113855 | BT182: 0 | BU182: 74.22794706 | BV182: 0 | BY182: 69.66774098 | BZ182: 69.66774098 | CA182: 0 | CD182: 92.20481928 | CE182: 98.57406379
A183: 2016-01-08T10:01:00 | B183: 178 | C183: -5.944445 | D183: 28.54 | E183: 29 | F183: 5 | G183: 7.5 | H183: =(G183-F183)*E183*seccdens(28,BA183,4)*seccspht(28,BA183,4)/3600/1000 -> 80.07762436 | I183: 0.001204819277 | K183: 1.204819277 | L183: 8 | M183: 41 | N183: 31 | O183: =(M183-N183)*L183*wrho((M183+N183)/2)*wcp((M183+N183)/2)/3600 -> 92.24942489 | P183: 0.09 | Q183: 90 | R183: 90 | S183: 0.1 | T183: 5.601452744 | U183: 3.153468816 | V183: 3.349735555 | W183: 15.77 | X183: 2.157559304 | AE183: 0.5819444444 | AF183: 2.418055556 | AG183: 5.601452744 | AH183: 8.615407528 | AI183: 1.03136782 | AJ183: 3.581944444 | AK183: 1 | AL183: 2.418055556 | AM183: 14.73863218 | AN183: 8 | AO183: 6.872959715 | AW183: 2016 | AX183: 1 | AY183: 8 | BA183: 6.25 | BB183: 0.05024937811 | BC183: 4.52244403 | BD183: 0.055 | BE183: 0.06626506024 | BF183: 0.07503406364 | BG183: 0.4202997617 | BH183: 4.541932616 | BI183: 0.04750903345 | BK183: 0.9875543263 | BL183: 0.2854 | BM183: 0.19 | BN183: 0.3415555212 | BP183: 0.2872281323 | BQ183: 0.1671508159 | BS183: 1.03136782 | BT183: 0 | BU183: 80.07762436 | BV183: 0 | BY183: 67.82526565 | BZ183: 67.82526565 | CA183: 0 | CD183: 91.20481928 | CE183: 99.82022681
A184: 2016-01-08T11:01:00 | B184: 179 | C184: -5.777778 | D184: 27.49 | E184: 29 | F184: 5.6 | G184: 7.6 | H184: =(G184-F184)*E184*seccdens(28,BA184,4)*seccspht(28,BA184,4)/3600/1000 -> 64.08793341 | I184: 0.001204819277 | K184: 1.204819277 | L184: 7 | M184: 43 | N184: 31 | O184: =(M184-N184)*L184*wrho((M184+N184)/2)*wcp((M184+N184)/2)/3600 -> 96.82926312 | P184: 0.09 | Q184: 103 | R184: 103 | S184: 0.12 | T184: 6.721743293 | U184: 3.746817024 | V184: 3.991332968 | W184: 15.05 | X184: 2.579260538 | AE184: 0.6983333333 | AF184: 2.301666667 | AG184: 6.721743293 | AH184: 9.738489034 | AI184: 1.03136782 | AJ184: 3.698333333 | AK184: 1 | AL184: 2.301666667 | AM184: 14.01863218 | AN184: 8 | AO184: 6.872959715 | AW184: 2016 | AX184: 1 | AY184: 8 | BA184: 6.6 | BB184: 0.05017331074 | BC184: 5.167851007 | BD184: 0.055 | BE184: 0.06626506024 | BF184: 0.07503406364 | BG184: 0.504359714 | BH184: 5.192404332 | BI184: 0.04732338529 | BK184: 0.9891385864 | BL184: 0.2749 | BM184: 0.19 | BN184: 0.3330016136 | BP184: 0.2872281323 | BQ184: 0.2005809791 | BS184: 1.03136782 | BT184: 0 | BU184: 64.08793341 | BV184: 0 | BY184: 82.9955562 | BZ184: 82.9955562 | CA184: 0 | CD184: 104.2048193 | CE184: 113.9433083
A185: 2016-01-08T12:01:00 | B185: 180 | C185: -5.666667 | D185: 27.03 | E185: 29 | F185: 6.4 | G185: 7.4 | H185: =(G185-F185)*E185*seccdens(28,BA185,4)*seccspht(28,BA185,4)/3600/1000 -> 32.05505415 | I185: 0.001204819277 | K185: 1.204819277 | L185: 7 | M185: 38 | N185: 31 | O185: =(M185-N185)*L185*wrho((M185+N185)/2)*wcp((M185+N185)/2)/3600 -> 56.5312794 | P185: 0.09 | Q185: 56 | R185: 56 | S185: 0.13 | T185: 7.281888568 | U185: 2.071772105 | V185: 2.341172348 | W185: 15.33 | X185: 1.493906718 | AE185: 0.7565277778 | AF185: 2.243472222 | AG185: 7.281888568 | AH185: 10.30002979 | AI185: 1.03136782 | AJ185: 3.756527778 | AK185: 1 | AL185: 2.243472222 | AM185: 14.29863218 | AN185: 8 | AO185: 6.872959715 | AW185: 2016 | AX185: 1 | AY185: 8 | BA185: 6.9 | BB185: 0.05050762723 | BC185: 2.828427125 | BD185: 0.055 | BE185: 0.06626506024 | BF185: 0.07503406364 | BG185: 0.5463896902 | BH185: 2.880718954 | BI185: 0.045522013 | BK185: 0.9813167811 | BL185: 0.2703 | BM185: 0.19 | BN185: 0.328368334 | BP185: 0.2872281323 | BQ185: 0.2172960607 | BS185: 1.03136782 | BT185: 0 | BU185: 32.05505415 | BV185: 0 | BY185: 37.01570147 | BZ185: 37.01570147 | CA185: 0 | CD185: 57.20481928 | CE185: 67.50484906
A186: 2016-01-08T13:01:00 | B186: 181 | C186: -5.611112 | D186: 30.27 | E186: 29 | F186: 6.1 | G186: 7.3 | H186: =(G186-F186)*E186*seccdens(28,BA186,4)*seccspht(28,BA186,4)/3600/1000 -> 38.45719307 | I186: 0.001204819277 | K186: 1.204819277 | L186: 8 | M186: 42 | N186: 32 | O186: =(M186-N186)*L186*wrho((M186+N186)/2)*wcp((M186+N186)/2)/3600 -> 92.21834583 | P186: 0.09 | Q186: 80 | R186: 80 | S186: 0.16 | T186: 8.962324391 | U186: 2.64288074 | V186: 2.938960171 | W186: 16.37 | X186: 1.90742548 | AE186: 0.9311111111 | AF186: 2.068888889 | AG186: 8.962324391 | AH186: 11.98465204 | AI186: 1.03136782 | AJ186: 3.931111111 | AK186: 1 | AL186: 2.068888889 | AM186: 15.33863218 | AN186: 8 | AO186: 6.872959715 | AW186: 2016 | AX186: 1 | AY186: 8 | BA186: 6.7 | BB186: 0.05024937811 | BC186: 4.019950248 | BD186: 0.055 | BE186: 0.06626506024 | BF186: 0.07503406364 | BG186: 0.6724796187 | BH186: 4.075810206 | BI186: 0.04581501477 | BK186: 0.9866379345 | BL186: 0.3027 | BM186: 0.19 | BN186: 0.3560463373 | BP186: 0.2872281323 | BQ186: 0.2674413054 | BS186: 1.03136782 | BT186: 0 | BU186: 38.45719307 | BV186: 0 | BY186: 59.45613729 | BZ186: 59.45613729 | CA186: 0 | CD186: 81.20481928 | CE186: 93.18947132
A187: 2016-01-08T14:01:00 | B187: 182 | C187: -5.888889 | D187: 28.19 | E187: 29 | F187: 4.7 | G187: 7.3 | H187: =(G187-F187)*E187*seccdens(28,BA187,4)*seccspht(28,BA187,4)/3600/1000 -> 83.25677196 | I187: 0.001204819277 | K187: 1.204819277 | L187: 7 | M187: 43 | N187: 32 | O187: =(M187-N187)*L187*wrho((M187+N187)/2)*wcp((M187+N187)/2)/3600 -> 88.74517497 | P187: 0.09 | Q187: 90 | R187: 90 | S187: 0.17 | T187: 9.522469665 | U187: 3.192621497 | V187: 3.530417512 | W187: 16.16 | X187: 2.244024119 | AE187: 0.9893055556 | AF187: 2.010694444 | AG187: 9.522469665 | AH187: 12.5461928 | AI187: 1.03136782 | AJ187: 3.989305556 | AK187: 1 | AL187: 2.010694444 | AM187: 15.12863218 | AN187: 8 | AO187: 6.872959715 | AW187: 2016 | AX187: 1 | AY187: 8 | BA187: 6 | BB187: 0.05020618644 | BC187: 4.51855678 | BD187: 0.055 | BE187: 0.06626506024 | BF187: 0.07503406364 | BG187: 0.7145095949 | BH187: 4.574699917 | BI187: 0.04596650317 | BK187: 0.9880387997 | BL187: 0.2819 | BM187: 0.19 | BN187: 0.3386874314 | BP187: 0.2872281323 | BQ187: 0.284156387 | BS187: 1.03136782 | BT187: 0 | BU187: 83.25677196 | BV187: 0 | BY187: 72.09628257 | BZ187: 72.09628257 | CA187: 0 | CD187: 91.20481928 | CE187: 103.7510121
A188: 2016-01-08T15:01:00 | B188: 183 | C188: -5.888889 | D188: 29.4 | E188: 29 | F188: 5 | G188: 7.1 | H188: =(G188-F188)*E188*seccdens(28,BA188,4)*seccspht(28,BA188,4)/3600/1000 -> 67.24972264 | I188: 0.001204819277 | K188: 1.204819277 | L188: 8 | M188: 45 | N188: 30 | O188: =(M188-N188)*L188*wrho((M188+N188)/2)*wcp((M188+N188)/2)/3600 -> 138.3041688 | P188: 0.09 | Q188: 132 | R188: 132 | S188: 0.18 | T188: 10.08261494 | U188: 4.489795918 | V188: 4.832742005 | W188: 17.05 | X188: 3.05882917 | AE188: 1.0475 | AF188: 1.9525 | AG188: 10.08261494 | AH188: 13.10773355 | AI188: 1.03136782 | AJ188: 4.0475 | AK188: 1 | AL188: 1.9525 | AM188: 16.01863218 | AN188: 8 | AO188: 6.872959715 | AW188: 2016 | AX188: 1 | AY188: 8 | BA188: 6.05 | BB188: 0.05011098793 | BC188: 6.614650406 | BD188: 0.055 | BE188: 0.06626506024 | BF188: 0.07503406364 | BG188: 0.756539571 | BH188: 6.657773811 | BI188: 0.04685846903 | BK188: 0.9915915915 | BL188: 0.294 | BM188: 0.19 | BN188: 0.3491868629 | BP188: 0.2872281323 | BQ188: 0.3008714686 | BS188: 1.03136782 | BT188: 0 | BU188: 67.24972264 | BV188: 0 | BY188: 113.4464278 | BZ188: 113.4464278 | CA188: 0 | CD188: 133.2048193 | CE188: 146.3125528
A189: 2016-01-08T16:01:00 | B189: 184 | C189: -5.944445 | D189: 25.54 | E189: 32 | F189: 5.2 | G189: 7.3 | H189: =(G189-F189)*E189*seccdens(28,BA189,4)*seccspht(28,BA189,4)/3600/1000 -> 74.22367389 | I189: 0.001204819277 | K189: 1.204819277 | L189: 7 | M189: 43 | N189: 30 | O189: =(M189-N189)*L189*wrho((M189+N189)/2)*wcp((M189+N189)/2)/3600 -> 104.9160534 | P189: 0.08 | Q189: 107 | R189: 107 | S189: 0.11 | T189: 6.161598019 | U189: 4.189506656 | V189: 4.430759515 | W189: 17.13 | X189: 2.652017765 | AE189: 0.6401388889 | AF189: 2.359861111 | AG189: 6.161598019 | AH189: 9.176948281 | AI189: 1.38570096 | AJ189: 3.640138889 | AK189: 1 | AL189: 2.359861111 | AM189: 15.74429904 | AN189: 8 | AO189: 6.872959715 | AW189: 2016 | AX189: 1 | AY189: 8 | BA189: 6.25 | BB189: 0.05014771081 | BC189: 5.365805057 | BD189: 0.055 | BE189: 0.06626506024 | BF189: 0.07503406364 | BG189: 0.4623297379 | BH189: 5.385685907 | BI189: 0.04759287604 | BK189: 0.9894652704 | BL189: 0.2554 | BM189: 0.19 | BN189: 0.317131769 | BP189: 0.2872281323 | BQ189: 0.1838658975 | BS189: 1.38570096 | BT189: 0 | BU189: 74.22367389 | BV189: 0 | BY189: 88.03107778 | BZ189: 88.03107778 | CA189: 0 | CD189: 108.2048193 | CE189: 117.3817676
A190: 2016-01-08T17:01:00 | B190: 185 | C190: -5.888889 | D190: 29.61 | E190: 29 | F190: 5.6 | G190: 7.1 | H190: =(G190-F190)*E190*seccdens(28,BA190,4)*seccspht(28,BA190,4)/3600/1000 -> 48.05210744 | I190: 0.001204819277 | K190: 1.204819277 | L190: 8 | M190: 42 | N190: 31 | O190: =(M190-N190)*L190*wrho((M190+N190)/2)*wcp((M190+N190)/2)/3600 -> 101.4572824 | P190: 0.1 | Q190: 85 | R190: 85 | S190: 0.14 | T190: 7.842033842 | U190: 2.870651807 | V190: 3.135495908 | W190: 16.89 | X190: 1.996602878 | AE190: 0.8147222222 | AF190: 2.185277778 | AG190: 7.842033842 | AH190: 10.86157054 | AI190: 1.03136782 | AJ190: 3.814722222 | AK190: 1 | AL190: 2.185277778 | AM190: 15.85863218 | AN190: 8 | AO190: 6.872959715 | AW190: 2016 | AX190: 1 | AY190: 8 | BA190: 6.35 | BB190: 0.05020618644 | BC190: 4.267525848 | BD190: 0.055 | BE190: 0.06626506024 | BF190: 0.07503406364 | BG190: 0.5884196664 | BH190: 4.307901411 | BI190: 0.04640033433 | BK190: 0.9871891591 | BL190: 0.2961 | BM190: 0.19 | BN190: 0.3505084763 | BP190: 0.2872281323 | BQ190: 0.2340111423 | BS190: 1.03136782 | BT190: 0 | BU190: 48.05210744 | BV190: 0 | BY190: 63.99584675 | BZ190: 63.99584675 | CA190: 0 | CD190: 86.20481928 | CE190: 97.06638982
A191: 2016-01-08T18:00:00 | B191: 186 | C191: -6.055556 | D191: 29.2 | E191: 29 | F191: 4.8 | G191: 7.2 | H191: =(G191-F191)*E191*seccdens(28,BA191,4)*seccspht(28,BA191,4)/3600/1000 -> 76.85240489 | I191: 0.001204819277 | K191: 1.204819277 | L191: 7 | M191: 42 | N191: 31 | O191: =(M191-N191)*L191*wrho((M191+N191)/2)*wcp((M191+N191)/2)/3600 -> 88.77512214 | P191: 0.09 | Q191: 101 | R191: 101 | S191: 0.04 | T191: 2.240581098 | U191: 3.45890411 | V191: 3.535636339 | W191: 16.59 | X191: 2.254653442 | AE191: 0.2327777778 | AF191: 2.767222222 | AG191: 2.240581098 | AH191: 5.246163011 | AI191: 1.03136782 | AJ191: 3.232777778 | AK191: 1 | AL191: 2.767222222 | AM191: 15.55863218 | AN191: 8 | AO191: 6.872959715 | AW191: 2016 | AX191: 1 | AY191: 8 | BA191: 6 | BB191: 0.05020618644 | BC191: 5.070824831 | BD191: 0.055 | BE191: 0.06626506024 | BF191: 0.07503406364 | BG191: 0.1681199047 | BH191: 5.073611018 | BI191: 0.04914357285 | BK191: 0.9884646019 | BL191: 0.292 | BM191: 0.19 | BN191: 0.3471828739 | BP191: 0.2872281323 | BQ191: 0.06686032636 | BS191: 1.03136782 | BT191: 0 | BU191: 76.85240489 | BV191: 0 | BY191: 74.804394 | BZ191: 74.804394 | CA191: 0 | CD191: 102.2048193 | CE191: 107.4509823
A192: 2016-01-08T19:01:00 | B192: 187 | C192: -6.111112 | D192: 23.14 | E192: 28 | F192: 6.9 | G192: 7.3 | H192: =(G192-F192)*E192*seccdens(28,BA192,4)*seccspht(28,BA192,4)/3600/1000 -> 12.38274083 | I192: 0.001204819277 | K192: 1.204819277 | L192: 7 | M192: 46 | N192: 31 | O192: =(M192-N192)*L192*wrho((M192+N192)/2)*wcp((M192+N192)/2)/3600 -> 120.9751896 | P192: 0.08 | Q192: 106 | R192: 106 | S192: 0.04 | T192: 2.240581098 | U192: 4.580812446 | V192: 4.677639633 | W192: 14.2 | X192: 2.898783639 | AE192: 0.2327777778 | AF192: 2.767222222 | AG192: 2.240581098 | AH192: 5.246163011 | AI192: 0.9283113855 | AJ192: 3.232777778 | AK192: 1 | AL192: 2.767222222 | AM192: 13.27168861 | AN192: 8 | AO192: 6.872959715 | AW192: 2016 | AX192: 1 | AY192: 8 | BA192: 7.1 | BB192: 0.05011098793 | BC192: 5.31176472 | BD192: 0.055 | BE192: 0.06626506024 | BF192: 0.07503406364 | BG192: 0.1681199047 | BH192: 5.314424592 | BI192: 0.04909826369 | BK192: 0.9889915951 | BL192: 0.2314 | BM192: 0.19 | BN192: 0.2980864437 | BP192: 0.2872281323 | BQ192: 0.06686032636 | BS192: 0.9283113855 | BT192: 0 | BU192: 12.38274083 | BV192: 0 | BY192: 85.96745044 | BZ192: 85.96745044 | CA192: 0 | CD192: 107.2048193 | CE192: 112.4509823
A193: 2016-01-08T20:01:00 | B193: 188 | C193: -5.888889 | D193: 19.31 | E193: 29 | F193: 6.5 | G193: 7.5 | H193: =(G193-F193)*E193*seccdens(28,BA193,4)*seccspht(28,BA193,4)/3600/1000 -> 32.05875323 | I193: 0.001204819277 | K193: 1.204819277 | L193: 6 | M193: 43 | N193: 33 | O193: =(M193-N193)*L193*wrho((M193+N193)/2)*wcp((M193+N193)/2)/3600 -> 69.1403921 | P193: 0.07 | Q193: 50 | R193: 50 | S193: 0.03 | T193: 1.680435823 | U193: 2.589331952 | V193: 2.676356076 | W193: 12.37 | X193: 1.631326888 | AE193: 0.1745833333 | AF193: 2.825416667 | AG193: 1.680435823 | AH193: 4.684622258 | AI193: 1.03136782 | AJ193: 3.174583333 | AK193: 1 | AL193: 2.825416667 | AM193: 11.33863218 | AN193: 8 | AO193: 6.872959715 | AW193: 2016 | AX193: 1 | AY193: 8 | BA193: 7 | BB193: 0.05024937811 | BC193: 2.512468905 | BD193: 0.055 | BE193: 0.06626506024 | BF193: 0.07503406364 | BG193: 0.1260899285 | BH193: 2.515630869 | BI193: 0.04867665741 | BK193: 0.9772182383 | BL193: 0.1931 | BM193: 0.19 | BN193: 0.2678833758 | BP193: 0.2872281323 | BQ193: 0.05014524477 | BS193: 1.03136782 | BT193: 0 | BU193: 32.05875323 | BV193: 0 | BY193: 33.13424873 | BZ193: 33.13424873 | CA193: 0 | CD193: 51.20481928 | CE193: 55.88944154
A194: 2016-01-08T21:01:00 | B194: 189 | C194: -5.944445 | D194: 22.56 | E194: 29 | F194: 5.5 | G194: 7.5 | H194: =(G194-F194)*E194*seccdens(28,BA194,4)*seccspht(28,BA194,4)/3600/1000 -> 64.08054826 | I194: 0.001204819277 | K194: 1.204819277 | L194: 7 | M194: 39 | N194: 36 | O194: =(M194-N194)*L194*wrho((M194+N194)/2)*wcp((M194+N194)/2)/3600 -> 24.20322954 | P194: 0.06 | Q194: 47 | R194: 47 | S194: 0.01 | T194: 0.5601452744 | U194: 2.083333333 | V194: 2.108162468 | W194: 12.55 | X194: 1.354603967 | AE194: 0.05819444444 | AF194: 2.941805556 | AG194: 0.5601452744 | AH194: 3.561540753 | AI194: 1.03136782 | AJ194: 3.058194444 | AK194: 1 | AL194: 2.941805556 | AM194: 11.51863218 | AN194: 8 | AO194: 6.872959715 | AW194: 2016 | AX194: 1 | AY194: 8 | BA194: 6.5 | BB194: 0.05270462767 | BC194: 2.4771175 | BD194: 0.055 | BE194: 0.06626506024 | BF194: 0.07503406364 | BG194: 0.04202997617 | BH194: 2.477474042 | BI194: 0.05209138929 | BK194: 0.9752933425 | BL194: 0.2256 | BM194: 0.19 | BN194: 0.2919478985 | BP194: 0.2872281323 | BQ194: 0.01671508159 | BS194: 1.03136782 | BT194: 0 | BU194: 64.08054826 | BV194: 0 | BY194: 25.76395818 | BZ194: 25.76395818 | CA194: 0 | CD194: 48.20481928 | CE194: 51.76636003
A195: 2016-01-08T22:00:00 | B195: 190 | C195: -6.333334 | D195: 20.33 | E195: 29 | F195: 6.3 | G195: 7.8 | H195: =(G195-F195)*E195*seccdens(28,BA195,4)*seccspht(28,BA195,4)/3600/1000 -> 48.09090507 | I195: 0.001204819277 | K195: 1.204819277 | L195: 7 | M195: 44 | N195: 32 | O195: =(M195-N195)*L195*wrho((M195+N195)/2)*wcp((M195+N195)/2)/3600 -> 96.79654894 | P195: 0.06 | Q195: 81 | R195: 81 | S195: 0 | T195: 0 | U195: 3.984259715 | V195: 3.984259715 | W195: 11.45 | X195: 2.548772813 | AE195: 0 | AF195: 3 | AG195: 0 | AH195: 3 | AI195: 1.03136782 | AJ195: 3 | AK195: 1 | AL195: 3 | AM195: 10.41863218 | AN195: 8 | AO195: 6.872959715 | AW195: 2016 | AX195: 1 | AY195: 8 | BA195: 7.05 | BB195: 0.05017331074 | BC195: 4.06403817 | BD195: 0.055 | BE195: 0.06626506024 | BF195: 0.07503406364 | BG195: 0 | BH195: 4.06403817 | BI195: 0.05017331074 | BK195: 0.9853436905 | BL195: 0.2033 | BM195: 0.19 | BN195: 0.2763701485 | BP195: 0.2872281323 | BQ195: 0 | BS195: 1.03136782 | BT195: 0 | BU195: 48.09090507 | BV195: 0 | BY195: 61.4338129 | BZ195: 61.4338129 | CA195: 0 | CD195: 82.20481928 | CE195: 85.20481928
A196: 2016-01-08T23:01:00 | B196: 191 | C196: -6.055556 | D196: 17.18 | E196: 28 | F196: 6.7 | G196: 7.7 | H196: =(G196-F196)*E196*seccdens(28,BA196,4)*seccspht(28,BA196,4)/3600/1000 -> 30.96042677 | I196: 0.001204819277 | K196: 1.204819277 | L196: 6 | M196: 41 | N196: 33 | O196: =(M196-N196)*L196*wrho((M196+N196)/2)*wcp((M196+N196)/2)/3600 -> 55.3310075 | P196: 0.06 | Q196: 45 | R196: 45 | S196: 0 | T196: 0 | U196: 2.619324796 | V196: 2.619324796 | W196: 10.92 | X196: 1.601423488 | AE196: 0 | AF196: 3 | AG196: 0 | AH196: 3 | AI196: 0.9283113855 | AJ196: 3 | AK196: 1 | AL196: 3 | AM196: 9.991688615 | AN196: 8 | AO196: 6.872959715 | AW196: 2016 | AX196: 1 | AY196: 8 | BA196: 7.2 | BB196: 0.05038911093 | BC196: 2.267509992 | BD196: 0.055 | BE196: 0.06626506024 | BF196: 0.07503406364 | BG196: 0 | BH196: 2.267509992 | BI196: 0.05038911093 | BK196: 0.9739243807 | BL196: 0.1718 | BM196: 0.19 | BN196: 0.2525017347 | BP196: 0.2872281323 | BQ196: 0 | BS196: 0.9283113855 | BT196: 0 | BU196: 30.96042677 | BV196: 0 | BY196: 28.68686934 | BZ196: 28.68686934 | CA196: 0 | CD196: 46.20481928 | CE196: 49.20481928
A197: 2016-01-09T00:01:00 | B197: 192 | C197: -5.777778 | D197: 18.94 | E197: 29 | F197: 6.2 | G197: 7.7 | H197: =(G197-F197)*E197*seccdens(28,BA197,4)*seccspht(28,BA197,4)/3600/1000 -> 48.08535523 | I197: 0.001204819277 | K197: 1.204819277 | L197: 6 | M197: 42 | N197: 33 | O197: =(M197-N197)*L197*wrho((M197+N197)/2)*wcp((M197+N197)/2)/3600 -> 62.23687595 | P197: 0.06 | Q197: 70 | R197: 70 | S197: 0 | T197: 0 | U197: 3.695881732 | V197: 3.695881732 | W197: 10.81 | X197: 2.352941176 | AE197: =MIN((60-55)/(55-AO197)*T197,D197) -> 0 | AF197: =MIN(3,D197)-AE197 -> 3 | AG197: 0 | AH197: 3 | AI197: 1.03136782 | AJ197: 3 | AK197: =MONTH(A197)+(YEAR(A197)-2016)*12 -> 1 | AL197: =IF(R197>0,AF197,0) -> 3 | AM197: 9.77863218 | AN197: 9 | AO197: 6.80626535 | AW197: 2016 | AX197: 1 | AY197: 9 | BA197: =(F197+G197)/2 -> 6.95 | BB197: =FractionalError_Bldg_Htg_provided(ABS(M197-N197),P197) -> 0.05030769521 | BC197: =BB197*R197 -> 3.521538665 | BD197: =HeuristicError_Bldg_Clg(I197/1000) -> 0.055 | BE197: =K197*BD197 -> 0.06626506024 | BF197: =FractionalErrorDHW(S197,AO197) -> 0.07497635163 | BG197: =BF197*T197 -> 0 | BH197: =SQRT(BG197^2+BC197^2) -> 3.521538665 | BI197: =IF((T197+R197)<>0,BH197/(T197+R197),0) -> 0.05030769521 | BK197: =IF((R197+T197+K197)>0,(R197+T197)/(R197+T197+K197),1) -> 0.9830795262 | BL197: =Error_EL007(D197) -> 0.1894 | BM197: =Error_EL011() -> 0.19 | BN197: =SQRT(BL197^2+(BK197*BM197)^2) -> 0.2660094685 | BP197: =SQRT((SQRT(2)/5)^2+0.05^2) -> 0.2872281323 | BQ197: =BP197*AE197 -> 0 | BS197: =IF(H197>0,AI197,0) -> 1.03136782 | BT197: =AI197-BS197 -> 0 | BU197: =IF(H197>0,H197,0) -> 48.08535523 | BV197: =IF(H197<0, -H197,0) -> 0 | BY197: 51.8238129 | BZ197: 51.8238129 | CA197: 0 | CD197: 71.20481928 | CE197: 74.20481928
A198: 2016-01-09T01:01:00 | B198: 193 | C198: -5.944445 | D198: 17.49 | E198: 29 | F198: 6.2 | G198: 7.8 | H198: =(G198-F198)*E198*seccdens(28,BA198,4)*seccspht(28,BA198,4)/3600/1000 -> 51.29400517 | I198: 0.001204819277 | K198: 1.204819277 | L198: 5 | M198: 39 | N198: 32 | O198: =(M198-N198)*L198*wrho((M198+N198)/2)*wcp((M198+N198)/2)/3600 -> 40.36591345 | P198: 0.05 | Q198: 49 | R198: =IF(Q198="",O198,Q198) -> 49 | S198: 0 | T198: =S198*1000*4.19*(55-AO198)/3600 -> 0 | U198: =R198/D198 -> 2.801600915 | V198: =(T198+R198)/D198 -> 2.801600915 | W198: 11.08 | X198: =(T198+R198)/(D198+W198) -> 1.715085754 | AE198: 0 | AF198: 3 | AG198: =T198 -> 0 | AH198: =T198*(60-8)/(55-8)+AF198 -> 3 | AI198: =0.001973*(E198/3600*1000)^3 -> 1.03136782 | AJ198: =3+1000*S198*4.19/3600*5 -> 3 | AK198: 1 | AL198: 3 | AM198: 10.04863218 | AN198: =daynum(MONTH(A198),DAY(A198)) -> 9 | AO198: =TapWaterTemperature(AN198, 10,5,60) -> 6.80626535 | AW198: =YEAR(A198) -> 2016 | AX198: =MONTH(A198) -> 1 | AY198: =ROUNDDOWN(A198,0)-42369 -> 9 | BA198: 7 | BB198: 0.05050762723 | BC198: 2.474873734 | BD198: 0.055 | BE198: 0.06626506024 | BF198: 0.07497635163 | BG198: 0 | BH198: 2.474873734 | BI198: 0.05050762723 | BK198: 0.9760019198 | BL198: 0.1749 | BM198: 0.19 | BN198: 0.2549080989 | BP198: 0.2872281323 | BQ198: 0 | BS198: 1.03136782 | BT198: 0 | BU198: 51.29400517 | BV198: 0 | BY198: =(R198+T198)-(K198+(D198-AE198-AF198)+BS198+BT198) -> 32.2738129 | BZ198: =IF(BY198>0,BY198,0) -> 32.2738129 | CA198: =IF(BY198<0,-BY198,0) -> 0 | CD198: =K198+R198 -> 50.20481928 | CE198: =CD198+AH198 -> 53.20481928
A199: 2016-01-09T02:01:00 | B199: =B198+1 -> 194 | C199: -5.666667 | D199: 17.71 | E199: 29 | F199: 5.9 | G199: 7.9 | H199: =(G199-F199)*E199*seccdens(28,BA199,4)*seccspht(28,BA199,4)/3600/1000 -> 64.11010831 | I199: 0.001204819277 | K199: =IF(Y199="",I199*1000,Y199) -> 1.204819277 | L199: 6 | M199: 41 | N199: 33 | O199: =(M199-N199)*L199*wrho((M199+N199)/2)*wcp((M199+N199)/2)/3600 -> 55.3310075 | P199: 0.06 | Q199: 56 | R199: 56 | S199: 0 | T199: 0 | U199: 3.162055336 | V199: 3.162055336 | W199: 10.99 | X199: 1.951219512 | AE199: 0 | AF199: 3 | AG199: 0 | AH199: 3 | AI199: 1.03136782 | AJ199: 3 | AK199: 1 | AL199: 3 | AM199: =IF(R199>0,W199-AI199,0) -> 9.95863218 | AN199: 9 | AO199: 6.80626535 | AW199: 2016 | AX199: 1 | AY199: 9 | BA199: 6.9 | BB199: 0.05038911093 | BC199: 2.821790212 | BD199: 0.055 | BE199: 0.06626506024 | BF199: 0.07497635163 | BG199: 0 | BH199: 2.821790212 | BI199: 0.05038911093 | BK199: 0.9789385004 | BL199: 0.1771 | BM199: 0.19 | BN199: 0.2568263678 | BP199: 0.2872281323 | BQ199: 0 | BS199: 1.03136782 | BT199: 0 | BU199: 64.11010831 | BV199: 0 | BY199: 39.0538129 | BZ199: 39.0538129 | CA199: 0 | CD199: 57.20481928 | CE199: 60.20481928
A200: 2016-01-09T03:01:00 | B200: 195 | C200: -5.5 | D200: 17.4 | E200: 29 | F200: 6.3 | G200: 7.9 | H200: =(G200-F200)*E200*seccdens(28,BA200,4)*seccspht(28,BA200,4)/3600/1000 -> 51.29992631 | I200: 0.001204819277 | K200: 1.204819277 | L200: 5 | M200: 41 | N200: 32 | O200: =(M200-N200)*L200*wrho((M200+N200)/2)*wcp((M200+N200)/2)/3600 -> 51.88156488 | P200: 0.06 | Q200: 63 | R200: 63 | S200: 0 | T200: 0 | U200: 3.620689655 | V200: 3.620689655 | W200: 10.78 | X200: 2.235628105 | AE200: 0 | AF200: 3 | AG200: 0 | AH200: 3 | AI200: 1.03136782 | AJ200: 3 | AK200: 1 | AL200: 3 | AM200: 9.74863218 | AN200: 9 | AO200: 6.80626535 | AW200: 2016 | AX200: 1 | AY200: 9 | BA200: 7.1 | BB200: 0.05030769521 | BC200: 3.169384798 | BD200: 0.055 | BE200: 0.06626506024 | BF200: 0.07497635163 | BG200: 0 | BH200: 3.169384798 | BI200: 0.05030769521 | BK200: 0.9812347532 | BL200: 0.174 | BM200: 0.19 | BN200: 0.2550173744 | BP200: 0.2872281323 | BQ200: 0 | BS200: 1.03136782 | BT200: 0 | BU200: 51.29992631 | BV200: 0 | BY200: 46.3638129 | BZ200: 46.3638129 | CA200: 0 | CD200: 64.20481928 | CE200: 67.20481928
... 925 more rows

Sheet BinResultsHtgClg
A2: HtgClg | B2: Count | C2: ODA Temperature (°C) | D2: EL 007 (kW) | E2: GHE EFT (°C) | F2: GHE ExFT (°C) | G2: Clg Provided (kW) | H2: Bldg Htg Provided (kW) | I2: EL 003 (kW) | J2: CP Energy (kW) | K2: DHW Provided by HP (kW) | L2: DHW by LPS (kW) | M2: Useful Bldg Htg by LPS (kW) | N2: Bldg Htg Uncertainty (kW) | O2: Bldg Clg Uncertainty (kW) | P2: DHW Htg by HP Uncertainty (kW) | Q2: Bldg + DHW Htg by HP Uncertainty (kW) | R2: EL007+EL011 Uncertainty (kW) | S2: EL011 Uncertainty (kW) | T2: LPS DHW Uncertainty (kW) | U2: CP Power for Heat Extraction from GHE (kW) | V2: CP Power for Heat Rejection to GHE (kW) | W2: Heat Extraction by GHE (kW) | X2: Heat Rejection to GHE (kW) | Y2: EL007 Uncertainty (kW) | Z2: LPS Electricity going to bldg heat (kW) | AA2: Alt Calc GHE Heat Extraction (kW) | AB2: Alt Calc GHE Heat Extraction (kW) | AC2: HtgFrac | AD2: COP H4 | AE2: COP H3 | AF2: COP H2 | AG2: COP C3 | AH2: COP C2 | AI2: Overall (H+C) COP | AJ2: Not used | AK2: Not used | AL2: Not used | AM2: Not used | AN2: Error COP H4 | AO2: Error COP H3 | AP2: Error COP H2 | AQ2: Error COP H3b | AR2: Error COP C2 | AS2: BPF0, heating | AT2: BPF0, cooling | AU2: BPF1*, heating | AV2: BPF2, heating | AW2: BPF3+, heating | AX2: BPF4+, heating | AY2: BPF2, cooling | AZ2: BPF3, cooling | BA2: BPF4, cooling | BB2: Error BPF0, heating | BC2: Error BPF0, cooling | BD2: Error BPF1*, heating | BE2: Error BPF2, heating | BF2: Error BPF3+, heating | BG2: Error BPF4+, heating | BH2: Error BPF2, cooling | BI2: Error BPF3, cooling | BJ2: Error BPF4, cooling | BK2: Htg & Clg Provided Boundary 2 | BL2: Htg & Clg Provided Boundary 4+ | BM2: Electricity Used Boundary 2 | BN2: Electricity Used Boundary 4+ | BO2: BPFHC2 | BP2: BPFHC4+ | BQ2: Error BPFHC2 | BR2: Error BPFHC4+
A3: 0 | B3: 150 | C3: 12.63380207 | D3: 3.18272891 | E3: 20.27612285 | F3: 12.55788378 | G3: 0.7260806799 | H3: 0.004057729669 | I3: 7.450055368 | J3: 0.4392080232 | K3: 0.1243948067 | L3: 0.01412508091 | M3: 0.02 | N3: 0.0002058225995 | O3: 0.0399344374 | P3: 0.009829902192 | Q3: 0.01003572479 | R3: 0.1295069017 | S3: 0.19 | T3: 0.00405712061 | U3: 0.01822339654 | V3: 0.4209846267 | W3: 1.409512693 | X3: 1.086731574 | Y3: 0.0318272891 | Z3: 2.72807865 | AA3: 0.09338661419 | AB3: 1.57074796 | AC3: 0.1503189507 | AD3: 0.03778578311 | AE3: 0.05004312654 | AF3: 0.2535849018 | AG3: 0.1147015927 | AH3: 1.945622965 | AI3: 0.245354437 | AJ3: 0 | AK3: 0 | AL3: 0 | AM3: 0 | AN3: 0.002594987398 | AO3: 0.003677252105 | AP3: 0.1036305299 | AQ3: 0.003883522503 | AR3: 0.8484455977 | AS3: 77.34632179 | AT3: 2.581404416 | AU3: 0.2915895447 | AV3: 0.2535849018 | AW3: 0.05004312654 | AX3: 0.03778578311 | AY3: 1.945622965 | AZ3: 1.945622965 | BA3: 0.1147015927 | BB3: 0 | BC3: 0 | BD3: 0.1359970218 | BE3: 0.1036305299 | BF3: 0.003677252105 | BG3: 0.002594987398 | BH3: 0.8484455977 | BI3: 0.8484455977 | BJ3: 0.006953803789 | BK3: 0.8545332163 | BL3: 0.8886582972 | BM3: 0.8797332023 | BN3: 10.63278428 | BO3: 0.9713549677 | BP3: 0.08357719615 | BQ3: 0.09714995538 | BR3: 0.0528388327
A4: 10 | B4: 8096 | C4: 13.74401448 | D4: 4.182749683 | E4: 10.83223125 | F4: 10.82367264 | G4: 5.857860419 | H4: 0.7109492772 | I4: 9.164045308 | J4: 1.009525155 | K4: 0.09906323602 | L4: 0.01166256488 | M4: 0.7722747259 | N4: 0.06774569078 | O4: 0.3221823231 | P4: 0.008002857778 | Q4: 0.07359002431 | R4: 0.05045404048 | S4: 0.19 | T4: 0.003349816728 | U4: 0.1185780778 | V4: 0.8909470772 | W4: 1.971025492 | X4: 2.243863735 | Y4: 0.04182749683 | Z4: 2.889747961 | AA4: 0.0104439736 | AB4: 7.349156193 | AC4: 0.1214798964 | AD4: 0.3009725679 | AE4: 0.3702222163 | AF4: 0.5769417822 | AG4: 0.7276123926 | AH4: 6.604959667 | AI4: 1.435172531 | AJ4: 0 | AK4: 0 | AL4: 0 | AM4: 0 | AN4: 0.01418815612 | AO4: 0.01763457744 | AP4: 0.0990206073 | AQ4: 0.01765173327 | AR4: 1.295094091 | AS4: 16.62217442 | AT4: 2.518515176 | AU4: 0.6321608984 | AV4: 0.5769417822 | AW4: 0.3702222163 | AX4: 0.3009725679 | AY4: 6.604959667 | AZ4: 6.604959667 | BA4: 0.7276123926 | BB4: 0 | BC4: 0 | BD4: 0.1160308986 | BE4: 0.0990206073 | BF4: 0.01763457744 | BG4: 0.01418815612 | BH4: 1.295094091 | BI4: 1.295094091 | BJ4: 0.04276767777 | BK4: 6.667872932 | BL4: 7.451810223 | BM4: 2.290864313 | BN4: 13.34679499 | BO4: 2.910636346 | BP4: 0.5583220712 | BQ4: 0.1745048354 | BR4: 0.3286946326
A5: 20 | B5: 5580 | C5: 13.48708489 | D5: 5.041039421 | E5: 10.68839904 | F5: 10.737724 | G5: 12.44544001 | H5: 3.458134015 | I5: 11.64501485 | J5: 1.009711979 | K5: 0.7134390205 | L5: 0.08280259354 | M5: 1.382868935 | N5: 0.1987879356 | O5: 0.6844992004 | P5: 0.05714030076 | Q5: 0.2385101543 | R5: 0.07401477289 | S5: 0.19 | T5: 0.02378323429 | U5: 0.2152777194 | V5: 0.7944342593 | W5: 3.493822594 | X5: 1.919101674 | Y5: 0.05041039421 | Z5: 2.862809153 | AA5: 0.6041278997 | AB5: 11.98313452 | AC5: 0.2510422917 | AD5: 0.7078025814 | AE5: 1.064731977 | AF5: 1.775962655 | AG5: 1.426963663 | AH5: 16.45718125 | AI5: 2.988502316 | AJ5: 0 | AK5: 0 | AL5: 0 | AM5: 0 | AN5: 0.03066079596 | AO5: 0.04744378937 | AP5: 0.1872308862 | AQ5: 0.04765597172 | AR5: 3.226358069 | AS5: 16.22937387 | AT5: 2.415683427 | AU5: 1.990797911 | AV5: 1.775962655 | AW5: 1.064731977 | AX5: 0.7078025814 | AY5: 16.45718125 | AZ5: 16.45718125 | BA5: 1.426963663 | BB5: 0 | BC5: 0 | BD5: 0.2277397462 | BE5: 0.1872308862 | BF5: 0.04744378937 | BG5: 0.03066079596 | BH5: 3.226358069 | BI5: 3.226358069 | BJ5: 0.08186359677 | BK5: 16.61701304 | BL5: 18.08268457 | BM5: 3.105139653 | BN5: 16.68605427 | BO5: 5.351454331 | BP5: 1.083700453 | BQ5: 0.2677035699 | BR5: 0.4631695361
A6: 30 | B6: 6889 | C6: 9.680665401 | D6: 8.10671524 | E6: 9.736937278 | F6: 10.03868307 | G6: 11.7461459 | H6: 14.34931296 | I6: 12.63153437 | J6: 1.01078758 | K6: 1.294211453 | L6: 0.1483053926 | M6: 2.179109166 | N6: 0.7433428863 | O6: 0.6460380246 | P6: 0.1028618303 | Q6: 0.8189302565 | R6: 0.1374792537 | S6: 0.19 | T6: 0.04259748093 | U6: 0.5965239365 | V6: 0.4142636437 | W6: 10.65745483 | X6: 1.038557398 | Y6: 0.0810671524 | Z6: 2.839915798 | AA6: 5.782817024 | AB6: 8.014720142 | AC6: 0.5711468679 | AD6: 1.172947713 | AE6: 2.069425443 | AF6: 2.74650064 | AG6: 2.168356552 | AH6: 27.09735542 | AI6: 3.259344742 | AJ6: 0 | AK6: 0 | AL6: 0 | AM6: 0 | AN6: 0.05447726344 | AO6: 0.09983185778 | AP6: 0.1788254456 | AQ6: 0.09995229614 | AR6: 5.307109649 | AS6: 17.86592989 | AT6: 2.506996243 | AU6: 3.056274807 | AV6: 2.74650064 | AW6: 2.069425443 | AX6: 1.172947713 | AY6: 27.09735542 | AZ6: 27.09735542 | BA6: 2.168356552 | BB6: 0 | BC6: 0 | BD6: 0.207001413 | BE6: 0.1788254456 | BF6: 0.09983185778 | BG6: 0.05447726344 | BH6: 5.307109649 | BI6: 5.307109649 | BJ6: 0.1236391759 | BK6: 27.38967032 | BL6: 29.71708488 | BM6: 6.129281629 | BN6: 20.73824961 | BO6: 4.468659131 | BP6: 1.432960131 | BQ6: 0.1728973515 | BR6: 0.3620619572
A7: 40 | B7: 6314 | C7: 8.537892106 | D7: 9.674047108 | E7: 9.295191402 | F7: 9.769409153 | G7: 13.2914712 | H7: 21.42746771 | I7: 13.32314501 | J7: 1.009970564 | K7: 1.888215807 | L7: 0.2098824761 | M7: 2.318699343 | N7: 1.088025334 | O7: 0.7310309162 | P7: 0.1473851613 | Q7: 1.177301261 | R7: 0.1570399587 | S7: 0.19 | T7: 0.06028415163 | U7: 0.7249179237 | V7: 0.2850526404 | W7: 15.82441232 | X7: 0.7245346499 | Y7: 0.09674047108 | Z7: 2.783164179 | AA7: 9.479574122 | AB7: 7.146332825 | AC7: 0.6369160262 | AD7: 1.423160257 | AE7: 2.504941351 | AF7: 3.183347066 | AG7: 2.74763614 | AH7: 36.24576401 | AI7: 3.66301683 | AJ7: 0 | AK7: 0 | AL7: 0 | AM7: 0 | AN7: 0.06598799447 | AO7: 0.1203106542 | AP7: 0.1895140289 | AQ7: 0.1204524564 | AR7: 7.104146652 | AS7: 21.82924687 | AT7: 2.541757371 | AU7: 3.489849115 | AV7: 3.183347066 | AW7: 2.504941351 | AX7: 1.423160257 | AY7: 36.24576401 | AZ7: 36.24576401 | BA7: 2.74763614 | BB7: 0 | BC7: 0 | BD7: 0.2133342726 | BE7: 0.1895140289 | BF7: 0.1203106542 | BG7: 0.06598799447 | BH7: 7.104146652 | BI7: 7.104146652 | BJ7: 0.1561173194 | BK7: 36.60715472 | BL7: 39.13573654 | BM7: 7.690971017 | BN7: 22.99719212 | BO7: 4.759757207 | BP7: 1.701761517 | BQ7: 0.180153099 | BR7: 0.327224777
A8: 50 | B8: 6280 | C8: 6.389928521 | D8: 11.76962443 | E8: 8.613111436 | F8: 9.358677158 | G8: 12.24901804 | H8: 32.89742565 | I8: 13.15405849 | J8: 1.008250188 | K8: 1.685754492 | L8: 0.1844974533 | M8: 2.512596637 | N8: 1.659319024 | O8: 0.673695992 | P8: 0.1303829112 | Q8: 1.705577843 | R8: 0.184904518 | S8: 0.19 | T8: 0.05299285894 | U8: 0.8588565447 | V8: 0.1493936431 | W8: 24.08270281 | X8: 0.3802793649 | Y8: 0.1176962443 | Z8: 2.81242127 | AA8: 17.6828077 | AB8: 5.129601486 | AC8: 0.7384487914 | AD8: 1.735320356 | AE8: 2.97904595 | AF8: 3.633737859 | AG8: 3.560285079 | AH8: 46.44898532 | AI8: 3.876176106 | AJ8: 0 | AK8: 0 | AL8: 0 | AM8: 0 | AN8: 0.08078386294 | AO8: 0.1432234816 | AP8: 0.2010140839 | AQ8: 0.1432860697 | AR8: 9.118283373 | AS8: 28.04042533 | AT8: 2.545485584 | AU8: 3.942133853 | AV8: 3.633737859 | AW8: 2.97904595 | AX8: 1.735320356 | AY8: 46.44898532 | AZ8: 46.44898532 | BA8: 3.560285079 | BB8: 0 | BC8: 0 | BD8: 0.2219008094 | BE8: 0.2010140839 | BF8: 0.1432234816 | BG8: 0.08078386294 | BH8: 9.118283373 | BI8: 9.118283373 | BJ8: 0.2024558306 | BK8: 46.83219818 | BL8: 49.52929227 | BM8: 9.780955892 | BN8: 24.92368292 | BO8: 4.788100335 | BP8: 1.987238099 | BQ8: 0.1891146714 | BR8: 0.3009969521
A9: 60 | B9: 4565 | C9: 5.886494008 | D9: 13.22537431 | E9: 8.337360953 | F9: 9.224484252 | G9: 15.0608159 | H9: 38.73008218 | I9: 14.29012126 | J9: 1.002107577 | K9: 2.596403367 | L9: 0.2785337953 | M9: 2.402157773 | N9: 1.950890453 | O9: 0.8283448746 | P9: 0.1985035962 | Q9: 2.008708466 | R9: 0.1938702998 | S9: 0.19 | T9: 0.0800027418 | U9: 0.8625498558 | V9: 0.1395577209 | W9: 28.47232997 | X9: 0.3240987867 | Y9: 0.1322537431 | Z9: 2.718444306 | AA9: 21.38182351 | AB9: 6.346657646 | AC9: 0.73290412 | AD9: 1.856947669 | AE9: 3.152416537 | AF9: 3.769686212 | AG9: 3.945893839 | AH9: 56.26871083 | AI9: 4.151682885 | AJ9: 0 | AK9: 0 | AL9: 0 | AM9: 0 | AN9: 0.08611094508 | AO9: 0.1504048607 | AP9: 0.2029299217 | AQ9: 0.1505140049 | AR9: 11.1083774 | AS9: 33.009489 | AT9: 2.322327885 | AU9: 4.040368082 | AV9: 3.769686212 | AW9: 3.152416537 | AX9: 1.856947669 | AY9: 56.26871083 | AZ9: 56.26871083 | BA9: 3.945893839 | BB9: 0 | BC9: 0 | BD9: 0.2203104026 | BE9: 0.2029299217 | BF9: 0.1504048607 | BG9: 0.08611094508 | BH9: 11.1083774 | BI9: 11.1083774 | BJ9: 0.2232755678 | BK9: 56.38730145 | BL9: 59.06799302 | BM9: 11.23050378 | BN9: 27.51549557 | BO9: 5.02090579 | BP9: 2.146717397 | BQ9: 0.1947500095 | BR9: 0.2761482359
A10: 70 | B10: 3162 | C10: 4.938033044 | D10: 14.6280112 | E10: 8.025332501 | F10: 9.106716002 | G10: 17.30597822 | H10: 46.25463564 | I10: 14.77722993 | J10: 0.9939910332 | K10: 2.891031781 | L10: 0.3085106073 | M10: 2.363601678 | N10: 2.328314685 | O10: 0.9518288019 | P10: 0.2203399029 | Q10: 2.380884843 | R10: 0.2047568225 | S10: 0.19 | T10: 0.08861292553 | U10: 0.8695882472 | V10: 0.1244027859 | W10: 34.56055606 | X10: 0.2997646502 | Y10: 0.146280112 | Z10: 2.689127222 | AA10: 26.90664055 | AB10: 7.691315746 | AC10: 0.739570359 | AD10: 2.027552529 | AE10: 3.372864409 | AF10: 3.974418236 | AG10: 4.496894612 | AH10: 66.8533653 | AI10: 4.42476943 | AJ10: 0 | AK10: 0 | AL10: 0 | AM10: 0 | AN10: 0.09456614197 | AO10: 0.16136189 | AP10: 0.2104231723 | AQ10: 0.1614649439 | AR10: 13.29739979 | AS10: 39.74358688 | AT10: 2.40962972 | AU10: 4.225631099 | AV10: 3.974418236 | AW10: 3.372864409 | AX10: 2.027552529 | AY10: 66.8533653 | AZ10: 66.8533653 | BA10: 4.496894612 | BB10: 0 | BC10: 0 | BD10: 0.2259397189 | BE10: 0.2104231723 | BF10: 0.16136189 | BG10: 0.09456614197 | BH10: 13.29739979 | BI10: 13.29739979 | BJ10: 0.2539976641 | BK10: 66.45164564 | BL10: 69.12375793 | BM10: 12.62436441 | BN10: 29.40524113 | BO10: 5.263761683 | BP10: 2.350729165 | BQ10: 0.2047760263 | BR10: 0.2670273475
A11: 80 | B11: 2247 | C11: 5.066547675 | D11: 15.59381485 | E11: 7.911878956 | F11: 9.119863674 | G11: 20.92447467 | H11: 52.00904769 | I11: 15.62796485 | J11: 0.9987952008 | K11: 3.379652913 | L11: 0.35864414 | M11: 2.255593613 | N11: 2.614494436 | O11: 1.150846107 | P11: 0.2567533914 | Q11: 2.676010723 | R11: 0.2101585901 | S11: 0.19 | T11: 0.1030126865 | U11: 0.8632748441 | V11: 0.1355203567 | W11: 38.5137132 | X11: 0.3373652089 | Y11: 0.1559381485 | Z11: 2.638972333 | AA11: 31.38741555 | AB11: 10.5181832 | AC11: 0.725807836 | AD11: 2.153304146 | AE11: 3.55437424 | AF11: 4.157957566 | AG11: 4.883116645 | AH11: 76.40522824 | AI11: 4.756781047 | AJ11: 0 | AK11: 0 | AL11: 0 | AM11: 0 | AN11: 0.1007548547 | AO11: 0.1702527462 | AP11: 0.2184363841 | AQ11: 0.1703697324 | AR11: 15.12980642 | AS11: 44.61350109 | AT11: 2.489406146 | AU11: 4.397255341 | AV11: 4.157957566 | AW11: 3.55437424 | AX11: 2.153304146 | AY11: 76.40522824 | AZ11: 76.40522824 | BA11: 4.883116645 | BB11: 0 | BC11: 0 | BD11: 0.2329474495 | BE11: 0.2184363841 | BF11: 0.1702527462 | BG11: 0.1007548547 | BH11: 15.12980642 | BI11: 15.12980642 | BJ11: 0.275054717 | BK11: 76.31317528 | BL11: 78.92741303 | BM11: 13.59499358 | BN11: 31.2217797 | BO11: 5.613329261 | BP11: 2.52796009 | BQ11: 0.2158901942 | BR11: 0.2637565784
A12: 90 | B12: 1394 | C12: 5.082841217 | D12: 16.58582518 | E12: 7.849100582 | F12: 9.144654333 | G12: 24.71575767 | H12: 57.95290617 | I12: 16.1199272 | J12: 0.9928230665 | K12: 3.661509398 | L12: 0.3874293814 | M12: 2.167985504 | N12: 2.910713394 | O12: 1.359366672 | P12: 0.2776928725 | Q12: 2.977797363 | R12: 0.2162555729 | S12: 0.19 | T12: 0.1112806176 | U12: 0.8353489694 | V12: 0.1574740971 | W12: 41.24838125 | X12: 0.3722510734 | Y12: 0.1658582518 | Z12: 2.607952779 | AA12: 36.20842731 | AB12: 13.89303549 | AC12: 0.7137066133 | AD12: 2.284377962 | AE12: 3.710437769 | AF12: 4.30899346 | AG12: 5.35549399 | AH12: 86.95423802 | AI12: 5.056451832 | AJ12: 0 | AK12: 0 | AL12: 0 | AM12: 0 | AN12: 0.1074552847 | AO12: 0.1783241905 | AP12: 0.2251320946 | AQ12: 0.1784402407 | AR12: 17.31433495 | AS12: 49.3786223 | AT12: 2.363887651 | AU12: 4.533657622 | AV12: 4.30899346 | AW12: 3.710437769 | AX12: 2.284377962 | AY12: 86.95423802 | AZ12: 86.95423802 | BA12: 5.35549399 | BB12: 0 | BC12: 0 | BD12: 0.2385366444 | BE12: 0.2251320946 | BF12: 0.1783241905 | BG12: 0.1074552847 | BH12: 17.31433495 | BI12: 17.31433495 | BJ12: 0.3012400011 | BK12: 86.33017323 | BL12: 88.88558812 | BM12: 14.58326608 | BN12: 32.70575237 | BO12: 5.919810606 | BP12: 2.717735617 | BQ12: 0.2260657181 | BR12: 0.2634093536
A13: 100 | B13: 945 | C13: 6.157383433 | D13: 16.95314492 | E13: 8.026132694 | F13: 9.387471892 | G13: 31.78316636 | H13: 60.29714613 | I13: 16.76245329 | J13: 1.001914864 | K13: 4.158594081 | L13: 0.4409092983 | M13: 1.961414289 | N13: 3.027435614 | O13: 1.74807415 | P13: 0.3157435187 | Q13: 3.111957973 | R13: 0.214141316 | S13: 0.19 | T13: 0.1266415543 | U13: 0.7975703111 | V13: 0.2043445529 | W13: 43.57917106 | X13: 0.4536506577 | Y13: 0.1695314492 | Z13: 2.556307218 | AA13: 38.6153831 | AB13: 20.90065252 | AC13: 0.6697472208 | AD13: 2.372556904 | AE13: 3.793542975 | AF13: 4.406640108 | AG13: 5.741337794 | AH13: 96.05497436 | AI13: 5.493784557 | AJ13: 0 | AK13: 0 | AL13: 0 | AM13: 0 | AN13: 0.111894483 | AO13: 0.1824902674 | AP13: 0.2302919968 | AQ13: 0.1826316828 | AR13: 18.96621046 | AS13: 54.63991131 | AT13: 2.22002814 | AU13: 4.618520413 | AV13: 4.406640108 | AW13: 3.793542975 | AX13: 2.372556904 | AY13: 96.05497436 | AZ13: 96.05497436 | BA13: 5.741337794 | BB13: 0 | BC13: 0 | BD13: 0.2429136564 | BE13: 0.2302919968 | BF13: 0.1824902674 | BG13: 0.111894483 | BH13: 18.96621046 | BI13: 18.96621046 | BJ13: 0.3224096773 | BK13: 96.23890658 | BL13: 98.64123016 | BM13: 14.95784327 | BN13: 33.71559821 | BO13: 6.43400956 | BP13: 2.925685303 | BQ13: 0.24035769 | BR13: 0.2677373003
A14: 110 | B14: 614 | C14: 6.593034714 | D14: 17.40869582 | E14: 8.012137248 | F14: 9.462824982 | G14: 34.80264983 | H14: 67.06999409 | I14: 17.06637719 | J14: 1.005975363 | K14: 4.283508963 | L14: 0.4502255526 | M14: 1.931685047 | N14: 3.36643373 | O14: 1.914145741 | P14: 0.3236466143 | Q14: 3.447404369 | R14: 0.2183066004 | S14: 0.19 | T14: 0.1293174446 | U14: 0.8012233162 | V14: 0.204752047 | W14: 46.50317997 | X14: 0.4460310491 | Y14: 0.1740869582 | Z14: 2.549102519 | AA14: 44.98129596 | AB14: 23.84578585 | AC14: 0.6721560749 | AD14: 2.553168393 | AE14: 4.077188318 | AF14: 4.729926943 | AG14: 6.220192586 | AH14: 105.5255991 | AI14: 5.894108148 | AJ14: 0 | AK14: 0 | AL14: 0 | AM14: 0 | AN14: 0.1209202143 | AO14: 0.1968747659 | AP14: 0.2466824524 | AQ14: 0.1970045796 | AR14: 20.75863555 | AS14: 58.04022303 | AT14: 2.178396044 | AU14: 4.951882989 | AV14: 4.729926943 | AW14: 4.077188318 | AX14: 2.553168393 | AY14: 105.5255991 | AZ14: 105.5255991 | BA14: 6.220192586 | BB14: 0 | BC14: 0 | BD14: 0.2598413339 | BE14: 0.2466824524 | BF14: 0.1968747659 | BG14: 0.1209202143 | BH14: 20.75863555 | BI14: 20.75863555 | BJ14: 0.3490489055 | BK14: 106.1561529 | BL14: 108.5380635 | BM14: 15.41534311 | BN14: 34.47507301 | BO14: 6.886395723 | BP14: 3.148305543 | BQ14: 0.2580224282 | BR14: 0.2810685186
A15: 120 | B15: 284 | C15: 3.218147446 | D15: 20.82730391 | E15: 6.949613483 | F15: 8.740725784 | G15: 26.08546947 | H15: 84.41604516 | I15: 17.02548272 | J15: 1.025346649 | K15: 5.10001855 | L15: 0.5322254288 | M15: 2.176241114 | N15: 4.23484575 | O15: 1.434700821 | P15: 0.3837352856 | Q15: 4.314820565 | R15: 0.2565532629 | S15: 0.19 | T15: 0.1528701159 | U15: 0.9827756413 | V15: 0.04257100787 | W15: 57.52031267 | X15: 0.2173029365 | Y15: 0.2082730391 | Z15: 2.467774571 | AA15: 57.64200767 | AB15: 13.06406399 | AC15: 0.7743501426 | AD15: 2.711609785 | AE15: 4.265451675 | AF15: 4.807191438 | AG15: 6.78991222 | AH15: 112.7438543 | AI15: 5.413988542 | AJ15: 0 | AK15: 0 | AL15: 0 | AM15: 0 | AN15: 0.1285038173 | AO15: 0.2058817435 | AP15: 0.2467247104 | AQ15: 0.2060031122 | AR15: 21.79262308 | AS15: 58.5284273 | AT15: 5.104481837 | AU15: 5.021290049 | AV15: 4.807191438 | AW15: 4.265451675 | AX15: 2.711609785 | AY15: 112.7438543 | AZ15: 112.7438543 | BA15: 6.78991222 | BB15: 0 | BC15: 0 | BD15: 0.2589388034 | BE15: 0.2467247104 | BF15: 0.2058817435 | BG15: 0.1285038173 | BH15: 21.79262308 | BI15: 21.79262308 | BJ15: 0.381055043 | BK15: 115.6015332 | BL15: 118.3099997 | BM15: 18.85265056 | BN15: 37.85278663 | BO15: 6.131845113 | BP15: 3.125529459 | BQ15: 0.2425330923 | BR15: 0.2635920204
A16: 130 | B16: 164 | C16: -0.2246858493 | D16: 23.84906771 | E16: 6.069141493 | F16: 8.071486265 | G16: 14.3542813 | H16: 107.4557939 | I16: 15.85255265 | J16: 1.030215356 | K16: 4.203215661 | L16: 0.4338539376 | M16: 2.537792828 | N16: 5.389362377 | O16: 0.7894854717 | P16: 0.314300692 | Q16: 5.413979266 | R16: 0.2939493339 | S16: 0.19 | T16: 0.1246150562 | U16: 1.005571043 | V16: 0.02464431341 | W16: 64.06004584 | X16: 0.0597853247 | Y16: 0.2384906771 | Z16: 2.566146062 | AA16: 76.8258823 | AB16: 1.40043714 | AC16: 0.8860891482 | AD16: 3.024887388 | AE16: 4.62931018 | AF16: 5.130933133 | AG16: 7.949085151 | AH16: 122.3174262 | AI16: 5.18443145 | AJ16: 0 | AK16: 0 | AL16: 0 | AM16: 0 | AN16: 0.1447786577 | AO16: 0.225441799 | AP16: 0.261101594 | AQ16: 0.2254979624 | AR16: 23.54046058 | AS16: 63.70514176 | AT16: 2.425927787 | AU16: 5.355587648 | AV16: 5.130933133 | AW16: 4.62931018 | AX16: 3.024887388 | AY16: 122.3174262 | AZ16: 122.3174262 | BA16: 7.949085151 | BB16: 0 | BC16: 0 | BD16: 0.2735838642 | BE16: 0.261101594 | BF16: 0.225441799 | BG16: 0.1447786577 | BH16: 23.54046058 | BI16: 23.54046058 | BJ16: 0.4474601422 | BK16: 126.0132908 | BL16: 128.9849376 | BM16: 21.87928307 | BN16: 39.70162036 | BO16: 5.759479889 | BP16: 3.248858269 | BQ16: 0.2524113122 | BR16: 0.2725678138
A17: 140 | B17: 101 | C17: -0.5024398069 | D17: 24.6879757 | E17: 5.639972044 | F17: 7.918322575 | G17: 12.25931246 | H17: 120.1783669 | I17: 15.47707281 | J17: 1.035720368 | K17: 4.027403183 | L17: 0.4134351693 | M17: 2.586564831 | N17: 6.026842775 | O17: 0.6742621854 | P17: 0.3002340939 | Q17: 6.043320139 | R17: 0.3048388248 | S17: 0.19 | T17: 0.1187502115 | U17: 1.035720368 | V17: 0 | W17: 73.05566461 | X17: 0 | Y17: 0.246879757 | Z17: 2.586564831 | AA17: 89.2227616 | AB17: 0 | AC17: 0.9101652069 | AD17: 3.280641042 | AE17: 4.963032872 | AF17: 5.488386646 | AG17: 8.817241107 | AH17: 131.7586163 | AI17: 5.421658 | AJ17: 0 | AK17: 0 | AL17: 0 | AM17: 0 | AN17: 0.1579770626 | AO17: 0.2430613233 | AP17: 0.2794735598 | AQ17: 0.2431054767 | AR17: 25.23370991 | AS17: 70.5360895 | AT17: 0 | AU17: 5.726941593 | AV17: 5.488386646 | AW17: 4.963032872 | AX17: 3.280641042 | AY17: 131.7586163 | AZ17: 131.7586163 | BA17: 8.817241107 | BB17: 0 | BC17: 0 | BD17: 0.2926896619 | BE17: 0.2794735598 | BF17: 0.2430613233 | BG17: 0.1579770626 | BH17: 25.23370991 | BI17: 25.23370991 | BJ17: 0.4968815122 | BK17: 136.4650826 | BL17: 139.4650826 | BM17: 22.72369607 | BN17: 40.16504851 | BO17: 6.005408722 | BP17: 3.472299618 | BQ17: 0.2701737385 | BR17: 0.2880619098
A18: 150 | B18: 72 | C18: -2.125792112 | D18: 26.07155813 | E18: 5.472369535 | F18: 7.74598804 | G18: 11.33680399 | H18: 130.2594707 | I18: 15.42726364 | J18: 1.062335137 | K18: 4.280655046 | L18: 0.4417523688 | M18: 2.558247631 | N18: 6.530875762 | O18: 0.6235242192 | P18: 0.3200394135 | Q18: 6.548240414 | R18: 0.316667689 | S18: 0.19 | T18: 0.1268837078 | U18: 1.04798189 | V18: 0.01435324653 | W18: 73.64893726 | X18: 0.02690169384 | Y18: 0.2607155813 | Z18: 2.558247631 | AA18: 99.06942851 | AB18: 0 | AC18: 0.9222851481 | AD18: 3.412915301 | AE18: 5.084411937 | AF18: 5.593873732 | AG18: 9.455787696 | AH18: 137.3172408 | AI18: 5.486751506 | AJ18: 0 | AK18: 0 | AL18: 0 | AM18: 0 | AN18: 0.1646860068 | AO18: 0.2492770316 | AP18: 0.2843684402 | AQ18: 0.2493211565 | AR18: 25.69439345 | AS18: 70.27691791 | AT18: 1.874258467 | AU18: 5.831427812 | AV18: 5.593873732 | AW18: 5.084411937 | AX18: 3.412915301 | AY18: 137.3172408 | AZ18: 137.3172408 | BA18: 9.455787696 | BB18: 0 | BC18: 0 | BD18: 0.297458948 | BE18: 0.2843684402 | BF18: 0.2492770316 | BG18: 0.1646860068 | BH18: 25.69439345 | BI18: 25.69439345 | BJ18: 0.5329475534 | BK18: 145.8769297 | BL18: 148.8769297 | BM18: 24.13389327 | BN18: 41.49882177 | BO18: 6.044483919 | BP18: 3.58749775 | BQ18: 0.2751045137 | BR18: 0.2901290044
A19: 160 | B19: 39 | C19: -3.186639168 | D19: 26.65757641 | E19: 5.386884615 | F19: 7.761346158 | G19: 10.75080451 | H19: 141.4187201 | I19: 14.4868518 | J19: 1.037597703 | K19: 3.930359212 | L19: 0.4033840404 | M19: 2.59661596 | N19: 7.088723768 | O19: 0.5912942478 | P19: 0.2929590911 | Q19: 7.101826997 | R19: 0.324614272 | S19: 0.19 | T19: 0.1158632445 | U19: 1.011405058 | V19: 0.02619264422 | W19: 76.4214958 | X19: 0.08229617535 | Y19: 0.2665757641 | Z19: 2.59661596 | AA19: 109.9031007 | AB19: 0 | AC19: 0.9311286835 | AD19: 3.69517496 | AE19: 5.370352537 | AF19: 5.902809092 | AG19: 10.77527995 | AH19: 150.4435519 | AI19: 5.744678952 | AJ19: 0 | AK19: 0 | AL19: 0 | AM19: 0 | AN19: 0.1794023849 | AO19: 0.2647240559 | AP19: 0.3005970888 | AQ19: 0.2647572818 | AR19: 28.7643224 | AS19: 75.55973264 | AT19: 3.141957515 | AU19: 6.143870225 | AV19: 5.902809092 | AW19: 5.370352537 | AX19: 3.69517496 | AY19: 150.4435519 | AZ19: 150.4435519 | BA19: 10.77527995 | BB19: 0 | BC19: 0 | BD19: 0.3138653183 | BE19: 0.3005970888 | BF19: 0.2647240559 | BG19: 0.1794023849 | BH19: 28.7643224 | BI19: 28.7643224 | BJ19: 0.6092572514 | BK19: 156.0998838 | BL19: 159.0998838 | BM19: 24.69517411 | BN19: 41.14442821 | BO19: 6.321068363 | BP19: 3.866863405 | BQ19: 0.2912056067 | BR19: 0.3050879448
A20: 170 | B20: 35 | C20: -0.9742676621 | D20: 24.49669361 | E20: 6.109799896 | F20: 8.127453422 | G20: 12.07354596 | H20: 151.268716 | I20: 14.97927616 | J20: 1.07045273 | K20: 2.570080248 | L20: 0.2673353256 | M20: 2.732664674 | N20: 7.582045189 | O20: 0.6640450277 | P20: 0.1930152808 | Q20: 7.588059837 | R20: 0.3063527547 | S20: 0.19 | T20: 0.07678622628 | U20: 1.011430718 | V20: 0.0590220114 | W20: 65.95196551 | X20: 0.147044261 | Y20: 0.2449669361 | Z20: 2.732664674 | AA20: 119.198104 | AB20: 0 | AC20: 0.9272293683 | AD20: 4.085841968 | AE20: 6.153135285 | AF20: 6.840548457 | AG20: 11.07612547 | AH20: 154.9926845 | AI20: 6.606616946 | AJ20: 0 | AK20: 0 | AL20: 0 | AM20: 0 | AN20: 0.2003496793 | AO20: 0.3067448146 | AP20: 0.3516451026 | AQ20: 0.3067596069 | AR20: 28.80090755 | AS20: 65.20660715 | AT20: 2.491346152 | AU20: 7.156393401 | AV20: 6.840548457 | AW20: 6.153135285 | AX20: 4.085841968 | AY20: 154.9926845 | AZ20: 154.9926845 | BA20: 11.07612547 | BB20: 0 | BC20: 0 | BD20: 0.3692386026 | BE20: 0.3516451026 | BF20: 0.3067448146 | BG20: 0.2003496793 | BH20: 28.80090755 | BI20: 28.80090755 | BJ20: 0.6251772514 | BK20: 165.9123422 | BL20: 168.9123422 | BM20: 22.56714634 | BN20: 39.47596977 | BO20: 7.351941613 | BP20: 4.278864921 | BQ20: 0.3405287839 | BR20: 0.3563063379
A21: 180 | B21: 15 | C21: -0.4164012018 | D21: 24.3767052 | E21: 5.890703128 | F21: 7.871515415 | G21: 14.46466327 | H21: 158.9791654 | I21: 14.50648745 | J21: 0.9795829074 | K21: 2.524846427 | L21: 0.2580008325 | M21: 2.741999167 | N21: 7.968920184 | O21: 0.79555648 | P21: 0.1877295991 | Q21: 7.975174195 | R21: 0.3052736997 | S21: 0.19 | T21: 0.07410509726 | U21: 0.9795829074 | V21: 0 | W21: 62.95802868 | X21: 0 | Y21: 0.243767052 | Z21: 2.741999167 | AA21: 124.6830604 | AB21: 0 | AC21: 0.917799783 | AD21: 4.3645718 | AE21: 6.50836895 | AF21: 7.250211305 | AG21: 12.13034345 | AH21: 179.6363266 | AI21: 7.058157499 | AJ21: 0 | AK21: 0 | AL21: 0 | AM21: 0 | AN21: 0.2145275974 | AO21: 0.3251706058 | AP21: 0.3732338391 | AQ21: 0.3251838229 | AR21: 36.21600258 | AS21: 64.27024012 | AT21: 0 | AU21: 7.555140527 | AV21: 7.250211305 | AW21: 6.50836895 | AX21: 4.3645718 | AY21: 179.6363266 | AZ21: 179.6363266 | BA21: 12.13034345 | BB21: 0 | BC21: 0 | BD21: 0.3902461255 | BE21: 0.3732338391 | BF21: 0.3251706058 | BG21: 0.2145275974 | BH21: 36.21600258 | BI21: 36.21600258 | BJ21: 0.6858255056 | BK21: 175.9686751 | BL21: 178.9686751 | BM21: 22.35628811 | BN21: 38.88319265 | BO21: 7.871104283 | BP21: 4.602725827 | BQ21: 0.3617443751 | BR21: 0.3769545398
A22: 190 | B22: 16 | C22: -4.344517002 | D22: 26.1698019 | E22: 5.294086702 | F22: 7.686867939 | G22: 10.19183973 | H22: 174.0573884 | I22: 14.24699379 | J22: 1.046410364 | K22: 2.502962254 | L22: 0.2567586686 | M22: 2.743241331 | N22: 8.72132457 | O22: 0.5605511852 | P22: 0.1865001396 | Q22: 8.726106501 | R22: 0.3218304969 | S22: 0.19 | T22: 0.07374831285 | U22: 1.046410364 | V22: 0 | W22: 77.33186179 | X22: 0 | Y22: 0.261698019 | Z22: 2.743241331 | AA22: 142.1522986 | AB22: 0 | AC22: 0.9454258624 | AD22: 4.52985923 | AE22: 6.611423629 | AF22: 7.308232168 | AG22: 13.10818219 | AH22: 178.4693623 | AI22: 6.972027869 | AJ22: 0 | AK22: 0 | AL22: 0 | AM22: 0 | AN22: 0.2231889184 | AO22: 0.3307095431 | AP22: 0.3753598495 | AQ22: 0.3307206909 | AR22: 33.85926451 | AS22: 73.90204117 | AT22: 0 | AU22: 7.620278819 | AV22: 7.308232168 | AW22: 6.611423629 | AX22: 4.52985923 | AY22: 178.4693623 | AZ22: 178.4693623 | BA22: 13.10818219 | BB22: 0 | BC22: 0 | BD22: 0.3926349306 | BE22: 0.3753598495 | BF22: 0.3307095431 | BG22: 0.2231889184 | BH22: 33.85926451 | BI22: 33.85926451 | BJ22: 0.7418412174 | BK22: 186.7521904 | BL22: 189.7521904 | BM22: 24.21621226 | BN22: 40.41679569 | BO22: 7.711866264 | BP22: 4.694884568 | BQ22: 0.3641173898 | BR22: 0.3768059631
A23: 200 | B23: 12 | C23: 0.4037829622 | D23: 25.33779776 | E23: 5.950613309 | F23: 8.209494025 | G23: 12.6768696 | H23: 180.0090249 | I23: 16.32163925 | J23: 1.045753941 | K23: 3.526394393 | L23: 0.3604512231 | M23: 2.639548777 | N23: 9.019705345 | O23: 0.6972278278 | P23: 0.2622694127 | Q23: 9.028266112 | R23: 0.3123768245 | S23: 0.19 | T23: 0.1035317316 | U23: 1.045753941 | V23: 0 | W23: 72.97302689 | X23: 0 | Y23: 0.2533779776 | Z23: 2.639548777 | AA23: 147.474998 | AB23: 0 | AC23: 0.9353920712 | AD23: 4.593910658 | AE23: 7.08829254 | AF23: 7.871655349 | AG23: 12.02160432 | AH23: 187.6275874 | AI23: 7.550624389 | AJ23: 0 | AK23: 0 | AL23: 0 | AM23: 0 | AN23: 0.2251352968 | AO23: 0.3532386673 | AP23: 0.4037974854 | AQ23: 0.353260575 | AR23: 35.61723278 | AS23: 69.78030303 | AT23: 0 | AU23: 8.216361403 | AV23: 7.871655349 | AW23: 7.08829254 | AX23: 4.593910658 | AY23: 187.6275874 | AZ23: 187.6275874 | BA23: 12.02160432 | BB23: 0 | BC23: 0 | BD23: 0.4229671443 | BE23: 0.4037974854 | BF23: 0.3532386673 | BG23: 0.2251352968 | BH23: 35.61723278 | BI23: 35.61723278 | BJ23: 0.675835798 | BK23: 196.2122889 | BL23: 199.2122889 | BM23: 23.3835517 | BN23: 41.65943701 | BO23: 8.391038772 | BP23: 4.781924655 | BQ23: 0.3908173898 | BR23: 0.4019957915
A24: 210 | B24: 3 | C24: -5.481482 | D24: 34.57576004 | E24: 4.858823548 | F24: 7.135537507 | G24: 15.95983679 | H24: 186.7804514 | I24: 16.20272165 | J24: 1.31575185 | K24: 5.844737966 | L24: 0.5912453632 | M24: 2.408754637 | N24: 9.356018439 | O24: 0.8777910234 | P24: 0.4321878954 | Q24: 9.368925585 | R24: 0.3878760179 | S24: 0.19 | T24: 0.1698223014 | U24: 1.31575185 | V24: 0 | W24: 79.21801214 | X24: 0 | Y24: 0.3457576004 | Z24: 2.408754637 | AA24: 143.7738407 | AB24: 0 | AC24: 0.9234852229 | AD24: 3.948933963 | AE24: 5.465789666 | AF24: 5.874360171 | AG24: 12.87345612 | AH24: 158.5291529 | AI24: 5.895127149 | AJ24: 0 | AK24: 0 | AL24: 0 | AM24: 0 | AN24: 0.1916340078 | AO24: 0.2683870965 | AP24: 0.2961545062 | AQ24: 0.2684290357 | AR24: 24.4965003 | AS24: 60.2074108 | AT24: 0 | AU24: 6.100413391 | AV24: 5.874360171 | AW24: 5.465789666 | AX24: 3.948933963 | AY24: 158.5291529 | AZ24: 158.5291529 | BA24: 12.87345612 | BB24: 0 | BC24: 0 | BD24: 0.3083344304 | BE24: 0.2961545062 | BF24: 0.2683870965 | BG24: 0.1916340078 | BH24: 24.4965003 | BI24: 24.4965003 | BJ24: 0.7239541215 | BK24: 208.5850262 | BL24: 211.5850262 | BM24: 32.89151189 | BN24: 50.77848169 | BO24: 6.341606517 | BP24: 4.16682459 | BQ24: 0.2892585368 | BR24: 0.2954559837
A25: 220 | B25: 5 | C25: -0.4731834463 | D25: 19.02317437 | E25: 7.297041413 | F25: 8.579706175 | G25: 12.83807111 | H25: 201.6632738 | I25: 14.34562245 | J25: 1.031496822 | K25: 2.385840515 | L25: 0.2407219931 | M25: 2.759278007 | N25: 10.1007338 | O25: 0.7060939113 | P25: 0.1761941471 | Q25: 10.10594356 | R25: 0.2643549426 | S25: 0.19 | T25: 0.0691421285 | U25: 1.031496822 | V25: 0 | W25: 41.32210283 | X25: 0 | Y25: 0.1902317437 | Z25: 2.759278007 | AA25: 174.1563721 | AB25: 0 | AC25: 0.9408076089 | AD25: 6.366893415 | AE25: 10.35576209 | AF25: 12.00739932 | AG25: 15.11870163 | AH25: 210.2645214 | AI25: 10.96438747 | AJ25: 0 | AK25: 0 | AL25: 0 | AM25: 0 | AN25: 0.315044784 | AO25: 0.523675871 | AP25: 0.6277722062 | AQ25: 0.5236872894 | AR25: 40.42005393 | AS25: 40.06032977 | AT25: 0 | AU25: 12.73462484 | AV25: 12.00739932 | AW25: 10.35576209 | AX25: 6.366893415 | AY25: 210.2645214 | AZ25: 210.2645214 | BA25: 15.11870163 | BB25: 0 | BC25: 0 | BD25: 0.6700270767 | BE25: 0.6277722062 | BF25: 0.523675871 | BG25: 0.315044784 | BH25: 40.42005393 | BI25: 40.42005393 | BJ25: 0.8552984616 | BK25: 216.8871855 | BL25: 219.8871855 | BM25: 17.05467119 | BN25: 33.36879682 | BO25: 12.71717192 | BP25: 6.589604854 | BQ25: 0.6001737718 | BR25: 0.6139532157
A26: 230 | B26: 3 | C26: -5.885204513 | D26: 21.50273091 | E26: 6.869709243 | F26: 8.136346726 | G26: 6.098407021 | H26: 219.4628041 | I26: 13.75921364 | J26: 1.070306891 | K26: 0.950473507 | L26: 0.09881390164 | M26: 2.901186098 | N26: 10.99925694 | O26: 0.3354123862 | P26: 0.07134527464 | Q26: 10.99992616 | R26: 0.2862860326 | S26: 0.19 | T26: 0.02838213242 | U26: 1.070306891 | V26: 0 | W26: 41.56865032 | X26: 0 | Y26: 0.2150273091 | Z26: 2.901186098 | AA26: 194.7418327 | AB26: 0 | AC26: 0.9730768546 | AD26: 6.403085474 | AE26: 9.910001766 | AF26: 11.27766969 | AG26: 16.46254578 | AH26: 211.6324641 | AI26: 10.1675143 | AJ26: 0 | AK26: 0 | AL26: 0 | AM26: 0 | AN26: 0.3196085398 | AO26: 0.5038943896 | AP26: 0.5880080319 | AQ26: 0.5038959623 | AR26: 39.33066146 | AS26: 38.83806662 | AT26: 0 | AU26: 11.91247274 | AV26: 11.27766969 | AW26: 9.910001766 | AX26: 6.403085474 | AY26: 211.6324641 | AZ26: 211.6324641 | BA26: 16.46254578 | BB26: 0 | BC26: 0 | BD26: 0.624110003 | BE26: 0.5880080319 | BF26: 0.5038943896 | BG26: 0.3196085398 | BH26: 39.33066146 | BI26: 39.33066146 | BJ26: 0.9335419703 | BK26: 226.5116846 | BL26: 229.5116846 | BM26: 19.5730378 | BN26: 35.26194455 | BO26: 11.57263818 | BP26: 6.508764264 | BQ26: 0.5669273517 | BR26: 0.5799478189
A27: 240 | B27: 3 | C27: -1.711033167 | D27: 31.62011089 | E27: 5.365671714 | F27: 7.775798322 | G27: 15.34174767 | H27: 213.3882508 | I27: 17.08819181 | J27: 1.193567227 | K27: 5.193974223 | L27: 0.5247956517 | M27: 2.475204348 | N27: 10.68541521 | O27: 0.8437961218 | P27: 0.3838400015 | Q27: 10.69858405 | R27: 0.3636038152 | S27: 0.19 | T27: 0.1507360749 | U27: 1.193567227 | V27: 0 | W27: 81.29516091 | X27: 0 | Y27: 0.3162011089 | Z27: 2.475204348 | AA27: 173.4267992 | AB27: 0 | AC27: 0.9344156672 | AD27: 4.656303211 | AE27: 6.768887293 | AF27: 7.350909481 | AG27: 13.6892174 | AH27: 195.9872618 | AI27: 7.220280879 | AJ27: 0 | AK27: 0 | AL27: 0 | AM27: 0 | AN27: 0.2276164703 | AO27: 0.3353565797 | AP27: 0.3733898498 | AQ27: 0.3353881909 | AR27: 33.00823372 | AS27: 68.1110867 | AT27: 0 | AU27: 7.637364714 | AV27: 7.350909481 | AW27: 6.768887293 | AX27: 4.656303211 | AY27: 195.9872618 | AZ27: 195.9872618 | BA27: 13.6892174 | BB27: 0 | BC27: 0 | BD27: 0.3890023377 | BE27: 0.3733898498 | BF27: 0.3353565797 | BG27: 0.2276164703 | BH27: 33.00823372 | BI27: 33.00823372 | BJ27: 0.7681380186 | BK27: 233.9239727 | BL27: 236.9239727 | BM27: 29.81367812 | BN27: 48.7083027 | BO27: 7.846196359 | BP27: 4.864139368 | BQ27: 0.3635373236 | BR27: 0.36951133
A28: 250 | B28: 1 | C28: 8.19975007 | D28: 25.80661667 | E28: 5.903888889 | F28: 7.8 | G28: 13.00972222 | H28: 231.65 | I28: 13.35933333 | J28: 1.032210572 | K28: 0.5652513387 | L28: 0.05759616869 | M28: 2.942403831 | N28: 11.6026993 | O28: 0.7155347222 | P28: 0.04196182905 | Q28: 11.60277518 | R28: 0.3145939969 | S28: 0.19 | T28: 0.01654323996 | U28: 1.032210572 | V28: 0 | W28: 60.79312433 | X28: 0 | Y28: 0.2580661667 | Z28: 2.942403831 | AA28: 195.3667019 | AB28: 0 | AC28: 0.9469478086 | AD28: 6.116285165 | AE28: 8.781909719 | AF28: 9.763479858 | AG28: 18.35607866 | AH28: 237.5726235 | AI28: 9.248726532 | AJ28: 0 | AK28: 0 | AL28: 0 | AM28: 0 | AN28: 0.305826635 | AO28: 0.4453079716 | AP28: 0.5059604737 | AQ28: 0.4453084 | AR28: 45.64061432 | AS28: 58.89604892 | AT28: 0 | AU28: 10.1819246 | AV28: 9.763479858 | AW28: 8.781909719 | AX28: 6.116285165 | AY28: 237.5726235 | AZ28: 237.5726235 | BA28: 18.35607866 | BB28: 0 | BC28: 0 | BD28: 0.5292670049 | BE28: 0.5059604737 | BF28: 0.4453079716 | BG28: 0.305826635 | BH28: 45.64061432 | BI28: 45.64061432 | BJ28: 1.042792151 | BK28: 245.2249736 | BL28: 248.2249736 | BM28: 23.83882724 | BN28: 39.16595 | BO28: 10.28678849 | BP28: 6.337774867 | BQ28: 0.4915293286 | BR28: 0.5027737403
A29: 260 | B29: 2 | C29: 2.25 | D29: 17.70909951 | E29: 6.327157942 | F29: 8.849723184 | G29: 9.198093673 | H29: 248.6273659 | I29: 13.07417787 | J29: 1.078640551 | K29: 0.31289708 | L29: 0.03164537602 | M29: 2.968354624 | N29: 12.45105154 | O29: 0.505895152 | P29: 0.02313390487 | Q29: 12.45108763 | R29: 0.2566671706 | S29: 0.19 | T29: 0.00908944225 | U29: 1.078640551 | V29: 0 | W29: 82.36524318 | X29: 0 | Y29: 0.1770909951 | Z29: 2.968354624 | AA29: 223.9544292 | AB29: 0 | AC29: 0.9643675826 | AD29: 8.310084523 | AE29: 13.43731175 | AF29: 15.80642798 | AG29: 19.74413682 | AH29: 239.3182385 | AI29: 13.89940226 | AJ29: 0 | AK29: 0 | AL29: 0 | AM29: 0 | AN29: 0.4166733003 | AO29: 0.689088497 | AP29: 0.8348534423 | AQ29: 0.6890886675 | AR29: 44.16248021 | AS29: 76.36023242 | AT29: 0 | AU29: 16.92423543 | AV29: 15.80642798 | AW29: 13.43731175 | AX29: 8.310084523 | AY29: 239.3182385 | AZ29: 239.3182385 | BA29: 19.74413682 | BB29: 0 | BC29: 0 | BD29: 0.9006251902 | BE29: 0.8348534423 | BF29: 0.689088497 | BG29: 0.4166733003 | BH29: 44.16248021 | BI29: 44.16248021 | BJ29: 1.123195418 | BK29: 258.1383566 | BL29: 261.1383566 | BM29: 15.78774006 | BN29: 30.78327738 | BO29: 16.35055782 | BP29: 8.48312392 | BQ29: 0.7971246915 | BR29: 0.8105475433

Sheet BinResultsODA1Y
C1: 1 | D1: =C1+1 -> 2 | E1: 3 | F1: 4 | G1: 5 | H1: 6 | I1: 7 | J1: 8 | K1: 9 | L1: 10 | M1: 11 | N1: 12 | O1: 13 | P1: 14 | Q1: 15 | R1: 16 | S1: 17 | T1: =S1+1 -> 18 | U1: =T1+1 -> 19 | V1: =U1+1 -> 20 | W1: =V1+1 -> 21 | X1: =W1+1 -> 22 | Y1: =X1+1 -> 23 | Z1: =Y1+1 -> 24 | AA1: =Z1+1 -> 25 | AB1: =AA1+1 -> 26 | AC1: =AB1+1 -> 27 | AD1: =AC1+1 -> 28 | AE1: =AD1+1 -> 29 | AF1: =AE1+1 -> 30 | AG1: =AF1+1 -> 31 | AH1: =AG1+1 -> 32 | AI1: =AH1+1 -> 33 | AJ1: =AI1+1 -> 34 | AK1: =AJ1+1 -> 35 | AL1: =AK1+1 -> 36 | AM1: =AL1+1 -> 37 | AN1: =AM1+1 -> 38 | AO1: =AN1+1 -> 39 | AP1: =AO1+1 -> 40 | AQ1: =AP1+1 -> 41 | AR1: =AQ1+1 -> 42 | AS1: =AR1+1 -> 43 | AT1: =AS1+1 -> 44 | AU1: =AT1+1 -> 45
A2: ODA Temperature (°C) | B2: Count | C2: ODA Temperature (°C) | D2: EL 007 (kW) | E2: GHE EFT (°C) | F2: GHE ExFT (°C) | G2: Clg Provided (kW) | H2: Bldg Htg Provided (kW) | I2: EL 003 (kW) | J2: CP Energy (kW) | K2: DHW Provided by HP (kW) | L2: DHW by LPS (kW) | M2: Useful Bldg Htg by LPS (kW) | N2: Bldg Htg Uncertainty (kW) | O2: Bldg Clg Uncertainty (kW) | P2: DHW Htg by HP Uncertainty (kW) | Q2: Bldg + DHW Htg by HP Uncertainty (kW) | R2: EL007+EL011 Uncertainty (kW) | S2: EL011 Uncertainty (kW) | T2: LPS DHW Uncertainty (kW) | U2: CP Power for Heat Extraction from GHE (kW) | V2: CP Power for Heat Rejection to GHE (kW) | W2: Heat Extraction by GHE (kW) | X2: Heat Rejection to GHE (kW) | Y2: EL007 Uncertainty (kW) | Z2: LPS Electricity going to bldg heat (kW) | AA2: Alt Calc GHE Heat Extraction (kW) | AB2: Alt Calc GHE Heat Extraction (kW) | AC2: HtgFrac | AD2: COP H4 | AE2: COP H3 | AF2: COP H2 | AG2: COP C3 | AH2: COP C2 | AI2: Overall (H+C) COP | AJ2: Not used | AK2: Not used | AL2: Not used | AM2: Not used | AN2: Error COP H4 | AO2: Error COP H3 | AP2: Error COP H2 | AQ2: Error COP H3b | AR2: Error COP C2 | AS2: BPF0, heating | AT2: BPF0, cooling | AU2: BPF1*, heating | AV2: BPF2, heating | AW2: BPF3+, heating | AX2: BPF4+, heating | AY2: BPF2, cooling | AZ2: BPF3, cooling | BA2: BPF4, cooling | BB2: Error BPF0, heating | BC2: Error BPF0, cooling | BD2: Error BPF1*, heating | BE2: Error BPF2, heating | BF2: Error BPF3+, heating | BG2: Error BPF4+, heating | BH2: Error BPF2, cooling | BI2: Error BPF3, cooling | BJ2: Error BPF4, cooling | BK2: Htg & Clg Provided Boundary 2 | BL2: Htg & Clg Provided Boundary 4+ | BM2: Electricity Used Boundary 2 | BN2: Electricity Used Boundary 4+ | BO2: BPFHC2 | BP2: BPFHC4+ | BQ2: Error BPFHC2 | BR2: Error BPFHC4+
A3: -16 | B3: 7 | C3: -15.89682643 | D3: 22.85142857 | E3: 5.3 | F3: 7.414285714 | G3: 0.9900990099 | H3: 91.71428571 | I3: 11.64857143 | J3: 1.016645472 | K3: 0.323051363 | L3: 0.03325396825 | M3: 2.966746032 | N3: 4.604670123 | O3: 0.05445544554 | P3: 0.0241162832 | Q3: 4.604999907 | R3: 0.2964849464 | S3: 0.19 | T3: 0.009551475194 | U3: 1.016645472 | V3: 0 | W3: 67.39522524 | X3: 0 | Y3: 0.2285142857 | Z3: 2.966746032 | AA3: 70.17916402 | AB3: 0 | AC3: 0.9893569139 | AD3: 2.764640237 | AE3: 3.983582431 | AF3: 4.412725566 | AG3: 7.986166944 | AH3: 91.50430376 | AI3: 4.023258681 | AJ3: 0 | AK3: 0 | AL3: 0 | AM3: 0 | AN3: 0.1360652056 | AO3: 0.199270473 | AP3: 0.2299538463 | AQ3: 0.1992708752 | AR3: 17.82633277 | AS3: 66.29176748 | AT3: 0 | AU3: 4.636307999 | AV3: 4.412725566 | AW3: 3.983582431 | AX3: 2.764640237 | AY3: 91.50430376 | AZ3: 91.50430376 | BA3: 7.986166944 | BB3: 0 | BC3: 0 | BD3: 0.2425833817 | BE3: 0.2299538463 | BF3: 0.199270473 | BG3: 0.1360652056 | BH3: 17.82633277 | BI3: 17.82633277 | BJ3: 0.4581477608 | BK3: 93.02743609 | BL3: 96.02743609 | BM3: 20.86807404 | BN3: 34.5 | BO3: 4.457883171 | BP3: 2.783403945 | BQ3: 0.222373065 | BR3: 0.2564589126
A4: -15 | B4: 6 | C4: -14.8703715 | D4: 25.98333333 | E4: 5.2 | F4: 7.233333333 | G4: 1.325082508 | H4: 88.33333333 | I4: 12.82833333 | J4: 1.073247271 | K4: 0.7535509049 | L4: 0.07759259259 | M4: 2.922407407 | N4: 4.445939379 | O4: 0.07287953795 | P4: 0.05626343989 | Q4: 4.447058872 | R4: 0.3226746262 | S4: 0.19 | T4: 0.02228677545 | U4: 1.073247271 | V4: 0 | W4: 66.20298228 | X4: 0 | Y4: 0.2598333333 | Z4: 2.922407407 | AA4: 63.70522113 | AB4: 0 | AC4: 0.9853439478 | AD4: 2.384209541 | AE4: 3.405472857 | AF4: 3.705646032 | AG4: 7.047834227 | AH4: 84.24150632 | AI4: 3.452467557 | AJ4: 0 | AK4: 0 | AL4: 0 | AM4: 0 | AN4: 0.1168484301 | AO4: 0.1694033422 | AP4: 0.1917925907 | AQ4: 0.1694053471 | AR4: 15.61666271 | AS4: 61.6847432 | AT4: 0 | AU4: 3.876151598 | AV4: 3.705646032 | AW4: 3.405472857 | AX4: 2.384209541 | AY4: 84.24150632 | AZ4: 84.24150632 | BA4: 7.047834227 | BB4: 0 | BC4: 0 | BD4: 0.2012728038 | BE4: 0.1917925907 | BF4: 0.1694033422 | BG4: 0.1168484301 | BH4: 15.61666271 | BI4: 15.61666271 | BJ4: 0.4014398796 | BK4: 90.41196675 | BL4: 93.41196675 | BM4: 24.0565806 | BN4: 38.81166667 | BO4: 3.758304983 | BP4: 2.406801222 | BQ4: 0.1862173997 | BR4: 0.2159455144
A5: -14 | B5: 24 | C5: -13.9351865 | D5: 23.4099112 | E5: 5.501963351 | F5: 7.428512216 | G5: 2.062418347 | H5: 84.57242883 | I5: 12.02172407 | J5: 1.055543352 | K5: 1.201166611 | L5: 0.1241154975 | M5: 2.875884502 | N5: 4.253702471 | O5: 0.1134330091 | P5: 0.08985769575 | Q5: 4.257418381 | R5: 0.2995635768 | S5: 0.19 | T5: 0.03564946254 | U5: 1.055543352 | V5: 0 | W5: 62.4826912 | X5: 0 | Y5: 0.234099112 | Z5: 2.875884502 | AA5: 62.24572255 | AB5: 0 | AC5: 0.9765196728 | AD5: 2.525610489 | AE5: 3.632207926 | AF5: 4.000509092 | AG5: 7.306440681 | AH5: 83.21402778 | AI5: 3.712827555 | AJ5: 0 | AK5: 0 | AL5: 0 | AM5: 0 | AN5: 0.1230213368 | AO5: 0.1797929539 | AP5: 0.2068247478 | AQ5: 0.1797988705 | AR5: 15.66231901 | AS5: 59.19481288 | AT5: 0 | AU5: 4.202546234 | AV5: 4.000509092 | AW5: 3.632207926 | AX5: 2.525610489 | AY5: 83.21402778 | AZ5: 83.21402778 | BA5: 7.306440681 | BB5: 0 | BC5: 0 | BD5: 0.2181408474 | BE5: 0.2068247478 | BF5: 0.1797929539 | BG5: 0.1230213368 | BH5: 15.66231901 | BI5: 15.66231901 | BJ5: 0.4181167237 | BK5: 87.83601379 | BL5: 90.83601379 | BM5: 21.46545455 | BN5: 35.43163527 | BO5: 4.091970827 | BP5: 2.563698037 | BQ5: 0.1998741615 | BR5: 0.2334516331
A6: -13 | B6: 52 | C6: -12.9604721 | D6: 25.77723247 | E6: 5.533556095 | F6: 7.274743792 | G6: 4.625114475 | H6: 85.20420361 | I6: 12.95385524 | J6: 1.096212429 | K6: 1.346332576 | L6: 0.1374171023 | M6: 2.862582898 | N6: 4.28501758 | O6: 0.2543812962 | P6: 0.1000414581 | Q6: 4.288513268 | R6: 0.3150383241 | S6: 0.19 | T6: 0.03947005764 | U6: 1.073928568 | V6: 0.02228386075 | W6: 57.09467897 | X6: 0.03346677978 | Y6: 0.2577723247 | Z6: 2.862582898 | AA6: 58.08185402 | AB6: 0.02987721274 | AC6: 0.9492724818 | AD6: 2.352014627 | AE6: 3.339215499 | AF6: 3.633853781 | AG6: 7.038495409 | AH6: 83.17334146 | AI6: 3.504413037 | AJ6: 0 | AK6: 0 | AL6: 0 | AM6: 0 | AN6: 0.1143052774 | AO6: 0.1646536638 | AP6: 0.1869130199 | AQ6: 0.1646602415 | AR6: 15.1243428 | AS6: 53.16431712 | AT6: 1.501839388 | AU6: 3.799870607 | AV6: 3.633853781 | AW6: 3.339215499 | AX6: 2.352014627 | AY6: 83.17334146 | AZ6: 83.17334146 | BA6: 7.038495409 | BB6: 0 | BC6: 0 | BD6: 0.1961008456 | BE6: 0.1869130199 | BF6: 0.1646536638 | BG6: 0.1143052774 | BH6: 15.1243428 | BI6: 15.1243428 | BJ6: 0.4006464692 | BK6: 91.17565066 | BL6: 94.17565066 | BM6: 23.8734449 | BN6: 38.73108772 | BO6: 3.819124179 | BP6: 2.4315261 | BQ6: 0.1813250917 | BR6: 0.2112717577
A7: -12 | B7: 49 | C7: -11.98526002 | D7: 25.76571587 | E7: 5.396372597 | F7: 7.352656327 | G7: 3.584235964 | H7: 86.89637375 | I7: 12.84367647 | J7: 1.097590491 | K7: 1.958299979 | L7: 0.2003492121 | M7: 2.799650788 | N7: 4.369779478 | O7: 0.197132978 | P7: 0.1457016862 | Q7: 4.375640684 | R7: 0.3173008181 | S7: 0.19 | T7: 0.05754593 | U7: 1.006481778 | V7: 0.09110871275 | W7: 64.23459225 | X7: 0.198621769 | Y7: 0.2576571587 | Z7: 2.799650788 | AA7: 61.72171716 | AB7: 0.3145857617 | AC7: 0.9612258953 | AD7: 2.410163288 | AE7: 3.424761784 | AF7: 3.730137807 | AG7: 7.197231254 | AH7: 84.21985291 | AI7: 3.552761093 | AJ7: 0 | AK7: 0 | AL7: 0 | AM7: 0 | AN7: 0.1165522109 | AO7: 0.1680996722 | AP7: 0.1908871251 | AQ7: 0.1681133644 | AR7: 15.29717373 | AS7: 63.82091922 | AT7: 2.180052412 | AU7: 3.903003719 | AV7: 3.730137807 | AW7: 3.424761784 | AX7: 2.410163288 | AY7: 84.21985291 | AZ7: 84.21985291 | BA7: 7.197231254 | BB7: 0 | BC7: 0 | BD7: 0.2004154057 | BE7: 0.1908871251 | BF7: 0.1680996722 | BG7: 0.1165522109 | BH7: 15.29717373 | BI7: 15.29717373 | BJ7: 0.4099163393 | BK7: 92.43890969 | BL7: 95.43890969 | BM7: 23.86330636 | BN7: 38.60939234 | BO7: 3.873684069 | BP7: 2.471909137 | BQ7: 0.1849257484 | BR7: 0.2129993434
A8: -11 | B8: 59 | C8: -10.94085247 | D8: 25.64617805 | E8: 5.636536401 | F8: 7.327231922 | G8: 5.25424046 | H8: 86.75865254 | I8: 12.83181908 | J8: 1.100397884 | K8: 2.70663619 | L8: 0.2758373652 | M8: 2.676274217 | N8: 4.355648756 | O8: 0.2889832253 | P8: 0.200954837 | Q8: 4.366769297 | R8: 0.3154624843 | S8: 0.19 | T8: 0.07922825124 | U8: 1.034035433 | V8: 0.06636245074 | W8: 56.0066891 | X8: 0.111832759 | Y8: 0.2564617805 | Z8: 2.724162635 | AA8: 60.82581915 | AB8: 0.361346809 | AC8: 0.9445284356 | AD8: 2.447093167 | AE8: 3.463202062 | AF8: 3.77721205 | AG8: 7.381613518 | AH8: 86.07752756 | AI8: 3.651743723 | AJ8: 0 | AK8: 0 | AL8: 0 | AM8: 0 | AN8: 0.1174192706 | AO8: 0.1686816923 | AP8: 0.1919662479 | AQ8: 0.1687078186 | AR8: 15.59836412 | AS8: 54.16322042 | AT8: 1.685181269 | AU8: 3.95056899 | AV8: 3.77721205 | AW8: 3.463202062 | AX8: 2.447093167 | AY8: 86.07752756 | AZ8: 86.07752756 | BA8: 7.381613518 | BB8: 0 | BC8: 0 | BD8: 0.2014738487 | BE8: 0.1919662479 | BF8: 0.1686816923 | BG8: 0.1174192706 | BH8: 15.59836412 | BI8: 15.59836412 | BJ8: 0.4204440011 | BK8: 94.71952919 | BL8: 97.67164078 | BM8: 23.74657593 | BN8: 38.47799713 | BO8: 3.988765769 | BP8: 2.538376425 | BQ8: 0.1856951042 | BR8: 0.2116680505
A9: -10 | B9: 87 | C9: -9.916187191 | D9: 24.2879463 | E9: 5.797281076 | F9: 7.449726795 | G9: 4.922198024 | H9: 84.07394922 | I9: 12.74159656 | J9: 1.065312507 | K9: 2.04494778 | L9: 0.2077692035 | M9: 2.792230796 | N9: 4.226698915 | O9: 0.2707208913 | P9: 0.1515745563 | Q9: 4.241964907 | R9: 0.3034396612 | S9: 0.19 | T9: 0.05967716029 | U9: 1.038977143 | V9: 0.02633536434 | W9: 53.59302942 | X9: 0.194411965 | Y9: 0.242879463 | Z9: 2.792230796 | AA9: 59.73242548 | AB9: 0.8889853161 | AC9: 0.9459343275 | AD9: 2.452319174 | AE9: 3.523090129 | AF9: 3.862585337 | AG9: 7.145187389 | AH9: 85.45951953 | AI9: 3.709231059 | AJ9: 0 | AK9: 0 | AL9: 0 | AM9: 0 | AN9: 0.1185101916 | AO9: 0.1729387387 | AP9: 0.1982014875 | AQ9: 0.1729548297 | AR9: 15.95010519 | AS9: 51.58249129 | AT9: 7.382163487 | AU9: 4.045430019 | AV9: 3.862585337 | AW9: 3.523090129 | AX9: 2.452319174 | AY9: 85.45951953 | AZ9: 85.45951953 | BA9: 7.145187389 | BB9: 0 | BC9: 0 | BD9: 0.208351616 | BE9: 0.1982014875 | BF9: 0.1729387387 | BG9: 0.1185101916 | BH9: 15.95010519 | BI9: 15.95010519 | BJ9: 0.4071729688 | BK9: 91.04109502 | BL9: 94.04109502 | BM9: 22.35325881 | BN9: 37.02954285 | BO9: 4.072833219 | BP9: 2.53962344 | BQ9: 0.1912709091 | BR9: 0.2220457313
A10: -9 | B10: 90 | C10: -8.984553468 | D10: 23.05584551 | E10: 5.852696785 | F10: 7.523487311 | G10: 4.601958438 | H10: 78.50113724 | I10: 12.13103497 | J10: 1.019936958 | K10: 1.20316762 | L10: 0.123392403 | M10: 2.876607597 | N10: 3.945131803 | O10: 0.2531077141 | P10: 0.08963773892 | Q10: 3.948474128 | R10: 0.2931196911 | S10: 0.19 | T10: 0.03544176945 | U10: 0.9877955972 | V10: 0.03214136085 | W10: 53.4061871 | X10: 0.01338570446 | Y10: 0.2305584551 | Z10: 2.876607597 | AA10: 54.1886108 | AB10: 0.1620468425 | AC10: 0.9454138013 | AD10: 2.395511639 | AE10: 3.443127938 | AF10: 3.791812341 | AG10: 6.949634842 | AH10: 82.65830808 | AI10: 3.626310523 | AJ10: 0 | AK10: 0 | AL10: 0 | AM10: 0 | AN10: 0.1161610037 | AO10: 0.1696669247 | AP10: 0.1958570438 | AQ10: 0.1696733404 | AR10: 16.05518909 | AS10: 54.06603072 | AT10: 0.4164635256 | AU10: 3.97411841 | AV10: 3.791812341 | AW10: 3.443127938 | AX10: 2.395511639 | AY10: 82.65830808 | AZ10: 82.65830808 | BA10: 6.949634842 | BB10: 0 | BC10: 0 | BD10: 0.2060739 | BE10: 0.1958570438 | BF10: 0.1696669247 | BG10: 0.1161610037 | BH10: 16.05518909 | BI10: 16.05518909 | BJ10: 0.3974260278 | BK10: 84.3062633 | BL10: 87.3062633 | BM10: 21.07578246 | BN10: 35.18688048 | BO10: 4.000148675 | BP10: 2.481216354 | BQ10: 0.1892491582 | BR10: 0.2260621007
A11: -8 | B11: 116 | C11: -7.98536858 | D11: 21.29078991 | E11: 6.165900826 | F11: 7.648284203 | G11: 4.225954055 | H11: 67.48649318 | I11: 11.85106968 | J11: 1.002387104 | K11: 1.15167017 | L11: 0.1180771667 | M11: 2.881922833 | N11: 3.40014885 | O11: 0.232427473 | P11: 0.08578797738 | Q11: 3.404540638 | R11: 0.2781554602 | S11: 0.19 | T11: 0.03391508407 | U11: 0.9648438237 | V11: 0.03754328018 | W11: 46.85243922 | X11: 0.07015335149 | Y11: 0.2129078991 | Z11: 2.881922833 | AA11: 45.6571753 | AB11: 0.5381430252 | AC11: 0.9420022611 | AD11: 2.207339802 | AE11: 3.221858862 | AF11: 3.568391872 | AG11: 6.148315668 | AH11: 72.6905974 | AI11: 3.403019558 | AJ11: 0 | AK11: 0 | AL11: 0 | AM11: 0 | AN11: 0.1065941165 | AO11: 0.158331878 | AP11: 0.1852221929 | AQ11: 0.1583392249 | AR11: 14.34663925 | AS11: 48.55960942 | AT11: 1.868599418 | AU11: 3.752607934 | AV11: 3.568391872 | AW11: 3.221858862 | AX11: 2.207339802 | AY11: 72.6905974 | AZ11: 72.6905974 | BA11: 6.148315668 | BB11: 0 | BC11: 0 | BD11: 0.1956682249 | BE11: 0.1852221929 | BF11: 0.158331878 | BG11: 0.1065941165 | BH11: 14.34663925 | BI11: 14.34663925 | BJ11: 0.352231145 | BK11: 72.86411741 | BL11: 75.86411741 | BM11: 19.29317702 | BN11: 33.14185959 | BO11: 3.776678011 | BP11: 2.28907244 | BQ11: 0.1783248232 | BR11: 0.2240358284
A12: -7 | B12: 190 | C12: -6.940353432 | D12: 21.76633272 | E12: 6.110284 | F12: 7.669403505 | G12: 5.201474526 | H12: 70.69519737 | I12: 12.30605604 | J12: 0.9951008237 | K12: 1.519807015 | L12: 0.1549644793 | M12: 2.814681719 | N12: 3.555067896 | O12: 0.2860810989 | P12: 0.1128682602 | Q12: 3.562946404 | R12: 0.2811083735 | S12: 0.19 | T12: 0.04451015798 | U12: 0.9251354288 | V12: 0.06996539493 | W12: 49.34983091 | X12: 0.1321374625 | Y12: 0.2176633272 | Z12: 2.845035521 | AA12: 47.7686382 | AB12: 0.5165418808 | AC12: 0.9328117915 | AD12: 2.261494015 | AE12: 3.312890954 | AF12: 3.666746107 | AG12: 6.290925269 | AH12: 77.79762319 | AI12: 3.53168112 | AJ12: 0 | AK12: 0 | AL12: 0 | AM12: 0 | AN12: 0.1088631523 | AO12: 0.1622698286 | AP12: 0.189290788 | AQ12: 0.1622816806 | AR12: 15.45831863 | AS12: 53.34335858 | AT12: 1.888611687 | AU12: 3.84811489 | AV12: 3.666746107 | AW12: 3.312890954 | AX12: 2.261494015 | AY12: 77.79762319 | AZ12: 77.79762319 | BA12: 6.290925269 | BB12: 0 | BC12: 0 | BD12: 0.1995081384 | BE12: 0.189290788 | BF12: 0.1622698286 | BG12: 0.1088631523 | BH12: 15.45831863 | BI12: 15.45831863 | BJ12: 0.359375392 | BK12: 77.41647892 | BL12: 80.38612511 | BM12: 19.76143355 | BN12: 34.07238876 | BO12: 3.917553791 | BP12: 2.35927471 | BQ12: 0.1822759688 | BR12: 0.2234745727
A13: -6 | B13: 232 | C13: -5.974704848 | D13: 21.70109268 | E13: 6.157342173 | F13: 7.686583731 | G13: 5.634795673 | H13: 69.92439998 | I13: 12.63503728 | J13: 0.9832040721 | K13: 1.809584228 | L13: 0.1847301327 | M13: 2.815269867 | N13: 3.52222164 | O13: 0.309913762 | P13: 0.1344772644 | Q13: 3.533096836 | R13: 0.2801952253 | S13: 0.19 | T13: 0.053059691 | U13: 0.9456705978 | V13: 0.03753347424 | W13: 48.51321975 | X13: 0.2281592404 | Y13: 0.2170109268 | Z13: 2.815269867 | AA13: 46.88311994 | AB13: 0.4682281494 | AC13: 0.9271696454 | AD13: 2.236478714 | AE13: 3.304957764 | AF13: 3.657529156 | AG13: 6.123351926 | AH13: 78.69045916 | AI13: 3.542925786 | AJ13: 0 | AK13: 0 | AL13: 0 | AM13: 0 | AN13: 0.1073811579 | AO13: 0.1615216552 | AP13: 0.1886419939 | AQ13: 0.161538698 | AR13: 15.81050081 | AS13: 51.30033636 | AT13: 6.078820172 | AU13: 3.835817802 | AV13: 3.657529156 | AW13: 3.304957764 | AX13: 2.236478714 | AY13: 78.69045916 | AZ13: 78.69045916 | BA13: 6.123351926 | BB13: 0 | BC13: 0 | BD13: 0.1986833394 | BE13: 0.1886419939 | BF13: 0.1615216552 | BG13: 0.1073811579 | BH13: 15.81050081 | BI13: 15.81050081 | BJ13: 0.3491453382 | BK13: 77.36877988 | BL13: 80.36877988 | BM13: 19.68429675 | BN13: 34.33612996 | BO13: 3.930482296 | BP13: 2.340647591 | BQ13: 0.1815091742 | BR13: 0.2231805665
A14: -5 | B14: 317 | C14: -5.005903419 | D14: 21.1391839 | E14: 6.34629136 | F14: 7.854923617 | G14: 7.038588177 | H14: 67.45087511 | I14: 13.082222 | J14: 0.9834571429 | K14: 1.879926568 | L14: 0.1917983432 | M14: 2.800022985 | N14: 3.39500383 | O14: 0.3871223498 | P14: 0.1396588962 | Q14: 3.405712505 | R14: 0.2736088339 | S14: 0.19 | T14: 0.05508987991 | U14: 0.9334390633 | V14: 0.05001807965 | W14: 47.66568024 | X14: 0.1686934921 | Y14: 0.211391839 | Z14: 2.808201657 | AA14: 43.7246556 | AB14: 0.5550831402 | AC14: 0.907834956 | AD14: 2.190553636 | AE14: 3.282617139 | AF14: 3.6428541 | AG14: 5.83764668 | AH14: 77.65400903 | AI14: 3.587329878 | AJ14: 0 | AK14: 0 | AL14: 0 | AM14: 0 | AN14: 0.1047395934 | AO14: 0.1598652939 | AP14: 0.1877340877 | AQ14: 0.1598848474 | AR14: 15.59854306 | AS14: 51.06458698 | AT14: 3.372650316 | AU14: 3.822156612 | AV14: 3.6428541 | AW14: 3.282617139 | AX14: 2.190553636 | AY14: 77.65400903 | AZ14: 77.65400903 | BA14: 5.83764668 | BB14: 0 | BC14: 0 | BD14: 0.1978548725 | BE14: 0.1877340877 | BF14: 0.1598652939 | BG14: 0.1047395934 | BH14: 15.59854306 | BI14: 15.59854306 | BJ14: 0.3320760503 | BK14: 76.36938985 | BL14: 79.36121118 | BM14: 19.12264104 | BN14: 34.2214059 | BO14: 3.993663306 | BP14: 2.319051748 | BQ14: 0.1806980191 | BR14: 0.2245127359
A15: -4 | B15: 380 | C15: -4.002325162 | D15: 19.46027982 | E15: 6.609177658 | F15: 8.011448963 | G15: 7.826600731 | H15: 60.07579655 | I15: 13.0088691 | J15: 0.9744866861 | K15: 1.882674376 | L15: 0.1907582579 | M15: 2.809241742 | N15: 3.026479124 | O15: 0.4304630402 | P15: 0.1393412503 | Q15: 3.039462115 | R15: 0.2583906603 | S15: 0.19 | T15: 0.05479113813 | U15: 0.9397611602 | V15: 0.03472552592 | W15: 44.27815944 | X15: 0.1495963443 | Y15: 0.1946027982 | Z15: 2.809241742 | AA15: 37.10754415 | AB15: 0.4104404647 | AC15: 0.8878470632 | AD15: 2.094747601 | AE15: 3.195914046 | AF15: 3.576148478 | AG15: 5.364422621 | AH15: 71.61213452 | AI15: 3.561825462 | AJ15: 0 | AK15: 0 | AL15: 0 | AM15: 0 | AN15: 0.09955701866 | AO15: 0.1549604829 | AP15: 0.1850198565 | AQ15: 0.1549839282 | AR15: 14.50742968 | AS15: 47.1163965 | AT15: 4.307964827 | AU15: 3.764120149 | AV15: 3.576148478 | AW15: 3.195914046 | AX15: 2.094747601 | AY15: 71.61213452 | AZ15: 71.61213452 | BA15: 5.364422621 | BB15: 0 | BC15: 0 | BD15: 0.1957712158 | BE15: 0.1850198565 | BF15: 0.1549604829 | BG15: 0.09955701866 | BH15: 14.50742968 | BI15: 14.50742968 | BJ15: 0.3052690339 | BK15: 69.78507165 | BL15: 72.78507165 | BM15: 17.43476651 | BN15: 32.46914892 | BO15: 4.002638729 | BP15: 2.241668602 | BQ15: 0.1775603241 | BR15: 0.2304960548
A16: -3 | B16: 532 | C16: -3.03797286 | D16: 18.8770708 | E16: 6.819017037 | F16: 8.1968447 | G16: 8.753516575 | H16: 59.87154734 | I16: 13.12512408 | J16: 0.9936294908 | K16: 1.874386579 | L16: 0.1947293677 | M16: 2.794648765 | N16: 3.01539629 | O16: 0.4814434116 | P16: 0.1406883323 | Q16: 3.028568512 | R16: 0.2525402982 | S16: 0.19 | T16: 0.05593175259 | U16: 0.9394797625 | V16: 0.05414972835 | W16: 43.7342259 | X16: 0.118962272 | Y16: 0.188770708 | Z16: 2.805270632 | AA16: 36.67999674 | AB16: 0.5582796906 | AC16: 0.8758356765 | AD16: 2.131377516 | AE16: 3.278181002 | AF16: 3.686912789 | AG16: 5.371335924 | AH16: 70.95144734 | AI16: 3.698351219 | AJ16: 0 | AK16: 0 | AL16: 0 | AM16: 0 | AN16: 0.1012766789 | AO16: 0.1589927395 | AP16: 0.1911312696 | AQ16: 0.1590179661 | AR16: 14.11726701 | AS16: 46.55153591 | AT16: 2.196913552 | AU16: 3.889000352 | AV16: 3.686912789 | AW16: 3.278181002 | AX16: 2.131377516 | AY16: 70.95144734 | AZ16: 70.95144734 | BA16: 5.371335924 | BB16: 0 | BC16: 0 | BD16: 0.2027598752 | BE16: 0.1911312696 | BF16: 0.1589927395 | BG16: 0.1012766789 | BH16: 14.11726701 | BI16: 14.11726701 | BJ16: 0.305484838 | BK16: 70.49945049 | BL16: 73.48882862 | BM16: 16.87070029 | BN16: 32.00219488 | BO16: 4.178809966 | BP16: 2.296368387 | BQ16: 0.1834116366 | BR16: 0.2376781825
A17: -2 | B17: 847 | C17: -2.025453103 | D17: 18.02029392 | E17: 7.035730556 | F17: 8.295936674 | G17: 7.964676563 | H17: 56.02191719 | I17: 12.9292712 | J17: 0.9821006761 | K17: 1.594108919 | L17: 0.1650918197 | M17: 2.83490818 | N17: 2.824941141 | O17: 0.438057211 | P17: 0.1194328823 | Q17: 2.834811431 | R17: 0.2464425455 | S17: 0.19 | T17: 0.04741901504 | U17: 0.9390657802 | V17: 0.04303489589 | W17: 39.78039094 | X17: 0.1038325989 | Y17: 0.1802029392 | Z17: 2.83490818 | AA17: 34.25174202 | AB17: 0.6027870699 | AC17: 0.8785515214 | AD17: 2.063220531 | AE17: 3.210064133 | AF17: 3.627500532 | AG17: 5.072265997 | AH17: 66.77594698 | AI17: 3.609055813 | AJ17: 0 | AK17: 0 | AL17: 0 | AM17: 0 | AN17: 0.09802985118 | AO17: 0.1558601429 | AP17: 0.1891067989 | AQ17: 0.1558803714 | AR17: 13.43057966 | AS17: 42.36166601 | AT17: 2.412753574 | AU17: 3.83587874 | AV17: 3.627500532 | AW17: 3.210064133 | AX17: 2.063220531 | AY17: 66.77594698 | AZ17: 66.77594698 | BA17: 5.072265997 | BB17: 0 | BC17: 0 | BD17: 0.2012288721 | BE17: 0.1891067989 | BF17: 0.1558601429 | BG17: 0.09802985118 | BH17: 13.43057966 | BI17: 13.43057966 | BJ17: 0.2887608973 | BK17: 65.58070268 | BL17: 68.58070268 | BM17: 16.0023946 | BN17: 30.94956512 | BO17: 4.098180574 | BP17: 2.215885826 | BQ17: 0.181036588 | BR17: 0.2426749919
A18: -1 | B18: 1272 | C18: -0.9989833573 | D18: 17.26203253 | E18: 7.265635188 | F18: 8.4394812 | G18: 8.010378049 | H18: 52.52409419 | I18: 12.94734853 | J18: 0.9875122901 | K18: 1.560239172 | L18: 0.162039596 | M18: 2.833289173 | N18: 2.651011342 | O18: 0.4405707927 | P18: 0.1170768706 | Q18: 2.661586064 | R18: 0.2393943738 | S18: 0.19 | T18: 0.04654233051 | U18: 0.9348383803 | V18: 0.0526739098 | W18: 37.20014105 | X18: 0.1756064064 | Y18: 0.1726203253 | Z18: 2.837960404 | AA18: 31.50776126 | AB18: 0.6833507669 | AC18: 0.8709974188 | AD18: 2.000048452 | AE18: 3.14971745 | AF18: 3.576496857 | AG18: 4.795940364 | AH18: 62.87993784 | AI18: 3.566666501 | AJ18: 0 | AK18: 0 | AL18: 0 | AM18: 0 | AN18: 0.09475792127 | AO18: 0.1526491976 | AP18: 0.1871172063 | AQ18: 0.152670801 | AR18: 12.58286898 | AS18: 39.79312556 | AT18: 3.33384036 | AU18: 3.792189734 | AV18: 3.576496857 | AW18: 3.14971745 | AX18: 2.000048452 | AY18: 62.87993784 | AZ18: 62.87993784 | BA18: 4.795940364 | BB18: 0 | BC18: 0 | BD18: 0.1997873793 | BE18: 0.1871172063 | BF18: 0.1526491976 | BG18: 0.09475792127 | BH18: 12.58286898 | BI18: 12.58286898 | BJ18: 0.2730044693 | BK18: 62.09471141 | BL18: 65.09004018 | BM18: 15.24954483 | BN18: 30.20938106 | BO18: 4.071905891 | BP18: 2.154630048 | BQ18: 0.1787379977 | BR18: 0.2463358665
A19: 0 | B19: 1586 | C19: 0.01505462879 | D19: 16.65340015 | E19: 7.329769363 | F19: 8.491711173 | G19: 7.906905903 | H19: 51.17362547 | I19: 12.98260288 | J19: 0.9813897222 | K19: 1.588575894 | L19: 0.1649829283 | M19: 2.827524253 | N19: 2.582821521 | O19: 0.4348798247 | P19: 0.1192051578 | Q19: 2.59475349 | R19: 0.2353285032 | S19: 0.19 | T19: 0.04738773836 | U19: 0.9206714716 | V19: 0.06071825058 | W19: 36.57446999 | X19: 0.1297311367 | Y19: 0.1665340015 | Z19: 2.835017072 | AA19: 30.76786778 | AB19: 0.5473621829 | AC19: 0.8696716293 | AD19: 1.995229941 | AE19: 3.184730028 | AF19: 3.637045051 | AG19: 4.673108146 | AH19: 61.81958696 | AI19: 3.610001306 | AJ19: 0 | AK19: 0 | AL19: 0 | AM19: 0 | AN19: 0.0943634962 | AO19: 0.1542719008 | AP19: 0.1907917123 | AQ19: 0.1542956453 | AR19: 12.442046 | AS19: 39.72586435 | AT19: 2.136608606 | AU19: 3.864400135 | AV19: 3.637045051 | AW19: 3.184730028 | AX19: 1.995229941 | AY19: 61.81958696 | AZ19: 61.81958696 | BA19: 4.673108146 | BB19: 0 | BC19: 0 | BD19: 0.2042618078 | BE19: 0.1907917123 | BF19: 0.1542719008 | BG19: 0.0943634962 | BH19: 12.442046 | BI19: 12.442046 | BJ19: 0.2659644125 | BK19: 60.66910727 | BL19: 63.66161445 | BM19: 14.63478987 | BN19: 29.63600302 | BO19: 4.145540033 | BP19: 2.148117423 | BQ19: 0.1816569488 | BR19: 0.253059698
A20: 1 | B20: 1897 | C20: 0.9865082606 | D20: 15.89891494 | E20: 7.563986604 | F20: 8.648352818 | G20: 8.131579598 | H20: 47.95996547 | I20: 13.0361579 | J20: 0.987024365 | K20: 1.711587038 | L20: 0.1791665533 | M20: 2.817701235 | N20: 2.421563178 | O20: 0.4472368779 | P20: 0.1290064248 | Q20: 2.43646763 | R20: 0.2284752759 | S20: 0.19 | T20: 0.05146167449 | U20: 0.9284826771 | V20: 0.05854168792 | W20: 34.33044029 | X20: 0.1861438074 | Y20: 0.1589891494 | Z20: 2.820833447 | AA20: 28.21179704 | AB20: 0.5577634343 | AC20: 0.859322855 | AD20: 1.943399282 | AE20: 3.144930137 | AF20: 3.613241887 | AG20: 4.434061979 | AH20: 58.56302454 | AI20: 3.600628831 | AJ20: 0 | AK20: 0 | AL20: 0 | AM20: 0 | AN20: 0.09138331108 | AO20: 0.1516807687 | AP20: 0.1900496325 | AQ20: 0.1517118919 | AR20: 11.72436953 | AS20: 36.97477738 | AT20: 3.179679541 | AU20: 3.850831852 | AV20: 3.613241887 | AW20: 3.144930137 | AX20: 1.943399282 | AY20: 58.56302454 | AZ20: 58.56302454 | BA20: 4.434061979 | BB20: 0 | BC20: 0 | BD20: 0.2042868624 | BE20: 0.1900496325 | BF20: 0.1516807687 | BG20: 0.09138331108 | BH20: 11.72436953 | BI20: 11.72436953 | BJ20: 0.252290963 | BK20: 57.80313211 | BL20: 60.7999999 | BM20: 13.88593931 | BN20: 28.93507284 | BO20: 4.162709546 | BP20: 2.101256155 | BQ20: 0.1802994058 | BR20: 0.2583505775
A21: 2 | B21: 1923 | C21: 1.970094116 | D21: 15.17806096 | E21: 7.713731523 | F21: 8.749885742 | G21: 8.484458425 | H21: 45.3994537 | I21: 13.20920093 | J21: 1.002563683 | K21: 1.970571718 | L21: 0.2055389725 | M21: 2.78978084 | N21: 2.293224717 | O21: 0.4666452134 | P21: 0.148228117 | Q21: 2.311468727 | R21: 0.2218864397 | S21: 0.19 | T21: 0.05903657521 | U21: 0.9526107289 | V21: 0.04995295391 | W21: 33.04094116 | X21: 0.1787090088 | Y21: 0.1517806096 | Z21: 2.794461027 | AA21: 26.27964377 | AB21: 0.5747014201 | AC21: 0.8480970937 | AD21: 1.90917063 | AE21: 3.142269843 | AF21: 3.635923948 | AG21: 4.22845289 | AH21: 55.71165682 | AI21: 3.637053882 | AJ21: 0 | AK21: 0 | AL21: 0 | AM21: 0 | AN21: 0.08907883568 | AO21: 0.150629205 | AP21: 0.1915176117 | AQ21: 0.1506742308 | AR21: 10.99379053 | AS21: 34.68462003 | AT21: 3.577546367 | AU21: 3.889783898 | AV21: 3.635923948 | AW21: 3.142269843 | AX21: 1.90917063 | AY21: 55.71165682 | AZ21: 55.71165682 | BA21: 4.22845289 | BB21: 0 | BC21: 0 | BD21: 0.2069132591 | BE21: 0.1915176117 | BF21: 0.150629205 | BG21: 0.08907883568 | BH21: 10.99379053 | BI21: 10.99379053 | BJ21: 0.240386597 | BK21: 55.85448384 | BL21: 58.84980365 | BM21: 13.18062464 | BN21: 28.38726188 | BO21: 4.237620399 | BP21: 2.073106025 | BQ21: 0.1809394813 | BR21: 0.2645497805
A22: 3 | B22: 2421 | C22: 2.978771964 | D22: 14.37855505 | E22: 7.890282955 | F22: 8.859358452 | G22: 8.632080115 | H22: 41.97632522 | I22: 13.19727001 | J22: 1.011068629 | K22: 1.899885658 | L22: 0.1993641721 | M22: 2.79939667 | N22: 2.124543164 | O22: 0.4747644063 | P22: 0.1433983038 | Q22: 2.144222778 | R22: 0.2147296663 | S22: 0.19 | T22: 0.05726299882 | U22: 0.9669137097 | V22: 0.04415491941 | W22: 30.96260978 | X22: 0.1310290502 | Y22: 0.1437855505 | Z22: 2.800635828 | AA22: 23.43538846 | AB22: 0.5808813745 | AC22: 0.8356053882 | AD22: 1.84501625 | AE22: 3.079137555 | AF22: 3.589523127 | AG22: 3.978723703 | AH22: 51.9334588 | AI22: 3.606784221 | AJ22: 0 | AK22: 0 | AL22: 0 | AM22: 0 | AN22: 0.08582591446 | AO22: 0.1473945678 | AP22: 0.190549164 | AQ22: 0.1474425569 | AR22: 10.16874101 | AS22: 32.02210235 | AT22: 2.967484754 | AU22: 3.856044172 | AV22: 3.589523127 | AW22: 3.079137555 | AX22: 1.84501625 | AY22: 51.9334588 | AZ22: 51.9334588 | BA22: 3.978723703 | BB22: 0 | BC22: 0 | BD22: 0.2070166674 | BE22: 0.190549164 | BF22: 0.1473945678 | BG22: 0.08582591446 | BH22: 10.16874101 | BI22: 10.16874101 | BJ22: 0.2262026449 | BK22: 52.50829099 | BL22: 55.50705184 | BM22: 12.38962368 | BN22: 27.57582505 | BO22: 4.238086028 | BP22: 2.012888163 | BQ22: 0.179383019 | BR22: 0.2730629785
A23: 4 | B23: 2338 | C23: 3.978660526 | D23: 13.5949884 | E23: 8.073278086 | F23: 8.984663506 | G23: 8.916470281 | H23: 40.10605283 | I23: 13.21122443 | J23: 1.007356865 | K23: 1.839576494 | L23: 0.1965075581 | M23: 2.801100381 | N23: 2.028785237 | O23: 0.4904058654 | P23: 0.1402697032 | Q23: 2.048016695 | R23: 0.2078241863 | S23: 0.19 | T23: 0.05644249889 | U23: 0.9613348964 | V23: 0.04602196865 | W23: 29.04510639 | X23: 0.1407084329 | Y23: 0.135949884 | Z23: 2.803492442 | AA23: 21.88626822 | AB23: 0.4594544453 | AC23: 0.8246932323 | AD23: 1.835152224 | AE23: 3.115487307 | AF23: 3.671149268 | AG23: 3.849915642 | AH23: 50.49064673 | AI23: 3.688428574 | AJ23: 0 | AK23: 0 | AL23: 0 | AM23: 0 | AN23: 0.08506366686 | AO23: 0.1488954215 | AP23: 0.1962647656 | AQ23: 0.1489468199 | AR23: 9.919791745 | AS23: 30.21330704 | AT23: 3.057418816 | AU23: 3.959006629 | AV23: 3.671149268 | AW23: 3.115487307 | AX23: 1.835152224 | AY23: 50.49064673 | AZ23: 50.49064673 | BA23: 3.849915642 | BB23: 0 | BC23: 0 | BD23: 0.2144193674 | BE23: 0.1962647656 | BF23: 0.1488954215 | BG23: 0.08506366686 | BH23: 9.919791745 | BI23: 9.919791745 | BJ23: 0.2188646936 | BK23: 50.8620996 | BL23: 53.85970754 | BM23: 11.60234527 | BN23: 26.80621284 | BO23: 4.383777454 | BP23: 2.009224797 | BQ23: 0.1840470275 | BR23: 0.2866819198
A24: 5 | B24: 2534 | C24: 4.967561727 | D24: 12.54939871 | E24: 8.333756346 | F24: 9.137047435 | G24: 8.7993275 | H24: 36.24018375 | I24: 13.05736456 | J24: 1.016293752 | K24: 1.828535574 | L24: 0.1935197304 | M24: 2.801744674 | N24: 1.846497341 | O24: 0.4839630125 | P24: 0.1386974099 | Q24: 1.869522943 | R24: 0.1987949318 | S24: 0.19 | T24: 0.05558431073 | U24: 0.9410804447 | V24: 0.07521330706 | W24: 25.93113459 | X24: 0.2802305728 | Y24: 0.1254939871 | Z24: 2.80648027 | AA24: 19.29559068 | AB24: 0.5918913191 | AC24: 0.812253164 | AD24: 1.773417378 | AE24: 3.070230439 | AF24: 3.669314284 | AG24: 3.589395593 | AH24: 46.11663384 | AI24: 3.675692293 | AJ24: 0 | AK24: 0 | AL24: 0 | AM24: 0 | AN24: 0.08216152109 | AO24: 0.1470391 | AP24: 0.1996482045 | AQ24: 0.1470978184 | AR24: 8.9870341 | AS24: 27.55464184 | AT24: 3.725811081 | AU24: 3.986504332 | AV24: 3.669314284 | AW24: 3.070230439 | AX24: 1.773417378 | AY24: 46.11663384 | AZ24: 46.11663384 | BA24: 3.589395593 | BB24: 0 | BC24: 0 | BD24: 0.2204119055 | BE24: 0.1996482045 | BF24: 0.1470391 | BG24: 0.08216152109 | BH24: 8.9870341 | BI24: 8.9870341 | BJ24: 0.2042090624 | BK24: 46.86804682 | BL24: 49.86331122 | BM24: 10.56569246 | BN24: 25.60676327 | BO24: 4.435870814 | BP24: 1.947271144 | BQ24: 0.1854762094 | BR24: 0.3039616288
A25: 6 | B25: 2349 | C25: 6.009102763 | D25: 11.64357478 | E25: 8.510728423 | F25: 9.268147027 | G25: 9.02351894 | H25: 33.065604 | I25: 12.98537974 | J25: 1.010508273 | K25: 1.869170969 | L25: 0.2009800904 | M25: 2.786646195 | N25: 1.6728687 | O25: 0.4962935417 | P25: 0.1430741345 | Q25: 1.698822229 | R25: 0.1895092783 | S25: 0.19 | T25: 0.05772713601 | U25: 0.906963666 | V25: 0.1035446072 | W25: 24.47368064 | X25: 0.3250214854 | Y25: 0.1164357478 | Z25: 2.798701088 | AA25: 17.0295515 | AB25: 0.7726973424 | AC25: 0.7947254514 | AD25: 1.726619033 | AE25: 3.046795476 | AF25: 3.697987191 | AG25: 3.385214356 | AH25: 43.50117172 | AI25: 3.709942474 | AJ25: 0 | AK25: 0 | AL25: 0 | AM25: 0 | AN25: 0.07876960445 | AO25: 0.1441563588 | AP25: 0.2027126305 | AQ25: 0.1442309485 | AR25: 8.522022343 | AS25: 26.98419083 | AT25: 3.138951358 | AU25: 4.041555411 | AV25: 3.697987191 | AW25: 3.046795476 | AX25: 1.726619033 | AY25: 43.50117172 | AZ25: 43.50117172 | BA25: 3.385214356 | BB25: 0 | BC25: 0 | BD25: 0.2259704731 | BE25: 0.2027126305 | BF25: 0.1441563588 | BG25: 0.07876960445 | BH25: 8.522022343 | BI25: 8.522022343 | BJ25: 0.1926627396 | BK25: 43.95829391 | BL25: 46.9459202 | BM25: 9.654401878 | BN25: 24.62895452 | BO25: 4.553186667 | BP25: 1.906127203 | BQ25: 0.1865738666 | BR25: 0.3214030686
A26: 7 | B26: 2383 | C26: 6.989006964 | D26: 10.81242056 | E26: 8.796730552 | F26: 9.427156438 | G26: 9.440620829 | H26: 29.4256478 | I26: 13.1342333 | J26: 1.008917992 | K26: 1.910149318 | L26: 0.2068815802 | M26: 2.757799749 | N26: 1.491085585 | O26: 0.5192341456 | P26: 0.1468318456 | Q26: 1.524844138 | R26: 0.1781790434 | S26: 0.19 | T26: 0.05942220989 | U26: 0.8380414224 | V26: 0.1708765699 | W26: 21.61853728 | X26: 0.5054462932 | Y26: 0.1081242056 | Z26: 2.792313138 | AA26: 14.50494135 | AB26: 1.431908896 | AC26: 0.7684784171 | AD26: 1.640716262 | AE26: 2.960063149 | AF26: 3.648551804 | AG26: 3.104590654 | AH26: 40.41598847 | AI26: 3.70018159 | AJ26: 0 | AK26: 0 | AL26: 0 | AM26: 0 | AN26: 0.07426720109 | AO26: 0.1392402545 | AP26: 0.2038023865 | AQ26: 0.1393346513 | AR26: 7.9291218 | AS26: 25.79650206 | AT26: 2.957961373 | AU26: 4.010609415 | AV26: 3.648551804 | AW26: 2.960063149 | AX26: 1.640716262 | AY26: 40.41598847 | AZ26: 40.41598847 | BA26: 3.104590654 | BB26: 0 | BC26: 0 | BD26: 0.229430683 | BE26: 0.2038023865 | BF26: 0.1392402545 | BG26: 0.07426720109 | BH26: 7.9291218 | BI26: 7.9291218 | BJ26: 0.1765599445 | BK26: 40.77641795 | BL26: 43.74109928 | BM26: 8.822143833 | BN26: 23.94665386 | BO26: 4.622053179 | BP26: 1.826605902 | BQ26: 0.1860017011 | BR26: 0.3384578516
A27: 8 | B27: 2101 | C27: 7.961453274 | D27: 10.0072556 | E27: 9.043586544 | F27: 9.539842715 | G27: 9.519829626 | H27: 25.51397734 | I27: 13.07100465 | J27: 1.001881937 | K27: 2.012892391 | L27: 0.219489069 | M27: 2.658784748 | N27: 1.299050212 | O27: 0.5235906294 | P27: 0.1553418831 | Q27: 1.344175965 | R27: 0.1666654385 | S27: 0.19 | T27: 0.06304343535 | U27: 0.7381002268 | V27: 0.2637817102 | W27: 18.62049756 | X27: 0.7381416922 | Y27: 0.100072556 | Z27: 2.766199722 | AA27: 12.16776887 | AB27: 2.184177501 | AC27: 0.7430316387 | AD27: 1.541887891 | AE27: 2.827942032 | AF27: 3.544537875 | AG27: 2.834265641 | AH27: 36.97711077 | AI27: 3.626530512 | AJ27: 0 | AK27: 0 | AL27: 0 | AM27: 0 | AN27: 0.06939959584 | AO27: 0.132482741 | AP27: 0.2031528344 | AQ27: 0.1326124364 | AR27: 7.301411824 | AS27: 25.22760038 | AT27: 2.798305051 | AU27: 3.920331529 | AV27: 3.544537875 | AW27: 2.827942032 | AX27: 1.541887891 | AY27: 36.97711077 | AZ27: 36.97711077 | BA27: 2.834265641 | BB27: 0 | BC27: 0 | BD27: 0.2312518811 | BE27: 0.2031528344 | BF27: 0.132482741 | BG27: 0.06939959584 | BH27: 7.301411824 | BI27: 7.301411824 | BJ27: 0.1612369612 | BK27: 37.04669936 | BL27: 39.92497318 | BM27: 8.023448744 | BN27: 23.07826024 | BO27: 4.617303674 | BP27: 1.729981929 | BQ27: 0.1831256048 | BR27: 0.3504814954
A28: 9 | B28: 1786 | C28: 8.959004595 | D28: 9.293180418 | E28: 9.375445595 | F28: 9.764985946 | G28: 9.695579049 | H28: 22.55017577 | I28: 12.85052597 | J28: 1.009770238 | K28: 1.921401108 | L28: 0.2098457015 | M28: 2.562020526 | N28: 1.148845028 | O28: 0.5332568477 | P28: 0.1484274172 | Q28: 1.19717267 | R28: 0.1541118423 | S28: 0.19 | T28: 0.06027358893 | U28: 0.6671847729 | V28: 0.3425854654 | W28: 16.33244334 | X28: 0.888570845 | Y28: 0.09293180418 | Z28: 2.785059155 | AA28: 10.43494128 | AB28: 2.966989244 | AC28: 0.7162310182 | AD28: 1.472847378 | AE28: 2.719881208 | AF28: 3.485232756 | AG28: 2.658813811 | AH28: 33.83656463 | AI28: 3.585285749 | AJ28: 0 | AK28: 0 | AL28: 0 | AM28: 0 | AN28: 0.06587513369 | AO28: 0.1266355086 | AP28: 0.2049933266 | AQ28: 0.1267783978 | AR28: 6.63315721 | AS28: 24.47964042 | AT28: 2.593720209 | AU28: 3.885440807 | AV28: 3.485232756 | AW28: 2.719881208 | AX28: 1.472847378 | AY28: 33.83656463 | AZ28: 33.83656463 | BA28: 2.658813811 | BB28: 0 | BC28: 0 | BD28: 0.2366905498 | BE28: 0.2049933266 | BF28: 0.1266355086 | BG28: 0.06587513369 | BH28: 6.63315721 | BI28: 6.63315721 | BJ28: 0.1514265701 | BK28: 34.16715593 | BL28: 36.93902216 | BM28: 7.308045799 | BN28: 22.14370639 | BO28: 4.675279393 | BP28: 1.668149925 | BQ28: 0.1834275513 | BR28: 0.3647298331
